Workbook

Sheet Home
A1: Hint | D1: Instruction
A2: Design & Prepaired by Pravesh Kumar Sharma, Accountant, please call-9460100093 or write mail to praveshbkn@gmail.com for further query/error/updation/suggestion
A5: << Please Enable all macros before start the work for proper use of this sheet>>
A7: I | C7: Income-Tax Calculation (From Fin. Year 1985-86 to onwards i.e. 2024-25)
A10: II | C10: Preparation of Income Tax Statement ,Compare (New/Existing regime) & Form No 16
H13: Updated as per notification of CBDT, dated 11-03-21)
A15: III | C15: Preparation of Challan 280 and 281
A18: IV | C18: Calculation of Relief u/s 89(1) from F.Y. 1985-86 & onwards (i.e. upto F.Y.2024-25)
C21: Income Tax Calculation on Agriculture Income from Fin. Year 1985-86 to 2024-25
C25: Computation of Capital Gain on Property
A31: V | C31: Useful calculation relating to tax matter (i.e. House Rent Allowance rebate, ,and Calculation of Intrest on R.D., N.S.C.,Term Deposite and Basic information of section 234A,234B and 234C with their tax treatment and calculations
C36: Key Points Section 115BAC
B37: Use | D37: rajsevak.com | I37: for further updation/new files regarding taxations matter and much more…

Sheet Sheet1
B3: Particulars | C3: Old Tax Regime | D3: New tax Regime | E3: New Tax Regime | F3: New Tax Regime
D4: (until 31st March 2023) | E4: (FY 2023-24) | F4: (FY 2024-25)
B6: Income level for rebate eligibility | C6: ₹ 5 lakhs | D6: ₹ 5 lakhs | E6: ₹ 7 lakhs | F6: ₹ 7 lakhs
B7: Standard Deduction | C7: ₹ 50,000 | D7: - | E7: ₹ 50,000 | F7: ₹ 75,000
B8: Effective Tax-Free Salary income | C8: ₹ 5.5 lakhs | D8: ₹ 5 lakhs | E8: ₹ 7.5 lakhs | F8: ₹ 7.75 lakhs
B9: Rebate u/s 87A | C9: ₹12,500 | D9: ₹12,500 | E9: ₹25,000 | F9: ₹25,000
B10: HRA Exemption | C10: YES | D10: NO | E10: NO | F10: NO
B11: Leave Travel Allowance (LTA) | C11: YES | D11: NO | E11: NO | F11: NO
B12: Other allowances including food allowance of Rs 50/meal subject to 2 meals a day | C12: YES | D12: NO | E12: NO | F12: NO
B13: Standard Deduction | C13: YES | D13: NO | E13: YES | F13: YES
B14: Entertainment Allowance and Professional Tax | C14: YES | D14: NO | E14: NO | F14: NO
B15: Perquisites for official purposes | C15: YES | D15: YES | E15: YES | F15: YES
B16: Interest on Home Loan u/s 24b on: Self-occupied or vacant property | C16: YES | D16: NO | E16: NO | F16: NO
B17: Interest on Home Loan u/s 24b on: Let-out property | C17: YES | D17: YES | E17: YES | F17: YES
B18: Deduction u/s 80C (EPF | LIC | ELSS | PPF | FD | Children's tuition fee etc) | C18: YES | D18: NO | E18: NO | F18: NO
B19: Employee's (own) contribution to NPS | C19: YES | D19: NO | E19: NO | F19: NO
B20: Employer's contribution to NPS | C20: YES | D20: YES | E20: YES | F20: YES
B21: Medical insurance premium - 80D | C21: YES | D21: NO | E21: NO | F21: NO
B22: Disabled Individual - 80U | C22: YES | D22: NO | E22: NO | F22: NO
B23: Interest on education loan - 80E | C23: YES | D23: NO | E23: NO | F23: NO
B24: Interest on Electric vehicle loan - 80EEB | C24: YES | D24: NO | E24: NO | F24: NO
B25: Donation to Political party/trust etc - 80G | C25: YES | D25: NO | E25: NO | F25: NO
B26: Savings Bank Interest u/s 80TTA and 80TTB | C26: YES | D26: NO | E26: NO | F26: NO
B27: Other Chapter VI-A deductions | C27: YES | D27: NO | E27: NO | F27: NO
B28: All contributions to Agniveer Corpus Fund - 80CCH | C28: YES | D28: Did not eNOist | E28: YES | F28: YES
B29: Deduction on Family Pension Income | C29: YES | D29: NO | E29: YES | F29: YES
B30: Gifts upto Rs 50,000 | C30: YES | D30: YES | E30: YES | F30: YES
B31: Exemption on voluntary retirement 10(10C) | C31: YES | D31: YES | E31: YES | F31: YES
B32: Exemption on gratuity u/s 10(10) | C32: YES | D32: YES | E32: YES | F32: YES
B33: Exemption on Leave encashment u/s 10(10AA) | C33: YES | D33: YES | E33: YES | F33: YES
B34: Daily Allowance | C34: YES | D34: YES | E34: YES | F34: YES
B35: Conveyance Allowance | C35: YES | D35: YES | E35: YES | F35: YES
B36: Transport Allowance for a specially-abled person | C36: YES | D36: YES | E36: YES | F36: YES

Sheet Key Points
B1: Home
A3: Key points -Section 115BAC
A4: Section | B4: Existing Provision | D4: New Provision | F4: Remarks
A5: 115BAC | B5: As per the existing law, there was only one tax regime for individuals and HUF. According to the same, the tax payer was allowed deductions under chapter VI A on their ‘Gross total income’ before arriving at ‘Total Income’. | D5: An option under section 115BAC of the Income tax Act, 1961 (Act) to avail a concessional slab rates by forgoing certain exemptions & deductions and satisfying certain conditions. | F5: The option to opt for or out of the new regime could only be exercised once for tax payers earning business income.
A7: Income must be calculated without claiming most deductions/exemptions, except for: | C7: Standard deduction u/s 16(ii) | D7: Family pension deduction u/s 57(iia) | E7: Long-term capital gains exemption up to | F7: employers contribution to pension Scheme u/s 80CCD (2)
C10: Rs. 75,000 | D10: Rs. 25,000 | E10: Rs. 1.25 lakh | F10: 14% of salary
A11: Deductions under Chapter VIA (excluding 80CCD and 80JJAA) and sections 24b, 10, 32, 35, etc., should not be claimed. | F11: Cannot be claimed.
A12: Carry forward losses from deductions or owning a house | F12: Cannot be set off.
A13: Exemptions or deductions for allowances or perquisites | F13: Not Allowed
A14: Depreciation under Section 32(iia) | F14: Cannot be claimed.
A15: Some major deductions and exemptions that cannot be claimed under the new tax regime are given below - | D15: Exemptions and Deductions Available Under the New Regime
A17: The standard deduction under section 80TTB/80TTA. | D17: Transport allowances in case of a specially-abled person.
A18: Entertainment allowance and professional tax on salaries. | D18: Conveyance allowance received to meet the conveyance expenditure incurred as part of the employment.
A19: Leave Travel Allowance (LTA).
A20: House Rent Allowance (HRA). | D20: Any compensation received to meet the cost of travel on tour or transfer.
A21: Helper allowance | D21: Daily allowance received to meet the ordinary regular charges or expenditure you incur on account of absence from his regular place of duty.
A22: Minor child income allowance.
A23: Special allowances under section 10(14). | D23: Perquisites for official purposes
A24: Children's education allowance. | D24: Exemption on voluntary retirement 10(10C), gratuity u/s 10(10) and Leave encashment u/s 10(10AA)
A25: Interest on housing loan on the self-occupied property or vacant property.
A26: Chapter VI-A deductions (except Section 80CCD(2) and Section 80JJAA). | D26: Interest on Home Loan on let-out property (Section 24)
A27: Exemption and deduction for allowances and other perquisites, including food allowance of Rs.50 per meal to a maxi.of 2 meals a day. | D27: Gifts up to Rs 50,000
D28: Deduction for employer’s contribution to NPS account [Section 80CCD(2)]
A29: Donations made to a trust or a political party. | D29: Deduction for additional employee cost (Section 80JJA)
A30: Employee’s own contribution to NPS. | D30: Budget 2023 introduced
A31: Choose the New Regime or Old Tax Regime | D31: standard deduction of Rs 50,000
A32: A taxpayer must compare the income tax under the new tax regime with the old regime. Once the taxpayer chooses the tax regime at the beginning of the year, the investments and TDS or advance tax payable calculations are made accordingly. Also, the taxpayer has to furnish Form 10IEA to the income tax department before filing the return if the taxpayer intends to opt for the old tax regime. | D32: deduction under Section 57(iia) of family pension income
D33: deduction of amount paid or deposited in the Agniveer Corpus Fund U/S 80CCH(2)
D34: Budget 2024 introduced
D35: standard deduction of Rs 75,000
D36: employers contribution to pension Scheme as per Section 80CCD (2) has been increased from 10% of salary to the 14% of salary
D38: Deduction under Family Pension has been increased from Rs. 15,000 to Rs. 25,000.
A39: Important points to note if you select the new tax regime: F. Year 2023-24/2024-25
A40: Particulars | C40: Old Tax Regime | D40: New Tax regime | E40: New Tax Regime | F40: New Tax Regime
D41: (until 31st March 2023) | E41: 2023-24 | F41: 2024-25
A42: Income level for rebate eligibility | C42: ₹ 5 lakhs | D42: ₹ 5 lakhs | E42: ₹ 7 lakhs | F42: ₹ 7 lakhs
A43: Standard Deduction | C43: ₹ 50,000 | D43: - | E43: ₹ 50,000 | F43: ₹ 75,000
A44: Effective Tax-Free Salary income | C44: ₹ 5.5 lakhs | D44: ₹ 5 lakhs | E44: ₹ 7.5 lakhs | F44: ₹ 7.75 lakhs
A45: Rebate u/s 87A | C45: ₹12,500 | D45: ₹12,500 | E45: ₹25,000 | F45: ₹25,000
A46: HRA Exemption | C46: YES | D46: NO | E46: NO | F46: NO
A47: Leave Travel Allowance (LTA) | C47: YES | D47: NO | E47: NO | F47: NO
A48: Other allowances including food allowance of Rs 50/meal subject to 2 meals a day | C48: YES | D48: NO | E48: NO | F48: NO
A49: Standard Deduction (Rs 50,000/75000) | C49: YES | D49: NO | E49: YES | F49: YES
A50: Entertainment Allowance Deduction and Professional Tax | C50: YES | D50: NO | E50: NO | F50: NO
A51: Perquisites for official purposes | C51: YES | D51: YES | E51: YES | F51: YES
A52: Interest on Home Loan u/s 24b on slef-occupied or vacant property | C52: YES | D52: NO | E52: NO | F52: NO
A53: Interest on Home Loan u/s 24b on let-out property | C53: YES | D53: YES | E53: YES | F53: YES
A54: Deduction u/s 80C (EPF|LIC|ELSS|PPF|FD|Children’s tuition fee etc) | C54: YES | D54: NO | E54: NO | F54: NO
A55: Employee’s (own) contribution to NPS | C55: YES | D55: NO | E55: NO | F55: NO
A56: Employer’s contribution to NPS | C56: YES | D56: YES | E56: YES | F56: YES
A57: Medical insurance premium – 80D | C57: YES | D57: NO | E57: NO | F57: NO
A58: Disabled Individual – 80U | C58: YES | D58: NO | E58: NO | F58: NO
A59: Interest on education loan – 80E | C59: YES | D59: NO | E59: NO | F59: NO
A60: Interest on Electric vehicle loan – 80EEB | C60: YES | D60: NO | E60: NO | F60: NO
A61: Donation to Political party/trust etc – 80G | C61: YES | D61: NO | E61: NO | F61: NO
A62: Savings Bank Interest u/s 80TTA and 80TTB | C62: YES | D62: NO | E62: NO | F62: NO
A63: Other Chapter VI-A deductions | C63: YES | D63: NO | E63: NO | F63: NO
A64: All contributions to Agniveer Corpus Fund – 80CCH | C64: YES | D64: Did not eNOist | E64: YES | F64: YES
A65: Deduction on Family Pension Income | C65: YES | D65: NO | E65: YES | F65: YES
A66: Gifts up to Rs 50,000 | C66: YES | D66: YES | E66: YES | F66: YES
A67: Exemption on voluntary retirement 10(10C) | C67: YES | D67: YES | E67: YES | F67: YES
A68: Exemption on gratuity u/s 10(10) | C68: YES | D68: YES | E68: YES | F68: YES
A69: Exemption on Leave encashment u/s 10(10AA) | C69: YES | D69: YES | E69: YES | F69: YES
A70: Daily Allowance | C70: YES | D70: YES | E70: YES | F70: YES
A71: Transport Allowance for a specially-abled person | C71: YES | D71: YES | E71: YES | F71: YES
A72: Conveyance Allowance | C72: YES | D72: YES | E72: YES | F72: YES
A73: Please note that the tax rates in the New tax regime is the same for all categories of Individuals, i.e. Individuals, Senior citizens and Super senior citizens.
A74: 1 | B74: Individuals with Net taxable income less than or equal to Rs 5 lakh will be eligible for tax rebate u/s 87A i.e. tax liability will be NIL in both – New and old/existing tax regimes.
A76: 2 | B76: *In Budget 2023, rebate under new regime has been increased and therefore, income upto Rs 7 lakh will be tax-free from FY 2023-24.
A77: 3 | B77: Surcharge: In case the income exceeds a certain threshold, surcharge will be applicable
A78: 4 | B78: Surcharge rates are as below:
B79: 10% of Income tax if total income > Rs.50 lakh | D79: *In Budget 2023, the highest surcharge rate of 37% has been reduced to 25% under the new tax regime. (applicable from 1st April 2023)
B80: 15% of Income tax if total income > Rs.1 crore
B81: 25% of Income tax if total income > Rs.2 crore | D81: Additional Health and Education cess at the rate of 4% will be added to the income tax liability + surcharge in all cases
B82: 37% of Income tax if total income > Rs.5 crore
A83: Income Tax Rate for Individual Since (F.Y. 2020-21 & 2022-23) | E83: F.Year 2024-25
A84: Tax Range | C84: Existing Tax Rate | D84: New Rate (u/s 115BAC) | E84: New Rate (u/s 115BAC)
A85: 0 | B85: 250000 | C85: 0 | D85: 0 | E85: Upto Rs.300000 | F85: 0
A86: =B85+1 -> 250001 | B86: 500000 | C86: 0.05 | D86: 0.05 | E86: Rs.300001 to 700000 | F86: 0.05
A87: 500001 | B87: 750000 | C87: 0.2 | D87: 0.1 | E87: Rs.700001 to 1000000 | F87: 0.1
A88: 750001 | B88: 1000000 | D88: 0.15 | E88: Rs.1000001 to 1200000 | F88: 0.15
A89: 1000001 | B89: 1250000 | C89: 0.3 | D89: 0.2 | E89: Rs.1200001 to 1500000 | F89: 0.2
A90: 1250001 | B90: 1500000 | D90: 0.25 | E90: Rs.1500001 to Above | F90: 0.3
A91: 1500001 | D91: 0.3
A92: Education Cess and Surcharge Limit is same in both condition
A94: Deduction under chapter VIA not allowed under section 115BAC (For Fin. Year 2020-21 & 2021-22)
A95: Section | B95: Name of deduction | D95: Maxi Limit | F95: Avaible to
A96: 80 C | B96: Invesment in specified investment plans | D96: Aggregate total of section 80C,80CCC,80CCD (u/s 80 CCE) subject to limit Rs.1,50,000/- | F96: Individual/HUF
A97: 80CCC | B97: Payment of premium for annuity plan of LIC or any other
A98: 80 CCD(1) | B98: Employee cont. towards new pension scheme
A99: 80 CCD(1B) | B99: Additional contribution towards NPS | D99: Upto Rs. 50000 (Cont. in Atal Pension Yojana is also eligible) | F99: Individual/HUF
A100: 80CCF | B100: Investment in long term infrasturture bonds | D100: No limit | F100: Individual/HUF
A101: 80CCG | B101: Investment made under an Equity savings scheme/ Equity oriented fund | D101: 25000 (50% of Investment & GTI does not exceed Rs. 12 lakhs) | F101: Individual
A102: 80D | B102: Medical ins. premium for himself, spous and childrens & Parents | D102: Total deduction allowed Rs. 100000 | F102: Individual/HUF
A103: 80DD | B103: Medical treatment of dependent handicapped person | D103: Maxi. allow limit in case of Severe disability Rs. 125000 | F103: Individual/HUF
A104: 80DDB | B104: Spl ded to the guardion of a patient suff.from Cancer/Aids | D104: 100000 (Maximum aggregate allowable limit) | F104: Individual
A105: 80E | B105: Repayment of loan for higher education | D105: No limit (higher education for self/ spouse/ his children.) | F105: Individual
A106: 80EE | B106: Intrest paid on House Building Loan ( excluding u/s 24B) | D106: 50000 (loan not to exceed Rs 35 lakhs) | F106: Individual
A107: 80EEA | B107: Deduction in respect of interest on loan taken for certain house property | D107: 150000 Maxi. allowable limit, Applicable from f.y. 2019-20,) | F107: Individual
A108: 80EEB | B108: Deduction in respect of purchase of electric vehicle | D108: 150000 Maxi. allowable limit, Applicable from f.y. 2019-20,) | F108: Individual
A109: 80G | B109: Donation to certain funds, charitable institutions etc. | D109: 100 /50 % or 10 percent of the Gross Total Income | F109: Individual/HUF
A110: 80GG | B110: Deduction in respect of rent paid | D110: Maximum Rs. 60000 (When HRA not received) | F110: Individual
A111: 80QQB | B111: Royalty income of books | D111: Least of the following: a) In case of Lump sum payment – maximum of Rs.3,00,000/- b) In other cases – amount of such income subject to maximum of 15% of value of books sold during the previous year. | F111: Individual
A112: 80RRB | B112: Royalty of patents | D112: Rs.3,00,000/- | F112: Individual
A113: 80TTA | B113: Interest on deposits in savings account (w.e.f. 2012-13) | D113: 10000 (Maxi. Rs 10,000 or actual interest whichever is lower ) | F113: Individual/HUF
A114: 80TTB | B114: Interest income earned on Saving/ Fixed Deposits & Recurring Deposits (w.e.f. 2018-19) | D114: 50000 (Intrrest on FD & Recurring Deposits i.e.Banks / Post office schemes) | F114: Senior and Super Senior Resident Individuals
A115: 80U | B115: Physical disability (including blindness) or mental retardation. | D115: Maxi. allow limit in case of Severe disability Rs. 125000 | F115: Individual
A116: Deduction under chapter VIA allowed under section 115BAC (For Fin. Year 2020-21 & 2021-22)
A117: Section | B117: Name of deduction | D117: Maxi Limit | F117: Avaible to
A118: 80 CCD(2) | B118: Employer cont. towards new pension scheme | D118: 10% of Salary (Equal to 10% of Salary (Pay+D.A.) | F118: Individual/HUF
A119: 80JJAA | B119: Incentive for Employment Generation | C119: This deduction is available to all assessee provided all conditions specified in this section is satisfied.
A120: Important Allowance & Deduction not allowed under section 115BAC (For Fin. Year 2020-21 & 2021-22)
A121: Section | B121: Name of deduction | D121: Maxi Limit | F121: Avaible to
A122: 10(5) | B122: Leave Travel Concession u/s | D122: The value of any travel concession or assistance received or due. | F122: Salaried Individual
A123: 10(13A) | B123: House Rent Allowance u/s | D123: Least of: | F123: Salaried Individual
D124: (a) Actual HRA received;b. 50% of [Basic Pay + DA] for those living in metro cities (40% for non-metros); or(c) Actual rent paid less 10% of Basic Pay + DA
A125: 10(14) | B125: Other Allowances u/s | D125: Actual amount of such Allowance received | F125: Salaried Individual
A126: 10(17) | B126: Allowances to MPs/MLAs u/s | D126: Actual amount of such Allowance received | F126: Salaried Individual
A127: 10(32) | B127: Allowance for income of minor u/s | D127: Rs.1,500/- per child | F127: Individual
A128: 16(i) | B128: Standard Deduction u/s | D128: Rs.50,000/- | F128: Salaried Individual
A129: 16(ii) | B129: Deduction for entertainment allowance | D129: Maxi Rs. 5000 | F129: Salaried Individual
A130: 16(iii) | B130: Employment / professional tax | D130: Actual amount | F130: Salaried Individual
A131: 24 | B131: Interest in respect of self-occupied or vacant property | D131: Rs.200000/- | F131: Individual/HUF
A132: 32(1)(iia) | B132: Additional Depreciation u/s | D132: Allowed to eligible assessee: 20% of the actual cost of Plant and Machinery (35% in case of Notified Backward Areas) | F132: Individual/HUF
A133: 57(iia) | B133: Deduction from family pension u/s | D133: Least of: One-third of such income or Rs.15,000/- | F133: Individual
A134: 10AA | B134: Exemption for SEZ unit | D134: Deduction to eligible persons as per the provisions of said section. | F134: Individual/HUF
A135: 32AD | B135: Investment if new plant or machinery in notified backward areas in certain states | D135: Deduction to eligible persons as per the provisions of said section. | F135: Individual/HUF

Sheet Index sheet
A1: Sheet index:
A2: 10-IA
A3: 115BAC
A4: 12BB
A5: 2020-21
A6: Agriculture
A7: blank form16
A8: Blank format Form No 16
A9: Capital Gain
A10: challan
A11: Challan 280
A12: Challan 281
A13: Challan Data
A14: Compare
A15: DDO Data
A16: Employee Data
A17: FORM 10E
A18: Form no 16
A19: Form no 16 (2)
A20: Form16
A21: Gross Salary
A22: Home
A23: HRA
A24: Instruction
A25: Intrest 234
A26: Main
A27: Mini Tax Calculator
A28: pks
A29: pravesh
A30: Section 89(1)
A31: section89
A32: Statement
A33: TABLE A
A34: Table for agriA
A35: Table for agriA (2)
A36: Table for challan
A37: Table for compare
A38: Table for form 16
A39: Table for form 16 (2)
A40: Table for Statement
A41: Table for Tax Cal
A42: Table X
A43: Table Y
A44: Table Z
A45: Table-C
A46: Tax Cal(89 Rebate)
A47: Tax Calculation
A48: Tax Rate
A49: Tax Table (With Arr)
A50: Tax Table (Without Arr)
A51: Taxcal
A52: Useful Calculation
A53: Usefulcal
A54: With Arr CFY
A55: Without Arr CFY

Sheet 10-IA
I1: Home
A2: FORM NO. 10-IA
A3: [See sub-rule (2) of rule 11A]
A4: Certificate of the medical authority for certifying ‘person with disability’, ‘severe disability’, ‘autism’, ‘cerebral palsy’ and ‘multiple disability’ for purposes of section 80DD and section 80U
G8: Certificate No.
G9: Date :
A10: This is to certify that Shri/Smt./Ms._______________________________ son/daughter of Shri_________________________________, age______ years___________male/female* residing at____________________________________, Registration No.__________is a person with disability/severe disability* suffering from autism/cerebral palsy/multiple disability*.
A16: 2. This condition is progressive/non-progressive/likely to improve/not likely to improve*.
A17: 3. Reassessment is recommended/not recommended after a period of__________months/years*.
G21: Sd/-
E22: (Neurologist/Pediatric Neurologist/Civil Surgeon/ Chief Medical Officer*)
A24: Name :___________________
A25: Address of Institution/Government hospital :
A26: ____________________________________
A27: ____________________________________
A28: Qualification/designation of specialist :____________________
A29: SEAL
A30: Signature/Thumb impression* of the patient
A31: Note : *Strike out whichever is not applicable.

Sheet blank form16
B1: 2020-21 | D1: F.Y. | F1: =INDEX('Table for form 16'!$A$1168:$A$1204,MATCH('blank form16'!$L$17,'Table for form 16'!$B$1168:$B$1204,0)) ->  | K1: =IF($F$1>=B1,#REF!,"Existing Option") -> 
A2: CATEGORY | P2: Employee code/ID
A4: FORM 16 | Z4: Home | AC4: Home
A5: [See rule 31(1)(a)]
A6: PART A
A7: Certificate under section 203 of the Income-tax Act,1961 for tax deducted at source Salary
A8: Certificate No. | L8: Last updated on
A9: Name and Address of Employer | L9: Name and Designation of Employee
A12: PAN of Deductor | D12: TAN of the Deductor | L12: PAN of the Employee | Q12: Employee Reference No. provided by the Employer (If avaiable)
A15: CIT (TDS) | L15: Assessment Year | Q15: Period with the Employer
A16: Address: | C16: =IF('DDO Data'!$D$14="","",'DDO Data'!$D$14) -> The Commissioner of Income Tax (TDS) New Central Revenue Building, Statue Circle, Janpath, Jaipur - 302005
Q17: From | U17: To
A19: City: Pincode: | B19: =IF('DDO Data'!$D$15="","",'DDO Data'!$D$15) -> Jaipur | E19: Pin Code | H19: =IF('DDO Data'!$D$16="","",'DDO Data'!$D$16) -> 302005
A20: Summary of amount paid/credited and tax deducted at sourcethereon in respect of employee
A21: Quarter | C21: Receipt Numbers of original quarterly statements of TDS under sub-section (3) of section 200 | L21: Amount of paid/credited | Q21: Amount of tax deducted (Rs.) | V21: Amount of tax deposited/remitted (Rs.)
A24: Quarter 1 | C24: =IF('DDO Data'!F8="","",'DDO Data'!F8) ->  | L24: 0 | Q24: 0 | V24: =Q24 -> 0
A25: Quarter 2 | C25: =IF('DDO Data'!F9="","",'DDO Data'!F9) ->  | L25: 0 | Q25: 0 | V25: =Q25 -> 0
A26: Quarter 3 | C26: =IF('DDO Data'!F10="","",'DDO Data'!F10) ->  | L26: 0 | Q26: 0 | V26: =Q26 -> 0
A27: Quarter 4 | C27: =IF('DDO Data'!F11="","",'DDO Data'!F11) ->  | L27: 0 | Q27: 0 | V27: =Q27 -> 0
A28: Total (Rs.) | L28: =SUM(L24:O27) -> 0 | Q28: =SUM(Q24:T27) -> 0 | V28: =Q28 -> 0
A29: I. DETAILS OF TAX DEDUCTED AND DEPOSITED IN THE CENTRAL GOVERNMENT ACCOUNT THROUGH ADJUSTMENT
A31: (The deductor to provide payment wise details of tax deducted and deposited with respect to the deductee)
A32: S. No. | B32: Tax Deposited in respect of the deductee(Rs.) | C32: Book identification number (BIN)
C33: Receipt numbers of Form No.24 G | J33: DDO serial number in Form No 24G | O33: Date of transfer voucher (dd/mm/yyyy) | W33: Status of matching with Form No. 24G
A36: 1 | B36: 0
A37: 2 | B37: 0
A38: 3 | B38: 0
A39: 4 | B39: 0
A40: 5 | B40: 0
A41: 6 | B41: 0
A42: 7 | B42: 0
A43: 8 | B43: 0
A44: 9 | B44: 0
A45: 10 | B45: 0
A46: 11 | B46: 0
A47: 12 | B47: 0
A48: TOTAL | B48: =SUM(B36:B47) -> 0
A50: Certificate No. | C50: =IF($D$8="","",$D$8) ->  | G50: TAN of employer | K50: =$D$14 -> 0 | O50: PAN of employee | S50: =$L$14 -> 0 | V50: A.YEAR | X50: =$L$17 -> 0
A51: II. DETAILS OF TAX DEDUCTED AND DEPOSITED IN THE CENTRAL GOVERNMENT ACCOUNT THROUGH CHALLAN (The deductor to provide payment wise details of tax deducted and deposited with respect to the deductee)
A53: S.No. | B53: Tax Deposited in respect of the deductee (Rs.) | C53: Challan identification number (CIN)
C54: BSR Code of tbe Bank Branch | J54: Date on which tax deposited (dd/mm/yyyy) | R54: Challan Serial Number | W54: Status of matching with OLTAS
A55: 1 | B55: 0
A56: 2 | B56: 0
A57: 3 | B57: 0
A58: 4 | B58: 0
A59: 5 | B59: 0
A60: 6 | B60: 0
A61: 7 | B61: 0
A62: 8 | B62: 0
A63: 9 | B63: 0
A64: 10 | B64: 0
A65: 11 | B65: 0
A66: 12 | B66: 0
A67: Total | B67: =SUM(B55:B66) -> 0
A68: Verification
A69: I | I69: =IF('DDO Data'!$H$12="Male","son of","daughter of") -> son of | T69: working in the capacity of
S70: do hearby certify that a sum of
E71: =pravesh(A71) ->  | S71: has been deducted at source
A72: and paid to the credit of the Central Government. I further certify that the information given above is true and correct based on the books of account, documents and available records
A75: Place : | M75: (Signature of the person responsible for deduction of tax)
A76: Date :
A77: Designation | M77: Full Name
A80: Certificate No. | C80: =IF($D$8="","",$D$8) ->  | G80: TAN of employer | K80: =$D$14 -> 0 | O80: PAN of employee | S80: =$L$14 -> 0 | V80: A.YEAR | X80: =$L$17 -> 0
A81: PART B (Annexure)
A82: Details of Salary Paid and any other income and tax deducted
A83: (A) | B83: Whether opting for taxation u/s 115BAC? | S83: YES/NO
A84: 1 | B84: Gross Salary
A85: (a) | B85: Salary as per provisons contained in sec 17(1) | O85: 0
A86: (b) | B86: Value of perquisites u/s 17(2) | O86: 0
B87: (as per Form No. 12BA, wherever applicable)
A88: (c ) | B88: Profits in lieu of salary under section 17(3) | O88: 0
B89: (as per Form No.12BA, wherever applicable)
A90: (d) | B90: Total | S90: =O85+O86+O88 -> 0
A91: (e) | B91: Reported total amount of salary received from other employer(s) | S91: 0
A92: 2 | B92: Less : Allowance to the extent exempt under section 10
A93: Details | K93: Rs.
A94: (a) | B94: Travel concession or assistance u/s 10(5) | O94: 0
A95: (b) | B95: Death-cum-retirement gratuity u/s 10(10) | O95: 0
A96: (c ) | B96: Commuted value of pension u/s 10(10A) | O96: 0
A97: (d) | B97: Cash equivlent of leave salary encashment u/s 10(10AA) | O97: 0
A98: (e) | B98: House rent allowance u/s 10(13 A) | O98: 0
A99: (f) | B99: Conv Allow under Section 10(14) | O99: 0
A100: (g) | B100: Other Allowances exempt u/s 10 | O100: 0
A101: (h) | B101: Total amount of exemption claimd u/s 10 [ 2(a)+2(b)+2( c)+2(d)+2(e)+2(f)+2(g)] | W101: =SUM(O94:R100) -> 0
A103: 3 | B103: Total amount of salary received from current employer [1(d)-2(h)] | W103: ='blank form16'!S90-W101 -> 0
A104: 4 | B104: Less :Deductions under section 16
A105: (a) | B105: Standard Deducation (u/s 16ia) | S105: 0
A106: (b) | B106: Entertainment Allowance u/s 16(ii) | S106: 0
A107: (c.) | B107: Tax on Employment u/s 16(iii) | S107: 0
A108: 5 | B108: Total amount of deductions u/s 16 [ 4(a)+ (b) + (c )] | W108: =S107+S106+S105 -> 0
A109: 6 | B109: Income chargable under the head Salaries [3+1(e)-5] | W109: =W103+S91-W108 -> 0
A110: 7 | B110: Add : Any other income reported by the employee under as per section 192 (2B)
A111: Details | K111: Rs.
A112: (a) | B112: Income (or admissible loss) from house property reported by employee offered for TDS | S112: 0
A114: (b) | B114: Income under the head Other Sources offered for TDS | S114: 0
A115: 8 | B115: Total amount of other income reported by the employee [(7(a) + 7(b)] | W115: =S112+S114 -> 0
A116: 9 | B116: GROSS TOTAL INCOME ( 6 + 8 ) | W116: =W109+W115 -> 0
A117: 10 | B117: Deductions under chapter VI A
S118: Gross Amount | W118: Deductible Amount
A119: (a) | B119: Deduction in respect of life insurance premia, contributions to provident fund etc. under section 80C | S119: 0 | W119: =IF((S119)>150000,150000,S119) -> 0
A121: i. | B121: Genral Provided Fund | S121: =IF($K$1="New option u/s 115BAC",0,INDEX('Employee Data'!$AO$6:$AO$556,MATCH('blank form16'!#REF!,'Employee Data'!$D$6:$D$556,0))) ->  | W121: =S121 -> 
A122: ii. | B122: State Insurance & Service Tax | S122: =IF($K$1="New option u/s 115BAC",0,INDEX('Employee Data'!$AP$6:$AP$556,MATCH('blank form16'!#REF!,'Employee Data'!$D$6:$D$556,0))) ->  | AC122: (d) Rs. ... Rs. ...
A123: iii | B123: Group Insurance | S123: =IF($K$1="New option u/s 115BAC",0,INDEX('Employee Data'!$AQ$6:$AQ$556,MATCH('blank form16'!#REF!,'Employee Data'!$D$6:$D$556,0))) ->  | AC123: (e) Deductions in respect of amount paid/deposited to notified
A124: iv. | B124: Life Insurance Premium | S124: =IF($K$1="New option u/s 115BAC",0,INDEX('Employee Data'!$AR$6:$AR$556,MATCH('blank form16'!#REF!,'Employee Data'!$D$6:$D$556,0))) ->  | AC124: pension scheme under section 80CCD (1B)
A125: v. | B125: Accured Intrest on NSC | S125: =IF($K$1="New option u/s 115BAC",0,INDEX('Employee Data'!$AS$6:$AS$556,MATCH('blank form16'!#REF!,'Employee Data'!$D$6:$D$556,0))) ->  | AC125: Rs. ... Rs. ...
A126: vi. | B126: Tution Fee | S126: =IF($K$1="New option u/s 115BAC",0,INDEX('Employee Data'!$AT$6:$AT$556,MATCH('blank form16'!#REF!,'Employee Data'!$D$6:$D$556,0))) ->  | AC126: (f) Deduction in respect of contribution by Employer to
A127: vii | B127: Repayment of HBA | S127: =IF($K$1="New option u/s 115BAC",0,INDEX('Employee Data'!$AU$6:$AU$556,MATCH('blank form16'!#REF!,'Employee Data'!$D$6:$D$556,0))) ->  | AC127: pension scheme under section 80CCCD (2)
A128: viii | B128: Hazard Fund | S128: =IF($K$1="New option u/s 115BAC",0,INDEX('Employee Data'!$AV$6:$AV$556,MATCH('blank form16'!#REF!,'Employee Data'!$D$6:$D$556,0))) ->  | AC128: Rs. ... Rs. ...
A129: ix | B129: Purchases of NSC | S129: =IF($K$1="New option u/s 115BAC",0,INDEX('Employee Data'!$AW$6:$AW$556,MATCH('blank form16'!#REF!,'Employee Data'!$D$6:$D$556,0))) ->  | AC129: (g) Deduction in respect of health insurance premia under
A130: x | B130: PPF | S130: =IF($K$1="New option u/s 115BAC",0,INDEX('Employee Data'!$AX$6:$AX$556,MATCH('blank form16'!#REF!,'Employee Data'!$D$6:$D$556,0))) ->  | AC130: section 80D
A131: xi | B131: PLI / ULIP | S131: =IF($K$1="New option u/s 115BAC",0,INDEX('Employee Data'!$AY$6:$AY$556,MATCH('blank form16'!#REF!,'Employee Data'!$D$6:$D$556,0))) ->  | AC131: Rs. ... Rs. ...
A132: xii | B132: IDBI/ICCI | S132: =IF($K$1="New option u/s 115BAC",0,INDEX('Employee Data'!$AZ$6:$AZ$556,MATCH('blank form16'!#REF!,'Employee Data'!$D$6:$D$556,0))) ->  | AC132: (h) Deduction in respect of interest on loan taken for higher
A133: xiii | B133: BANK FD/POST OFFICE FD | S133: =IF($K$1="New option u/s 115BAC",0,INDEX('Employee Data'!$BA$6:$BA$556,MATCH('blank form16'!#REF!,'Employee Data'!$D$6:$D$556,0))) ->  | AC133: education under section 80E
A134: xiv | B134: Equity link saving bond | S134: =IF($K$1="New option u/s 115BAC",0,INDEX('Employee Data'!$BB$6:$BB$556,MATCH('blank form16'!#REF!,'Employee Data'!$D$6:$D$556,0))) ->  | AC134: Rs. ... Rs. ...
A135: xv | B135: Sukanya Samriddhi Account Deposit Scheme | S135: =IF($K$1="New option u/s 115BAC",0,INDEX('Employee Data'!$BC$6:$BC$556,MATCH('blank form16'!#REF!,'Employee Data'!$D$6:$D$556,0))) -> 
A136: xvi | B136: Any other ded. u/s 80C | S136: =IF($K$1="New option u/s 115BAC",0,INDEX('Employee Data'!$BD$6:$BD$556,MATCH('blank form16'!#REF!,'Employee Data'!$D$6:$D$556,0))) -> 
A137: (b) | B137: Deduction in respect of contribution to certain pension funds under section 80CCC | S137: 0 | W137: =IF((S137)>150000,150000,S137) -> 0
A139: ( c) | B139: Deduction in respect of contribution by taxpayer to pension scheme under section 80CCD (1) | S139: 0 | W139: =IF((S139)>150000,150000,S139) -> 0
A141: (d) | B141: Total deduction under section 80C, 80CCC and 80CCD(1) | S141: =S119+S137+S139 -> 0 | W141: =IF((S141)>150000,150000,S141) -> 0
A142: Certificate No. | C142: =IF($D$8="","",$D$8) ->  | G142: TAN of employer | K142: =$D$14 -> 0 | O142: PAN of employee | S142: =$L$14 -> 0 | V142: A.YEAR | X142: =$L$17 -> 0
A144: (e) | B144: Deductions in respect of amount paid/deposited to notified pension scheme under section 80CCD (1B) | S144: 0 | W144: =IF(S144>50000,50000,S144) -> 0
A146: (f) | B146: Deduction in respect of contribution by Employer to pension scheme under section 80CCCD (2) | S146: 0 | W146: =MIN(ROUND(O85*10%,0),S146) -> 0
A148: (g) | B148: Deduction in respect of health insurance premia under section 80D | S148: 0 | W148: =IF(S148>100000,100000,S148) -> 0
A150: (h) | B150: Deduction in respect of interest on loan taken for higher education under section 80E | S150: 0 | W150: =S150 -> 0
O152: Gross Amount | S152: Qualifying Amount | W152: Deductible Amount
A153: (i) | B153: Total Deduction in respect of donations to certain funds charitable institutions, etc. under section 80G | O153: =S153 -> 0 | S153: 0 | W153: 0
A155: (j) | B155: Deduction in respect of Interest on deposits in savings account under section 80TTA | O155: =S155 -> 0 | S155: 0 | W155: 0
A157: (k) | B157: Amount deductible under any other provision(s) of Chapter VI‐A
B158: U/S 80CCF | C158: Investment in long term infrasturture bonds | O158: =S158 -> 0 | S158: 0 | W158: 0
B159: U/S 80DD- | C159: Medical treat. of dependent handicapped person | O159: =S159 -> 0 | S159: 0 | W159: 0 | Y159: =IF(S159>0,INDEX('Employee Data'!$BL$6:$BL$556,MATCH('blank form16'!#REF!,'Employee Data'!$D$6:$D$556,0)),"") -> 
B160: U/S 80DDB- | C160: Spl ded.to the guardion of a patient suff.from Cancer/Aids | O160: =S160 -> 0 | S160: 0 | W160: 0
B162: U/S 80EE- | C162: Intrest paid on HBA(Loan taking after 01-04-13 excluding u/s 24B) | O162: =S162 -> 0 | S162: 0 | W162: 0
B164: U/S 80EEA- | C164: Interest on loan taken for certain house property | O164: =S164 -> 0 | S164: 0 | W164: 0
B165: U/S 80EEB- | C165: Purchase of electric vehicle | O165: 0 | S165: 0 | W165: 0
B166: U/S 80CCG- | C166: New Rajiv Gandhi Saving Scheme | O166: 0 | S166: 0 | W166: 0
B167: U/S 80TTB- | C167: Interest income earned on Saving/ Fixed Deposits & Recurring Deposits | O167: 0 | S167: 0 | W167: 0
B168: U/S 80U- | C168: Phy. hand. person or blind person under section 80U | O168: 0 | S168: 0 | W168: 0 | Y168: =IF(S168>0,INDEX('Employee Data'!$BW$6:$BW$556,MATCH('blank form16'!#REF!,'Employee Data'!$D$6:$D$556,0)),"") -> 
B169: 80 CCH | C169: All contributions to Agniveer Corpus Fund | O169: 5000 | S169: 5000 | W169: 5000
B170: =Statement!B67 ->  | C170: (Any other deduction..Give name) | O170: 0 | S170: 0 | W170: =S170 -> 0
A171: (I ) | B171: Total of amount deductible under any other provision(s) of Chapter VI‐A | O171: =SUM(O158:R170)+SUM(O144:R156) -> 5000 | S171: =SUM(S158:V170)+SUM(S144:V156) -> 5000 | W171: =SUM(W158:Z170)+SUM(W144:X156) -> 5000
A173: 11 | B173: Aggregate of deductible amounts under Chapter VI-A | W173: =SUM(W141+W171) -> 5000
S174: =ROUNDUP(W174,-1) -> -5000 | W174: ='blank form16'!W116-W173 -> -5000
A175: 12 | B175: Total Income ( 9 - 11 ) (Rounded off u/s 288A) | W175: =IF(W116<=W173,0,IF(S174-W174<=5,ROUNDUP(S174,-1),ROUNDUP(S174,-1)-10)) -> 0
A176: 13 | B176: Tax on total income | W176: 0 | AC176: ='Table for form 16'!C1219 -> 
A177: 14 | B177: Rebate under section 87A, if applicable | W177: 0
A178: 15 | B178: Surcharge,whenever applicable (on tax computed at S.No. 13) | H178: =IF('Table for form 16'!E1221>0,'Table for form 16'!B1222,"") ->  | W178: 0
A180: 16 | B180: =IF('Table for form 16'!$F$2="2020-21","Health and Education Cess & 4% ",IF('Table for form 16'!$F$2="2019-20","Health and Education Cess & 4% ",IF('Table for form 16'!$F$2="2018-19","Health and Education Cess & 4% ","Education Cess @2% on Tax+H.Education Cess @1% "))) -> Education Cess @2% on Tax+H.Education Cess @1% | W180: 0 | AC180: =IF(AC176="","",'Table for form 16'!L1220) -> 
B181: (on tax computed at S.No.13 + surcharge at S.No. 15)
A182: 17 | B182: Tax payable ( 13+15+16-14 ) | W182: 0
A183: 18 | B183: Less: Releif under section 89 (attach details) | W183: 0
A184: 19 | B184: Tax Payable ( 17-18 ) | W184: =W182-W183 -> 0
A185: Verification
A187: I | I187: =IF('DDO Data'!$H$12="Male","son of","daughter of") -> son of | T187: working in the capacity of
S188: do hearby certify that the
A189: information given above is true and correct and is based on the books of account, documents ,TDS statements, and available records
A191: Place : | M191: (Signature of the person responsible for deduction of tax)
A192: Date :
A193: Designation | M193: Full Name
A199: Note : | B199: 1. aggregate amount deductible under section 80C shall not exceed one lakh rupees
B200: 2. aggregate amount deductible under the three sections,i.e., 80C, 80CCC & 80CCD (1), shall not exceed one lakh fifty thousand rupees
A202: B. Other sections ( for e.g., 80E, 80G etc. ) under chapter VIA | O202: Gross Amount | S202: Qualifying Amount | W202: Deductible Amount
A205: Notes:
A206: 1 | B206: Government deductors to fill information in item I of Part A if tax is paid without production of an income-tax challan and in item II of Part A if tax is paid accompanied by an income-tax challan.
A208: 2 | B208: Non-Government deductors to fill information in item II of Part A.
A209: 3 | B209: The deductor shall furnish the address of the Commissioner of Income-tax (TDS) having jurisdiction as regards TDS statements of the assessee.
A211: 4 | B211: If an assessee is employed under one employer only during the year, certificate in Form No. 16 issued for the quarter ending on 31st March 2021 of the financial year shall contain the details of tax deducted and deposited for all the quarters of the financial year.
A214: 5 | B214: (i) If an assessee is employed under more than one employer during the year, each of the employers shall issue Part A of the certificate in Form No. 16 pertaining to the period for which such assessee was employed with each of the employers.
B217: (ii) Part B (Annexure) of the certificate in Form No.16 may be issued by each of the employers or the last employer at the option of the assessee.
A219: 6 | B219: In Part A, in items I and II, in the column for tax deposited in respect of deductee, furnish total amount of tax, surcharge and health and education cess.
A221: 7 | B221: Deductor shall duly fill details, where available, in item numbers 2(f) and 10(k) before furnishing of Part B (Annexure) to the employee.”;

Sheet Taxcal
L1: Home
A3: Income-Tax Calculation (From Fin. Year 1985-86 to onwards i.e. 2023-24)
B6: General Income-Tax Calculator (including Tax effect/Calculation of Section 234A,234B & 234C) | K6: Income-Tax Calculator
A8: I
B10: Income-Tax Calculation and find out Tax Rate/Surcharge/Cess (with showing Rate/Cess and exemption limit) | K10: Mini Income-Tax Calculator
B14: Income Tax Rate (For Individual i.e. Male/ Female/Sr.Citizen/Very Sr. Citizen) | K14: Income-Tax Rate

Sheet Form16
M1: Home
A3: II | B3: Prepration of Form 16 (upto 500 employee)
B5: ( Tax calculation from F.Y. 1985-86 to onwards (i.e. upto 2023-24), performa designed in reference of current F. Y.2014-15 & updated as per new orders )
B9: Input one time data relating to DDO (i.e. Drawing & Distribuation Officer) required for form no 16 | K9: DDO Data
B12: Input required employee data required for form no 16 | K12: Employee Data
B15: Print/View of tax calculation and submit to DDO | K15: Statement
B18: Print/View of tax calculation between Existing Option and New Option u/s 115BAC (based value on "Statement") | K18: Compare (Existing Option/New Option)
B21: Print/View of Form No 16 (Both Part A & Part B ) (however Part A is relevant for reconcilation/view purpose) | K21: Form no 16
B24: Blank Format of Form No 16 (F.Y. 2021-22 & onwards) | G24: Prepare form no 16-directly i.e. without create database
C29: Updated as per notification of CBDT, dated 11-03-21)
C31: Form 12BB | F31: Form 10-IA | I31: Blank format Form No 16
B33: (Calculate Gross Salary, if required.. Otherwise skip this sheet) | K33: Gross Salary'
B35: Prepration of Form No 16 (both part.. A & B) … The format of form no 16 is desgined according to Fin. Year 2014-15 & onwards [As per income tax department instruction, the part A&B of form no 16 will be download from | K35: tdscpc.gov.in/en/deductor-ho

Sheet challan
L1: Home
A3: III | B3: Preparation of Challan 280 and 281
B4: Prepration of Challan 280 & 281 (in excel format) Please input required data in "Challan Data" and Print out Challan No 280/281 (no need to input any value in this sheet, take print/view)
B9: Input basic required data (use dropdown menu, as avaiable | J9: Challan Data
B11: View/Print of challan 280 (PAN based) | J11: Challan 280
B13: View/Print of challan 281 (TAN based) | J13: Challan 281

Sheet section89
M1: Home
A3: IV | B3: Calculation of Relief u/s 89(1) from F.Y. 1985-86 & onwards (i.e. upto F.Y.2022-23) (Please select for sheet "Main" for see how to calculate relief amt. and what type of data requied)
B8: View this sheet for knowledge purpose | K8: Main
B10: Input required data | K10: SECTION 89(1)
B12: View/Print form Table A | K12: TABLE A
B14: View/Print form 10E | K14: FORM 10E

Sheet Usefulcal
L1: Home
A3: V | B3: Calculate/Find out important information/result relating to Tax matter
C6: HOUSE RENT ALLOWANCE REBATE CALUCATION-ANNUAL/MONTHLY BASIS
C10: Income Tax Calculation on Agriculture Income from Fin. Year 1985-86 to 2023-24
C14: Computation of Capital Gain on Property
C18: Basic information of section 234A,234B and 234C with their tax treatment and calculations
C22: Useful Calcuations (Calculation of Intrest/Maturity value on NSC, Term Deposit & R.D.)

Sheet Instruction
A1: Design and Prepared by Pravesh Kumar, for further query call "9460100093" | N1: Home
A2: Please mail for any kind error found or updation required that is benefied to all | L2: praveshbkn@gamil.com
A3: Important Hints-How to use this sheet
A4: 1 | B4: Use only unhighlighted cells (i.e. white colour cells), rest cells are linked with master data. Select proper condition that is applicable. Please avoid mismatching codition that's are not applicable.
A6: 2 | B6: All the calcuations are based on selected data, updation/changes options are avaiable whereas more than one coditions applicable
A8: 3 | B8: Use required cells, please leave blank cells, if no data for input
A9: 4 | B9: User may calculate tax since 1985-86 but Form No 16 and Tax Statement is basically designed as per new instructions applicable from F. Year 2013-14 & onwards (updated as per 11-03-21 notification)
A11: 5 | B11: As per IT guideline PAN is mandantary, if it not mentioned, tax rate will be 20% higher rate
A12: Type's of calculation may be possible from this sheet (from F. Year 1985-86 & onwards)
A13: 1 | B13: Prepration of form no 16 (both part ) based on "Employee data" (upto 500 employee)--- [The format of form no 16 is designed according to F.Year 2014-15 & onwards]
A15: 2 | B15: Determination of Tax Calculation including tax treatment of section 234B & 234C …"Tax Calculator" and Tax Rate chart for last 35 years
A17: 3 | B17: Prepration of Challan No 280 & 281 (in excel format)
A18: 4 | B18: Calculation of Relief u/s 89(1) , including form 10E and Table A
A19: 5 | B19: Calculation of Tax on Agriculture Income & Capital Gain
A20: 6 | B20: Calculation of HRA rebate, NSC Int.,(From F.Y. 2009-10 to cont.), Advance tax, Intrest payable u/s 234C,234B
A21: 7 | B21: View/find out TDS rate since f.y. 2008-09 & onwards + view various password required for e-return
A22: 8 | B22: View/find out TCS rate since f.y. 2012-13 & onwards
A23: 9 | B23: View/find out various information relating to F.Y. 2017-18 to 2022-23
A24: 9 | B24: Checking of Your PAN number (whether it is in proper digit or not)
A25: Use only unhighlight cells (i.e. white cells) for correct calculation -->
A26: <<---Other cells are linked with master sheets so no need to fill any data in highlighted cells--->>
N27: Home
N34: Some other calculation/Form No 16 & ITR-1… are not in active mode for general users

Sheet DDO Data
C1: Employee Data | D1: Form no 16 | G1: Home
A2: DDO(Drawing and Disbursing Officer) DATA FOR FORM NO 16 | J2: All the fields are mandantory, please input relevant data as required
A3: NAME OF OFFICE | D3: SAMPLE OFFICE
A5: TAX A/C & PAN (If have) OF DEDUCTOR NUMBER | D5: TAX A/C (i.e. TAN) | E5: JDHO12345E | G5: PAN | H5: PANNOTREQD
A6: AUTHORITY FOR SIGNATURE | D6: ABCD
A8: QUATERLY STATEMENT BATCH NUMBER | D8: 24QI
D9: 24QII
D10: 24QIII
D11: 24QIV
A12: Name of DDO for form no 16 ..(Male/Female) | D12: PQR | H12: Male
A13: DDO father name for form no 16 | D13: STUV
A14: CIT Address | C14: Rajasthan | D14: =pks!$C$401 -> The Commissioner of Income Tax (TDS) New Central Revenue Building, Statue Circle, Janpath, Jaipur - 302005
A15: CIT City | D15: =pks!D401 -> Jaipur
A16: CIT PIN code | D16: =IF(pks!E401>0,pks!E401,"") -> 302005
A17: AMOUNT ADJUSTED THROUGH 24G FOR FIN. YEAR | H17: 2024-25 | K17: EXIT
A18: AIN (optional to feed) | B18: Month of filing | C18: TAN | D18: Type of Ret. | E18: Book Identification Number (BIN) | L18: RECEIPTS NUMBER SHOWN IN FROM 16 | S18: DDO S. NUMBER | X18: VOUCHER DATE
E19: Receipt Number | F19: DDO serial Number | G19: Date of TV | H19: Status of matching with form no 24G
A20: 101115 | B20: =pks!H78 -> 2024-04-01 | C20: =$E$5 -> JDHO12345E | D20: 24Q | H20: Matched | L20: =F54 ->  | M20: =H54 ->  | N20: =K54 ->  | O20: =M54 ->  | P20: =O54 ->  | Q20: =Q54 ->  | R20: =S54 -> 0 | S20: =K69 ->  | T20: =M69 ->  | U20: =O69 ->  | V20: =Q69 ->  | W20: =S69 -> 0 | X20: =G85 ->  | Y20: =I85 ->  | Z20: =N85 ->  | AA20: =P85 ->  | AB20: =T85 ->  | AC20: =V85 ->  | AD20: =X85 ->  | AE20: =Z85 -> 
B21: =B20+31 -> 2024-05-02 | C21: JDHO12345E | D21: 24Q | H21: Matched | R21: 0 | W21: 0
B22: =B21+31 -> 2024-06-02 | C22: JDHO12345E | D22: 24Q | H22: Matched | I22: Click here for clear BIN data | R22: 0 | W22: 0
B23: 2024-07-03 | C23: JDHO12345E | D23: 24Q | H23: Matched | R23: 0 | W23: 0
B24: 2024-08-03 | C24: JDHO12345E | D24: 24Q | H24: Matched | R24: 0 | W24: 0
B25: 2024-09-03 | C25: JDHO12345E | D25: 24Q | H25: Matched | R25: 0 | W25: 0
B26: 2024-10-04 | C26: JDHO12345E | D26: 24Q | H26: Matched | R26: 0 | W26: 0
B27: 2024-11-04 | C27: JDHO12345E | D27: 24Q | H27: Matched | R27: 0 | W27: 0
B28: 2024-12-05 | C28: JDHO12345E | D28: 24Q | H28: Matched | R28: 0 | W28: 0
B29: 2025-01-05 | C29: JDHO12345E | D29: 24Q | H29: Matched | R29: 0 | W29: 0
B30: 2025-02-05 | C30: JDHO12345E | D30: 24Q | H30: Matched | R30: 0 | W30: 0
B31: 2025-03-08 | C31: JDHO12345E | D31: 24Q | H31: Matched | L31: =F65 ->  | M31: =H65 ->  | N31: =K65 ->  | O31: =M65 ->  | P31: =O65 ->  | R31: =S65 -> 0 | S31: =K80 ->  | T31: =M80 ->  | U31: =O80 ->  | V31: =Q80 ->  | W31: =S80 -> 0 | X31: =G96 ->  | Y31: =I96 ->  | Z31: =N96 ->  | AA31: =P96 ->  | AB31: =T96 ->  | AC31: =V96 ->  | AD31: =X96 ->  | AE31: =Z96 -> 
A33: AMOUNT DEPOSITED THROUGH CHALLAN (if TDS amount is depoisted into Bank directly through challan no 281)
A34: S.N. | B34: BSR CODE OF BANK | D34: DATE OF DEPOSITED | E34: CHALLAN S.N. | G34: AMT | H34: Status of matching with OLTAS | L34: BSR CODE OF BANK | S34: CH. NO | X34: CH. DATE
A37: 1 | H37: Matched | L37: =F102 ->  | M37: =H102 ->  | N37: =K102 ->  | O37: =M102 ->  | P37: =O102 ->  | Q37: =Q102 ->  | R37: =S102 -> 0 | S37: =K132 ->  | T37: =M132 ->  | U37: =O132 ->  | V37: =Q132 ->  | W37: =S132 -> 0 | X37: =G116 ->  | Y37: =I116 ->  | Z37: =N116 ->  | AA37: =P116 ->  | AB37: =T116 ->  | AC37: =V116 ->  | AD37: =X116 ->  | AE37: =Z116 ->  | AH37: =Z116 -> 
A38: 2 | R38: 0 | W38: 0
A39: 3 | R39: 0 | W39: 0
A40: 4 | R40: 0 | W40: 0
A41: 5 | R41: 0 | W41: 0
A42: 6 | R42: 0 | W42: 0
A43: 7 | R43: 0 | W43: 0
A44: 8 | R44: 0 | W44: 0
A45: 9 | R45: 0 | W45: 0
A46: 10 | R46: 0 | W46: 0
A47: 11 | R47: 0 | W47: 0
A48: 12 | R48: 0 | W48: 0
I49: Home | R49: 0 | W49: 0
C52: BIN receipt number
C53: MONTH | D53: Receipt No | E53: I | G53: II | I53: III | L53: IV | N53: V | P53: VI | R53: VII
C54: =B20 -> 2024-04-01 | D54: =E20 -> 0 | E54: =IF(LEN(D54)>=7,RIGHT(D54,7)," ") ->  | F54: =LEFT(E54,1) ->  | G54: =IF(LEN(D54)>=6,RIGHT(D54,6)," ") ->  | H54: =LEFT(G54,1) ->  | I54: =IF(LEN(D54)>=5,RIGHT(D54,5)," ") ->  | J54: =LEFT(H54,1) ->  | L54: =IF(LEN(D54)>=4,RIGHT(D54,4)," ") ->  | M54: =LEFT(L54,1) ->  | N54: =IF(LEN(D54)>=3,RIGHT(D54,3)," ") ->  | O54: =LEFT(N54,1) ->  | P54: =IF(LEN(D54)>=2,RIGHT(D54,2)," ") ->  | Q54: =LEFT(P54,1) ->  | R54: =IF(LEN(D54)>=1,RIGHT(D54,1)," ") -> 0 | S54: =LEFT(R54,1) -> 0
C55: 2024-05-02 | D55: 0 | R55: 0 | S55: 0
C56: 2024-06-02 | D56: 0 | R56: 0 | S56: 0
C57: 2024-07-03 | D57: 0 | R57: 0 | S57: 0
C58: 2024-08-03 | D58: 0 | R58: 0 | S58: 0
C59: 2024-09-03 | D59: 0 | R59: 0 | S59: 0
C60: 2024-10-04 | D60: 0 | R60: 0 | S60: 0
C61: 2024-11-04 | D61: 0 | R61: 0 | S61: 0
C62: 2024-12-05 | D62: 0 | R62: 0 | S62: 0
C63: 2025-01-05 | D63: 0 | R63: 0 | S63: 0
C64: 2025-02-05 | D64: 0 | R64: 0 | S64: 0
C65: 2025-03-08 | D65: 0 | R65: 0 | S65: 0
C67: DDO serial number
E68: I | G68: II | I68: III | L68: IV | N68: V | P68: VI | R68: VII
C69: =C54 -> 2024-04-01 | D69: =F20 -> 0 | E69: =IF(LEN(D69)>=7,RIGHT(D69,7)," ") ->  | F69: =LEFT(E69,1) ->  | G69: =IF(LEN(D69)>=6,RIGHT(D69,6)," ") ->  | H69: =LEFT(G69,1) ->  | I69: =IF(LEN(D69)>=5,RIGHT(D69,5)," ") ->  | J69: =LEFT(H69,1) ->  | L69: =IF(LEN(D69)>=4,RIGHT(D69,4)," ") ->  | M69: =LEFT(L69,1) ->  | N69: =IF(LEN(D69)>=3,RIGHT(D69,3)," ") ->  | O69: =LEFT(N69,1) ->  | P69: =IF(LEN(D69)>=2,RIGHT(D69,2)," ") ->  | Q69: =LEFT(P69,1) ->  | R69: =IF(LEN(D69)>=1,RIGHT(D69,1)," ") -> 0 | S69: =LEFT(R69,1) -> 0
C70: 2024-05-02 | D70: 0 | R70: 0 | S70: 0
C71: 2024-06-02 | D71: 0 | R71: 0 | S71: 0
C72: 2024-07-03 | D72: 0 | R72: 0 | S72: 0
C73: 2024-08-03 | D73: 0 | R73: 0 | S73: 0
C74: 2024-09-03 | D74: 0 | R74: 0 | S74: 0
C75: 2024-10-04 | D75: 0 | R75: 0 | S75: 0
C76: 2024-11-04 | D76: 0 | R76: 0 | S76: 0
C77: 2024-12-05 | D77: 0 | R77: 0 | S77: 0
C78: 2025-01-05 | D78: 0 | R78: 0 | S78: 0
C79: 2025-02-05 | D79: 0 | R79: 0 | S79: 0
C80: 2025-03-08 | D80: 0 | R80: 0 | S80: 0
C83: Treasury Vouder Date
C84: MONTH | D84: DATE | F84: I | H84: II | K84: III | M84: IV | O84: V | Q84: VI | S84: VII | U84: VIII | W84: IX | Y84: X
C85: =C69 -> 2024-04-01 | D85: =TEXT(E85,"dd/mm/yyyy") ->  | E85: =IF(G20>0,G20,"") ->  | F85: =RIGHT($D$85,10) ->  | G85: =LEFT(F85,1) ->  | H85: =RIGHT($D$85,9) ->  | I85: =LEFT(H85,1) ->  | J85: =RIGHT($D$85,8) ->  | K85: =RIGHT($D$85,8) ->  | L85: =LEFT(K85,1) ->  | M85: =RIGHT($D$85,7) ->  | N85: =LEFT(M85,1) ->  | O85: =RIGHT($D$85,6) ->  | P85: =LEFT(O85,1) ->  | Q85: =RIGHT($D$85,5) ->  | R85: =LEFT(Q85,1) ->  | S85: =RIGHT($D$85,4) ->  | T85: =LEFT(S85,1) ->  | U85: =RIGHT($D$85,3) ->  | V85: =LEFT(U85,1) ->  | W85: =RIGHT($D$85,2) ->  | X85: =LEFT(W85,1) ->  | Y85: =RIGHT($D$85,1) ->  | Z85: =LEFT(Y85,1) -> 
C86: 2024-05-02 | F86: =RIGHT($D$86,10) ->  | H86: =RIGHT($D$86,9) ->  | J86: =RIGHT($D$86,8) ->  | K86: =RIGHT($D$86,8) ->  | M86: =RIGHT($D$86,7) ->  | O86: =RIGHT($D$86,6) ->  | Q86: =RIGHT($D$86,5) ->  | S86: =RIGHT($D$86,4) ->  | U86: =RIGHT($D$86,3) ->  | W86: =RIGHT($D$86,2) ->  | Y86: =RIGHT($D$86,1) -> 
C87: 2024-06-02 | F87: =RIGHT($D$87,10) ->  | H87: =RIGHT($D$87,9) ->  | J87: =RIGHT($D$87,8) ->  | K87: =RIGHT($D$87,8) ->  | M87: =RIGHT($D$87,7) ->  | O87: =RIGHT($D$87,6) ->  | Q87: =RIGHT($D$87,5) ->  | S87: =RIGHT($D$87,4) ->  | U87: =RIGHT($D$87,3) ->  | W87: =RIGHT($D$87,2) ->  | Y87: =RIGHT($D$87,1) -> 
C88: 2024-07-03 | F88: =RIGHT($D$88,10) ->  | H88: =RIGHT($D$88,9) ->  | J88: =RIGHT($D$88,8) ->  | K88: =RIGHT($D$88,8) ->  | M88: =RIGHT($D$88,7) ->  | O88: =RIGHT($D$88,6) ->  | Q88: =RIGHT($D$88,5) ->  | S88: =RIGHT($D$88,4) ->  | U88: =RIGHT($D$88,3) ->  | W88: =RIGHT($D$88,2) ->  | Y88: =RIGHT($D$88,1) -> 
C89: 2024-08-03 | F89: =RIGHT($D$89,10) ->  | H89: =RIGHT($D$89,9) ->  | J89: =RIGHT($D$89,8) ->  | K89: =RIGHT($D$89,8) ->  | M89: =RIGHT($D$89,7) ->  | O89: =RIGHT($D$89,6) ->  | Q89: =RIGHT($D$89,5) ->  | S89: =RIGHT($D$89,4) ->  | U89: =RIGHT($D$89,3) ->  | W89: =RIGHT($D$89,2) ->  | Y89: =RIGHT($D$89,1) -> 
C90: 2024-09-03 | F90: =RIGHT($D$90,10) ->  | H90: =RIGHT($D$90,9) ->  | J90: =RIGHT($D$90,8) ->  | K90: =RIGHT($D$90,8) ->  | M90: =RIGHT($D$90,7) ->  | O90: =RIGHT($D$90,6) ->  | Q90: =RIGHT($D$90,5) ->  | S90: =RIGHT($D$90,4) ->  | U90: =RIGHT($D$90,3) ->  | W90: =RIGHT($D$90,2) ->  | Y90: =RIGHT($D$90,1) -> 
C91: 2024-10-04 | F91: =RIGHT($D$91,10) ->  | H91: =RIGHT($D$91,9) ->  | J91: =RIGHT($D$91,8) ->  | K91: =RIGHT($D$91,8) ->  | M91: =RIGHT($D$91,7) ->  | O91: =RIGHT($D$91,6) ->  | Q91: =RIGHT($D$91,5) ->  | S91: =RIGHT($D$91,4) ->  | U91: =RIGHT($D$91,3) ->  | W91: =RIGHT($D$91,2) ->  | Y91: =RIGHT($D$91,1) -> 
C92: 2024-11-04 | F92: =RIGHT($D$92,10) ->  | H92: =RIGHT($D$92,9) ->  | J92: =RIGHT($D$92,8) ->  | K92: =RIGHT($D$92,8) ->  | M92: =RIGHT($D$92,7) ->  | O92: =RIGHT($D$92,6) ->  | Q92: =RIGHT($D$92,5) ->  | S92: =RIGHT($D$92,4) ->  | U92: =RIGHT($D$93,3) ->  | W92: =RIGHT($D$92,2) ->  | Y92: =RIGHT($D$92,1) -> 
C93: 2024-12-05 | F93: =RIGHT($D$93,10) ->  | H93: =RIGHT($D$93,9) ->  | J93: =RIGHT($D$93,8) ->  | K93: =RIGHT($D$93,8) ->  | M93: =RIGHT($D$93,7) ->  | O93: =RIGHT($D$93,6) ->  | Q93: =RIGHT($D$93,5) ->  | S93: =RIGHT($D$93,4) ->  | U93: =RIGHT($D$93,3) ->  | W93: =RIGHT($D$93,2) ->  | Y93: =RIGHT($D$93,1) -> 
C94: 2025-01-05 | F94: =RIGHT($D$94,10) ->  | H94: =RIGHT($D$94,9) ->  | J94: =RIGHT($D$94,8) ->  | K94: =RIGHT($D$94,8) ->  | M94: =RIGHT($D$94,7) ->  | O94: =RIGHT($D$94,6) ->  | Q94: =RIGHT($D$94,5) ->  | S94: =RIGHT($D$94,4) ->  | U94: =RIGHT($D$94,3) ->  | W94: =RIGHT($D$94,2) ->  | Y94: =RIGHT($D$94,1) -> 
C95: 2025-02-05 | F95: =RIGHT($D$95,10) ->  | H95: =RIGHT($D$95,9) ->  | J95: =RIGHT($D$95,8) ->  | K95: =RIGHT($D$95,8) ->  | M95: =RIGHT($D$95) ->  | O95: =RIGHT($D$95,6) ->  | Q95: =RIGHT($D$95,5) ->  | S95: =RIGHT($D$95,4) ->  | U95: =RIGHT($D$95,3) ->  | W95: =RIGHT($D$95,2) ->  | Y95: =RIGHT($D$95,1) -> 
C96: 2025-03-08 | F96: =RIGHT($D$96,10) ->  | H96: =RIGHT($D$96,9) ->  | J96: =RIGHT($D$96,8) ->  | K96: =RIGHT($D$96,8) ->  | M96: =RIGHT($D$96,7) ->  | O96: =RIGHT($D$96,6) ->  | Q96: =RIGHT($D$96,5) ->  | S96: =RIGHT($D$96,4) ->  | U96: =RIGHT($D$96,3) ->  | W96: =RIGHT($D$96,2) ->  | Y96: =RIGHT($D$96,1) -> 
C101: MONTH | D101: BANK CODE | E101: I | G101: II | I101: III | L101: IV | N101: V | P101: VI | R101: VII
C102: =C85 -> 2024-04-01 | D102: =B37 -> 0 | E102: =IF(LEN(D102)>=7,RIGHT(D102,7)," ") ->  | F102: =LEFT(E102,1) ->  | G102: =IF(LEN(D102)>=6,RIGHT(D102,6)," ") ->  | H102: =LEFT(G102,1) ->  | I102: =IF(LEN(D102)>=5,RIGHT(D102,5)," ") ->  | J102: =LEFT(H102,1) ->  | L102: =IF(LEN(D102)>=4,RIGHT(D102,4)," ") ->  | M102: =LEFT(L102,1) ->  | N102: =IF(LEN(D102)>=3,RIGHT(D102,3)," ") ->  | O102: =LEFT(N102,1) ->  | P102: =IF(LEN(D102)>=2,RIGHT(D102,2)," ") ->  | Q102: =LEFT(P102,1) ->  | R102: =IF(LEN(D102)>=1,RIGHT(D102,1)," ") -> 0 | S102: =LEFT(R102,1) -> 0
C103: 2024-05-02 | D103: 0 | R103: 0 | S103: 0
C104: 2024-06-02 | D104: 0 | R104: 0 | S104: 0
C105: 2024-07-03 | D105: 0 | R105: 0 | S105: 0
C106: 2024-08-03 | D106: 0 | R106: 0 | S106: 0
C107: 2024-09-03 | D107: 0 | R107: 0 | S107: 0
C108: 2024-10-04 | D108: 0 | R108: 0 | S108: 0
C109: 2024-11-04 | D109: 0 | R109: 0 | S109: 0
C110: 2024-12-05 | D110: 0 | R110: 0 | S110: 0
C111: 2025-01-05 | D111: 0 | R111: 0 | S111: 0
C112: 2025-02-05 | D112: 0 | R112: 0 | S112: 0
C113: 2025-03-08 | D113: 0 | R113: 0 | S113: 0
D114: 0 | R114: 0 | S114: 0
C116: DATE | D116: =TEXT(E116,"dd/mm/yyyy") ->  | E116: =IF(D37>0,D37,"") ->  | F116: =RIGHT($D$116,10) ->  | G116: =LEFT(F116,1) ->  | H116: =RIGHT(D116,9) ->  | I116: =LEFT(H116,1) ->  | J116: =RIGHT(C116,8) -> DATE | L116: =LEFT(K116,1) ->  | M116: =RIGHT(D116,7) ->  | N116: =LEFT(M116,1) ->  | O116: =RIGHT(D116,6) ->  | P116: =LEFT(O116,1) ->  | Q116: =RIGHT(D116,5) ->  | R116: =LEFT(Q116,1) ->  | S116: =RIGHT(D116,4) ->  | T116: =LEFT(S116,1) ->  | U116: =RIGHT(D116,3) ->  | V116: =LEFT(U116,1) ->  | W116: =RIGHT(D116,2) ->  | X116: =LEFT(W116,1) ->  | Y116: =RIGHT(D116,1) ->  | Z116: =LEFT(Y116,1) -> 
F117: =RIGHT($D$117,10) -> 
F118: =RIGHT($D$118,10) -> 
F119: =RIGHT($D$119,10) -> 
F120: =RIGHT($D$120,10) -> 
F121: =RIGHT($D$121,10) -> 
F122: =RIGHT($D$122,10) -> 
F123: =RIGHT($D$123,10) -> 
F124: =RIGHT($D$124,10) -> 
F125: =RIGHT($D$125,10) -> 
F126: =RIGHT($D$126,10) -> 
F127: =RIGHT($D$127,10) -> 
F128: =RIGHT($D$128,10) -> 
C130: CHALLAN NO
E131: I | G131: II | I131: III | L131: IV | N131: V | P131: VI | R131: VII
C132: 1900-01-01 | D132: =E37 -> 0 | E132: =IF(LEN(D132)>=7,RIGHT(D132,7)," ") ->  | F132: =LEFT(E132,1) ->  | G132: =IF(LEN(D132)>=6,RIGHT(D132,6)," ") ->  | H132: =LEFT(G132,1) ->  | I132: =IF(LEN(D132)>=5,RIGHT(D132,5)," ") ->  | J132: =LEFT(H132,1) ->  | L132: =IF(LEN(D132)>=4,RIGHT(D132,4)," ") ->  | M132: =LEFT(L132,1) ->  | N132: =IF(LEN(D132)>=3,RIGHT(D132,3)," ") ->  | O132: =LEFT(N132,1) ->  | P132: =IF(LEN(D132)>=2,RIGHT(D132,2)," ") ->  | Q132: =LEFT(P132,1) ->  | R132: =IF(LEN(D132)>=1,RIGHT(D132,1)," ") -> 0 | S132: =LEFT(R132,1) -> 0
C133: 2 | D133: 0 | R133: 0 | S133: 0
C134: 3 | D134: 0 | R134: 0 | S134: 0
C135: 4 | D135: 0 | R135: 0 | S135: 0
C136: 5 | D136: 0 | R136: 0 | S136: 0
C137: 6 | D137: 0 | R137: 0 | S137: 0
C138: 7 | D138: 0 | R138: 0 | S138: 0
C139: 8 | D139: 0 | R139: 0 | S139: 0
C140: 9 | D140: 0 | R140: 0 | S140: 0
C141: 10 | D141: 0 | R141: 0 | S141: 0
C142: 11 | D142: 0 | R142: 0 | S142: 0
C143: 12 | D143: 0 | R143: 0 | S143: 0
C144: 13 | D144: 0 | R144: 0 | S144: 0

Sheet Employee Data
B1: Home | E1: DDO Data | G1: Form no 16 | K1: Home | M1: Statement | P1: Form no 16 | Z1: Home | AD1: Statement | AF1: Form no 16 | AJ1: Home | AP1: DDO Data | AR1: Form no 16 | AV1: Home | AY1: Statement | BA1: Form no 16 | BF1: Home | BH1: Statement | BJ1: DDO Data | BM1: Form no 16 | BS1: Home | BX1: DDO Data | CB1: Form no 16 | CF1: Home | CH1: DDO Data | CJ1: Form no 16 | CN1: Home | CX1: Statement | DA1: Form no 16 | DE1: Home
D2: Employee Code/S.N. | E2: Employee Name | F2: Desgination | G2: PAN of employee | H2: Employee referece provided by employer (if any) | I2: Tax Category | J2: Period for Form No 16 | L2: Status | M2: (1)Gross Salary | R2: (2) Less : Allowance to the extent exempt under section 10 | Z2: (3) Balance | AB2: (4) Deduction u/s 16 & 17 | AE2: (6) Income chargable under the head "Salaries" | AF2: (7) Add : Any other income reported by the employee u/s 192(2B) | AK2: 7(a) | AL2: 7(b) | AM2: (8) Total amount of other income reported by the employee | AN2: (9) Gross Total Income | AO2: (10) Deductions under chapter VI A (Find out Maximum Limit of particular section… go to sheet "Tax Calculation" | CA2: (11) Total deduction under chapter VIA | CB2: (13) Releif under section 89(1) | CC2: Tax deducted through salary | CO2: Summary of 24Q data | CS2: Data shown on Form No 16 | CW2: Tax deposited through challan | DJ2: DDO Data
M3: Salary as per provisons contained in sec 17(1) | N3: Value of perquisites u/s 17(2) | O3: Profits in lieu of salary under section 17(3) | P3: Total (a+b+c) | Q3: Reported total amount of salary received from other employer(s) | R3: Travel concession or assistance u/s 10(5) | S3: Death-cum-retirement gratuity u/s 10(10) | T3: Commuted value of pension u/s 10(10A) | U3: Cash equivlent of leave salary encashment u/s 10(10AA) | V3: Section 10(13 A) H.R Allow | W3: Section 10(14) Conv Allow | X3: Any other Allowances or deduction u/s 10 | Y3: Total amount of exemption claimed u/s 10 [2(a)+2(b)+2©+2(d)+2(e)+2(f)+2(g)] | Z3: Total amount of salary received from current employer | AA3: Standard Deduction -u/s 16(ia) | AB3: Entertainment Allowance-u/s 16(ii) | AC3: Tax on Employment-u/s 16(iii) | AD3: (5) Total amount of deduction u/s 16 | AF3: NSC INTREST | AG3: Bank Intrest on Saving | AH3: (Loss) Intrest on House Loan Intrest | AI3: Income from pension | AJ3: Any other income | AK3: Income (or admissible loss) from house property reported by employee offered for TDS | AL3: Income under the head Other Sources offered for TDS | AO3: (a) U/S 80 CCE -: Invesment in specified investment plans | BE3: (b) Cont. in pension fund (Section 80 CCC) | BF3: (c )Employee cont. towards new pension scheme U/S 80 CCD(1) | BG3: Aggregate total of section 80C,80CCC,80CCD (u/s 80 CCE) | BH3: Other sections ( for e.g., 80E, 80G etc. ) under chapter VIA | CC3: Salary month enchasment based | CW3: Tax amount depoisted into Bank through challan no 281 (i.e. TAN based)
B4: Statement | J4: From | K4: To | AO4: Genral Provided Fund(GPF) | AP4: State Insurance | AQ4: Group Insurance | AR4: Life Insurance Premium | AS4: Accured Intrest on NSC | AT4: Tution Fee | AU4: Repayment of HBA | AV4: Hazard Fund | AW4: Purchases of NSC | AX4: PPF | AY4: PLI / ULIP | AZ4: IDBI/ICCI | BA4: BANK FD/POST OFFICE FD | BB4: Equity link saving bond | BC4: Sukanya Samriddhi Account Deposit Scheme | BD4: Any other ded. u/s 80C | BH4: Employer cont. towards new pension scheme | BI4: Additional contribution towards NPS (Upto Rs. 50000 from F.Y. 15-16) | BJ4: Investment in long term infrasturture bonds | BK4: Medical ins. premium | BL4: Medical treat. of dependent handicapped person | BN4: Spl ded.to the guardion of a patient suff.from Cancer/Aids | BO4: Repayment of loan for higher education | BP4: Intrest paid on HBA(Loan taking after01-04-13 excluding u/s 24B) | BQ4: Deduction in respect of interest on loan taken for certain house property | BR4: Deduction in respect of purchase of electric vehicle | BS4: Donation . 50% and 100% | BT4: New Rajiv Gandhi Saving Scheme | BU4: Exempt -Intrest from saving bank | BV4: Interest income earned on Fixed Deposits & Recurring Deposits | BW4: Phy. hand. person or blind person | BY4: All contributions to Agniveer Corpus Fund | BZ4: (Any other deduction..Give name) | CC4: =pks!$H$78 -> 2024-04-01 | CD4: =CC4+31 -> 2024-05-02 | CE4: =CD4+31 -> 2024-06-02 | CF4: =CE4+31 -> 2024-07-03 | CG4: =CF4+31 -> 2024-08-03 | CH4: 2024-09-03 | CI4: 2024-10-04 | CJ4: 2024-11-04 | CK4: 2024-12-05 | CL4: 2025-01-05 | CM4: 2025-02-05 | CN4: 2025-03-08 | CO4: 24QI | CP4: 24QII | CQ4: 24QIII | CR4: 24QIV | CS4: Certificate No. | CT4: Last updated on (date) | CU4: Place (name of place ) | CV4: Date (date on which DDO sign on Form NO 16) | CW4: =pks!H78 -> 2024-04-01 | CX4: =CW4+31 -> 2024-05-02 | CY4: 2024-06-02 | CZ4: 2024-07-03 | DA4: 2024-08-03 | DB4: 2024-09-03 | DC4: 2024-10-04 | DD4: 2024-11-04 | DE4: 2024-12-05 | DF4: 2025-01-05 | DG4: 2025-02-05 | DH4: 2025-03-08 | DJ4: Form no 16
D5: Financial Year | F5: 2020-21 | G5: 2024-25 | I5: A.Y. | K5: ='Table for Statement'!$B$1208 -> 2025-26 | M5: (a) | N5: (b) | O5: (c ) | P5: (d) | Q5: (e) | R5: (a) | S5: (b) | T5: ( c ) | U5: (d) | V5: (e) | W5: (f) | X5: (g) | Y5: (h) | Z5: [1(d)-2(h)] | AA5: (a) | AB5: (b) | AC5: (c ) | AD5: (a+b+c) | AE5: [3+1(e)-5] | AF5: (a) | AG5: (b) | AH5: (c ) | AI5: (d) | AJ5: (e) | AK5: (a) | AL5: (b) | AM5: sum(a:e) | AN5: (6+8) | AO5: (i) | AP5: (ii) | AQ5: (iii) | AR5: (iv) | AS5: (v) | AT5: (vi) | AU5: (vii) | AV5: (viii) | AW5: (ix) | AX5: (x) | AY5: (xi) | AZ5: (xii) | BA5: (xiii) | BB5: (xiv) | BC5: (xv) | BD5: (xvi) | BE5: =IF($G$5="2014-15","Upto 100000","Upto 150000") -> Upto 150000 | BF5: =IF($G$5="2014-15","Upto 100000","Upto 150000") -> Upto 150000 | BG5: (a+b+c) | BH5: U/S 80 CCD(2) | BI5: U/S 80 CCD(1B) | BJ5: U/S 80CCF | BK5: U/S 80D- | BL5: Select Types | BM5: U/S 80DD | BN5: U/S 80DDB | BO5: U/S 80E | BP5: U/S 80EE | BQ5: U/S 80EEA | BR5: U/S 80EEB | BS5: U/S 80G- | BT5: U/S 80CCG | BU5: U/S 80TTA | BV5: U/S 80TTB | BW5: Select Types | BX5: U/S 80U- | BY5: U/S 80CCH | CC5: 24QI | CF5: 24QII | CI5: 24QIII | CL5: 24QIV | CO5: (sum of quaterly data)
A6: =CONCATENATE(D6," ",E6) -> 647805 PRAVESH KUMAR SHARMA | B6: Gross Salary' | D6: 647805 | E6: PRAVESH KUMAR SHARMA | F6: ACCOUNTANT | G6: BEPPS1234Q | H6: =MID(G6,6,4) -> 1234 | I6: MALE | J6: =IF(D6="","",pks!$I$74) -> 2024-04-01 | K6: =IF(D6="","",pks!$J$74) -> 2025-03-31 | L6: WORKING | M6: 5000120 | N6: 0 | O6: 0 | P6: =SUM(M6:O6) -> 5000120 | Q6: 9 | R6: 10 | S6: 20 | T6: 30 | U6: 40 | V6: 50 | W6: 60 | X6: 70 | Y6: =SUM(R6:X6) -> 280 | Z6: =P6-SUM(R6:X6) -> 4999840 | AA6: =IF($G$5>=$F$5,MAX(MIN(Z6,50000),0),IF($G$5="2019-20",MAX(MIN(Z6,50000),0),IF($G$5="2018-19",MAX(MIN(Z6,40000),0),0))) -> 50000 | AB6: 0 | AC6: 0 | AD6: =SUM(AA6:AC6)-AA6 -> 0 | AE6: =Z6+Q6-AD6 -> 4999849 | AF6: 1 | AG6: 2 | AH6: 11 | AI6: 4 | AJ6: 5 | AK6: =AH6 -> 11 | AL6: =SUM(AF6:AJ6)-AH6 -> 12 | AM6: =SUM(AF6+AG6-AH6+AI6+AJ6) -> 1 | AN6: =AE6+AM6-AA6 -> 4949850 | AO6: 1 | AP6: 2 | AQ6: 3 | AR6: 4 | AS6: 5 | AT6: 6 | AU6: 7 | AV6: 8 | AW6: 9 | AX6: 10 | AY6: 11 | AZ6: 12 | BA6: 13 | BB6: 14 | BC6: 15 | BD6: 16 | BE6: 17 | BF6: 18 | BG6: =IF(SUM(AO6:BF6)>150000,150000,SUM(AO6:BF6)) -> 171 | BH6: 150000 | BI6: 250000 | BJ6: 250000 | BK6: 250000 | BL6: Disability | BM6: 250000 | BN6: 250000 | BO6: 250000 | BP6: 250000 | BQ6: 251000 | BR6: 252000 | BS6: 250000 | BT6: 250000 | BU6: 250000 | BV6: 250000 | BW6: Disability | BX6: 250000 | BY6: 1000 | BZ6: 250000 | CA6: =SUM(BH6:BZ6)+BG6 -> 3904171 | CB6: 0 | CC6: 10000 | CD6: 20 | CE6: 30 | CF6: 40 | CG6: 50 | CH6: 60 | CI6: 70 | CJ6: 80 | CK6: 90 | CL6: 100 | CM6: 110 | CN6: 120 | CO6: =SUM(CC6:CE6) -> 10050 | CP6: =SUM(CF6:CH6) -> 150 | CQ6: =SUM(CI6:CK6) -> 240 | CR6: =SUM(CL6:CN6) -> 330 | CS6: 1245 | CV6: =TODAY() -> 2024-10-14 | CW6: 20 | CX6: 0 | CY6: 0 | CZ6: 0 | DA6: 0 | DB6: 0 | DC6: 0 | DD6: 0 | DE6: 0 | DF6: 0 | DG6: 0 | DH6: 0
A7: =CONCATENATE(D7," ",E7) -> 1 Dr. ABC | D7: 1 | E7: Dr. ABC | F7: ASSISTANT PROFESSOR | G7: BEPPS1234Q | H7: =MID(G7,6,4) -> 1234 | I7: SENIOR CITIZEN | J7: =IF(D7="","",pks!$I$74) -> 2024-04-01 | K7: =IF(D7="","",pks!$J$74) -> 2025-03-31 | L7: WORKING | M7: 1850000 | N7: 0 | O7: 0 | P7: =SUM(M7:O7) -> 1850000 | Y7: =SUM(R7:X7) -> 0 | Z7: =P7-SUM(R7:X7) -> 1850000 | AA7: =IF($G$5>=$F$5,MAX(MIN(Z7,50000),0),IF($G$5="2019-20",MAX(MIN(Z7,50000),0),IF($G$5="2018-19",MAX(MIN(Z7,40000),0),0))) -> 50000 | AB7: 0 | AC7: 0 | AD7: =SUM(AA7:AC7)-AA7 -> 0 | AE7: =Z7+Q7-AD7 -> 1850000 | AF7: 0 | AI7: 45000 | AJ7: 0 | AK7: =AH7 -> 0 | AL7: =SUM(AF7:AJ7)-AH7 -> 45000 | AM7: =SUM(AF7+AG7-AH7+AI7+AJ7) -> 45000 | AN7: =AE7+AM7-AA7 -> 1845000 | AO7: 0 | BG7: =IF(SUM(AO7:BF7)>150000,150000,SUM(AO7:BF7)) -> 0 | BH7: 0 | BJ7: 0 | BK7: 0 | BL7: Severe disability | BM7: 0 | BN7: 0 | BO7: 0 | BP7: 0 | BQ7: 0 | BR7: 0 | BU7: 0 | BV7: 0 | BW7: Severe disability | BX7: 0 | BY7: 0 | BZ7: 0 | CA7: =SUM(BH7:BZ7)+BG7 -> 0 | CB7: 0 | CO7: =SUM(CC7:CE7) -> 0 | CP7: =SUM(CF7:CH7) -> 0 | CQ7: =SUM(CI7:CK7) -> 0 | CR7: =SUM(CL7:CN7) -> 0 | DJ7: Home
A8: =CONCATENATE(D8," ",E8) -> 2 Aslam Chand Shaikh | D8: 2 | E8: Aslam Chand Shaikh | F8: Asst Manager | G8: CMYPS1234K | H8: 1234 | I8: MALE | J8: =IF(D8="","",pks!$I$74) -> 2024-04-01 | K8: =IF(D8="","",pks!$J$74) -> 2025-03-31 | L8: WORKING | M8: 830000 | N8: 0 | O8: 0 | P8: 830000 | X8: 0 | Y8: =SUM(R8:X8) -> 0 | Z8: =P8-SUM(R8:X8) -> 830000 | AA8: =IF($G$5>=$F$5,MAX(MIN(Z8,50000),0),IF($G$5="2019-20",MAX(MIN(Z8,50000),0),IF($G$5="2018-19",MAX(MIN(Z8,40000),0),0))) -> 50000 | AB8: 1 | AC8: 2 | AD8: =SUM(AA8:AC8)-AA8 -> 3 | AE8: =Z8-AD8 -> 829997 | AH8: 0 | AK8: =AH8 -> 0 | AL8: =SUM(AF8:AJ8)-AH8 -> 0 | AM8: 0 | AN8: =AE8+AM8-AA8 -> 779997 | AO8: 0 | AT8: 0 | AU8: 0 | BG8: 0 | BK8: 0 | BY8: 0 | CA8: =SUM(BH8:BZ8)+BG8 -> 0 | CB8: 0 | CO8: 0 | CP8: 0 | CQ8: 0 | CR8: 0
B9: Form no 16 | J9: =IF(D9="","",pks!$I$74) ->  | K9: =IF(D9="","",pks!$J$74) ->  | P9: 0 | Y9: 0 | Z9: 0 | AA9: =IF($G$5>=$F$5,MAX(MIN(Z9,50000),0),IF($G$5="2019-20",MAX(MIN(Z9,50000),0),IF($G$5="2018-19",MAX(MIN(Z9,40000),0),0))) -> 0 | AD9: 0 | AE9: 0 | AK9: 0 | AL9: 0 | AM9: 0 | AN9: 0 | BG9: 0 | CA9: 0 | CB9: 0 | CO9: 0 | CP9: 0 | CQ9: 0 | CR9: 0 | DJ9: Statement
J10: =IF(D10="","",pks!$I$74) ->  | K10: =IF(D10="","",pks!$J$74) ->  | P10: 0 | Y10: 0 | Z10: 0 | AA10: 0 | AD10: 0 | AE10: 0 | AK10: 0 | AL10: 0 | AM10: 0 | AN10: 0 | BG10: 0 | CA10: 0 | CB10: 0 | CO10: 0 | CP10: 0 | CQ10: 0 | CR10: 0
J11: =IF(D11="","",pks!$I$74) ->  | K11: =IF(D11="","",pks!$J$74) ->  | P11: 0 | Y11: 0 | Z11: 0 | AA11: 0 | AD11: 0 | AE11: 0 | AK11: 0 | AL11: 0 | AM11: 0 | AN11: 0 | BG11: 0 | CA11: 0 | CB11: 0 | CO11: 0 | CP11: 0 | CQ11: 0 | CR11: 0
J12: =IF(D12="","",pks!$I$74) ->  | K12: =IF(D12="","",pks!$J$74) ->  | P12: 0 | Y12: 0 | Z12: 0 | AA12: 0 | AD12: 0 | AE12: 0 | AK12: 0 | AL12: 0 | AM12: 0 | AN12: 0 | BG12: 0 | CA12: 0 | CB12: 0 | CO12: 0 | CP12: 0 | CQ12: 0 | CR12: 0
B13: Tax Calculator | J13: =IF(D13="","",pks!$I$74) ->  | K13: =IF(D13="","",pks!$J$74) ->  | P13: 0 | Y13: 0 | Z13: 0 | AA13: 0 | AD13: 0 | AE13: 0 | AK13: 0 | AL13: 0 | AM13: 0 | AN13: 0 | BG13: 0 | CA13: 0 | CB13: 0 | CO13: 0 | CP13: 0 | CQ13: 0 | CR13: 0
J14: =IF(D14="","",pks!$I$74) ->  | K14: =IF(D14="","",pks!$J$74) ->  | P14: 0 | Y14: 0 | Z14: 0 | AA14: 0 | AD14: 0 | AE14: 0 | AK14: 0 | AL14: 0 | AM14: 0 | AN14: 0 | BG14: 0 | CA14: 0 | CB14: 0 | CO14: 0 | CP14: 0 | CQ14: 0 | CR14: 0
J15: =IF(D15="","",pks!$I$74) ->  | K15: =IF(D15="","",pks!$J$74) ->  | P15: 0 | Y15: 0 | Z15: 0 | AA15: 0 | AD15: 0 | AE15: 0 | AK15: 0 | AL15: 0 | AM15: 0 | AN15: 0 | BG15: 0 | CA15: 0 | CB15: 0 | CO15: 0 | CP15: 0 | CQ15: 0 | CR15: 0
J16: =IF(D16="","",pks!$I$74) ->  | K16: =IF(D16="","",pks!$J$74) ->  | P16: 0 | Y16: 0 | Z16: 0 | AA16: 0 | AD16: 0 | AE16: 0 | AK16: 0 | AL16: 0 | AM16: 0 | AN16: 0 | BG16: 0 | CA16: 0 | CB16: 0 | CO16: 0 | CP16: 0 | CQ16: 0 | CR16: 0
J17: =IF(D17="","",pks!$I$74) ->  | K17: =IF(D17="","",pks!$J$74) ->  | P17: 0 | Y17: 0 | Z17: 0 | AA17: 0 | AD17: 0 | AE17: 0 | AK17: 0 | AL17: 0 | AM17: 0 | AN17: 0 | BG17: 0 | CA17: 0 | CB17: 0 | CO17: 0 | CP17: 0 | CQ17: 0 | CR17: 0
J18: =IF(D18="","",pks!$I$74) ->  | K18: =IF(D18="","",pks!$J$74) ->  | P18: 0 | Y18: 0 | Z18: 0 | AA18: 0 | AD18: 0 | AE18: 0 | AK18: 0 | AL18: 0 | AM18: 0 | AN18: 0 | BG18: 0 | CA18: 0 | CB18: 0 | CO18: 0 | CP18: 0 | CQ18: 0 | CR18: 0
J19: =IF(D19="","",pks!$I$74) ->  | K19: =IF(D19="","",pks!$J$74) ->  | P19: 0 | Y19: 0 | Z19: 0 | AA19: 0 | AD19: 0 | AE19: 0 | AK19: 0 | AL19: 0 | AM19: 0 | AN19: 0 | BG19: 0 | CA19: 0 | CB19: 0 | CO19: 0 | CP19: 0 | CQ19: 0 | CR19: 0
J20: =IF(D20="","",pks!$I$74) ->  | K20: =IF(D20="","",pks!$J$74) ->  | P20: 0 | Y20: 0 | Z20: 0 | AA20: 0 | AD20: 0 | AE20: 0 | AK20: 0 | AL20: 0 | AM20: 0 | AN20: 0 | BG20: 0 | CA20: 0 | CB20: 0 | CO20: 0 | CP20: 0 | CQ20: 0 | CR20: 0
J21: =IF(D21="","",pks!$I$74) ->  | K21: =IF(D21="","",pks!$J$74) ->  | P21: 0 | Y21: 0 | Z21: 0 | AA21: 0 | AD21: 0 | AE21: 0 | AK21: 0 | AL21: 0 | AM21: 0 | AN21: 0 | BG21: 0 | CA21: 0 | CB21: 0 | CO21: 0 | CP21: 0 | CQ21: 0 | CR21: 0
J22: =IF(D22="","",pks!$I$74) ->  | K22: =IF(D22="","",pks!$J$74) ->  | P22: 0 | Y22: 0 | Z22: 0 | AA22: 0 | AD22: 0 | AE22: 0 | AK22: 0 | AL22: 0 | AM22: 0 | AN22: 0 | BG22: 0 | CA22: 0 | CB22: 0 | CO22: 0 | CP22: 0 | CQ22: 0 | CR22: 0
J23: =IF(D23="","",pks!$I$74) ->  | K23: =IF(D23="","",pks!$J$74) ->  | P23: 0 | Y23: 0 | Z23: 0 | AA23: 0 | AD23: 0 | AE23: 0 | AK23: 0 | AL23: 0 | AM23: 0 | AN23: 0 | BG23: 0 | CA23: 0 | CB23: 0 | CO23: 0 | CP23: 0 | CQ23: 0 | CR23: 0
J24: =IF(D24="","",pks!$I$74) ->  | K24: =IF(D24="","",pks!$J$74) ->  | P24: 0 | Y24: 0 | Z24: 0 | AA24: 0 | AD24: 0 | AE24: 0 | AK24: 0 | AL24: 0 | AM24: 0 | AN24: 0 | BG24: 0 | CA24: 0 | CB24: 0 | CO24: 0 | CP24: 0 | CQ24: 0 | CR24: 0
J25: =IF(D25="","",pks!$I$74) ->  | K25: =IF(D25="","",pks!$J$74) ->  | P25: 0 | Y25: 0 | Z25: 0 | AA25: 0 | AD25: 0 | AE25: 0 | AK25: 0 | AL25: 0 | AM25: 0 | AN25: 0 | BG25: 0 | CA25: 0 | CB25: 20585 | CO25: 0 | CP25: 0 | CQ25: 0 | CR25: 0
J26: =IF(D26="","",pks!$I$74) ->  | K26: =IF(D26="","",pks!$J$74) ->  | P26: 0 | Y26: 0 | Z26: 0 | AA26: 0 | AD26: 0 | AE26: 0 | AK26: 0 | AL26: 0 | AM26: 0 | AN26: 0 | BG26: 0 | CA26: 0 | CB26: 0 | CO26: 0 | CP26: 0 | CQ26: 0 | CR26: 0
J27: =IF(D27="","",pks!$I$74) ->  | K27: =IF(D27="","",pks!$J$74) ->  | P27: 0 | Y27: 0 | Z27: 0 | AA27: 0 | AD27: 0 | AE27: 0 | AK27: 0 | AL27: 0 | AM27: 0 | AN27: 0 | BG27: 0 | CA27: 0 | CB27: 0 | CO27: 0 | CP27: 0 | CQ27: 0 | CR27: 0
J28: =IF(D28="","",pks!$I$74) ->  | K28: =IF(D28="","",pks!$J$74) ->  | P28: 0 | Y28: 0 | Z28: 0 | AA28: 0 | AD28: 0 | AE28: 0 | AK28: 0 | AL28: 0 | AM28: 0 | AN28: 0 | BG28: 0 | CA28: 0 | CB28: 0 | CO28: 0 | CP28: 0 | CQ28: 0 | CR28: 0
J29: =IF(D29="","",pks!$I$74) ->  | K29: =IF(D29="","",pks!$J$74) ->  | P29: 0 | Y29: 0 | Z29: 0 | AA29: 0 | AD29: 0 | AE29: 0 | AK29: 0 | AL29: 0 | AM29: 0 | AN29: 0 | BG29: 0 | CA29: 0 | CB29: 0 | CO29: 0 | CP29: 0 | CQ29: 0 | CR29: 0
J30: =IF(D30="","",pks!$I$74) ->  | K30: =IF(D30="","",pks!$J$74) ->  | P30: 0 | Y30: 0 | Z30: 0 | AA30: 0 | AD30: 0 | AE30: 0 | AK30: 0 | AL30: 0 | AM30: 0 | AN30: 0 | BG30: 0 | CA30: 0 | CB30: 0 | CO30: 0 | CP30: 0 | CQ30: 0 | CR30: 0
J31: =IF(D31="","",pks!$I$74) ->  | K31: =IF(D31="","",pks!$J$74) ->  | P31: 0 | Y31: 0 | Z31: 0 | AA31: 0 | AD31: 0 | AE31: 0 | AK31: 0 | AL31: 0 | AM31: 0 | AN31: 0 | BG31: 0 | CA31: 0 | CB31: 0 | CO31: 0 | CP31: 0 | CQ31: 0 | CR31: 0
J32: =IF(D32="","",pks!$I$74) ->  | K32: =IF(D32="","",pks!$J$74) ->  | P32: 0 | Y32: 0 | Z32: 0 | AA32: 0 | AD32: 0 | AE32: 0 | AK32: 0 | AL32: 0 | AM32: 0 | AN32: 0 | BG32: 0 | CA32: 0 | CB32: 0 | CO32: 0 | CP32: 0 | CQ32: 0 | CR32: 0
J33: =IF(D33="","",pks!$I$74) ->  | K33: =IF(D33="","",pks!$J$74) ->  | P33: 0 | Y33: 0 | Z33: 0 | AA33: 0 | AD33: 0 | AE33: 0 | AK33: 0 | AL33: 0 | AM33: 0 | AN33: 0 | BG33: 0 | CA33: 0 | CB33: 0 | CO33: 0 | CP33: 0 | CQ33: 0 | CR33: 0
J34: =IF(D34="","",pks!$I$74) ->  | K34: =IF(D34="","",pks!$J$74) ->  | P34: 0 | Y34: 0 | Z34: 0 | AA34: 0 | AD34: 0 | AE34: 0 | AK34: 0 | AL34: 0 | AM34: 0 | AN34: 0 | BG34: 0 | CA34: 0 | CB34: 0 | CO34: 0 | CP34: 0 | CQ34: 0 | CR34: 0
J35: =IF(D35="","",pks!$I$74) ->  | K35: =IF(D35="","",pks!$J$74) ->  | P35: 0 | Y35: 0 | Z35: 0 | AA35: 0 | AD35: 0 | AE35: 0 | AK35: 0 | AL35: 0 | AM35: 0 | AN35: 0 | BG35: 0 | CA35: 0 | CB35: 0 | CO35: 0 | CP35: 0 | CQ35: 0 | CR35: 0
J36: =IF(D36="","",pks!$I$74) ->  | K36: =IF(D36="","",pks!$J$74) ->  | P36: 0 | Y36: 0 | Z36: 0 | AA36: 0 | AD36: 0 | AE36: 0 | AK36: 0 | AL36: 0 | AM36: 0 | AN36: 0 | BG36: 0 | CA36: 0 | CB36: 0 | CO36: 0 | CP36: 0 | CQ36: 0 | CR36: 0
J37: =IF(D37="","",pks!$I$74) ->  | K37: =IF(D37="","",pks!$J$74) ->  | P37: 0 | Y37: 0 | Z37: 0 | AA37: 0 | AD37: 0 | AE37: 0 | AK37: 0 | AL37: 0 | AM37: 0 | AN37: 0 | BG37: 0 | CA37: 0 | CB37: 0 | CO37: 0 | CP37: 0 | CQ37: 0 | CR37: 0
J38: =IF(D38="","",pks!$I$74) ->  | K38: =IF(D38="","",pks!$J$74) ->  | P38: 0 | Y38: 0 | Z38: 0 | AA38: 0 | AD38: 0 | AE38: 0 | AK38: 0 | AL38: 0 | AM38: 0 | AN38: 0 | BG38: 0 | CA38: 0 | CB38: 0 | CO38: 0 | CP38: 0 | CQ38: 0 | CR38: 0
J39: =IF(D39="","",pks!$I$74) ->  | K39: =IF(D39="","",pks!$J$74) ->  | P39: 0 | Y39: 0 | Z39: 0 | AA39: 0 | AD39: 0 | AE39: 0 | AK39: 0 | AL39: 0 | AM39: 0 | AN39: 0 | BG39: 0 | CA39: 0 | CB39: 0 | CO39: 0 | CP39: 0 | CQ39: 0 | CR39: 0
J40: =IF(D40="","",pks!$I$74) ->  | K40: =IF(D40="","",pks!$J$74) ->  | P40: 0 | Y40: 0 | Z40: 0 | AA40: 0 | AD40: 0 | AE40: 0 | AK40: 0 | AL40: 0 | AM40: 0 | AN40: 0 | BG40: 0 | CA40: 0 | CB40: 0 | CO40: 0 | CP40: 0 | CQ40: 0 | CR40: 0
J41: =IF(D41="","",pks!$I$74) ->  | K41: =IF(D41="","",pks!$J$74) ->  | P41: 0 | Y41: 0 | Z41: 0 | AA41: 0 | AD41: 0 | AE41: 0 | AK41: 0 | AL41: 0 | AM41: 0 | AN41: 0 | BG41: 0 | CA41: 0 | CB41: 0 | CO41: 0 | CP41: 0 | CQ41: 0 | CR41: 0
J42: =IF(D42="","",pks!$I$74) ->  | K42: =IF(D42="","",pks!$J$74) ->  | P42: 0 | Y42: 0 | Z42: 0 | AA42: 0 | AD42: 0 | AE42: 0 | AK42: 0 | AL42: 0 | AM42: 0 | AN42: 0 | BG42: 0 | CA42: 0 | CB42: 0 | CO42: 0 | CP42: 0 | CQ42: 0 | CR42: 0
J43: =IF(D43="","",pks!$I$74) ->  | K43: =IF(D43="","",pks!$J$74) ->  | P43: 0 | Y43: 0 | Z43: 0 | AA43: 0 | AD43: 0 | AE43: 0 | AK43: 0 | AL43: 0 | AM43: 0 | AN43: 0 | BG43: 0 | CA43: 0 | CB43: 0 | CO43: 0 | CP43: 0 | CQ43: 0 | CR43: 0
J44: =IF(D44="","",pks!$I$74) ->  | K44: =IF(D44="","",pks!$J$74) ->  | P44: 0 | Y44: 0 | Z44: 0 | AA44: 0 | AD44: 0 | AE44: 0 | AK44: 0 | AL44: 0 | AM44: 0 | AN44: 0 | BG44: 0 | CA44: 0 | CB44: 0 | CO44: 0 | CP44: 0 | CQ44: 0 | CR44: 0
J45: =IF(D45="","",pks!$I$74) ->  | K45: =IF(D45="","",pks!$J$74) ->  | P45: 0 | Y45: 0 | Z45: 0 | AA45: 0 | AD45: 0 | AE45: 0 | AK45: 0 | AL45: 0 | AM45: 0 | AN45: 0 | BG45: 0 | CA45: 0 | CB45: 0 | CO45: 0 | CP45: 0 | CQ45: 0 | CR45: 0
J46: =IF(D46="","",pks!$I$74) ->  | K46: =IF(D46="","",pks!$J$74) ->  | P46: 0 | Y46: 0 | Z46: 0 | AA46: 0 | AD46: 0 | AE46: 0 | AK46: 0 | AL46: 0 | AM46: 0 | AN46: 0 | BG46: 0 | CA46: 0 | CB46: 0 | CO46: 0 | CP46: 0 | CQ46: 0 | CR46: 0
J47: =IF(D47="","",pks!$I$74) ->  | K47: =IF(D47="","",pks!$J$74) ->  | P47: 0 | Y47: 0 | Z47: 0 | AA47: 0 | AD47: 0 | AE47: 0 | AK47: 0 | AL47: 0 | AM47: 0 | AN47: 0 | BG47: 0 | CA47: 0 | CB47: 0 | CO47: 0 | CP47: 0 | CQ47: 0 | CR47: 0
J48: =IF(D48="","",pks!$I$74) ->  | K48: =IF(D48="","",pks!$J$74) ->  | P48: 0 | Y48: 0 | Z48: 0 | AA48: 0 | AD48: 0 | AE48: 0 | AK48: 0 | AL48: 0 | AM48: 0 | AN48: 0 | BG48: 0 | CA48: 0 | CB48: 0 | CO48: 0 | CP48: 0 | CQ48: 0 | CR48: 0
J49: =IF(D49="","",pks!$I$74) ->  | K49: =IF(D49="","",pks!$J$74) ->  | P49: 0 | Y49: 0 | Z49: 0 | AA49: 0 | AD49: 0 | AE49: 0 | AK49: 0 | AL49: 0 | AM49: 0 | AN49: 0 | BG49: 0 | CA49: 0 | CB49: 0 | CO49: 0 | CP49: 0 | CQ49: 0 | CR49: 0
J50: =IF(D50="","",pks!$I$74) ->  | K50: =IF(D50="","",pks!$J$74) ->  | P50: 0 | Y50: 0 | Z50: 0 | AA50: 0 | AD50: 0 | AE50: 0 | AK50: 0 | AL50: 0 | AM50: 0 | AN50: 0 | BG50: 0 | CA50: 0 | CB50: 0 | CO50: 0 | CP50: 0 | CQ50: 0 | CR50: 0
J51: =IF(D51="","",pks!$I$74) ->  | K51: =IF(D51="","",pks!$J$74) ->  | P51: 0 | Y51: 0 | Z51: 0 | AA51: 0 | AD51: 0 | AE51: 0 | AK51: 0 | AL51: 0 | AM51: 0 | AN51: 0 | BG51: 0 | CA51: 0 | CB51: 0 | CO51: 0 | CP51: 0 | CQ51: 0 | CR51: 0
J52: =IF(D52="","",pks!$I$74) ->  | K52: =IF(D52="","",pks!$J$74) ->  | P52: 0 | Y52: 0 | Z52: 0 | AA52: 0 | AD52: 0 | AE52: 0 | AK52: 0 | AL52: 0 | AM52: 0 | AN52: 0 | BG52: 0 | CA52: 0 | CB52: 0 | CO52: 0 | CP52: 0 | CQ52: 0 | CR52: 0
J53: =IF(D53="","",pks!$I$74) ->  | K53: =IF(D53="","",pks!$J$74) ->  | P53: 0 | Y53: 0 | Z53: 0 | AA53: 0 | AD53: 0 | AE53: 0 | AK53: 0 | AL53: 0 | AM53: 0 | AN53: 0 | BG53: 0 | CA53: 0 | CB53: 0 | CO53: 0 | CP53: 0 | CQ53: 0 | CR53: 0
J54: =IF(D54="","",pks!$I$74) ->  | K54: =IF(D54="","",pks!$J$74) ->  | P54: 0 | Y54: 0 | Z54: 0 | AA54: 0 | AD54: 0 | AE54: 0 | AK54: 0 | AL54: 0 | AM54: 0 | AN54: 0 | BG54: 0 | CA54: 0 | CB54: 0 | CO54: 0 | CP54: 0 | CQ54: 0 | CR54: 0
J55: =IF(D55="","",pks!$I$74) ->  | K55: =IF(D55="","",pks!$J$74) ->  | P55: 0 | Y55: 0 | Z55: 0 | AA55: 0 | AD55: 0 | AE55: 0 | AK55: 0 | AL55: 0 | AM55: 0 | AN55: 0 | BG55: 0 | CA55: 0 | CB55: 0 | CO55: 0 | CP55: 0 | CQ55: 0 | CR55: 0
J56: =IF(D56="","",pks!$I$74) ->  | K56: =IF(D56="","",pks!$J$74) ->  | P56: 0 | Y56: 0 | Z56: 0 | AA56: 0 | AD56: 0 | AE56: 0 | AK56: 0 | AL56: 0 | AM56: 0 | AN56: 0 | BG56: 0 | CA56: 0 | CB56: 0 | CO56: 0 | CP56: 0 | CQ56: 0 | CR56: 0
J57: =IF(D57="","",pks!$I$74) ->  | K57: =IF(D57="","",pks!$J$74) ->  | P57: 0 | Y57: 0 | Z57: 0 | AA57: 0 | AD57: 0 | AE57: 0 | AK57: 0 | AL57: 0 | AM57: 0 | AN57: 0 | BG57: 0 | CA57: 0 | CB57: 0 | CO57: 0 | CP57: 0 | CQ57: 0 | CR57: 0
J58: =IF(D58="","",pks!$I$74) ->  | K58: =IF(D58="","",pks!$J$74) ->  | P58: 0 | Y58: 0 | Z58: 0 | AA58: 0 | AD58: 0 | AE58: 0 | AK58: 0 | AL58: 0 | AM58: 0 | AN58: 0 | BG58: 0 | CA58: 0 | CB58: 0 | CO58: 0 | CP58: 0 | CQ58: 0 | CR58: 0
J59: =IF(D59="","",pks!$I$74) ->  | K59: =IF(D59="","",pks!$J$74) ->  | P59: 0 | Y59: 0 | Z59: 0 | AA59: 0 | AD59: 0 | AE59: 0 | AK59: 0 | AL59: 0 | AM59: 0 | AN59: 0 | BG59: 0 | CA59: 0 | CB59: 0 | CO59: 0 | CP59: 0 | CQ59: 0 | CR59: 0
J60: =IF(D60="","",pks!$I$74) ->  | K60: =IF(D60="","",pks!$J$74) ->  | P60: 0 | Y60: 0 | Z60: 0 | AA60: 0 | AD60: 0 | AE60: 0 | AK60: 0 | AL60: 0 | AM60: 0 | AN60: 0 | BG60: 0 | CA60: 0 | CB60: 0 | CO60: 0 | CP60: 0 | CQ60: 0 | CR60: 0
J61: =IF(D61="","",pks!$I$74) ->  | K61: =IF(D61="","",pks!$J$74) ->  | P61: 0 | Y61: 0 | Z61: 0 | AA61: 0 | AD61: 0 | AE61: 0 | AK61: 0 | AL61: 0 | AM61: 0 | AN61: 0 | BG61: 0 | CA61: 0 | CB61: 0 | CO61: 0 | CP61: 0 | CQ61: 0 | CR61: 0
J62: =IF(D62="","",pks!$I$74) ->  | K62: =IF(D62="","",pks!$J$74) ->  | P62: 0 | Y62: 0 | Z62: 0 | AA62: 0 | AD62: 0 | AE62: 0 | AK62: 0 | AL62: 0 | AM62: 0 | AN62: 0 | BG62: 0 | CA62: 0 | CB62: 0 | CO62: 0 | CP62: 0 | CQ62: 0 | CR62: 0
J63: =IF(D63="","",pks!$I$74) ->  | K63: =IF(D63="","",pks!$J$74) ->  | P63: 0 | Y63: 0 | Z63: 0 | AA63: 0 | AD63: 0 | AE63: 0 | AK63: 0 | AL63: 0 | AM63: 0 | AN63: 0 | BG63: 0 | CA63: 0 | CB63: 0 | CO63: 0 | CP63: 0 | CQ63: 0 | CR63: 0
J64: =IF(D64="","",pks!$I$74) ->  | K64: =IF(D64="","",pks!$J$74) ->  | P64: 0 | Y64: 0 | Z64: 0 | AA64: 0 | AD64: 0 | AE64: 0 | AK64: 0 | AL64: 0 | AM64: 0 | AN64: 0 | BG64: 0 | CA64: 0 | CB64: 0 | CO64: 0 | CP64: 0 | CQ64: 0 | CR64: 0
J65: =IF(D65="","",pks!$I$74) ->  | K65: =IF(D65="","",pks!$J$74) ->  | P65: 0 | Y65: 0 | Z65: 0 | AA65: 0 | AD65: 0 | AE65: 0 | AK65: 0 | AL65: 0 | AM65: 0 | AN65: 0 | BG65: 0 | CA65: 0 | CB65: 0 | CO65: 0 | CP65: 0 | CQ65: 0 | CR65: 0
J66: =IF(D66="","",pks!$I$74) ->  | K66: =IF(D66="","",pks!$J$74) ->  | P66: 0 | Y66: 0 | Z66: 0 | AA66: 0 | AD66: 0 | AE66: 0 | AK66: 0 | AL66: 0 | AM66: 0 | AN66: 0 | BG66: 0 | CA66: 0 | CB66: 0 | CO66: 0 | CP66: 0 | CQ66: 0 | CR66: 0
J67: =IF(D67="","",pks!$I$74) ->  | K67: =IF(D67="","",pks!$J$74) ->  | P67: 0 | Y67: 0 | Z67: 0 | AA67: 0 | AD67: 0 | AE67: 0 | AK67: 0 | AL67: 0 | AM67: 0 | AN67: 0 | BG67: 0 | CA67: 0 | CB67: 0 | CO67: 0 | CP67: 0 | CQ67: 0 | CR67: 0
J68: =IF(D68="","",pks!$I$74) ->  | K68: =IF(D68="","",pks!$J$74) ->  | P68: 0 | Y68: 0 | Z68: 0 | AA68: 0 | AD68: 0 | AE68: 0 | AK68: 0 | AL68: 0 | AM68: 0 | AN68: 0 | BG68: 0 | CA68: 0 | CB68: 0 | CO68: 0 | CP68: 0 | CQ68: 0 | CR68: 0
J69: =IF(D69="","",pks!$I$74) ->  | K69: =IF(D69="","",pks!$J$74) ->  | P69: 0 | Y69: 0 | Z69: 0 | AA69: 0 | AD69: 0 | AE69: 0 | AK69: 0 | AL69: 0 | AM69: 0 | AN69: 0 | BG69: 0 | CA69: 0 | CB69: 0 | CO69: 0 | CP69: 0 | CQ69: 0 | CR69: 0
J70: =IF(D70="","",pks!$I$74) ->  | K70: =IF(D70="","",pks!$J$74) ->  | P70: 0 | Y70: 0 | Z70: 0 | AA70: 0 | AD70: 0 | AE70: 0 | AK70: 0 | AL70: 0 | AM70: 0 | AN70: 0 | BG70: 0 | CA70: 0 | CB70: 0 | CO70: 0 | CP70: 0 | CQ70: 0 | CR70: 0
H71: =MID(G71,6,4) ->  | J71: =IF(D71="","",pks!$I$74) ->  | K71: =IF(D71="","",pks!$J$74) ->  | P71: =SUM(M71:O71) -> 0 | Y71: 0 | Z71: 0 | AA71: 0 | AD71: 0 | AE71: =Z71-AD71 -> 0 | AK71: 0 | AL71: 0 | AM71: =SUM(AF71+AG71-AH71+AI71+AJ71) -> 0 | AN71: 0 | BG71: =IF(SUM(AO71:BF71)>150000,150000,SUM(AO71:BF71)) -> 0 | CA71: 0 | CB71: 0 | CO71: =SUM(CC71:CE71) -> 0 | CP71: =SUM(CF71:CH71) -> 0 | CQ71: =SUM(CI71:CK71) -> 0 | CR71: =SUM(CL71:CN71) -> 0
A72: =CONCATENATE(D72," ",E72) ->  | J72: =IF(D72="","",pks!$I$74) ->  | K72: =IF(D72="","",pks!$J$74) ->  | P72: 0 | Y72: =SUM(R72:X72) -> 0 | Z72: =P72-SUM(R72:X72) -> 0 | AA72: 0 | AD72: =SUM(AA72:AC72)-AA72 -> 0 | AE72: 0 | AK72: =AH72 -> 0 | AL72: =SUM(AF72:AJ72)-AH72 -> 0 | AM72: 0 | AN72: =AE72+AM72-AA72 -> 0 | BG72: 0 | CA72: =SUM(BH72:BZ72)+BG72 -> 0 | CB72: 0 | CO72: 0 | CP72: 0 | CQ72: 0 | CR72: 0
J73: =IF(D73="","",pks!$I$74) ->  | K73: =IF(D73="","",pks!$J$74) ->  | P73: 0 | Y73: 0 | Z73: 0 | AA73: =IF($G$5>=$F$5,MAX(MIN(Z73,50000),0),IF($G$5="2019-20",MAX(MIN(Z73,50000),0),IF($G$5="2018-19",MAX(MIN(Z73,40000),0),0))) -> 0 | AD73: 0 | AE73: 0 | AK73: 0 | AL73: 0 | AM73: 0 | AN73: 0 | BG73: 0 | CA73: 0 | CB73: 0 | CO73: 0 | CP73: 0 | CQ73: 0 | CR73: 0
J74: =IF(D74="","",pks!$I$74) ->  | K74: =IF(D74="","",pks!$J$74) ->  | P74: 0 | Y74: 0 | Z74: 0 | AA74: 0 | AD74: 0 | AE74: 0 | AK74: 0 | AL74: 0 | AM74: 0 | AN74: 0 | BG74: 0 | CA74: 0 | CB74: 0 | CO74: 0 | CP74: 0 | CQ74: 0 | CR74: 0
J75: =IF(D75="","",pks!$I$74) ->  | K75: =IF(D75="","",pks!$J$74) ->  | P75: 0 | Y75: 0 | Z75: 0 | AA75: 0 | AD75: 0 | AE75: 0 | AK75: 0 | AL75: 0 | AM75: 0 | AN75: 0 | BG75: 0 | CA75: 0 | CB75: 0 | CO75: 0 | CP75: 0 | CQ75: 0 | CR75: 0
J76: =IF(D76="","",pks!$I$74) ->  | K76: =IF(D76="","",pks!$J$74) ->  | P76: 0 | Y76: 0 | Z76: 0 | AA76: 0 | AD76: 0 | AE76: 0 | AK76: 0 | AL76: 0 | AM76: 0 | AN76: 0 | BG76: 0 | CA76: 0 | CB76: 0 | CO76: 0 | CP76: 0 | CQ76: 0 | CR76: 0
J77: =IF(D77="","",pks!$I$74) ->  | K77: =IF(D77="","",pks!$J$74) ->  | P77: 0 | Y77: 0 | Z77: 0 | AA77: 0 | AD77: 0 | AE77: 0 | AK77: 0 | AL77: 0 | AM77: 0 | AN77: 0 | BG77: 0 | CA77: 0 | CB77: 0 | CO77: 0 | CP77: 0 | CQ77: 0 | CR77: 0
J78: =IF(D78="","",pks!$I$74) ->  | K78: =IF(D78="","",pks!$J$74) ->  | P78: 0 | Y78: 0 | Z78: 0 | AA78: 0 | AD78: 0 | AE78: 0 | AK78: 0 | AL78: 0 | AM78: 0 | AN78: 0 | BG78: 0 | CA78: 0 | CB78: 0 | CO78: 0 | CP78: 0 | CQ78: 0 | CR78: 0
J79: =IF(D79="","",pks!$I$74) ->  | K79: =IF(D79="","",pks!$J$74) ->  | P79: 0 | Y79: 0 | Z79: 0 | AA79: 0 | AD79: 0 | AE79: 0 | AK79: 0 | AL79: 0 | AM79: 0 | AN79: 0 | BG79: 0 | CA79: 0 | CB79: 0 | CO79: 0 | CP79: 0 | CQ79: 0 | CR79: 0
J80: =IF(D80="","",pks!$I$74) ->  | K80: =IF(D80="","",pks!$J$74) ->  | P80: 0 | Y80: 0 | Z80: 0 | AA80: 0 | AD80: 0 | AE80: 0 | AK80: 0 | AL80: 0 | AM80: 0 | AN80: 0 | BG80: 0 | CA80: 0 | CB80: 0 | CO80: 0 | CP80: 0 | CQ80: 0 | CR80: 0
J81: =IF(D81="","",pks!$I$74) ->  | K81: =IF(D81="","",pks!$J$74) ->  | P81: 0 | Y81: 0 | Z81: 0 | AA81: 0 | AD81: 0 | AE81: 0 | AK81: 0 | AL81: 0 | AM81: 0 | AN81: 0 | BG81: 0 | CA81: 0 | CB81: 0 | CO81: 0 | CP81: 0 | CQ81: 0 | CR81: 0
J82: =IF(D82="","",pks!$I$74) ->  | K82: =IF(D82="","",pks!$J$74) ->  | P82: 0 | Y82: 0 | Z82: 0 | AA82: 0 | AD82: 0 | AE82: 0 | AK82: 0 | AL82: 0 | AM82: 0 | AN82: 0 | BG82: 0 | CA82: 0 | CB82: 0 | CO82: 0 | CP82: 0 | CQ82: 0 | CR82: 0
J83: =IF(D83="","",pks!$I$74) ->  | K83: =IF(D83="","",pks!$J$74) ->  | P83: 0 | Y83: 0 | Z83: 0 | AA83: 0 | AD83: 0 | AE83: 0 | AK83: 0 | AL83: 0 | AM83: 0 | AN83: 0 | BG83: 0 | CA83: 0 | CB83: 0 | CO83: 0 | CP83: 0 | CQ83: 0 | CR83: 0
J84: =IF(D84="","",pks!$I$74) ->  | K84: =IF(D84="","",pks!$J$74) ->  | P84: 0 | Y84: 0 | Z84: 0 | AA84: 0 | AD84: 0 | AE84: 0 | AK84: 0 | AL84: 0 | AM84: 0 | AN84: 0 | BG84: 0 | CA84: 0 | CB84: 0 | CO84: 0 | CP84: 0 | CQ84: 0 | CR84: 0
J85: =IF(D85="","",pks!$I$74) ->  | K85: =IF(D85="","",pks!$J$74) ->  | P85: 0 | Y85: 0 | Z85: 0 | AA85: 0 | AD85: 0 | AE85: 0 | AK85: 0 | AL85: 0 | AM85: 0 | AN85: 0 | BG85: 0 | CA85: 0 | CB85: 0 | CO85: 0 | CP85: 0 | CQ85: 0 | CR85: 0
J86: =IF(D86="","",pks!$I$74) ->  | K86: =IF(D86="","",pks!$J$74) ->  | P86: 0 | Y86: 0 | Z86: 0 | AA86: 0 | AD86: 0 | AE86: 0 | AK86: 0 | AL86: 0 | AM86: 0 | AN86: 0 | BG86: 0 | CA86: 0 | CB86: 0 | CO86: 0 | CP86: 0 | CQ86: 0 | CR86: 0
J87: =IF(D87="","",pks!$I$74) ->  | K87: =IF(D87="","",pks!$J$74) ->  | P87: 0 | Y87: 0 | Z87: 0 | AA87: 0 | AD87: 0 | AE87: 0 | AK87: 0 | AL87: 0 | AM87: 0 | AN87: 0 | BG87: 0 | CA87: 0 | CB87: 0 | CO87: 0 | CP87: 0 | CQ87: 0 | CR87: 0
J88: =IF(D88="","",pks!$I$74) ->  | K88: =IF(D88="","",pks!$J$74) ->  | P88: 0 | Y88: 0 | Z88: 0 | AA88: 0 | AD88: 0 | AE88: 0 | AK88: 0 | AL88: 0 | AM88: 0 | AN88: 0 | BG88: 0 | CA88: 0 | CB88: 0 | CO88: 0 | CP88: 0 | CQ88: 0 | CR88: 0
J89: =IF(D89="","",pks!$I$74) ->  | K89: =IF(D89="","",pks!$J$74) ->  | P89: 0 | Y89: 0 | Z89: 0 | AA89: 0 | AD89: 0 | AE89: 0 | AK89: 0 | AL89: 0 | AM89: 0 | AN89: 0 | BG89: 0 | CA89: 0 | CB89: 0 | CO89: 0 | CP89: 0 | CQ89: 0 | CR89: 0
J90: =IF(D90="","",pks!$I$74) ->  | K90: =IF(D90="","",pks!$J$74) ->  | P90: 0 | Y90: 0 | Z90: 0 | AA90: 0 | AD90: 0 | AE90: 0 | AK90: 0 | AL90: 0 | AM90: 0 | AN90: 0 | BG90: 0 | CA90: 0 | CB90: 0 | CO90: 0 | CP90: 0 | CQ90: 0 | CR90: 0
J91: =IF(D91="","",pks!$I$74) ->  | K91: =IF(D91="","",pks!$J$74) ->  | P91: 0 | Y91: 0 | Z91: 0 | AA91: 0 | AD91: 0 | AE91: 0 | AK91: 0 | AL91: 0 | AM91: 0 | AN91: 0 | BG91: 0 | CA91: 0 | CB91: 0 | CO91: 0 | CP91: 0 | CQ91: 0 | CR91: 0
J92: =IF(D92="","",pks!$I$74) ->  | K92: =IF(D92="","",pks!$J$74) ->  | P92: 0 | Y92: 0 | Z92: 0 | AA92: 0 | AD92: 0 | AE92: 0 | AK92: 0 | AL92: 0 | AM92: 0 | AN92: 0 | BG92: 0 | CA92: 0 | CB92: 0 | CO92: 0 | CP92: 0 | CQ92: 0 | CR92: 0
J93: =IF(D93="","",pks!$I$74) ->  | K93: =IF(D93="","",pks!$J$74) ->  | P93: 0 | Y93: 0 | Z93: 0 | AA93: 0 | AD93: 0 | AE93: 0 | AK93: 0 | AL93: 0 | AM93: 0 | AN93: 0 | BG93: 0 | CA93: 0 | CB93: 0 | CO93: 0 | CP93: 0 | CQ93: 0 | CR93: 0
J94: =IF(D94="","",pks!$I$74) ->  | K94: =IF(D94="","",pks!$J$74) ->  | P94: 0 | Y94: 0 | Z94: 0 | AA94: 0 | AD94: 0 | AE94: 0 | AK94: 0 | AL94: 0 | AM94: 0 | AN94: 0 | BG94: 0 | CA94: 0 | CB94: 0 | CO94: 0 | CP94: 0 | CQ94: 0 | CR94: 0
J95: =IF(D95="","",pks!$I$74) ->  | K95: =IF(D95="","",pks!$J$74) ->  | P95: 0 | Y95: 0 | Z95: 0 | AA95: 0 | AD95: 0 | AE95: 0 | AK95: 0 | AL95: 0 | AM95: 0 | AN95: 0 | BG95: 0 | CA95: 0 | CB95: 0 | CO95: 0 | CP95: 0 | CQ95: 0 | CR95: 0
J96: =IF(D96="","",pks!$I$74) ->  | K96: =IF(D96="","",pks!$J$74) ->  | P96: 0 | Y96: 0 | Z96: 0 | AA96: 0 | AD96: 0 | AE96: 0 | AK96: 0 | AL96: 0 | AM96: 0 | AN96: 0 | BG96: 0 | CA96: 0 | CB96: 0 | CO96: 0 | CP96: 0 | CQ96: 0 | CR96: 0
J97: =IF(D97="","",pks!$I$74) ->  | K97: =IF(D97="","",pks!$J$74) ->  | P97: 0 | Y97: 0 | Z97: 0 | AA97: 0 | AD97: 0 | AE97: 0 | AK97: 0 | AL97: 0 | AM97: 0 | AN97: 0 | BG97: 0 | CA97: 0 | CB97: 0 | CO97: 0 | CP97: 0 | CQ97: 0 | CR97: 0
J98: =IF(D98="","",pks!$I$74) ->  | K98: =IF(D98="","",pks!$J$74) ->  | P98: 0 | Y98: 0 | Z98: 0 | AA98: 0 | AD98: 0 | AE98: 0 | AK98: 0 | AL98: 0 | AM98: 0 | AN98: 0 | BG98: 0 | CA98: 0 | CB98: 0 | CO98: 0 | CP98: 0 | CQ98: 0 | CR98: 0
J99: =IF(D99="","",pks!$I$74) ->  | K99: =IF(D99="","",pks!$J$74) ->  | P99: 0 | Y99: 0 | Z99: 0 | AA99: 0 | AD99: 0 | AE99: 0 | AK99: 0 | AL99: 0 | AM99: 0 | AN99: 0 | BG99: 0 | CA99: 0 | CB99: 0 | CO99: 0 | CP99: 0 | CQ99: 0 | CR99: 0
J100: =IF(D100="","",pks!$I$74) ->  | K100: =IF(D100="","",pks!$J$74) ->  | P100: 0 | Y100: 0 | Z100: 0 | AA100: 0 | AD100: 0 | AE100: 0 | AK100: 0 | AL100: 0 | AM100: 0 | AN100: 0 | BG100: 0 | CA100: 0 | CB100: 0 | CO100: 0 | CP100: 0 | CQ100: 0 | CR100: 0
J101: =IF(D101="","",pks!$I$74) ->  | K101: =IF(D101="","",pks!$J$74) ->  | P101: 0 | Y101: 0 | Z101: 0 | AA101: 0 | AD101: 0 | AE101: 0 | AK101: 0 | AL101: 0 | AM101: 0 | AN101: 0 | BG101: 0 | CA101: 0 | CB101: 0 | CO101: 0 | CP101: 0 | CQ101: 0 | CR101: 0
J102: =IF(D102="","",pks!$I$74) ->  | K102: =IF(D102="","",pks!$J$74) ->  | P102: 0 | Y102: 0 | Z102: 0 | AA102: 0 | AD102: 0 | AE102: 0 | AK102: 0 | AL102: 0 | AM102: 0 | AN102: 0 | BG102: 0 | CA102: 0 | CB102: 0 | CO102: 0 | CP102: 0 | CQ102: 0 | CR102: 0
J103: =IF(D103="","",pks!$I$74) ->  | K103: =IF(D103="","",pks!$J$74) ->  | P103: 0 | Y103: 0 | Z103: 0 | AA103: 0 | AD103: 0 | AE103: 0 | AK103: 0 | AL103: 0 | AM103: 0 | AN103: 0 | BG103: 0 | CA103: 0 | CB103: 0 | CO103: 0 | CP103: 0 | CQ103: 0 | CR103: 0
J104: =IF(D104="","",pks!$I$74) ->  | K104: =IF(D104="","",pks!$J$74) ->  | P104: 0 | Y104: 0 | Z104: 0 | AA104: 0 | AD104: 0 | AE104: 0 | AK104: 0 | AL104: 0 | AM104: 0 | AN104: 0 | BG104: 0 | CA104: 0 | CB104: 0 | CO104: 0 | CP104: 0 | CQ104: 0 | CR104: 0
J105: =IF(D105="","",pks!$I$74) ->  | K105: =IF(D105="","",pks!$J$74) ->  | P105: 0 | Y105: 0 | Z105: 0 | AA105: 0 | AD105: 0 | AE105: 0 | AK105: 0 | AL105: 0 | AM105: 0 | AN105: 0 | BG105: 0 | CA105: 0 | CB105: 0 | CO105: 0 | CP105: 0 | CQ105: 0 | CR105: 0
J106: =IF(D106="","",pks!$I$74) ->  | K106: =IF(D106="","",pks!$J$74) ->  | P106: 0 | Y106: 0 | Z106: 0 | AA106: 0 | AD106: 0 | AE106: 0 | AK106: 0 | AL106: 0 | AM106: 0 | AN106: 0 | BG106: 0 | CA106: 0 | CB106: 0 | CO106: 0 | CP106: 0 | CQ106: 0 | CR106: 0
J107: =IF(D107="","",pks!$I$74) ->  | K107: =IF(D107="","",pks!$J$74) ->  | P107: 0 | Y107: 0 | Z107: 0 | AA107: 0 | AD107: 0 | AE107: 0 | AK107: 0 | AL107: 0 | AM107: 0 | AN107: 0 | BG107: 0 | CA107: 0 | CB107: 0 | CO107: 0 | CP107: 0 | CQ107: 0 | CR107: 0
J108: =IF(D108="","",pks!$I$74) ->  | K108: =IF(D108="","",pks!$J$74) ->  | P108: 0 | Y108: 0 | Z108: 0 | AA108: 0 | AD108: 0 | AE108: 0 | AK108: 0 | AL108: 0 | AM108: 0 | AN108: 0 | BG108: 0 | CA108: 0 | CB108: 0 | CO108: 0 | CP108: 0 | CQ108: 0 | CR108: 0
J109: =IF(D109="","",pks!$I$74) ->  | K109: =IF(D109="","",pks!$J$74) ->  | P109: 0 | Y109: 0 | Z109: 0 | AA109: 0 | AD109: 0 | AE109: 0 | AK109: 0 | AL109: 0 | AM109: 0 | AN109: 0 | BG109: 0 | CA109: 0 | CB109: 0 | CO109: 0 | CP109: 0 | CQ109: 0 | CR109: 0
J110: =IF(D110="","",pks!$I$74) ->  | K110: =IF(D110="","",pks!$J$74) ->  | P110: 0 | Y110: 0 | Z110: 0 | AA110: 0 | AD110: 0 | AE110: 0 | AK110: 0 | AL110: 0 | AM110: 0 | AN110: 0 | BG110: 0 | CA110: 0 | CB110: 0 | CO110: 0 | CP110: 0 | CQ110: 0 | CR110: 0
J111: =IF(D111="","",pks!$I$74) ->  | K111: =IF(D111="","",pks!$J$74) ->  | P111: 0 | Y111: 0 | Z111: 0 | AA111: 0 | AD111: 0 | AE111: 0 | AK111: 0 | AL111: 0 | AM111: 0 | AN111: 0 | BG111: 0 | CA111: 0 | CB111: 0 | CO111: 0 | CP111: 0 | CQ111: 0 | CR111: 0
J112: =IF(D112="","",pks!$I$74) ->  | K112: =IF(D112="","",pks!$J$74) ->  | P112: 0 | Y112: 0 | Z112: 0 | AA112: 0 | AD112: 0 | AE112: 0 | AK112: 0 | AL112: 0 | AM112: 0 | AN112: 0 | BG112: 0 | CA112: 0 | CB112: 0 | CO112: 0 | CP112: 0 | CQ112: 0 | CR112: 0
J113: =IF(D113="","",pks!$I$74) ->  | K113: =IF(D113="","",pks!$J$74) ->  | P113: 0 | Y113: 0 | Z113: 0 | AA113: 0 | AD113: 0 | AE113: 0 | AK113: 0 | AL113: 0 | AM113: 0 | AN113: 0 | BG113: 0 | CA113: 0 | CB113: 0 | CO113: 0 | CP113: 0 | CQ113: 0 | CR113: 0
J114: =IF(D114="","",pks!$I$74) ->  | K114: =IF(D114="","",pks!$J$74) ->  | P114: 0 | Y114: 0 | Z114: 0 | AA114: 0 | AD114: 0 | AE114: 0 | AK114: 0 | AL114: 0 | AM114: 0 | AN114: 0 | BG114: 0 | CA114: 0 | CB114: 0 | CO114: 0 | CP114: 0 | CQ114: 0 | CR114: 0
J115: =IF(D115="","",pks!$I$74) ->  | K115: =IF(D115="","",pks!$J$74) ->  | P115: 0 | Y115: 0 | Z115: 0 | AA115: 0 | AD115: 0 | AE115: 0 | AK115: 0 | AL115: 0 | AM115: 0 | AN115: 0 | BG115: 0 | CA115: 0 | CB115: 0 | CO115: 0 | CP115: 0 | CQ115: 0 | CR115: 0
J116: =IF(D116="","",pks!$I$74) ->  | K116: =IF(D116="","",pks!$J$74) ->  | P116: 0 | Y116: 0 | Z116: 0 | AA116: 0 | AD116: 0 | AE116: 0 | AK116: 0 | AL116: 0 | AM116: 0 | AN116: 0 | BG116: 0 | CA116: 0 | CB116: 0 | CO116: 0 | CP116: 0 | CQ116: 0 | CR116: 0
J117: =IF(D117="","",pks!$I$74) ->  | K117: =IF(D117="","",pks!$J$74) ->  | P117: 0 | Y117: 0 | Z117: 0 | AA117: 0 | AD117: 0 | AE117: 0 | AK117: 0 | AL117: 0 | AM117: 0 | AN117: 0 | BG117: 0 | CA117: 0 | CB117: 0 | CO117: 0 | CP117: 0 | CQ117: 0 | CR117: 0
J118: =IF(D118="","",pks!$I$74) ->  | K118: =IF(D118="","",pks!$J$74) ->  | P118: 0 | Y118: 0 | Z118: 0 | AA118: 0 | AD118: 0 | AE118: 0 | AK118: 0 | AL118: 0 | AM118: 0 | AN118: 0 | BG118: 0 | CA118: 0 | CB118: 0 | CO118: 0 | CP118: 0 | CQ118: 0 | CR118: 0
J119: =IF(D119="","",pks!$I$74) ->  | K119: =IF(D119="","",pks!$J$74) ->  | P119: 0 | Y119: 0 | Z119: 0 | AA119: 0 | AD119: 0 | AE119: 0 | AK119: 0 | AL119: 0 | AM119: 0 | AN119: 0 | BG119: 0 | CA119: 0 | CB119: 0 | CO119: 0 | CP119: 0 | CQ119: 0 | CR119: 0
J120: =IF(D120="","",pks!$I$74) ->  | K120: =IF(D120="","",pks!$J$74) ->  | P120: 0 | Y120: 0 | Z120: 0 | AA120: 0 | AD120: 0 | AE120: 0 | AK120: 0 | AL120: 0 | AM120: 0 | AN120: 0 | BG120: 0 | CA120: 0 | CB120: 0 | CO120: 0 | CP120: 0 | CQ120: 0 | CR120: 0
J121: =IF(D121="","",pks!$I$74) ->  | K121: =IF(D121="","",pks!$J$74) ->  | P121: 0 | Y121: 0 | Z121: 0 | AA121: 0 | AD121: 0 | AE121: 0 | AK121: 0 | AL121: 0 | AM121: 0 | AN121: 0 | BG121: 0 | CA121: 0 | CB121: 0 | CO121: 0 | CP121: 0 | CQ121: 0 | CR121: 0
J122: =IF(D122="","",pks!$I$74) ->  | K122: =IF(D122="","",pks!$J$74) ->  | P122: 0 | Y122: 0 | Z122: 0 | AA122: 0 | AD122: 0 | AE122: 0 | AK122: 0 | AL122: 0 | AM122: 0 | AN122: 0 | BG122: 0 | CA122: 0 | CB122: 0 | CO122: 0 | CP122: 0 | CQ122: 0 | CR122: 0
J123: =IF(D123="","",pks!$I$74) ->  | K123: =IF(D123="","",pks!$J$74) ->  | P123: 0 | Y123: 0 | Z123: 0 | AA123: 0 | AD123: 0 | AE123: 0 | AK123: 0 | AL123: 0 | AM123: 0 | AN123: 0 | BG123: 0 | CA123: 0 | CB123: 0 | CO123: 0 | CP123: 0 | CQ123: 0 | CR123: 0
J124: =IF(D124="","",pks!$I$74) ->  | K124: =IF(D124="","",pks!$J$74) ->  | P124: 0 | Y124: 0 | Z124: 0 | AA124: 0 | AD124: 0 | AE124: 0 | AK124: 0 | AL124: 0 | AM124: 0 | AN124: 0 | BG124: 0 | CA124: 0 | CB124: 0 | CO124: 0 | CP124: 0 | CQ124: 0 | CR124: 0
J125: =IF(D125="","",pks!$I$74) ->  | K125: =IF(D125="","",pks!$J$74) ->  | P125: 0 | Y125: 0 | Z125: 0 | AA125: 0 | AD125: 0 | AE125: 0 | AK125: 0 | AL125: 0 | AM125: 0 | AN125: 0 | BG125: 0 | CA125: 0 | CB125: 0 | CO125: 0 | CP125: 0 | CQ125: 0 | CR125: 0
J126: =IF(D126="","",pks!$I$74) ->  | K126: =IF(D126="","",pks!$J$74) ->  | P126: 0 | Y126: 0 | Z126: 0 | AA126: 0 | AD126: 0 | AE126: 0 | AK126: 0 | AL126: 0 | AM126: 0 | AN126: 0 | BG126: 0 | CA126: 0 | CB126: 0 | CO126: 0 | CP126: 0 | CQ126: 0 | CR126: 0
J127: =IF(D127="","",pks!$I$74) ->  | K127: =IF(D127="","",pks!$J$74) ->  | P127: 0 | Y127: 0 | Z127: 0 | AA127: 0 | AD127: 0 | AE127: 0 | AK127: 0 | AL127: 0 | AM127: 0 | AN127: 0 | BG127: 0 | CA127: 0 | CB127: 0 | CO127: 0 | CP127: 0 | CQ127: 0 | CR127: 0
J128: =IF(D128="","",pks!$I$74) ->  | K128: =IF(D128="","",pks!$J$74) ->  | P128: 0 | Y128: 0 | Z128: 0 | AA128: 0 | AD128: 0 | AE128: 0 | AK128: 0 | AL128: 0 | AM128: 0 | AN128: 0 | BG128: 0 | CA128: 0 | CB128: 0 | CO128: 0 | CP128: 0 | CQ128: 0 | CR128: 0
J129: =IF(D129="","",pks!$I$74) ->  | K129: =IF(D129="","",pks!$J$74) ->  | P129: 0 | Y129: 0 | Z129: 0 | AA129: 0 | AD129: 0 | AE129: 0 | AK129: 0 | AL129: 0 | AM129: 0 | AN129: 0 | BG129: 0 | CA129: 0 | CB129: 0 | CO129: 0 | CP129: 0 | CQ129: 0 | CR129: 0
J130: =IF(D130="","",pks!$I$74) ->  | K130: =IF(D130="","",pks!$J$74) ->  | P130: 0 | Y130: 0 | Z130: 0 | AA130: 0 | AD130: 0 | AE130: 0 | AK130: 0 | AL130: 0 | AM130: 0 | AN130: 0 | BG130: 0 | CA130: 0 | CB130: 0 | CO130: 0 | CP130: 0 | CQ130: 0 | CR130: 0
J131: =IF(D131="","",pks!$I$74) ->  | K131: =IF(D131="","",pks!$J$74) ->  | P131: 0 | Y131: 0 | Z131: 0 | AA131: 0 | AD131: 0 | AE131: 0 | AK131: 0 | AL131: 0 | AM131: 0 | AN131: 0 | BG131: 0 | CA131: 0 | CB131: 0 | CO131: 0 | CP131: 0 | CQ131: 0 | CR131: 0
J132: =IF(D132="","",pks!$I$74) ->  | K132: =IF(D132="","",pks!$J$74) ->  | P132: 0 | Y132: 0 | Z132: 0 | AA132: 0 | AD132: 0 | AE132: 0 | AK132: 0 | AL132: 0 | AM132: 0 | AN132: 0 | BG132: 0 | CA132: 0 | CB132: 0 | CO132: 0 | CP132: 0 | CQ132: 0 | CR132: 0
J133: =IF(D133="","",pks!$I$74) ->  | K133: =IF(D133="","",pks!$J$74) ->  | P133: 0 | Y133: 0 | Z133: 0 | AA133: 0 | AD133: 0 | AE133: 0 | AK133: 0 | AL133: 0 | AM133: 0 | AN133: 0 | BG133: 0 | CA133: 0 | CB133: 0 | CO133: 0 | CP133: 0 | CQ133: 0 | CR133: 0
J134: =IF(D134="","",pks!$I$74) ->  | K134: =IF(D134="","",pks!$J$74) ->  | P134: 0 | Y134: 0 | Z134: 0 | AA134: 0 | AD134: 0 | AE134: 0 | AK134: 0 | AL134: 0 | AM134: 0 | AN134: 0 | BG134: 0 | CA134: 0 | CB134: 0 | CO134: 0 | CP134: 0 | CQ134: 0 | CR134: 0
H135: =MID(G135,6,4) ->  | J135: =IF(D135="","",pks!$I$74) ->  | K135: =IF(D135="","",pks!$J$74) ->  | P135: =SUM(M135:O135) -> 0 | Y135: 0 | Z135: 0 | AA135: 0 | AD135: 0 | AE135: =Z135-AD135 -> 0 | AK135: 0 | AL135: 0 | AM135: =SUM(AF135+AG135-AH135+AI135+AJ135) -> 0 | AN135: 0 | BG135: =IF(SUM(AO135:BF135)>150000,150000,SUM(AO135:BF135)) -> 0 | CA135: 0 | CB135: 0 | CO135: =SUM(CC135:CE135) -> 0 | CP135: =SUM(CF135:CH135) -> 0 | CQ135: =SUM(CI135:CK135) -> 0 | CR135: =SUM(CL135:CN135) -> 0
A136: =CONCATENATE(D136," ",E136) ->  | J136: =IF(D136="","",pks!$I$74) ->  | K136: =IF(D136="","",pks!$J$74) ->  | P136: 0 | Y136: =SUM(R136:X136) -> 0 | Z136: =P136-SUM(R136:X136) -> 0 | AA136: 0 | AD136: =SUM(AA136:AC136)-AA136 -> 0 | AE136: 0 | AK136: =AH136 -> 0 | AL136: =SUM(AF136:AJ136)-AH136 -> 0 | AM136: 0 | AN136: =AE136+AM136-AA136 -> 0 | BG136: 0 | CA136: =SUM(BH136:BZ136)+BG136 -> 0 | CB136: 0 | CO136: 0 | CP136: 0 | CQ136: 0 | CR136: 0
J137: =IF(D137="","",pks!$I$74) ->  | K137: =IF(D137="","",pks!$J$74) ->  | P137: 0 | Y137: 0 | Z137: 0 | AA137: =IF($G$5>=$F$5,MAX(MIN(Z137,50000),0),IF($G$5="2019-20",MAX(MIN(Z137,50000),0),IF($G$5="2018-19",MAX(MIN(Z137,40000),0),0))) -> 0 | AD137: 0 | AE137: 0 | AK137: 0 | AL137: 0 | AM137: 0 | AN137: 0 | BG137: 0 | CA137: 0 | CB137: 0 | CO137: 0 | CP137: 0 | CQ137: 0 | CR137: 0
J138: =IF(D138="","",pks!$I$74) ->  | K138: =IF(D138="","",pks!$J$74) ->  | P138: 0 | Y138: 0 | Z138: 0 | AA138: 0 | AD138: 0 | AE138: 0 | AK138: 0 | AL138: 0 | AM138: 0 | AN138: 0 | BG138: 0 | CA138: 0 | CB138: 0 | CO138: 0 | CP138: 0 | CQ138: 0 | CR138: 0
J139: =IF(D139="","",pks!$I$74) ->  | K139: =IF(D139="","",pks!$J$74) ->  | P139: 0 | Y139: 0 | Z139: 0 | AA139: 0 | AD139: 0 | AE139: 0 | AK139: 0 | AL139: 0 | AM139: 0 | AN139: 0 | BG139: 0 | CA139: 0 | CB139: 0 | CO139: 0 | CP139: 0 | CQ139: 0 | CR139: 0
J140: =IF(D140="","",pks!$I$74) ->  | K140: =IF(D140="","",pks!$J$74) ->  | P140: 0 | Y140: 0 | Z140: 0 | AA140: 0 | AD140: 0 | AE140: 0 | AK140: 0 | AL140: 0 | AM140: 0 | AN140: 0 | BG140: 0 | CA140: 0 | CB140: 0 | CO140: 0 | CP140: 0 | CQ140: 0 | CR140: 0
J141: =IF(D141="","",pks!$I$74) ->  | K141: =IF(D141="","",pks!$J$74) ->  | P141: 0 | Y141: 0 | Z141: 0 | AA141: 0 | AD141: 0 | AE141: 0 | AK141: 0 | AL141: 0 | AM141: 0 | AN141: 0 | BG141: 0 | CA141: 0 | CB141: 0 | CO141: 0 | CP141: 0 | CQ141: 0 | CR141: 0
J142: =IF(D142="","",pks!$I$74) ->  | K142: =IF(D142="","",pks!$J$74) ->  | P142: 0 | Y142: 0 | Z142: 0 | AA142: 0 | AD142: 0 | AE142: 0 | AK142: 0 | AL142: 0 | AM142: 0 | AN142: 0 | BG142: 0 | CA142: 0 | CB142: 0 | CO142: 0 | CP142: 0 | CQ142: 0 | CR142: 0
J143: =IF(D143="","",pks!$I$74) ->  | K143: =IF(D143="","",pks!$J$74) ->  | P143: 0 | Y143: 0 | Z143: 0 | AA143: 0 | AD143: 0 | AE143: 0 | AK143: 0 | AL143: 0 | AM143: 0 | AN143: 0 | BG143: 0 | CA143: 0 | CB143: 0 | CO143: 0 | CP143: 0 | CQ143: 0 | CR143: 0
J144: =IF(D144="","",pks!$I$74) ->  | K144: =IF(D144="","",pks!$J$74) ->  | P144: 0 | Y144: 0 | Z144: 0 | AA144: 0 | AD144: 0 | AE144: 0 | AK144: 0 | AL144: 0 | AM144: 0 | AN144: 0 | BG144: 0 | CA144: 0 | CB144: 0 | CO144: 0 | CP144: 0 | CQ144: 0 | CR144: 0
J145: =IF(D145="","",pks!$I$74) ->  | K145: =IF(D145="","",pks!$J$74) ->  | P145: 0 | Y145: 0 | Z145: 0 | AA145: 0 | AD145: 0 | AE145: 0 | AK145: 0 | AL145: 0 | AM145: 0 | AN145: 0 | BG145: 0 | CA145: 0 | CB145: 0 | CO145: 0 | CP145: 0 | CQ145: 0 | CR145: 0
J146: =IF(D146="","",pks!$I$74) ->  | K146: =IF(D146="","",pks!$J$74) ->  | P146: 0 | Y146: 0 | Z146: 0 | AA146: 0 | AD146: 0 | AE146: 0 | AK146: 0 | AL146: 0 | AM146: 0 | AN146: 0 | BG146: 0 | CA146: 0 | CB146: 0 | CO146: 0 | CP146: 0 | CQ146: 0 | CR146: 0
J147: =IF(D147="","",pks!$I$74) ->  | K147: =IF(D147="","",pks!$J$74) ->  | P147: 0 | Y147: 0 | Z147: 0 | AA147: 0 | AD147: 0 | AE147: 0 | AK147: 0 | AL147: 0 | AM147: 0 | AN147: 0 | BG147: 0 | CA147: 0 | CB147: 0 | CO147: 0 | CP147: 0 | CQ147: 0 | CR147: 0
J148: =IF(D148="","",pks!$I$74) ->  | K148: =IF(D148="","",pks!$J$74) ->  | P148: 0 | Y148: 0 | Z148: 0 | AA148: 0 | AD148: 0 | AE148: 0 | AK148: 0 | AL148: 0 | AM148: 0 | AN148: 0 | BG148: 0 | CA148: 0 | CB148: 0 | CO148: 0 | CP148: 0 | CQ148: 0 | CR148: 0
J149: =IF(D149="","",pks!$I$74) ->  | K149: =IF(D149="","",pks!$J$74) ->  | P149: 0 | Y149: 0 | Z149: 0 | AA149: 0 | AD149: 0 | AE149: 0 | AK149: 0 | AL149: 0 | AM149: 0 | AN149: 0 | BG149: 0 | CA149: 0 | CB149: 0 | CO149: 0 | CP149: 0 | CQ149: 0 | CR149: 0
J150: =IF(D150="","",pks!$I$74) ->  | K150: =IF(D150="","",pks!$J$74) ->  | P150: 0 | Y150: 0 | Z150: 0 | AA150: 0 | AD150: 0 | AE150: 0 | AK150: 0 | AL150: 0 | AM150: 0 | AN150: 0 | BG150: 0 | CA150: 0 | CB150: 0 | CO150: 0 | CP150: 0 | CQ150: 0 | CR150: 0
J151: =IF(D151="","",pks!$I$74) ->  | K151: =IF(D151="","",pks!$J$74) ->  | P151: 0 | Y151: 0 | Z151: 0 | AA151: 0 | AD151: 0 | AE151: 0 | AK151: 0 | AL151: 0 | AM151: 0 | AN151: 0 | BG151: 0 | CA151: 0 | CB151: 0 | CO151: 0 | CP151: 0 | CQ151: 0 | CR151: 0
J152: =IF(D152="","",pks!$I$74) ->  | K152: =IF(D152="","",pks!$J$74) ->  | P152: 0 | Y152: 0 | Z152: 0 | AA152: 0 | AD152: 0 | AE152: 0 | AK152: 0 | AL152: 0 | AM152: 0 | AN152: 0 | BG152: 0 | CA152: 0 | CB152: 0 | CO152: 0 | CP152: 0 | CQ152: 0 | CR152: 0
J153: =IF(D153="","",pks!$I$74) ->  | K153: =IF(D153="","",pks!$J$74) ->  | P153: 0 | Y153: 0 | Z153: 0 | AA153: 0 | AD153: 0 | AE153: 0 | AK153: 0 | AL153: 0 | AM153: 0 | AN153: 0 | BG153: 0 | CA153: 0 | CB153: 0 | CO153: 0 | CP153: 0 | CQ153: 0 | CR153: 0
J154: =IF(D154="","",pks!$I$74) ->  | K154: =IF(D154="","",pks!$J$74) ->  | P154: 0 | Y154: 0 | Z154: 0 | AA154: 0 | AD154: 0 | AE154: 0 | AK154: 0 | AL154: 0 | AM154: 0 | AN154: 0 | BG154: 0 | CA154: 0 | CB154: 0 | CO154: 0 | CP154: 0 | CQ154: 0 | CR154: 0
J155: =IF(D155="","",pks!$I$74) ->  | K155: =IF(D155="","",pks!$J$74) ->  | P155: 0 | Y155: 0 | Z155: 0 | AA155: 0 | AD155: 0 | AE155: 0 | AK155: 0 | AL155: 0 | AM155: 0 | AN155: 0 | BG155: 0 | CA155: 0 | CB155: 0 | CO155: 0 | CP155: 0 | CQ155: 0 | CR155: 0
J156: =IF(D156="","",pks!$I$74) ->  | K156: =IF(D156="","",pks!$J$74) ->  | P156: 0 | Y156: 0 | Z156: 0 | AA156: 0 | AD156: 0 | AE156: 0 | AK156: 0 | AL156: 0 | AM156: 0 | AN156: 0 | BG156: 0 | CA156: 0 | CB156: 0 | CO156: 0 | CP156: 0 | CQ156: 0 | CR156: 0
J157: =IF(D157="","",pks!$I$74) ->  | K157: =IF(D157="","",pks!$J$74) ->  | P157: 0 | Y157: 0 | Z157: 0 | AA157: 0 | AD157: 0 | AE157: 0 | AK157: 0 | AL157: 0 | AM157: 0 | AN157: 0 | BG157: 0 | CA157: 0 | CB157: 0 | CO157: 0 | CP157: 0 | CQ157: 0 | CR157: 0
J158: =IF(D158="","",pks!$I$74) ->  | K158: =IF(D158="","",pks!$J$74) ->  | P158: 0 | Y158: 0 | Z158: 0 | AA158: 0 | AD158: 0 | AE158: 0 | AK158: 0 | AL158: 0 | AM158: 0 | AN158: 0 | BG158: 0 | CA158: 0 | CB158: 0 | CO158: 0 | CP158: 0 | CQ158: 0 | CR158: 0
J159: =IF(D159="","",pks!$I$74) ->  | K159: =IF(D159="","",pks!$J$74) ->  | P159: 0 | Y159: 0 | Z159: 0 | AA159: 0 | AD159: 0 | AE159: 0 | AK159: 0 | AL159: 0 | AM159: 0 | AN159: 0 | BG159: 0 | CA159: 0 | CB159: 0 | CO159: 0 | CP159: 0 | CQ159: 0 | CR159: 0
J160: =IF(D160="","",pks!$I$74) ->  | K160: =IF(D160="","",pks!$J$74) ->  | P160: 0 | Y160: 0 | Z160: 0 | AA160: 0 | AD160: 0 | AE160: 0 | AK160: 0 | AL160: 0 | AM160: 0 | AN160: 0 | BG160: 0 | CA160: 0 | CB160: 0 | CO160: 0 | CP160: 0 | CQ160: 0 | CR160: 0
J161: =IF(D161="","",pks!$I$74) ->  | K161: =IF(D161="","",pks!$J$74) ->  | P161: 0 | Y161: 0 | Z161: 0 | AA161: 0 | AD161: 0 | AE161: 0 | AK161: 0 | AL161: 0 | AM161: 0 | AN161: 0 | BG161: 0 | CA161: 0 | CB161: 0 | CO161: 0 | CP161: 0 | CQ161: 0 | CR161: 0
J162: =IF(D162="","",pks!$I$74) ->  | K162: =IF(D162="","",pks!$J$74) ->  | P162: 0 | Y162: 0 | Z162: 0 | AA162: 0 | AD162: 0 | AE162: 0 | AK162: 0 | AL162: 0 | AM162: 0 | AN162: 0 | BG162: 0 | CA162: 0 | CB162: 0 | CO162: 0 | CP162: 0 | CQ162: 0 | CR162: 0
J163: =IF(D163="","",pks!$I$74) ->  | K163: =IF(D163="","",pks!$J$74) ->  | P163: 0 | Y163: 0 | Z163: 0 | AA163: 0 | AD163: 0 | AE163: 0 | AK163: 0 | AL163: 0 | AM163: 0 | AN163: 0 | BG163: 0 | CA163: 0 | CB163: 0 | CO163: 0 | CP163: 0 | CQ163: 0 | CR163: 0
J164: =IF(D164="","",pks!$I$74) ->  | K164: =IF(D164="","",pks!$J$74) ->  | P164: 0 | Y164: 0 | Z164: 0 | AA164: 0 | AD164: 0 | AE164: 0 | AK164: 0 | AL164: 0 | AM164: 0 | AN164: 0 | BG164: 0 | CA164: 0 | CB164: 0 | CO164: 0 | CP164: 0 | CQ164: 0 | CR164: 0
J165: =IF(D165="","",pks!$I$74) ->  | K165: =IF(D165="","",pks!$J$74) ->  | P165: 0 | Y165: 0 | Z165: 0 | AA165: 0 | AD165: 0 | AE165: 0 | AK165: 0 | AL165: 0 | AM165: 0 | AN165: 0 | BG165: 0 | CA165: 0 | CB165: 0 | CO165: 0 | CP165: 0 | CQ165: 0 | CR165: 0
J166: =IF(D166="","",pks!$I$74) ->  | K166: =IF(D166="","",pks!$J$74) ->  | P166: 0 | Y166: 0 | Z166: 0 | AA166: 0 | AD166: 0 | AE166: 0 | AK166: 0 | AL166: 0 | AM166: 0 | AN166: 0 | BG166: 0 | CA166: 0 | CB166: 0 | CO166: 0 | CP166: 0 | CQ166: 0 | CR166: 0
J167: =IF(D167="","",pks!$I$74) ->  | K167: =IF(D167="","",pks!$J$74) ->  | P167: 0 | Y167: 0 | Z167: 0 | AA167: 0 | AD167: 0 | AE167: 0 | AK167: 0 | AL167: 0 | AM167: 0 | AN167: 0 | BG167: 0 | CA167: 0 | CB167: 0 | CO167: 0 | CP167: 0 | CQ167: 0 | CR167: 0
J168: =IF(D168="","",pks!$I$74) ->  | K168: =IF(D168="","",pks!$J$74) ->  | P168: 0 | Y168: 0 | Z168: 0 | AA168: 0 | AD168: 0 | AE168: 0 | AK168: 0 | AL168: 0 | AM168: 0 | AN168: 0 | BG168: 0 | CA168: 0 | CB168: 0 | CO168: 0 | CP168: 0 | CQ168: 0 | CR168: 0
J169: =IF(D169="","",pks!$I$74) ->  | K169: =IF(D169="","",pks!$J$74) ->  | P169: 0 | Y169: 0 | Z169: 0 | AA169: 0 | AD169: 0 | AE169: 0 | AK169: 0 | AL169: 0 | AM169: 0 | AN169: 0 | BG169: 0 | CA169: 0 | CB169: 0 | CO169: 0 | CP169: 0 | CQ169: 0 | CR169: 0
J170: =IF(D170="","",pks!$I$74) ->  | K170: =IF(D170="","",pks!$J$74) ->  | P170: 0 | Y170: 0 | Z170: 0 | AA170: 0 | AD170: 0 | AE170: 0 | AK170: 0 | AL170: 0 | AM170: 0 | AN170: 0 | BG170: 0 | CA170: 0 | CB170: 0 | CO170: 0 | CP170: 0 | CQ170: 0 | CR170: 0
J171: =IF(D171="","",pks!$I$74) ->  | K171: =IF(D171="","",pks!$J$74) ->  | P171: 0 | Y171: 0 | Z171: 0 | AA171: 0 | AD171: 0 | AE171: 0 | AK171: 0 | AL171: 0 | AM171: 0 | AN171: 0 | BG171: 0 | CA171: 0 | CB171: 0 | CO171: 0 | CP171: 0 | CQ171: 0 | CR171: 0
J172: =IF(D172="","",pks!$I$74) ->  | K172: =IF(D172="","",pks!$J$74) ->  | P172: 0 | Y172: 0 | Z172: 0 | AA172: 0 | AD172: 0 | AE172: 0 | AK172: 0 | AL172: 0 | AM172: 0 | AN172: 0 | BG172: 0 | CA172: 0 | CB172: 0 | CO172: 0 | CP172: 0 | CQ172: 0 | CR172: 0
J173: =IF(D173="","",pks!$I$74) ->  | K173: =IF(D173="","",pks!$J$74) ->  | P173: 0 | Y173: 0 | Z173: 0 | AA173: 0 | AD173: 0 | AE173: 0 | AK173: 0 | AL173: 0 | AM173: 0 | AN173: 0 | BG173: 0 | CA173: 0 | CB173: 0 | CO173: 0 | CP173: 0 | CQ173: 0 | CR173: 0
J174: =IF(D174="","",pks!$I$74) ->  | K174: =IF(D174="","",pks!$J$74) ->  | P174: 0 | Y174: 0 | Z174: 0 | AA174: 0 | AD174: 0 | AE174: 0 | AK174: 0 | AL174: 0 | AM174: 0 | AN174: 0 | BG174: 0 | CA174: 0 | CB174: 0 | CO174: 0 | CP174: 0 | CQ174: 0 | CR174: 0
J175: =IF(D175="","",pks!$I$74) ->  | K175: =IF(D175="","",pks!$J$74) ->  | P175: 0 | Y175: 0 | Z175: 0 | AA175: 0 | AD175: 0 | AE175: 0 | AK175: 0 | AL175: 0 | AM175: 0 | AN175: 0 | BG175: 0 | CA175: 0 | CB175: 0 | CO175: 0 | CP175: 0 | CQ175: 0 | CR175: 0
J176: =IF(D176="","",pks!$I$74) ->  | K176: =IF(D176="","",pks!$J$74) ->  | P176: 0 | Y176: 0 | Z176: 0 | AA176: 0 | AD176: 0 | AE176: 0 | AK176: 0 | AL176: 0 | AM176: 0 | AN176: 0 | BG176: 0 | CA176: 0 | CB176: 0 | CO176: 0 | CP176: 0 | CQ176: 0 | CR176: 0
J177: =IF(D177="","",pks!$I$74) ->  | K177: =IF(D177="","",pks!$J$74) ->  | P177: 0 | Y177: 0 | Z177: 0 | AA177: 0 | AD177: 0 | AE177: 0 | AK177: 0 | AL177: 0 | AM177: 0 | AN177: 0 | BG177: 0 | CA177: 0 | CB177: 0 | CO177: 0 | CP177: 0 | CQ177: 0 | CR177: 0
J178: =IF(D178="","",pks!$I$74) ->  | K178: =IF(D178="","",pks!$J$74) ->  | P178: 0 | Y178: 0 | Z178: 0 | AA178: 0 | AD178: 0 | AE178: 0 | AK178: 0 | AL178: 0 | AM178: 0 | AN178: 0 | BG178: 0 | CA178: 0 | CB178: 0 | CO178: 0 | CP178: 0 | CQ178: 0 | CR178: 0
J179: =IF(D179="","",pks!$I$74) ->  | K179: =IF(D179="","",pks!$J$74) ->  | P179: 0 | Y179: 0 | Z179: 0 | AA179: 0 | AD179: 0 | AE179: 0 | AK179: 0 | AL179: 0 | AM179: 0 | AN179: 0 | BG179: 0 | CA179: 0 | CB179: 0 | CO179: 0 | CP179: 0 | CQ179: 0 | CR179: 0
J180: =IF(D180="","",pks!$I$74) ->  | K180: =IF(D180="","",pks!$J$74) ->  | P180: 0 | Y180: 0 | Z180: 0 | AA180: 0 | AD180: 0 | AE180: 0 | AK180: 0 | AL180: 0 | AM180: 0 | AN180: 0 | BG180: 0 | CA180: 0 | CB180: 0 | CO180: 0 | CP180: 0 | CQ180: 0 | CR180: 0
J181: =IF(D181="","",pks!$I$74) ->  | K181: =IF(D181="","",pks!$J$74) ->  | P181: 0 | Y181: 0 | Z181: 0 | AA181: 0 | AD181: 0 | AE181: 0 | AK181: 0 | AL181: 0 | AM181: 0 | AN181: 0 | BG181: 0 | CA181: 0 | CB181: 0 | CO181: 0 | CP181: 0 | CQ181: 0 | CR181: 0
J182: =IF(D182="","",pks!$I$74) ->  | K182: =IF(D182="","",pks!$J$74) ->  | P182: 0 | Y182: 0 | Z182: 0 | AA182: 0 | AD182: 0 | AE182: 0 | AK182: 0 | AL182: 0 | AM182: 0 | AN182: 0 | BG182: 0 | CA182: 0 | CB182: 0 | CO182: 0 | CP182: 0 | CQ182: 0 | CR182: 0
J183: =IF(D183="","",pks!$I$74) ->  | K183: =IF(D183="","",pks!$J$74) ->  | P183: 0 | Y183: 0 | Z183: 0 | AA183: 0 | AD183: 0 | AE183: 0 | AK183: 0 | AL183: 0 | AM183: 0 | AN183: 0 | BG183: 0 | CA183: 0 | CB183: 0 | CO183: 0 | CP183: 0 | CQ183: 0 | CR183: 0
J184: =IF(D184="","",pks!$I$74) ->  | K184: =IF(D184="","",pks!$J$74) ->  | P184: 0 | Y184: 0 | Z184: 0 | AA184: 0 | AD184: 0 | AE184: 0 | AK184: 0 | AL184: 0 | AM184: 0 | AN184: 0 | BG184: 0 | CA184: 0 | CB184: 0 | CO184: 0 | CP184: 0 | CQ184: 0 | CR184: 0
J185: =IF(D185="","",pks!$I$74) ->  | K185: =IF(D185="","",pks!$J$74) ->  | P185: 0 | Y185: 0 | Z185: 0 | AA185: 0 | AD185: 0 | AE185: 0 | AK185: 0 | AL185: 0 | AM185: 0 | AN185: 0 | BG185: 0 | CA185: 0 | CB185: 0 | CO185: 0 | CP185: 0 | CQ185: 0 | CR185: 0
J186: =IF(D186="","",pks!$I$74) ->  | K186: =IF(D186="","",pks!$J$74) ->  | P186: 0 | Y186: 0 | Z186: 0 | AA186: 0 | AD186: 0 | AE186: 0 | AK186: 0 | AL186: 0 | AM186: 0 | AN186: 0 | BG186: 0 | CA186: 0 | CB186: 0 | CO186: 0 | CP186: 0 | CQ186: 0 | CR186: 0
J187: =IF(D187="","",pks!$I$74) ->  | K187: =IF(D187="","",pks!$J$74) ->  | P187: 0 | Y187: 0 | Z187: 0 | AA187: 0 | AD187: 0 | AE187: 0 | AK187: 0 | AL187: 0 | AM187: 0 | AN187: 0 | BG187: 0 | CA187: 0 | CB187: 0 | CO187: 0 | CP187: 0 | CQ187: 0 | CR187: 0
J188: =IF(D188="","",pks!$I$74) ->  | K188: =IF(D188="","",pks!$J$74) ->  | P188: 0 | Y188: 0 | Z188: 0 | AA188: 0 | AD188: 0 | AE188: 0 | AK188: 0 | AL188: 0 | AM188: 0 | AN188: 0 | BG188: 0 | CA188: 0 | CB188: 0 | CO188: 0 | CP188: 0 | CQ188: 0 | CR188: 0
J189: =IF(D189="","",pks!$I$74) ->  | K189: =IF(D189="","",pks!$J$74) ->  | P189: 0 | Y189: 0 | Z189: 0 | AA189: 0 | AD189: 0 | AE189: 0 | AK189: 0 | AL189: 0 | AM189: 0 | AN189: 0 | BG189: 0 | CA189: 0 | CB189: 0 | CO189: 0 | CP189: 0 | CQ189: 0 | CR189: 0
J190: =IF(D190="","",pks!$I$74) ->  | K190: =IF(D190="","",pks!$J$74) ->  | P190: 0 | Y190: 0 | Z190: 0 | AA190: 0 | AD190: 0 | AE190: 0 | AK190: 0 | AL190: 0 | AM190: 0 | AN190: 0 | BG190: 0 | CA190: 0 | CB190: 0 | CO190: 0 | CP190: 0 | CQ190: 0 | CR190: 0
J191: =IF(D191="","",pks!$I$74) ->  | K191: =IF(D191="","",pks!$J$74) ->  | P191: 0 | Y191: 0 | Z191: 0 | AA191: 0 | AD191: 0 | AE191: 0 | AK191: 0 | AL191: 0 | AM191: 0 | AN191: 0 | BG191: 0 | CA191: 0 | CB191: 0 | CO191: 0 | CP191: 0 | CQ191: 0 | CR191: 0
J192: =IF(D192="","",pks!$I$74) ->  | K192: =IF(D192="","",pks!$J$74) ->  | P192: 0 | Y192: 0 | Z192: 0 | AA192: 0 | AD192: 0 | AE192: 0 | AK192: 0 | AL192: 0 | AM192: 0 | AN192: 0 | BG192: 0 | CA192: 0 | CB192: 0 | CO192: 0 | CP192: 0 | CQ192: 0 | CR192: 0
J193: =IF(D193="","",pks!$I$74) ->  | K193: =IF(D193="","",pks!$J$74) ->  | P193: 0 | Y193: 0 | Z193: 0 | AA193: 0 | AD193: 0 | AE193: 0 | AK193: 0 | AL193: 0 | AM193: 0 | AN193: 0 | BG193: 0 | CA193: 0 | CB193: 0 | CO193: 0 | CP193: 0 | CQ193: 0 | CR193: 0
J194: =IF(D194="","",pks!$I$74) ->  | K194: =IF(D194="","",pks!$J$74) ->  | P194: 0 | Y194: 0 | Z194: 0 | AA194: 0 | AD194: 0 | AE194: 0 | AK194: 0 | AL194: 0 | AM194: 0 | AN194: 0 | BG194: 0 | CA194: 0 | CB194: 0 | CO194: 0 | CP194: 0 | CQ194: 0 | CR194: 0
J195: =IF(D195="","",pks!$I$74) ->  | K195: =IF(D195="","",pks!$J$74) ->  | P195: 0 | Y195: 0 | Z195: 0 | AA195: 0 | AD195: 0 | AE195: 0 | AK195: 0 | AL195: 0 | AM195: 0 | AN195: 0 | BG195: 0 | CA195: 0 | CB195: 0 | CO195: 0 | CP195: 0 | CQ195: 0 | CR195: 0
J196: =IF(D196="","",pks!$I$74) ->  | K196: =IF(D196="","",pks!$J$74) ->  | P196: 0 | Y196: 0 | Z196: 0 | AA196: 0 | AD196: 0 | AE196: 0 | AK196: 0 | AL196: 0 | AM196: 0 | AN196: 0 | BG196: 0 | CA196: 0 | CB196: 0 | CO196: 0 | CP196: 0 | CQ196: 0 | CR196: 0
J197: =IF(D197="","",pks!$I$74) ->  | K197: =IF(D197="","",pks!$J$74) ->  | P197: 0 | Y197: 0 | Z197: 0 | AA197: 0 | AD197: 0 | AE197: 0 | AK197: 0 | AL197: 0 | AM197: 0 | AN197: 0 | BG197: 0 | CA197: 0 | CB197: 0 | CO197: 0 | CP197: 0 | CQ197: 0 | CR197: 0
J198: =IF(D198="","",pks!$I$74) ->  | K198: =IF(D198="","",pks!$J$74) ->  | P198: 0 | Y198: 0 | Z198: 0 | AA198: 0 | AD198: 0 | AE198: 0 | AK198: 0 | AL198: 0 | AM198: 0 | AN198: 0 | BG198: 0 | CA198: 0 | CB198: 0 | CO198: 0 | CP198: 0 | CQ198: 0 | CR198: 0
H199: =MID(G199,6,4) ->  | J199: =IF(D199="","",pks!$I$74) ->  | K199: =IF(D199="","",pks!$J$74) ->  | P199: =SUM(M199:O199) -> 0 | Y199: 0 | Z199: 0 | AA199: 0 | AD199: 0 | AE199: =Z199-AD199 -> 0 | AK199: 0 | AL199: 0 | AM199: =SUM(AF199+AG199-AH199+AI199+AJ199) -> 0 | AN199: 0 | BG199: =IF(SUM(AO199:BF199)>150000,150000,SUM(AO199:BF199)) -> 0 | CA199: 0 | CB199: 0 | CO199: =SUM(CC199:CE199) -> 0 | CP199: =SUM(CF199:CH199) -> 0 | CQ199: =SUM(CI199:CK199) -> 0 | CR199: =SUM(CL199:CN199) -> 0
A200: =CONCATENATE(D200," ",E200) ->  | J200: =IF(D200="","",pks!$I$74) ->  | K200: =IF(D200="","",pks!$J$74) ->  | P200: 0 | Y200: =SUM(R200:X200) -> 0 | Z200: =P200-SUM(R200:X200) -> 0 | AA200: 0 | AD200: =SUM(AA200:AC200)-AA200 -> 0 | AE200: 0 | AK200: =AH200 -> 0 | AL200: =SUM(AF200:AJ200)-AH200 -> 0 | AM200: 0 | AN200: =AE200+AM200-AA200 -> 0 | BG200: 0 | CA200: =SUM(BH200:BZ200)+BG200 -> 0 | CB200: 0 | CO200: 0 | CP200: 0 | CQ200: 0 | CR200: 0
... 353 more rows

Sheet Table for agriA (2) (hidden)
A1: Tax computation for Tax Calculator
A2: =Agriculture!$B$4 -> New option u/s 115BAC | B2: Financial Year | E2: =Agriculture!$B$5 -> 2024-25 | I2: (Above 60 year but less than 80) | K2: =E4+250000 -> 795000
B3: Tax Category | E3: =Agriculture!$B$6 -> Male
B4: Taxable Income | E4: =Agriculture!$B$12 -> 545000 | U4: =pravesh(U1002) -> 
A5: Fin. Year | C5: 1985 | D5: =C5+1 -> 1986 | F5: 1985-86 | H5: Computation Table | N5: Fin. Year | P5: 1985 | Q5: =P5+1 -> 1986
A6: Male | D6: TAX MARGIN | E6: TAX AT MARGIN | F6: SUR RATE | G6: E.Cess | H6: TAXABLE INCOME | I6: TAX RATE APPLY | J6: TAX MARGIN SLAB | K6: TAX SLAB | L6: Surch.Rate | M6: E.Cess | N6: Tax Range
A7: Not defined | N7: F.Year | O7: =C5 -> 1985 | P7: =D5 -> 1986
A8: 0 | B8: 18000 | C8: 0 | D8: 0 | E8: 0 | F8: 0 | G8: 0 | H8: =$E$4 -> 545000 | I8: =VLOOKUP(H8,A8:C12,3) -> 0.5 | J8: =INDEX(D8:D12,MATCH(I8,C8:C12,0)) -> 100000 | K8: =INDEX(E8:E12,MATCH(I8,C8:C12,0)) -> 29250 | L8: =IF(H8>H12,VLOOKUP(H8,A8:F12,6),0) -> 0.05 | M8: =VLOOKUP(H8,A8:G12,7) -> 0 | N8: 0 | O8: =IF($E$3="Male",B8,IF($E$3="Female",B15,IF($E$3="Senior Citizen",B22,B29))) -> 18000 | P8: 0
A9: =B8+1 -> 18001 | B9: 25000 | C9: 0.25 | D9: =B8 -> 18000 | E9: =(B9-B8)*C9 -> 1750 | F9: 0 | G9: 0 | H9: TAX CALCULALTION | I9: SURCHARGE | J9: E. CESS | K9: TOTAL TAX DUE | N9: =O8+1 -> 18001 | O9: 25000 | P9: 0.25
A10: =B9+1 -> 25001 | B10: 50000 | C10: 0.3 | D10: =B9 -> 25000 | E10: =E9+(B10-B9)*C10 -> 9250 | F10: 0 | G10: 0 | H10: =IF(I8=C12,E11+ROUND((H8-J8),0)*I8,IF(I8=C11,E10+ROUND((H8-J8)*I8,0),IF(I8=C10,E9+ROUND((H8-J8)*I8,0),IF(I8=C9,E8+ROUND((H8-J8)*I8,0),E7+ROUND((H8-J8)*I8,0))))) -> 251750 | I10: =MIN(K12:L12) -> 12588 | J10: =ROUND(SUM(H10+I10)*M8,0) -> 0 | K10: =SUM(H10:J10) -> 264338 | N10: =O9+1 -> 25001 | O10: 50000 | P10: 0.3
A11: =B10+1 -> 50001 | B11: 100000 | C11: 0.4 | D11: =B10 -> 50000 | E11: =E10+(B11-B10)*C11 -> 29250 | F11: 0.05 | G11: 0 | H11: Surcharge limit | I11: Add.Tax Income | J11: Add. Tax | K11: Diff | L11: Sur. Amt | M11: M.R. | N11: =O10+1 -> 50001 | O11: 100000 | P11: 0.4
A12: =B11+1 -> 100001 | C12: 0.5 | D12: 100000 | E12: =IF(J9=0,0,E11) -> 29250 | F12: 0.05 | G12: 0 | H12: 50000 | I12: =IF(H8>H12,H8-H12,0) -> 495000 | J12: =IF(I12>0,ROUND(I12*I8,0),0) -> 247500 | K12: =I12-J12 -> 247500 | L12: =IF(H10>0,ROUND(H10*L8,0),0) -> 12588 | M12: =IF(K12>L12,0,L12-K12) -> 0 | N12: =O11+1 -> 100001 | O12: 0 | P12: 0.5
A13: Female | D13: TAX MARGIN | E13: TAX AT MARGIN | F13: SUR RATE | G13: E.Cess | H13: TAXABLE INCOME | I13: TAX RATE APPLY | J13: TAX MARGIN SLAB | K13: TAX SLAB | L13: Surch.Rate | M13: E.Cess | N13: TAX CALCULALTION | P13: =IF($E$3="Male",H10,IF($E$3="Female",H17,IF($E$3="Senior Citizen",H24,H31))) -> 251750
A14: Not defined | N14: SURCHARGE | P14: =IF($E$3="Male",I10,IF($E$3="Female",I17,IF($E$3="Senior Citizen",I24,I31))) -> 12588
A15: 0 | B15: 18000 | C15: 0 | D15: 0 | E15: 0 | F15: 0 | G15: 0 | H15: =H8 -> 545000 | I15: =VLOOKUP(H15,A15:C19,3) -> 0.5 | J15: =INDEX(D15:D19,MATCH(I15,C15:C19,0)) -> 100000 | K15: =INDEX(E15:E19,MATCH(I15,C15:C19,0)) -> 29250 | L15: =IF(H15>H19,VLOOKUP(H15,A15:F19,6),0) -> 0.05 | M15: =VLOOKUP(H15,A15:G19,7) -> 0 | N15: E. CESS | P15: =IF($E$3="Male",J10,IF($E$3="Female",J17,IF($E$3="Senior Citizen",J24,J31))) -> 0
A16: =B15+1 -> 18001 | B16: 25000 | C16: 0.25 | D16: =B15 -> 18000 | E16: =(B16-B15)*C16 -> 1750 | F16: 0 | G16: 0 | H16: TAX CALCULALTION | I16: SURCHARGE | J16: E. CESS | K16: TOTAL TAX DUE | N16: TOTAL TAX DUE | P16: =IF($E$3="Male",K10,IF($E$3="Female",K17,IF($E$3="Senior Citizen",K24,K31))) -> 264338
A17: =B16+1 -> 25001 | B17: 50000 | C17: 0.3 | D17: =B16 -> 25000 | E17: =E16+(B17-B16)*C17 -> 9250 | F17: 0 | G17: 0 | H17: =IF(I15=C19,E18+ROUND((H15-J15),0)*I15,IF(I15=C18,E17+ROUND((H15-J15)*I15,0),IF(I15=C17,E16+ROUND((H15-J15)*I15,0),IF(I15=C16,E15+ROUND((H15-J15)*I15,0),E14+ROUND((H15-J15)*I15,0))))) -> 251750 | I17: =MIN(K19:L19) -> 12588 | J17: =ROUND(SUM(H17+I17)*M15,0) -> 0 | K17: =SUM(H17:J17) -> 264338 | N17: Age Defined | P17: =IF($E$3="Male",A7,IF($E$3="Female",A14,IF($E$3="Senior Citizen",A21,A28))) -> Not defined
A18: =B17+1 -> 50001 | B18: 100000 | C18: 0.4 | D18: =B17 -> 50000 | E18: =E17+(B18-B17)*C18 -> 29250 | F18: 0.05 | G18: 0 | H18: Surcharge limit | I18: Add.Tax Income | J18: Add. Tax | K18: Diff | L18: Sur. Amt | M18: M.R. | N18: Marginal Releif | P18: =IF($E$3="Male",M12,IF($E$3="Female",M19,IF($E$3="Senior Citizen",M26,M33))) -> 0
A19: =B18+1 -> 100001 | C19: 0.5 | D19: 100000 | E19: =IF(J16=0,0,E18) -> 29250 | F19: 0.05 | G19: 0 | H19: =H12 -> 50000 | I19: =IF(H15>H19,H15-H19,0) -> 495000 | J19: =IF(I19>0,ROUND(I19*I15,0),0) -> 247500 | K19: =I19-J19 -> 247500 | L19: =IF(H17>0,ROUND(H17*L15,0),0) -> 12588 | M19: =IF(K19>L19,0,L19-K19) -> 0 | N19: Tax Due | P19: =IF($E$3="Male",K10,IF($E$3="Female",K17,IF($E$3="Senior Citizen",K24,K31))) -> 264338
A20: Senior Citizen | D20: TAX MARGIN | E20: TAX AT MARGIN | F20: SUR RATE | G20: E.Cess | H20: TAXABLE INCOME | I20: TAX RATE APPLY | J20: TAX MARGIN SLAB | K20: TAX SLAB | L20: Surch.Rate | M20: E.Cess
A21: Not defined
A22: 0 | B22: 18000 | C22: 0 | D22: 0 | E22: 0 | F22: 0 | G22: 0 | H22: =H8 -> 545000 | I22: =VLOOKUP(H22,A22:C26,3) -> 0.5 | J22: =INDEX(D22:D26,MATCH(I22,C22:C26,0)) -> 100000 | K22: =INDEX(E22:E26,MATCH(I22,C22:C26,0)) -> 29250 | L22: =IF(H22>H26,VLOOKUP(H22,A22:F26,6),0) -> 0.05 | M22: =VLOOKUP(H22,A22:G26,7) -> 0
A23: =B22+1 -> 18001 | B23: 25000 | C23: 0.25 | D23: =B22 -> 18000 | E23: =(B23-B22)*C23 -> 1750 | F23: 0 | G23: 0 | H23: TAX CALCULALTION | I23: SURCHARGE | J23: E. CESS | K23: TOTAL TAX DUE
A24: =B23+1 -> 25001 | B24: 50000 | C24: 0.3 | D24: =B23 -> 25000 | E24: =E23+(B24-B23)*C24 -> 9250 | F24: 0 | G24: 0 | H24: =IF(I22=C26,E25+ROUND((H22-J22),0)*I22,IF(I22=C25,E24+ROUND((H22-J22)*I22,0),IF(I22=C24,E23+ROUND((H22-J22)*I22,0),IF(I22=C23,E22+ROUND((H22-J22)*I22,0),E21+ROUND((H22-J22)*I22,0))))) -> 251750 | I24: =MIN(K26:L26) -> 12588 | J24: =ROUND(SUM(H24+I24)*M22,0) -> 0 | K24: =SUM(H24:J24) -> 264338
A25: =B24+1 -> 50001 | B25: 100000 | C25: 0.4 | D25: =B24 -> 50000 | E25: =E24+(B25-B24)*C25 -> 29250 | F25: 0.05 | G25: 0 | H25: Surcharge limit | I25: Add.Tax Income | J25: Add. Tax | K25: Diff | L25: Sur. Amt | M25: M.R.
A26: =B25+1 -> 100001 | C26: 0.5 | D26: 100000 | E26: =IF(J23=0,0,E25) -> 29250 | F26: 0.05 | G26: 0 | H26: =H19 -> 50000 | I26: =IF(H22>H26,H22-H26,0) -> 495000 | J26: =IF(I26>0,ROUND(I26*I22,0),0) -> 247500 | K26: =I26-J26 -> 247500 | L26: =IF(H24>0,ROUND(H24*L22,0),0) -> 12588 | M26: =IF(K26>L26,0,L26-K26) -> 0
A27: Very Senior Citizen | D27: TAX MARGIN | E27: TAX AT MARGIN | F27: SUR RATE | G27: E.Cess | H27: TAXABLE INCOME | I27: TAX RATE APPLY | J27: TAX MARGIN SLAB | K27: TAX SLAB | L27: Surch.Rate | M27: E.Cess
A28: Not defined
A29: 0 | B29: 18000 | C29: 0 | D29: 0 | E29: 0 | F29: 0 | G29: 0 | H29: =H8 -> 545000 | I29: =VLOOKUP(H29,A29:C33,3) -> 0.5 | J29: =INDEX(D29:D33,MATCH(I29,C29:C33,0)) -> 100000 | K29: =INDEX(E29:E33,MATCH(I29,C29:C33,0)) -> 29250 | L29: =IF(H29>H33,VLOOKUP(H29,A29:F33,6),0) -> 0.05 | M29: =VLOOKUP(H29,A29:G33,7) -> 0
A30: =B29+1 -> 18001 | B30: 25000 | C30: 0.25 | D30: =B29 -> 18000 | E30: =(B30-B29)*C30 -> 1750 | F30: 0 | G30: 0 | H30: TAX CALCULALTION | I30: SURCHARGE | J30: E. CESS | K30: TOTAL TAX DUE
A31: =B30+1 -> 25001 | B31: 50000 | C31: 0.3 | D31: =B30 -> 25000 | E31: =E30+(B31-B30)*C31 -> 9250 | F31: 0 | G31: 0 | H31: =IF(I29=C33,E32+ROUND((H29-J29),0)*I29,IF(I29=C32,E31+ROUND((H29-J29)*I29,0),IF(I29=C31,E30+ROUND((H29-J29)*I29,0),IF(I29=C30,E29+ROUND((H29-J29)*I29,0),E28+ROUND((H29-J29)*I29,0))))) -> 251750 | I31: =MIN(K33:L33) -> 12588 | J31: =ROUND(SUM(H31+I31)*M29,0) -> 0 | K31: =SUM(H31:J31) -> 264338
A32: =B31+1 -> 50001 | B32: 100000 | C32: 0.4 | D32: =B31 -> 50000 | E32: =E31+(B32-B31)*C32 -> 29250 | F32: 0.05 | G32: 0 | H32: Surcharge limit | I32: Add.Tax Income | J32: Add. Tax | K32: Diff | L32: Sur. Amt | M32: M.R.
A33: =B32+1 -> 100001 | C33: 0.5 | D33: 100000 | E33: =IF(J30=0,0,E32) -> 29250 | F33: 0.05 | G33: 0 | H33: =H26 -> 50000 | I33: =IF(H29>H33,H29-H33,0) -> 495000 | J33: =IF(I33>0,ROUND(I33*I29,0),0) -> 247500 | K33: =I33-J33 -> 247500 | L33: =IF(H31>0,ROUND(H31*L29,0),0) -> 12588 | M33: =IF(K33>L33,0,L33-K33) -> 0
C34: =D5 -> 1986 | D34: =C34+1 -> 1987 | F34: 1986-87
A35: Male | D35: TAX MARGIN | E35: TAX AT MARGIN | F35: SUR RATE | G35: E.Cess | H35: TAXABLE INCOME | I35: TAX RATE APPLY | J35: TAX MARGIN SLAB | K35: TAX SLAB | L35: Surch.Rate | M35: E.Cess | N35: Tax Range
A36: Not defined | N36: F.Year | O36: =C34 -> 1986 | P36: =D34 -> 1987
A37: 0 | B37: 18000 | C37: 0 | D37: 0 | E37: 0 | F37: 0 | G37: 0 | H37: =$E$4 -> 545000 | I37: =VLOOKUP(H37,A37:C41,3) -> 0.5 | J37: =INDEX(D37:D41,MATCH(I37,C37:C41,0)) -> 100000 | K37: =INDEX(E37:E41,MATCH(I37,C37:C41,0)) -> 29250 | L37: =IF(H37>H41,VLOOKUP(H37,A37:F41,6),0) -> 0.05 | M37: =VLOOKUP(H37,A37:G41,7) -> 0 | N37: 0 | O37: =IF($E$3="Male",B37,IF($E$3="Female",B44,IF($E$3="Senior Citizen",B51,B58))) -> 18000 | P37: 0
A38: =B37+1 -> 18001 | B38: 25000 | C38: 0.25 | D38: =B37 -> 18000 | E38: =(B38-B37)*C38 -> 1750 | F38: 0 | G38: 0 | H38: TAX CALCULALTION | I38: SURCHARGE | J38: E. CESS | K38: TOTAL TAX DUE | N38: =O37+1 -> 18001 | O38: 25000 | P38: 0.25
A39: =B38+1 -> 25001 | B39: 50000 | C39: 0.3 | D39: =B38 -> 25000 | E39: =E38+(B39-B38)*C39 -> 9250 | F39: 0 | G39: 0 | H39: =IF(I37=C41,E40+ROUND((H37-J37),0)*I37,IF(I37=C40,E39+ROUND((H37-J37)*I37,0),IF(I37=C39,E38+ROUND((H37-J37)*I37,0),IF(I37=C38,E37+ROUND((H37-J37)*I37,0),E36+ROUND((H37-J37)*I37,0))))) -> 251750 | I39: =MIN(K41:L41) -> 12588 | J39: =ROUND(SUM(H39+I39)*M37,0) -> 0 | K39: =SUM(H39:J39) -> 264338 | N39: =O38+1 -> 25001 | O39: 50000 | P39: 0.3
A40: =B39+1 -> 50001 | B40: 100000 | C40: 0.4 | D40: =B39 -> 50000 | E40: =E39+(B40-B39)*C40 -> 29250 | F40: 0.05 | G40: 0 | H40: Surcharge limit | I40: Add.Tax Income | J40: Add. Tax | K40: Diff | L40: Sur. Amt | M40: M.R. | N40: =O39+1 -> 50001 | O40: 100000 | P40: 0.4
A41: =B40+1 -> 100001 | C41: 0.5 | D41: 100000 | E41: =IF(J38=0,0,E40) -> 29250 | F41: 0.05 | G41: 0 | H41: 50000 | I41: =IF(H37>H41,H37-H41,0) -> 495000 | J41: =IF(I41>0,ROUND(I41*I37,0),0) -> 247500 | K41: =I41-J41 -> 247500 | L41: =IF(H39>0,ROUND(H39*L37,0),0) -> 12588 | M41: =IF(K41>L41,0,L41-K41) -> 0 | N41: =O40+1 -> 100001 | O41: 0 | P41: 0.5
A42: Female | D42: TAX MARGIN | E42: TAX AT MARGIN | F42: SUR RATE | G42: E.Cess | H42: TAXABLE INCOME | I42: TAX RATE APPLY | J42: TAX MARGIN SLAB | K42: TAX SLAB | L42: Surch.Rate | M42: E.Cess | N42: TAX CALCULALTION | P42: =IF($E$3="Male",H39,IF($E$3="Female",H46,IF($E$3="Senior Citizen",H53,H60))) -> 251750
A43: Not defined | N43: SURCHARGE | P43: =IF($E$3="Male",I39,IF($E$3="Female",I46,IF($E$3="Senior Citizen",I53,I60))) -> 12588
A44: 0 | B44: 18000 | C44: 0 | D44: 0 | E44: 0 | F44: 0 | G44: 0 | H44: =H37 -> 545000 | I44: =VLOOKUP(H44,A44:C48,3) -> 0.5 | J44: =INDEX(D44:D48,MATCH(I44,C44:C48,0)) -> 100000 | K44: =INDEX(E44:E48,MATCH(I44,C44:C48,0)) -> 29250 | L44: =IF(H44>H48,VLOOKUP(H44,A44:F48,6),0) -> 0.05 | M44: =VLOOKUP(H44,A44:G48,7) -> 0 | N44: E. CESS | P44: =IF($E$3="Male",J39,IF($E$3="Female",J46,IF($E$3="Senior Citizen",J53,J60))) -> 0
A45: =B44+1 -> 18001 | B45: 25000 | C45: 0.25 | D45: =B44 -> 18000 | E45: =(B45-B44)*C45 -> 1750 | F45: 0 | G45: 0 | H45: TAX CALCULALTION | I45: SURCHARGE | J45: E. CESS | K45: TOTAL TAX DUE | N45: TOTAL TAX DUE | P45: =IF($E$3="Male",K39,IF($E$3="Female",K46,IF($E$3="Senior Citizen",K53,K60))) -> 264338
A46: =B45+1 -> 25001 | B46: 50000 | C46: 0.3 | D46: =B45 -> 25000 | E46: =E45+(B46-B45)*C46 -> 9250 | F46: 0 | G46: 0 | H46: =IF(I44=C48,E47+ROUND((H44-J44),0)*I44,IF(I44=C47,E46+ROUND((H44-J44)*I44,0),IF(I44=C46,E45+ROUND((H44-J44)*I44,0),IF(I44=C45,E44+ROUND((H44-J44)*I44,0),E43+ROUND((H44-J44)*I44,0))))) -> 251750 | I46: =MIN(K48:L48) -> 12588 | J46: =ROUND(SUM(H46+I46)*M44,0) -> 0 | K46: =SUM(H46:J46) -> 264338 | N46: Age Defined | P46: =IF($E$3="Male",A36,IF($E$3="Female",A43,IF($E$3="Senior Citizen",A50,A57))) -> Not defined
A47: =B46+1 -> 50001 | B47: 100000 | C47: 0.4 | D47: =B46 -> 50000 | E47: =E46+(B47-B46)*C47 -> 29250 | F47: 0.05 | G47: 0 | H47: Surcharge limit | I47: Add.Tax Income | J47: Add. Tax | K47: Diff | L47: Sur. Amt | M47: M.R. | N47: Marginal Releif | P47: =IF($E$3="Male",M41,IF($E$3="Female",M48,IF($E$3="Senior Citizen",M55,M62))) -> 0
A48: =B47+1 -> 100001 | C48: 0.5 | D48: 100000 | E48: =IF(J45=0,0,E47) -> 29250 | F48: 0.05 | G48: 0 | H48: =H41 -> 50000 | I48: =IF(H44>H48,H44-H48,0) -> 495000 | J48: =IF(I48>0,ROUND(I48*I44,0),0) -> 247500 | K48: =I48-J48 -> 247500 | L48: =IF(H46>0,ROUND(H46*L44,0),0) -> 12588 | M48: =IF(K48>L48,0,L48-K48) -> 0 | N48: Tax Due | P48: =IF($E$3="Male",K39,IF($E$3="Female",K46,IF($E$3="Senior Citizen",K53,K60))) -> 264338
A49: Senior Citizen | D49: TAX MARGIN | E49: TAX AT MARGIN | F49: SUR RATE | G49: E.Cess | H49: TAXABLE INCOME | I49: TAX RATE APPLY | J49: TAX MARGIN SLAB | K49: TAX SLAB | L49: Surch.Rate | M49: E.Cess
A50: Not defined
A51: 0 | B51: 18000 | C51: 0 | D51: 0 | E51: 0 | F51: 0 | G51: 0 | H51: =H37 -> 545000 | I51: =VLOOKUP(H51,A51:C55,3) -> 0.5 | J51: =INDEX(D51:D55,MATCH(I51,C51:C55,0)) -> 100000 | K51: =INDEX(E51:E55,MATCH(I51,C51:C55,0)) -> 29250 | L51: =IF(H51>H55,VLOOKUP(H51,A51:F55,6),0) -> 0.05 | M51: =VLOOKUP(H51,A51:G55,7) -> 0
A52: =B51+1 -> 18001 | B52: 25000 | C52: 0.25 | D52: =B51 -> 18000 | E52: =(B52-B51)*C52 -> 1750 | F52: 0 | G52: 0 | H52: TAX CALCULALTION | I52: SURCHARGE | J52: E. CESS | K52: TOTAL TAX DUE
A53: =B52+1 -> 25001 | B53: 50000 | C53: 0.3 | D53: =B52 -> 25000 | E53: =E52+(B53-B52)*C53 -> 9250 | F53: 0 | G53: 0 | H53: =IF(I51=C55,E54+ROUND((H51-J51),0)*I51,IF(I51=C54,E53+ROUND((H51-J51)*I51,0),IF(I51=C53,E52+ROUND((H51-J51)*I51,0),IF(I51=C52,E51+ROUND((H51-J51)*I51,0),E50+ROUND((H51-J51)*I51,0))))) -> 251750 | I53: =MIN(K55:L55) -> 12588 | J53: =ROUND(SUM(H53+I53)*M51,0) -> 0 | K53: =SUM(H53:J53) -> 264338
A54: =B53+1 -> 50001 | B54: 100000 | C54: 0.4 | D54: =B53 -> 50000 | E54: =E53+(B54-B53)*C54 -> 29250 | F54: 0.05 | G54: 0 | H54: Surcharge limit | I54: Add.Tax Income | J54: Add. Tax | K54: Diff | L54: Sur. Amt | M54: M.R.
A55: =B54+1 -> 100001 | C55: 0.5 | D55: 100000 | E55: =IF(J52=0,0,E54) -> 29250 | F55: 0.05 | G55: 0 | H55: =H48 -> 50000 | I55: =IF(H51>H55,H51-H55,0) -> 495000 | J55: =IF(I55>0,ROUND(I55*I51,0),0) -> 247500 | K55: =I55-J55 -> 247500 | L55: =IF(H53>0,ROUND(H53*L51,0),0) -> 12588 | M55: =IF(K55>L55,0,L55-K55) -> 0
A56: Very Senior Citizen | D56: TAX MARGIN | E56: TAX AT MARGIN | F56: SUR RATE | G56: E.Cess | H56: TAXABLE INCOME | I56: TAX RATE APPLY | J56: TAX MARGIN SLAB | K56: TAX SLAB | L56: Surch.Rate | M56: E.Cess
A57: Not defined
A58: 0 | B58: 18000 | C58: 0 | D58: 0 | E58: 0 | F58: 0 | G58: 0 | H58: =H37 -> 545000 | I58: =VLOOKUP(H58,A58:C62,3) -> 0.5 | J58: =INDEX(D58:D62,MATCH(I58,C58:C62,0)) -> 100000 | K58: =INDEX(E58:E62,MATCH(I58,C58:C62,0)) -> 29250 | L58: =IF(H58>H62,VLOOKUP(H58,A58:F62,6),0) -> 0.05 | M58: =VLOOKUP(H58,A58:G62,7) -> 0
A59: =B58+1 -> 18001 | B59: 25000 | C59: 0.25 | D59: =B58 -> 18000 | E59: =(B59-B58)*C59 -> 1750 | F59: 0 | G59: 0 | H59: TAX CALCULALTION | I59: SURCHARGE | J59: E. CESS | K59: TOTAL TAX DUE
A60: =B59+1 -> 25001 | B60: 50000 | C60: 0.3 | D60: =B59 -> 25000 | E60: =E59+(B60-B59)*C60 -> 9250 | F60: 0 | G60: 0 | H60: =IF(I58=C62,E61+ROUND((H58-J58),0)*I58,IF(I58=C61,E60+ROUND((H58-J58)*I58,0),IF(I58=C60,E59+ROUND((H58-J58)*I58,0),IF(I58=C59,E58+ROUND((H58-J58)*I58,0),E57+ROUND((H58-J58)*I58,0))))) -> 251750 | I60: =MIN(K62:L62) -> 12588 | J60: =ROUND(SUM(H60+I60)*M58,0) -> 0 | K60: =SUM(H60:J60) -> 264338
A61: =B60+1 -> 50001 | B61: 100000 | C61: 0.4 | D61: =B60 -> 50000 | E61: =E60+(B61-B60)*C61 -> 29250 | F61: 0.05 | G61: 0 | H61: Surcharge limit | I61: Add.Tax Income | J61: Add. Tax | K61: Diff | L61: Sur. Amt | M61: M.R.
A62: =B61+1 -> 100001 | C62: 0.5 | D62: 100000 | E62: =IF(J59=0,0,E61) -> 29250 | F62: 0.05 | G62: 0 | H62: =H55 -> 50000 | I62: =IF(H58>H62,H58-H62,0) -> 495000 | J62: =IF(I62>0,ROUND(I62*I58,0),0) -> 247500 | K62: =I62-J62 -> 247500 | L62: =IF(H60>0,ROUND(H60*L58,0),0) -> 12588 | M62: =IF(K62>L62,0,L62-K62) -> 0
C63: 1987 | D63: =C63+1 -> 1988 | F63: 1987-88
A64: Male | D64: TAX MARGIN | E64: TAX AT MARGIN | F64: SUR RATE | G64: E.Cess | H64: TAXABLE INCOME | I64: TAX RATE APPLY | J64: TAX MARGIN SLAB | K64: TAX SLAB | L64: Surch.Rate | M64: E.Cess | N64: Tax Range
A65: Not defined | N65: F.Year | O65: =C63 -> 1987 | P65: =D63 -> 1988
A66: 0 | B66: 18000 | C66: 0 | D66: 0 | E66: 0 | F66: 0 | G66: 0 | H66: =$E$4 -> 545000 | I66: =VLOOKUP(H66,A66:C70,3) -> 0.5 | J66: =INDEX(D66:D70,MATCH(I66,C66:C70,0)) -> 100000 | K66: =INDEX(E66:E70,MATCH(I66,C66:C70,0)) -> 29250 | L66: =IF(H66>H70,VLOOKUP(H66,A66:F70,6),0) -> 0.05 | M66: =VLOOKUP(H66,A66:G70,7) -> 0 | N66: 0 | O66: =IF($E$3="Male",B66,IF($E$3="Female",B73,IF($E$3="Senior Citizen",B80,B87))) -> 18000 | P66: 0
A67: =B66+1 -> 18001 | B67: 25000 | C67: 0.25 | D67: =B66 -> 18000 | E67: =(B67-B66)*C67 -> 1750 | F67: 0 | G67: 0 | H67: TAX CALCULALTION | I67: SURCHARGE | J67: E. CESS | K67: TOTAL TAX DUE | N67: =O66+1 -> 18001 | O67: 25000 | P67: 0.25
A68: =B67+1 -> 25001 | B68: 50000 | C68: 0.3 | D68: =B67 -> 25000 | E68: =E67+(B68-B67)*C68 -> 9250 | F68: 0 | G68: 0 | H68: =IF(I66=C70,E69+ROUND((H66-J66),0)*I66,IF(I66=C69,E68+ROUND((H66-J66)*I66,0),IF(I66=C68,E67+ROUND((H66-J66)*I66,0),IF(I66=C67,E66+ROUND((H66-J66)*I66,0),E65+ROUND((H66-J66)*I66,0))))) -> 251750 | I68: =MIN(K70:L70) -> 12588 | J68: =ROUND(SUM(H68+I68)*M66,0) -> 0 | K68: =SUM(H68:J68) -> 264338 | N68: =O67+1 -> 25001 | O68: 50000 | P68: 0.3
A69: =B68+1 -> 50001 | B69: 100000 | C69: 0.4 | D69: =B68 -> 50000 | E69: =E68+(B69-B68)*C69 -> 29250 | F69: 0.05 | G69: 0 | H69: Surcharge limit | I69: Add.Tax Income | J69: Add. Tax | K69: Diff | L69: Sur. Amt | M69: M.R. | N69: =O68+1 -> 50001 | O69: 100000 | P69: 0.4
A70: =B69+1 -> 100001 | C70: 0.5 | D70: 100000 | E70: =IF(J67=0,0,E69) -> 29250 | F70: 0.05 | G70: 0 | H70: 50000 | I70: =IF(H66>H70,H66-H70,0) -> 495000 | J70: =IF(I70>0,ROUND(I70*I66,0),0) -> 247500 | K70: =I70-J70 -> 247500 | L70: =IF(H68>0,ROUND(H68*L66,0),0) -> 12588 | M70: =IF(K70>L70,0,L70-K70) -> 0 | N70: =O69+1 -> 100001 | O70: 0 | P70: 0.5
A71: Female | D71: TAX MARGIN | E71: TAX AT MARGIN | F71: SUR RATE | G71: E.Cess | H71: TAXABLE INCOME | I71: TAX RATE APPLY | J71: TAX MARGIN SLAB | K71: TAX SLAB | L71: Surch.Rate | M71: E.Cess | N71: TAX CALCULALTION | P71: =IF($E$3="Male",H68,IF($E$3="Female",H75,IF($E$3="Senior Citizen",H82,H89))) -> 251750
A72: Not defined | N72: SURCHARGE | P72: =IF($E$3="Male",I68,IF($E$3="Female",I75,IF($E$3="Senior Citizen",I82,I89))) -> 12588
A73: 0 | B73: 18000 | C73: 0 | D73: 0 | E73: 0 | F73: 0 | G73: 0 | H73: =H66 -> 545000 | I73: =VLOOKUP(H73,A73:C77,3) -> 0.5 | J73: =INDEX(D73:D77,MATCH(I73,C73:C77,0)) -> 100000 | K73: =INDEX(E73:E77,MATCH(I73,C73:C77,0)) -> 29250 | L73: =IF(H73>H77,VLOOKUP(H73,A73:F77,6),0) -> 0.05 | M73: =VLOOKUP(H73,A73:G77,7) -> 0 | N73: E. CESS | P73: =IF($E$3="Male",J68,IF($E$3="Female",J75,IF($E$3="Senior Citizen",J82,J89))) -> 0
A74: =B73+1 -> 18001 | B74: 25000 | C74: 0.25 | D74: =B73 -> 18000 | E74: =(B74-B73)*C74 -> 1750 | F74: 0 | G74: 0 | H74: TAX CALCULALTION | I74: SURCHARGE | J74: E. CESS | K74: TOTAL TAX DUE | N74: TOTAL TAX DUE | P74: =IF($E$3="Male",K68,IF($E$3="Female",K75,IF($E$3="Senior Citizen",K82,K89))) -> 264338
A75: =B74+1 -> 25001 | B75: 50000 | C75: 0.3 | D75: =B74 -> 25000 | E75: =E74+(B75-B74)*C75 -> 9250 | F75: 0 | G75: 0 | H75: =IF(I73=C77,E76+ROUND((H73-J73),0)*I73,IF(I73=C76,E75+ROUND((H73-J73)*I73,0),IF(I73=C75,E74+ROUND((H73-J73)*I73,0),IF(I73=C74,E73+ROUND((H73-J73)*I73,0),E72+ROUND((H73-J73)*I73,0))))) -> 251750 | I75: =MIN(K77:L77) -> 12588 | J75: =ROUND(SUM(H75+I75)*M73,0) -> 0 | K75: =SUM(H75:J75) -> 264338 | N75: Age Defined | P75: =IF($E$3="Male",A65,IF($E$3="Female",A72,IF($E$3="Senior Citizen",A79,A86))) -> Not defined
A76: =B75+1 -> 50001 | B76: 100000 | C76: 0.4 | D76: =B75 -> 50000 | E76: =E75+(B76-B75)*C76 -> 29250 | F76: 0.05 | G76: 0 | H76: Surcharge limit | I76: Add.Tax Income | J76: Add. Tax | K76: Diff | L76: Sur. Amt | M76: M.R. | N76: Marginal Releif | P76: =IF($E$3="Male",M70,IF($E$3="Female",M77,IF($E$3="Senior Citizen",M84,M91))) -> 0
A77: =B76+1 -> 100001 | C77: 0.5 | D77: 100000 | E77: =IF(J74=0,0,E76) -> 29250 | F77: 0.05 | G77: 0 | H77: =H70 -> 50000 | I77: =IF(H73>H77,H73-H77,0) -> 495000 | J77: =IF(I77>0,ROUND(I77*I73,0),0) -> 247500 | K77: =I77-J77 -> 247500 | L77: =IF(H75>0,ROUND(H75*L73,0),0) -> 12588 | M77: =IF(K77>L77,0,L77-K77) -> 0 | N77: Tax Due | P77: =IF($E$3="Male",K68,IF($E$3="Female",K75,IF($E$3="Senior Citizen",K82,K89))) -> 264338
A78: Senior Citizen | D78: TAX MARGIN | E78: TAX AT MARGIN | F78: SUR RATE | G78: E.Cess | H78: TAXABLE INCOME | I78: TAX RATE APPLY | J78: TAX MARGIN SLAB | K78: TAX SLAB | L78: Surch.Rate | M78: E.Cess
A79: Not defined
A80: 0 | B80: 18000 | C80: 0 | D80: 0 | E80: 0 | F80: 0 | G80: 0 | H80: =H66 -> 545000 | I80: =VLOOKUP(H80,A80:C84,3) -> 0.5 | J80: =INDEX(D80:D84,MATCH(I80,C80:C84,0)) -> 100000 | K80: =INDEX(E80:E84,MATCH(I80,C80:C84,0)) -> 29250 | L80: =IF(H80>H84,VLOOKUP(H80,A80:F84,6),0) -> 0.05 | M80: =VLOOKUP(H80,A80:G84,7) -> 0
A81: =B80+1 -> 18001 | B81: 25000 | C81: 0.25 | D81: =B80 -> 18000 | E81: =(B81-B80)*C81 -> 1750 | F81: 0 | G81: 0 | H81: TAX CALCULALTION | I81: SURCHARGE | J81: E. CESS | K81: TOTAL TAX DUE
A82: =B81+1 -> 25001 | B82: 50000 | C82: 0.3 | D82: =B81 -> 25000 | E82: =E81+(B82-B81)*C82 -> 9250 | F82: 0 | G82: 0 | H82: =IF(I80=C84,E83+ROUND((H80-J80),0)*I80,IF(I80=C83,E82+ROUND((H80-J80)*I80,0),IF(I80=C82,E81+ROUND((H80-J80)*I80,0),IF(I80=C81,E80+ROUND((H80-J80)*I80,0),E79+ROUND((H80-J80)*I80,0))))) -> 251750 | I82: =MIN(K84:L84) -> 12588 | J82: =ROUND(SUM(H82+I82)*M80,0) -> 0 | K82: =SUM(H82:J82) -> 264338
A83: =B82+1 -> 50001 | B83: 100000 | C83: 0.4 | D83: =B82 -> 50000 | E83: =E82+(B83-B82)*C83 -> 29250 | F83: 0.05 | G83: 0 | H83: Surcharge limit | I83: Add.Tax Income | J83: Add. Tax | K83: Diff | L83: Sur. Amt | M83: M.R.
A84: =B83+1 -> 100001 | C84: 0.5 | D84: 100000 | E84: =IF(J81=0,0,E83) -> 29250 | F84: 0.05 | G84: 0 | H84: =H77 -> 50000 | I84: =IF(H80>H84,H80-H84,0) -> 495000 | J84: =IF(I84>0,ROUND(I84*I80,0),0) -> 247500 | K84: =I84-J84 -> 247500 | L84: =IF(H82>0,ROUND(H82*L80,0),0) -> 12588 | M84: =IF(K84>L84,0,L84-K84) -> 0
A85: Very Senior Citizen | D85: TAX MARGIN | E85: TAX AT MARGIN | F85: SUR RATE | G85: E.Cess | H85: TAXABLE INCOME | I85: TAX RATE APPLY | J85: TAX MARGIN SLAB | K85: TAX SLAB | L85: Surch.Rate | M85: E.Cess
A86: Not defined
A87: 0 | B87: 18000 | C87: 0 | D87: 0 | E87: 0 | F87: 0 | G87: 0 | H87: =H66 -> 545000 | I87: =VLOOKUP(H87,A87:C91,3) -> 0.5 | J87: =INDEX(D87:D91,MATCH(I87,C87:C91,0)) -> 100000 | K87: =INDEX(E87:E91,MATCH(I87,C87:C91,0)) -> 29250 | L87: =IF(H87>H91,VLOOKUP(H87,A87:F91,6),0) -> 0.05 | M87: =VLOOKUP(H87,A87:G91,7) -> 0
A88: =B87+1 -> 18001 | B88: 25000 | C88: 0.25 | D88: =B87 -> 18000 | E88: =(B88-B87)*C88 -> 1750 | F88: 0 | G88: 0 | H88: TAX CALCULALTION | I88: SURCHARGE | J88: E. CESS | K88: TOTAL TAX DUE
A89: =B88+1 -> 25001 | B89: 50000 | C89: 0.3 | D89: =B88 -> 25000 | E89: =E88+(B89-B88)*C89 -> 9250 | F89: 0 | G89: 0 | H89: =IF(I87=C91,E90+ROUND((H87-J87),0)*I87,IF(I87=C90,E89+ROUND((H87-J87)*I87,0),IF(I87=C89,E88+ROUND((H87-J87)*I87,0),IF(I87=C88,E87+ROUND((H87-J87)*I87,0),E86+ROUND((H87-J87)*I87,0))))) -> 251750 | I89: =MIN(K91:L91) -> 12588 | J89: =ROUND(SUM(H89+I89)*M87,0) -> 0 | K89: =SUM(H89:J89) -> 264338
A90: =B89+1 -> 50001 | B90: 100000 | C90: 0.4 | D90: =B89 -> 50000 | E90: =E89+(B90-B89)*C90 -> 29250 | F90: 0.05 | G90: 0 | H90: Surcharge limit | I90: Add.Tax Income | J90: Add. Tax | K90: Diff | L90: Sur. Amt | M90: M.R.
A91: =B90+1 -> 100001 | C91: 0.5 | D91: 100000 | E91: =IF(J88=0,0,E90) -> 29250 | F91: 0.05 | G91: 0 | H91: =H84 -> 50000 | I91: =IF(H87>H91,H87-H91,0) -> 495000 | J91: =IF(I91>0,ROUND(I91*I87,0),0) -> 247500 | K91: =I91-J91 -> 247500 | L91: =IF(H89>0,ROUND(H89*L87,0),0) -> 12588 | M91: =IF(K91>L91,0,L91-K91) -> 0
C92: 1988 | D92: =C92+1 -> 1989 | F92: 1988-89
A93: Male | D93: TAX MARGIN | E93: TAX AT MARGIN | F93: SUR RATE | G93: E.Cess | H93: TAXABLE INCOME | I93: TAX RATE APPLY | J93: TAX MARGIN SLAB | K93: TAX SLAB | L93: Surch.Rate | M93: E.Cess | N93: Tax Range
A94: Not defined | N94: F.Year | O94: =C92 -> 1988 | P94: =D92 -> 1989
A95: 0 | B95: 18000 | C95: 0 | D95: 0 | E95: 0 | F95: 0 | G95: 0 | H95: =$E$4 -> 545000 | I95: =VLOOKUP(H95,A95:C99,3) -> 0.5 | J95: =INDEX(D95:D99,MATCH(I95,C95:C99,0)) -> 100000 | K95: =INDEX(E95:E99,MATCH(I95,C95:C99,0)) -> 29250 | L95: =IF(H95>H99,VLOOKUP(H95,A95:F99,6),0) -> 0.05 | M95: =VLOOKUP(H95,A95:G99,7) -> 0 | N95: 0 | O95: =IF($E$3="Male",B95,IF($E$3="Female",B102,IF($E$3="Senior Citizen",B109,B116))) -> 18000 | P95: 0
A96: =B95+1 -> 18001 | B96: 25000 | C96: 0.25 | D96: =B95 -> 18000 | E96: =(B96-B95)*C96 -> 1750 | F96: 0 | G96: 0 | H96: TAX CALCULALTION | I96: SURCHARGE | J96: E. CESS | K96: TOTAL TAX DUE | N96: =O95+1 -> 18001 | O96: 25000 | P96: 0.25
A97: =B96+1 -> 25001 | B97: 50000 | C97: 0.3 | D97: =B96 -> 25000 | E97: =E96+(B97-B96)*C97 -> 9250 | F97: 0 | G97: 0 | H97: =IF(I95=C99,E98+ROUND((H95-J95),0)*I95,IF(I95=C98,E97+ROUND((H95-J95)*I95,0),IF(I95=C97,E96+ROUND((H95-J95)*I95,0),IF(I95=C96,E95+ROUND((H95-J95)*I95,0),E94+ROUND((H95-J95)*I95,0))))) -> 251750 | I97: =MIN(K99:L99) -> 12588 | J97: =ROUND(SUM(H97+I97)*M95,0) -> 0 | K97: =SUM(H97:J97) -> 264338 | N97: =O96+1 -> 25001 | O97: 50000 | P97: 0.3
A98: =B97+1 -> 50001 | B98: 100000 | C98: 0.4 | D98: =B97 -> 50000 | E98: =E97+(B98-B97)*C98 -> 29250 | F98: 0.05 | G98: 0 | H98: Surcharge limit | I98: Add.Tax Income | J98: Add. Tax | K98: Diff | L98: Sur. Amt | M98: M.R. | N98: =O97+1 -> 50001 | O98: 100000 | P98: 0.4
A99: =B98+1 -> 100001 | C99: 0.5 | D99: 100000 | E99: =IF(J96=0,0,E98) -> 29250 | F99: 0.05 | G99: 0 | H99: 50000 | I99: =IF(H95>H99,H95-H99,0) -> 495000 | J99: =IF(I99>0,ROUND(I99*I95,0),0) -> 247500 | K99: =I99-J99 -> 247500 | L99: =IF(H97>0,ROUND(H97*L95,0),0) -> 12588 | M99: =IF(K99>L99,0,L99-K99) -> 0 | N99: =O98+1 -> 100001 | O99: 0 | P99: 0.5
A100: Female | D100: TAX MARGIN | E100: TAX AT MARGIN | F100: SUR RATE | G100: E.Cess | H100: TAXABLE INCOME | I100: TAX RATE APPLY | J100: TAX MARGIN SLAB | K100: TAX SLAB | L100: Surch.Rate | M100: E.Cess | N100: TAX CALCULALTION | P100: =IF($E$3="Male",H97,IF($E$3="Female",H104,IF($E$3="Senior Citizen",H111,H118))) -> 251750
A101: Not defined | N101: SURCHARGE | P101: =IF($E$3="Male",I97,IF($E$3="Female",I104,IF($E$3="Senior Citizen",I111,I118))) -> 12588
A102: 0 | B102: 18000 | C102: 0 | D102: 0 | E102: 0 | F102: 0 | G102: 0 | H102: =H95 -> 545000 | I102: =VLOOKUP(H102,A102:C106,3) -> 0.5 | J102: =INDEX(D102:D106,MATCH(I102,C102:C106,0)) -> 100000 | K102: =INDEX(E102:E106,MATCH(I102,C102:C106,0)) -> 29250 | L102: =IF(H102>H106,VLOOKUP(H102,A102:F106,6),0) -> 0.05 | M102: =VLOOKUP(H102,A102:G106,7) -> 0 | N102: E. CESS | P102: =IF($E$3="Male",J97,IF($E$3="Female",J104,IF($E$3="Senior Citizen",J111,J118))) -> 0
A103: =B102+1 -> 18001 | B103: 25000 | C103: 0.25 | D103: =B102 -> 18000 | E103: =(B103-B102)*C103 -> 1750 | F103: 0 | G103: 0 | H103: TAX CALCULALTION | I103: SURCHARGE | J103: E. CESS | K103: TOTAL TAX DUE | N103: TOTAL TAX DUE | P103: =IF($E$3="Male",K97,IF($E$3="Female",K104,IF($E$3="Senior Citizen",K111,K118))) -> 264338
A104: =B103+1 -> 25001 | B104: 50000 | C104: 0.3 | D104: =B103 -> 25000 | E104: =E103+(B104-B103)*C104 -> 9250 | F104: 0 | G104: 0 | H104: =IF(I102=C106,E105+ROUND((H102-J102),0)*I102,IF(I102=C105,E104+ROUND((H102-J102)*I102,0),IF(I102=C104,E103+ROUND((H102-J102)*I102,0),IF(I102=C103,E102+ROUND((H102-J102)*I102,0),E101+ROUND((H102-J102)*I102,0))))) -> 251750 | I104: =MIN(K106:L106) -> 12588 | J104: =ROUND(SUM(H104+I104)*M102,0) -> 0 | K104: =SUM(H104:J104) -> 264338 | N104: Age Defined | P104: =IF($E$3="Male",A94,IF($E$3="Female",A101,IF($E$3="Senior Citizen",A108,A115))) -> Not defined
A105: =B104+1 -> 50001 | B105: 100000 | C105: 0.4 | D105: =B104 -> 50000 | E105: =E104+(B105-B104)*C105 -> 29250 | F105: 0.05 | G105: 0 | H105: Surcharge limit | I105: Add.Tax Income | J105: Add. Tax | K105: Diff | L105: Sur. Amt | M105: M.R. | N105: Marginal Releif | P105: =IF($E$3="Male",M99,IF($E$3="Female",M106,IF($E$3="Senior Citizen",M113,M120))) -> 0
A106: =B105+1 -> 100001 | C106: 0.5 | D106: 100000 | E106: =IF(J103=0,0,E105) -> 29250 | F106: 0.05 | G106: 0 | H106: =H99 -> 50000 | I106: =IF(H102>H106,H102-H106,0) -> 495000 | J106: =IF(I106>0,ROUND(I106*I102,0),0) -> 247500 | K106: =I106-J106 -> 247500 | L106: =IF(H104>0,ROUND(H104*L102,0),0) -> 12588 | M106: =IF(K106>L106,0,L106-K106) -> 0 | N106: Tax Due | P106: =IF($E$3="Male",K97,IF($E$3="Female",K104,IF($E$3="Senior Citizen",K111,K118))) -> 264338
A107: Senior Citizen | D107: TAX MARGIN | E107: TAX AT MARGIN | F107: SUR RATE | G107: E.Cess | H107: TAXABLE INCOME | I107: TAX RATE APPLY | J107: TAX MARGIN SLAB | K107: TAX SLAB | L107: Surch.Rate | M107: E.Cess
A108: Not defined
A109: 0 | B109: 18000 | C109: 0 | D109: 0 | E109: 0 | F109: 0 | G109: 0 | H109: =H95 -> 545000 | I109: =VLOOKUP(H109,A109:C113,3) -> 0.5 | J109: =INDEX(D109:D113,MATCH(I109,C109:C113,0)) -> 100000 | K109: =INDEX(E109:E113,MATCH(I109,C109:C113,0)) -> 29250 | L109: =IF(H109>H113,VLOOKUP(H109,A109:F113,6),0) -> 0.05 | M109: =VLOOKUP(H109,A109:G113,7) -> 0
A110: =B109+1 -> 18001 | B110: 25000 | C110: 0.25 | D110: =B109 -> 18000 | E110: =(B110-B109)*C110 -> 1750 | F110: 0 | G110: 0 | H110: TAX CALCULALTION | I110: SURCHARGE | J110: E. CESS | K110: TOTAL TAX DUE
A111: =B110+1 -> 25001 | B111: 50000 | C111: 0.3 | D111: =B110 -> 25000 | E111: =E110+(B111-B110)*C111 -> 9250 | F111: 0 | G111: 0 | H111: =IF(I109=C113,E112+ROUND((H109-J109),0)*I109,IF(I109=C112,E111+ROUND((H109-J109)*I109,0),IF(I109=C111,E110+ROUND((H109-J109)*I109,0),IF(I109=C110,E109+ROUND((H109-J109)*I109,0),E108+ROUND((H109-J109)*I109,0))))) -> 251750 | I111: =MIN(K113:L113) -> 12588 | J111: =ROUND(SUM(H111+I111)*M109,0) -> 0 | K111: =SUM(H111:J111) -> 264338
A112: =B111+1 -> 50001 | B112: 100000 | C112: 0.4 | D112: =B111 -> 50000 | E112: =E111+(B112-B111)*C112 -> 29250 | F112: 0.05 | G112: 0 | H112: Surcharge limit | I112: Add.Tax Income | J112: Add. Tax | K112: Diff | L112: Sur. Amt | M112: M.R.
A113: =B112+1 -> 100001 | C113: 0.5 | D113: 100000 | E113: =IF(J110=0,0,E112) -> 29250 | F113: 0.05 | G113: 0 | H113: =H106 -> 50000 | I113: =IF(H109>H113,H109-H113,0) -> 495000 | J113: =IF(I113>0,ROUND(I113*I109,0),0) -> 247500 | K113: =I113-J113 -> 247500 | L113: =IF(H111>0,ROUND(H111*L109,0),0) -> 12588 | M113: =IF(K113>L113,0,L113-K113) -> 0
A114: Very Senior Citizen | D114: TAX MARGIN | E114: TAX AT MARGIN | F114: SUR RATE | G114: E.Cess | H114: TAXABLE INCOME | I114: TAX RATE APPLY | J114: TAX MARGIN SLAB | K114: TAX SLAB | L114: Surch.Rate | M114: E.Cess
A115: Not defined
A116: 0 | B116: 18000 | C116: 0 | D116: 0 | E116: 0 | F116: 0 | G116: 0 | H116: =H95 -> 545000 | I116: =VLOOKUP(H116,A116:C120,3) -> 0.5 | J116: =INDEX(D116:D120,MATCH(I116,C116:C120,0)) -> 100000 | K116: =INDEX(E116:E120,MATCH(I116,C116:C120,0)) -> 29250 | L116: =IF(H116>H120,VLOOKUP(H116,A116:F120,6),0) -> 0.05 | M116: =VLOOKUP(H116,A116:G120,7) -> 0
A117: =B116+1 -> 18001 | B117: 25000 | C117: 0.25 | D117: =B116 -> 18000 | E117: =(B117-B116)*C117 -> 1750 | F117: 0 | G117: 0 | H117: TAX CALCULALTION | I117: SURCHARGE | J117: E. CESS | K117: TOTAL TAX DUE
A118: =B117+1 -> 25001 | B118: 50000 | C118: 0.3 | D118: =B117 -> 25000 | E118: =E117+(B118-B117)*C118 -> 9250 | F118: 0 | G118: 0 | H118: =IF(I116=C120,E119+ROUND((H116-J116),0)*I116,IF(I116=C119,E118+ROUND((H116-J116)*I116,0),IF(I116=C118,E117+ROUND((H116-J116)*I116,0),IF(I116=C117,E116+ROUND((H116-J116)*I116,0),E115+ROUND((H116-J116)*I116,0))))) -> 251750 | I118: =MIN(K120:L120) -> 12588 | J118: =ROUND(SUM(H118+I118)*M116,0) -> 0 | K118: =SUM(H118:J118) -> 264338
A119: =B118+1 -> 50001 | B119: 100000 | C119: 0.4 | D119: =B118 -> 50000 | E119: =E118+(B119-B118)*C119 -> 29250 | F119: 0.05 | G119: 0 | H119: Surcharge limit | I119: Add.Tax Income | J119: Add. Tax | K119: Diff | L119: Sur. Amt | M119: M.R.
A120: =B119+1 -> 100001 | C120: 0.5 | D120: 100000 | E120: =IF(J117=0,0,E119) -> 29250 | F120: 0.05 | G120: 0 | H120: =H113 -> 50000 | I120: =IF(H116>H120,H116-H120,0) -> 495000 | J120: =IF(I120>0,ROUND(I120*I116,0),0) -> 247500 | K120: =I120-J120 -> 247500 | L120: =IF(H118>0,ROUND(H118*L116,0),0) -> 12588 | M120: =IF(K120>L120,0,L120-K120) -> 0
C121: 1989 | D121: =C121+1 -> 1990 | F121: 1989-90
A122: Male | D122: TAX MARGIN | E122: TAX AT MARGIN | F122: SUR RATE | G122: E.Cess | H122: TAXABLE INCOME | I122: TAX RATE APPLY | J122: TAX MARGIN SLAB | K122: TAX SLAB | L122: Surch.Rate | M122: E.Cess | N122: Tax Range
A123: Not defined | N123: F.Year | O123: =C121 -> 1989 | P123: =D121 -> 1990
A124: 0 | B124: 18000 | C124: 0 | D124: 0 | E124: 0 | F124: 0 | G124: 0 | H124: =$E$4 -> 545000 | I124: =VLOOKUP(H124,A124:C128,3) -> 0.5 | J124: =INDEX(D124:D128,MATCH(I124,C124:C128,0)) -> 100000 | K124: =INDEX(E124:E128,MATCH(I124,C124:C128,0)) -> 28900 | L124: =IF(H124>H128,VLOOKUP(H124,A124:F128,6),0) -> 0.08 | M124: =VLOOKUP(H124,A124:G128,7) -> 0 | N124: 0 | O124: =IF($E$3="Male",B124,IF($E$3="Female",B131,IF($E$3="Senior Citizen",B138,B145))) -> 18000 | P124: 0
A125: =B124+1 -> 18001 | B125: 25000 | C125: 0.2 | D125: =B124 -> 18000 | E125: =(B125-B124)*C125 -> 1400 | F125: 0 | G125: 0 | H125: TAX CALCULALTION | I125: SURCHARGE | J125: E. CESS | K125: TOTAL TAX DUE | N125: =O124+1 -> 18001 | O125: 25000 | P125: 0.2
A126: =B125+1 -> 25001 | B126: 50000 | C126: 0.3 | D126: =B125 -> 25000 | E126: =E125+(B126-B125)*C126 -> 8900 | F126: 0 | G126: 0 | H126: =IF(I124=C128,E127+ROUND((H124-J124),0)*I124,IF(I124=C127,E126+ROUND((H124-J124)*I124,0),IF(I124=C126,E125+ROUND((H124-J124)*I124,0),IF(I124=C125,E124+ROUND((H124-J124)*I124,0),E123+ROUND((H124-J124)*I124,0))))) -> 251400 | I126: =MIN(K128:L128) -> 20112 | J126: =ROUND(SUM(H126+I126)*M124,0) -> 0 | K126: =SUM(H126:J126) -> 271512 | N126: =O125+1 -> 25001 | O126: 50000 | P126: 0.3
A127: =B126+1 -> 50001 | B127: 100000 | C127: 0.4 | D127: =B126 -> 50000 | E127: =E126+(B127-B126)*C127 -> 28900 | F127: 0.08 | G127: 0 | H127: Surcharge limit | I127: Add.Tax Income | J127: Add. Tax | K127: Diff | L127: Sur. Amt | M127: M.R. | N127: =O126+1 -> 50001 | O127: 100000 | P127: 0.4
A128: =B127+1 -> 100001 | C128: 0.5 | D128: 100000 | E128: =IF(J125=0,0,E127) -> 28900 | F128: 0.08 | G128: 0 | H128: 50000 | I128: =IF(H124>H128,H124-H128,0) -> 495000 | J128: =IF(I128>0,ROUND(I128*I124,0),0) -> 247500 | K128: =I128-J128 -> 247500 | L128: =IF(H126>0,ROUND(H126*L124,0),0) -> 20112 | M128: =IF(K128>L128,0,L128-K128) -> 0 | N128: =O127+1 -> 100001 | O128: 0 | P128: 0.5
A129: Female | D129: TAX MARGIN | E129: TAX AT MARGIN | F129: SUR RATE | G129: E.Cess | H129: TAXABLE INCOME | I129: TAX RATE APPLY | J129: TAX MARGIN SLAB | K129: TAX SLAB | L129: Surch.Rate | M129: E.Cess | N129: TAX CALCULALTION | P129: =IF($E$3="Male",H126,IF($E$3="Female",H133,IF($E$3="Senior Citizen",H140,H147))) -> 251400
A130: Not defined | N130: SURCHARGE | P130: =IF($E$3="Male",I126,IF($E$3="Female",I133,IF($E$3="Senior Citizen",I140,I147))) -> 20112
A131: 0 | B131: 18000 | C131: 0 | D131: 0 | E131: 0 | F131: 0 | G131: 0 | H131: =H124 -> 545000 | I131: =VLOOKUP(H131,A131:C135,3) -> 0.5 | J131: =INDEX(D131:D135,MATCH(I131,C131:C135,0)) -> 100000 | K131: =INDEX(E131:E135,MATCH(I131,C131:C135,0)) -> 28900 | L131: =IF(H131>H135,VLOOKUP(H131,A131:F135,6),0) -> 0.08 | M131: =VLOOKUP(H131,A131:G135,7) -> 0 | N131: E. CESS | P131: =IF($E$3="Male",J126,IF($E$3="Female",J133,IF($E$3="Senior Citizen",J140,J147))) -> 0
A132: =B131+1 -> 18001 | B132: 25000 | C132: 0.2 | D132: =B131 -> 18000 | E132: =(B132-B131)*C132 -> 1400 | F132: 0 | G132: 0 | H132: TAX CALCULALTION | I132: SURCHARGE | J132: E. CESS | K132: TOTAL TAX DUE | N132: TOTAL TAX DUE | P132: =IF($E$3="Male",K126,IF($E$3="Female",K133,IF($E$3="Senior Citizen",K140,K147))) -> 271512
A133: =B132+1 -> 25001 | B133: 50000 | C133: 0.3 | D133: =B132 -> 25000 | E133: =E132+(B133-B132)*C133 -> 8900 | F133: 0 | G133: 0 | H133: =IF(I131=C135,E134+ROUND((H131-J131),0)*I131,IF(I131=C134,E133+ROUND((H131-J131)*I131,0),IF(I131=C133,E132+ROUND((H131-J131)*I131,0),IF(I131=C132,E131+ROUND((H131-J131)*I131,0),E130+ROUND((H131-J131)*I131,0))))) -> 251400 | I133: =MIN(K135:L135) -> 20112 | J133: =ROUND(SUM(H133+I133)*M131,0) -> 0 | K133: =SUM(H133:J133) -> 271512 | N133: Age Defined | P133: =IF($E$3="Male",A123,IF($E$3="Female",A130,IF($E$3="Senior Citizen",A137,A144))) -> Not defined
A134: =B133+1 -> 50001 | B134: 100000 | C134: 0.4 | D134: =B133 -> 50000 | E134: =E133+(B134-B133)*C134 -> 28900 | F134: 0.08 | G134: 0 | H134: Surcharge limit | I134: Add.Tax Income | J134: Add. Tax | K134: Diff | L134: Sur. Amt | M134: M.R. | N134: Marginal Releif | P134: =IF($E$3="Male",M128,IF($E$3="Female",M135,IF($E$3="Senior Citizen",M142,M149))) -> 0
A135: =B134+1 -> 100001 | C135: 0.5 | D135: 100000 | E135: =IF(J132=0,0,E134) -> 28900 | F135: 0.08 | G135: 0 | H135: =H128 -> 50000 | I135: =IF(H131>H135,H131-H135,0) -> 495000 | J135: =IF(I135>0,ROUND(I135*I131,0),0) -> 247500 | K135: =I135-J135 -> 247500 | L135: =IF(H133>0,ROUND(H133*L131,0),0) -> 20112 | M135: =IF(K135>L135,0,L135-K135) -> 0 | N135: Tax Due | P135: =IF($E$3="Male",K126,IF($E$3="Female",K133,IF($E$3="Senior Citizen",K140,K147))) -> 271512
A136: Senior Citizen | D136: TAX MARGIN | E136: TAX AT MARGIN | F136: SUR RATE | G136: E.Cess | H136: TAXABLE INCOME | I136: TAX RATE APPLY | J136: TAX MARGIN SLAB | K136: TAX SLAB | L136: Surch.Rate | M136: E.Cess
A137: Not defined
A138: 0 | B138: 18000 | C138: 0 | D138: 0 | E138: 0 | F138: 0 | G138: 0 | H138: =H124 -> 545000 | I138: =VLOOKUP(H138,A138:C142,3) -> 0.5 | J138: =INDEX(D138:D142,MATCH(I138,C138:C142,0)) -> 100000 | K138: =INDEX(E138:E142,MATCH(I138,C138:C142,0)) -> 28900 | L138: =IF(H138>H142,VLOOKUP(H138,A138:F142,6),0) -> 0.08 | M138: =VLOOKUP(H138,A138:G142,7) -> 0
A139: =B138+1 -> 18001 | B139: 25000 | C139: 0.2 | D139: =B138 -> 18000 | E139: =(B139-B138)*C139 -> 1400 | F139: 0 | G139: 0 | H139: TAX CALCULALTION | I139: SURCHARGE | J139: E. CESS | K139: TOTAL TAX DUE
A140: =B139+1 -> 25001 | B140: 50000 | C140: 0.3 | D140: =B139 -> 25000 | E140: =E139+(B140-B139)*C140 -> 8900 | F140: 0 | G140: 0 | H140: =IF(I138=C142,E141+ROUND((H138-J138),0)*I138,IF(I138=C141,E140+ROUND((H138-J138)*I138,0),IF(I138=C140,E139+ROUND((H138-J138)*I138,0),IF(I138=C139,E138+ROUND((H138-J138)*I138,0),E137+ROUND((H138-J138)*I138,0))))) -> 251400 | I140: =MIN(K142:L142) -> 20112 | J140: =ROUND(SUM(H140+I140)*M138,0) -> 0 | K140: =SUM(H140:J140) -> 271512
A141: =B140+1 -> 50001 | B141: 100000 | C141: 0.4 | D141: =B140 -> 50000 | E141: =E140+(B141-B140)*C141 -> 28900 | F141: 0.08 | G141: 0 | H141: Surcharge limit | I141: Add.Tax Income | J141: Add. Tax | K141: Diff | L141: Sur. Amt | M141: M.R.
A142: =B141+1 -> 100001 | C142: 0.5 | D142: 100000 | E142: =IF(J139=0,0,E141) -> 28900 | F142: 0.08 | G142: 0 | H142: =H135 -> 50000 | I142: =IF(H138>H142,H138-H142,0) -> 495000 | J142: =IF(I142>0,ROUND(I142*I138,0),0) -> 247500 | K142: =I142-J142 -> 247500 | L142: =IF(H140>0,ROUND(H140*L138,0),0) -> 20112 | M142: =IF(K142>L142,0,L142-K142) -> 0
A143: Very Senior Citizen | D143: TAX MARGIN | E143: TAX AT MARGIN | F143: SUR RATE | G143: E.Cess | H143: TAXABLE INCOME | I143: TAX RATE APPLY | J143: TAX MARGIN SLAB | K143: TAX SLAB | L143: Surch.Rate | M143: E.Cess
A144: Not defined
A145: 0 | B145: 18000 | C145: 0 | D145: 0 | E145: 0 | F145: 0 | G145: 0 | H145: =H124 -> 545000 | I145: =VLOOKUP(H145,A145:C149,3) -> 0.5 | J145: =INDEX(D145:D149,MATCH(I145,C145:C149,0)) -> 100000 | K145: =INDEX(E145:E149,MATCH(I145,C145:C149,0)) -> 28900 | L145: =IF(H145>H149,VLOOKUP(H145,A145:F149,6),0) -> 0.08 | M145: =VLOOKUP(H145,A145:G149,7) -> 0
A146: =B145+1 -> 18001 | B146: 25000 | C146: 0.2 | D146: =B145 -> 18000 | E146: =(B146-B145)*C146 -> 1400 | F146: 0 | G146: 0 | H146: TAX CALCULALTION | I146: SURCHARGE | J146: E. CESS | K146: TOTAL TAX DUE
A147: =B146+1 -> 25001 | B147: 50000 | C147: 0.3 | D147: =B146 -> 25000 | E147: =E146+(B147-B146)*C147 -> 8900 | F147: 0 | G147: 0 | H147: =IF(I145=C149,E148+ROUND((H145-J145),0)*I145,IF(I145=C148,E147+ROUND((H145-J145)*I145,0),IF(I145=C147,E146+ROUND((H145-J145)*I145,0),IF(I145=C146,E145+ROUND((H145-J145)*I145,0),E144+ROUND((H145-J145)*I145,0))))) -> 251400 | I147: =MIN(K149:L149) -> 20112 | J147: =ROUND(SUM(H147+I147)*M145,0) -> 0 | K147: =SUM(H147:J147) -> 271512
A148: =B147+1 -> 50001 | B148: 100000 | C148: 0.4 | D148: =B147 -> 50000 | E148: =E147+(B148-B147)*C148 -> 28900 | F148: 0.08 | G148: 0 | H148: Surcharge limit | I148: Add.Tax Income | J148: Add. Tax | K148: Diff | L148: Sur. Amt | M148: M.R.
A149: =B148+1 -> 100001 | C149: 0.5 | D149: 100000 | E149: =IF(J146=0,0,E148) -> 28900 | F149: 0.08 | G149: 0 | H149: =H142 -> 50000 | I149: =IF(H145>H149,H145-H149,0) -> 495000 | J149: =IF(I149>0,ROUND(I149*I145,0),0) -> 247500 | K149: =I149-J149 -> 247500 | L149: =IF(H147>0,ROUND(H147*L145,0),0) -> 20112 | M149: =IF(K149>L149,0,L149-K149) -> 0
C150: 1990 | D150: =C150+1 -> 1991 | F150: 1990-91
A151: Male | D151: TAX MARGIN | E151: TAX AT MARGIN | F151: SUR RATE | G151: E.Cess | H151: TAXABLE INCOME | I151: TAX RATE APPLY | J151: TAX MARGIN SLAB | K151: TAX SLAB | L151: Surch.Rate | M151: E.Cess | N151: Tax Range
A152: Not defined | N152: F.Year | O152: =C150 -> 1990 | P152: =D150 -> 1991
A153: 0 | B153: 22000 | C153: 0 | D153: 0 | E153: 0 | F153: 0 | G153: 0 | H153: =$E$4 -> 545000 | I153: =VLOOKUP(H153,A153:C157,3) -> 0.5 | J153: =INDEX(D153:D157,MATCH(I153,C153:C157,0)) -> 100000 | K153: =INDEX(E153:E157,MATCH(I153,C153:C157,0)) -> 27600 | L153: =IF(H153>H157,VLOOKUP(H153,A153:F157,6),0) -> 0.12 | M153: =VLOOKUP(H153,A153:G157,7) -> 0 | N153: 0 | O153: =IF($E$3="Male",B153,IF($E$3="Female",B160,IF($E$3="Senior Citizen",B167,B174))) -> 22000 | P153: 0
A154: =B153+1 -> 22001 | B154: 30000 | C154: 0.2 | D154: =B153 -> 22000 | E154: =(B154-B153)*C154 -> 1600 | F154: 0 | G154: 0 | H154: TAX CALCULALTION | I154: SURCHARGE | J154: E. CESS | K154: TOTAL TAX DUE | N154: =O153+1 -> 22001 | O154: 30000 | P154: 0.2
A155: =B154+1 -> 30001 | B155: 50000 | C155: 0.3 | D155: =B154 -> 30000 | E155: =E154+(B155-B154)*C155 -> 7600 | F155: 0 | G155: 0 | H155: =IF(I153=C157,E156+ROUND((H153-J153),0)*I153,IF(I153=C156,E155+ROUND((H153-J153)*I153,0),IF(I153=C155,E154+ROUND((H153-J153)*I153,0),IF(I153=C154,E153+ROUND((H153-J153)*I153,0),E152+ROUND((H153-J153)*I153,0))))) -> 250100 | I155: =MIN(K157:L157) -> 30012 | J155: =ROUND(SUM(H155+I155)*M153,0) -> 0 | K155: =SUM(H155:J155) -> 280112 | N155: =O154+1 -> 30001 | O155: 50000 | P155: 0.3
A156: =B155+1 -> 50001 | B156: 100000 | C156: 0.4 | D156: =B155 -> 50000 | E156: =E155+(B156-B155)*C156 -> 27600 | F156: 0.12 | G156: 0 | H156: Surcharge limit | I156: Add.Tax Income | J156: Add. Tax | K156: Diff | L156: Sur. Amt | M156: M.R. | N156: =O155+1 -> 50001 | O156: 100000 | P156: 0.4
A157: =B156+1 -> 100001 | C157: 0.5 | D157: 100000 | E157: =IF(J154=0,0,E156) -> 27600 | F157: 0.12 | G157: 0 | H157: 75000 | I157: =IF(H153>H157,H153-H157,0) -> 470000 | J157: =IF(I157>0,ROUND(I157*I153,0),0) -> 235000 | K157: =I157-J157 -> 235000 | L157: =IF(H155>0,ROUND(H155*L153,0),0) -> 30012 | M157: =IF(K157>L157,0,L157-K157) -> 0 | N157: =O156+1 -> 100001 | O157: 0 | P157: 0.5
A158: Female | D158: TAX MARGIN | E158: TAX AT MARGIN | F158: SUR RATE | G158: E.Cess | H158: TAXABLE INCOME | I158: TAX RATE APPLY | J158: TAX MARGIN SLAB | K158: TAX SLAB | L158: Surch.Rate | M158: E.Cess | N158: TAX CALCULALTION | P158: =IF($E$3="Male",H155,IF($E$3="Female",H162,IF($E$3="Senior Citizen",H169,H176))) -> 250100
A159: Not defined | N159: SURCHARGE | P159: =IF($E$3="Male",I155,IF($E$3="Female",I162,IF($E$3="Senior Citizen",I169,I176))) -> 30012
A160: 0 | B160: 22000 | C160: 0 | D160: 0 | E160: 0 | F160: 0 | G160: 0 | H160: =H153 -> 545000 | I160: =VLOOKUP(H160,A160:C164,3) -> 0.5 | J160: =INDEX(D160:D164,MATCH(I160,C160:C164,0)) -> 100000 | K160: =INDEX(E160:E164,MATCH(I160,C160:C164,0)) -> 27600 | L160: =IF(H160>H164,VLOOKUP(H160,A160:F164,6),0) -> 0.12 | M160: =VLOOKUP(H160,A160:G164,7) -> 0 | N160: E. CESS | P160: =IF($E$3="Male",J155,IF($E$3="Female",J162,IF($E$3="Senior Citizen",J169,J176))) -> 0
A161: =B160+1 -> 22001 | B161: 30000 | C161: 0.2 | D161: =B160 -> 22000 | E161: =(B161-B160)*C161 -> 1600 | F161: 0 | G161: 0 | H161: TAX CALCULALTION | I161: SURCHARGE | J161: E. CESS | K161: TOTAL TAX DUE | N161: TOTAL TAX DUE | P161: =IF($E$3="Male",K155,IF($E$3="Female",K162,IF($E$3="Senior Citizen",K169,K176))) -> 280112
A162: =B161+1 -> 30001 | B162: 50000 | C162: 0.3 | D162: =B161 -> 30000 | E162: =E161+(B162-B161)*C162 -> 7600 | F162: 0 | G162: 0 | H162: =IF(I160=C164,E163+ROUND((H160-J160),0)*I160,IF(I160=C163,E162+ROUND((H160-J160)*I160,0),IF(I160=C162,E161+ROUND((H160-J160)*I160,0),IF(I160=C161,E160+ROUND((H160-J160)*I160,0),E159+ROUND((H160-J160)*I160,0))))) -> 250100 | I162: =MIN(K164:L164) -> 30012 | J162: =ROUND(SUM(H162+I162)*M160,0) -> 0 | K162: =SUM(H162:J162) -> 280112 | N162: Age Defined | P162: =IF($E$3="Male",A152,IF($E$3="Female",A159,IF($E$3="Senior Citizen",A166,A173))) -> Not defined
A163: =B162+1 -> 50001 | B163: 100000 | C163: 0.4 | D163: =B162 -> 50000 | E163: =E162+(B163-B162)*C163 -> 27600 | F163: 0.12 | G163: 0 | H163: Surcharge limit | I163: Add.Tax Income | J163: Add. Tax | K163: Diff | L163: Sur. Amt | M163: M.R. | N163: Marginal Releif | P163: =IF($E$3="Male",M157,IF($E$3="Female",M164,IF($E$3="Senior Citizen",M171,M178))) -> 0
A164: =B163+1 -> 100001 | C164: 0.5 | D164: 100000 | E164: =IF(J161=0,0,E163) -> 27600 | F164: 0.12 | G164: 0 | H164: =H157 -> 75000 | I164: =IF(H160>H164,H160-H164,0) -> 470000 | J164: =IF(I164>0,ROUND(I164*I160,0),0) -> 235000 | K164: =I164-J164 -> 235000 | L164: =IF(H162>0,ROUND(H162*L160,0),0) -> 30012 | M164: =IF(K164>L164,0,L164-K164) -> 0 | N164: Tax Due | P164: =IF($E$3="Male",K155,IF($E$3="Female",K162,IF($E$3="Senior Citizen",K169,K176))) -> 280112
A165: Senior Citizen | D165: TAX MARGIN | E165: TAX AT MARGIN | F165: SUR RATE | G165: E.Cess | H165: TAXABLE INCOME | I165: TAX RATE APPLY | J165: TAX MARGIN SLAB | K165: TAX SLAB | L165: Surch.Rate | M165: E.Cess
A166: Not defined
A167: 0 | B167: 22000 | C167: 0 | D167: 0 | E167: 0 | F167: 0 | G167: 0 | H167: =H153 -> 545000 | I167: =VLOOKUP(H167,A167:C171,3) -> 0.5 | J167: =INDEX(D167:D171,MATCH(I167,C167:C171,0)) -> 100000 | K167: =INDEX(E167:E171,MATCH(I167,C167:C171,0)) -> 27600 | L167: =IF(H167>H171,VLOOKUP(H167,A167:F171,6),0) -> 0.12 | M167: =VLOOKUP(H167,A167:G171,7) -> 0
A168: =B167+1 -> 22001 | B168: 30000 | C168: 0.2 | D168: =B167 -> 22000 | E168: =(B168-B167)*C168 -> 1600 | F168: 0 | G168: 0 | H168: TAX CALCULALTION | I168: SURCHARGE | J168: E. CESS | K168: TOTAL TAX DUE
A169: =B168+1 -> 30001 | B169: 50000 | C169: 0.3 | D169: =B168 -> 30000 | E169: =E168+(B169-B168)*C169 -> 7600 | F169: 0 | G169: 0 | H169: =IF(I167=C171,E170+ROUND((H167-J167),0)*I167,IF(I167=C170,E169+ROUND((H167-J167)*I167,0),IF(I167=C169,E168+ROUND((H167-J167)*I167,0),IF(I167=C168,E167+ROUND((H167-J167)*I167,0),E166+ROUND((H167-J167)*I167,0))))) -> 250100 | I169: =MIN(K171:L171) -> 30012 | J169: =ROUND(SUM(H169+I169)*M167,0) -> 0 | K169: =SUM(H169:J169) -> 280112
A170: =B169+1 -> 50001 | B170: 100000 | C170: 0.4 | D170: =B169 -> 50000 | E170: =E169+(B170-B169)*C170 -> 27600 | F170: 0.12 | G170: 0 | H170: Surcharge limit | I170: Add.Tax Income | J170: Add. Tax | K170: Diff | L170: Sur. Amt | M170: M.R.
A171: =B170+1 -> 100001 | C171: 0.5 | D171: 100000 | E171: =IF(J168=0,0,E170) -> 27600 | F171: 0.12 | G171: 0 | H171: =H164 -> 75000 | I171: =IF(H167>H171,H167-H171,0) -> 470000 | J171: =IF(I171>0,ROUND(I171*I167,0),0) -> 235000 | K171: =I171-J171 -> 235000 | L171: =IF(H169>0,ROUND(H169*L167,0),0) -> 30012 | M171: =IF(K171>L171,0,L171-K171) -> 0
A172: Very Senior Citizen | D172: TAX MARGIN | E172: TAX AT MARGIN | F172: SUR RATE | G172: E.Cess | H172: TAXABLE INCOME | I172: TAX RATE APPLY | J172: TAX MARGIN SLAB | K172: TAX SLAB | L172: Surch.Rate | M172: E.Cess
A173: Not defined
A174: 0 | B174: 22000 | C174: 0 | D174: 0 | E174: 0 | F174: 0 | G174: 0 | H174: =H153 -> 545000 | I174: =VLOOKUP(H174,A174:C178,3) -> 0.5 | J174: =INDEX(D174:D178,MATCH(I174,C174:C178,0)) -> 100000 | K174: =INDEX(E174:E178,MATCH(I174,C174:C178,0)) -> 27600 | L174: =IF(H174>H178,VLOOKUP(H174,A174:F178,6),0) -> 0.12 | M174: =VLOOKUP(H174,A174:G178,7) -> 0
A175: =B174+1 -> 22001 | B175: 30000 | C175: 0.2 | D175: =B174 -> 22000 | E175: =(B175-B174)*C175 -> 1600 | F175: 0 | G175: 0 | H175: TAX CALCULALTION | I175: SURCHARGE | J175: E. CESS | K175: TOTAL TAX DUE
A176: =B175+1 -> 30001 | B176: 50000 | C176: 0.3 | D176: =B175 -> 30000 | E176: =E175+(B176-B175)*C176 -> 7600 | F176: 0 | G176: 0 | H176: =IF(I174=C178,E177+ROUND((H174-J174),0)*I174,IF(I174=C177,E176+ROUND((H174-J174)*I174,0),IF(I174=C176,E175+ROUND((H174-J174)*I174,0),IF(I174=C175,E174+ROUND((H174-J174)*I174,0),E173+ROUND((H174-J174)*I174,0))))) -> 250100 | I176: =MIN(K178:L178) -> 30012 | J176: =ROUND(SUM(H176+I176)*M174,0) -> 0 | K176: =SUM(H176:J176) -> 280112
A177: =B176+1 -> 50001 | B177: 100000 | C177: 0.4 | D177: =B176 -> 50000 | E177: =E176+(B177-B176)*C177 -> 27600 | F177: 0.12 | G177: 0 | H177: Surcharge limit | I177: Add.Tax Income | J177: Add. Tax | K177: Diff | L177: Sur. Amt | M177: M.R.
A178: =B177+1 -> 100001 | C178: 0.5 | D178: 100000 | E178: =IF(J175=0,0,E177) -> 27600 | F178: 0.12 | G178: 0 | H178: =H171 -> 75000 | I178: =IF(H174>H178,H174-H178,0) -> 470000 | J178: =IF(I178>0,ROUND(I178*I174,0),0) -> 235000 | K178: =I178-J178 -> 235000 | L178: =IF(H176>0,ROUND(H176*L174,0),0) -> 30012 | M178: =IF(K178>L178,0,L178-K178) -> 0
C179: 1991 | D179: =C179+1 -> 1992 | F179: 1991-92
A180: Male | D180: TAX MARGIN | E180: TAX AT MARGIN | F180: SUR RATE | G180: E.Cess | H180: TAXABLE INCOME | I180: TAX RATE APPLY | J180: TAX MARGIN SLAB | K180: TAX SLAB | L180: Surch.Rate | M180: E.Cess | N180: Tax Range
A181: Not defined | N181: F.Year | O181: =C179 -> 1991 | P181: =D179 -> 1992
A182: 0 | B182: 22000 | C182: 0 | D182: 0 | E182: 0 | F182: 0 | G182: 0 | H182: =$E$4 -> 545000 | I182: =VLOOKUP(H182,A182:C186,3) -> 0.5 | J182: =INDEX(D182:D186,MATCH(I182,C182:C186,0)) -> 100000 | K182: =INDEX(E182:E186,MATCH(I182,C182:C186,0)) -> 27600 | L182: =IF(H182>H186,VLOOKUP(H182,A182:F186,6),0) -> 0.12 | M182: =VLOOKUP(H182,A182:G186,7) -> 0 | N182: 0 | O182: =IF($E$3="Male",B182,IF($E$3="Female",B189,IF($E$3="Senior Citizen",B196,B203))) -> 22000 | P182: 0
A183: =B182+1 -> 22001 | B183: 30000 | C183: 0.2 | D183: =B182 -> 22000 | E183: =(B183-B182)*C183 -> 1600 | F183: 0 | G183: 0 | H183: TAX CALCULALTION | I183: SURCHARGE | J183: E. CESS | K183: TOTAL TAX DUE | N183: =O182+1 -> 22001 | O183: 30000 | P183: 0.2
A184: =B183+1 -> 30001 | B184: 50000 | C184: 0.3 | D184: =B183 -> 30000 | E184: =E183+(B184-B183)*C184 -> 7600 | F184: 0 | G184: 0 | H184: =IF(I182=C186,E185+ROUND((H182-J182),0)*I182,IF(I182=C185,E184+ROUND((H182-J182)*I182,0),IF(I182=C184,E183+ROUND((H182-J182)*I182,0),IF(I182=C183,E182+ROUND((H182-J182)*I182,0),E181+ROUND((H182-J182)*I182,0))))) -> 250100 | I184: =MIN(K186:L186) -> 30012 | J184: =ROUND(SUM(H184+I184)*M182,0) -> 0 | K184: =SUM(H184:J184) -> 280112 | N184: =O183+1 -> 30001 | O184: 50000 | P184: 0.3
A185: =B184+1 -> 50001 | B185: 100000 | C185: 0.4 | D185: =B184 -> 50000 | E185: =E184+(B185-B184)*C185 -> 27600 | F185: 0.12 | G185: 0 | H185: Surcharge limit | I185: Add.Tax Income | J185: Add. Tax | K185: Diff | L185: Sur. Amt | M185: M.R. | N185: =O184+1 -> 50001 | O185: 100000 | P185: 0.4
A186: =B185+1 -> 100001 | C186: 0.5 | D186: 100000 | E186: =IF(J183=0,0,E185) -> 27600 | F186: 0.12 | G186: 0 | H186: 100000 | I186: =IF(H182>H186,H182-H186,0) -> 445000 | J186: =IF(I186>0,ROUND(I186*I182,0),0) -> 222500 | K186: =I186-J186 -> 222500 | L186: =IF(H184>0,ROUND(H184*L182,0),0) -> 30012 | M186: =IF(K186>L186,0,L186-K186) -> 0 | N186: =O185+1 -> 100001 | O186: 0 | P186: 0.5
A187: Female | D187: TAX MARGIN | E187: TAX AT MARGIN | F187: SUR RATE | G187: E.Cess | H187: TAXABLE INCOME | I187: TAX RATE APPLY | J187: TAX MARGIN SLAB | K187: TAX SLAB | L187: Surch.Rate | M187: E.Cess | N187: TAX CALCULALTION | P187: =IF($E$3="Male",H184,IF($E$3="Female",H191,IF($E$3="Senior Citizen",H198,H205))) -> 250100
A188: Not defined | N188: SURCHARGE | P188: =IF($E$3="Male",I184,IF($E$3="Female",I191,IF($E$3="Senior Citizen",I198,I205))) -> 30012
A189: 0 | B189: 22000 | C189: 0 | D189: 0 | E189: 0 | F189: 0 | G189: 0 | H189: =H182 -> 545000 | I189: =VLOOKUP(H189,A189:C193,3) -> 0.5 | J189: =INDEX(D189:D193,MATCH(I189,C189:C193,0)) -> 100000 | K189: =INDEX(E189:E193,MATCH(I189,C189:C193,0)) -> 27600 | L189: =IF(H189>H193,VLOOKUP(H189,A189:F193,6),0) -> 0.12 | M189: =VLOOKUP(H189,A189:G193,7) -> 0 | N189: E. CESS | P189: =IF($E$3="Male",J184,IF($E$3="Female",J191,IF($E$3="Senior Citizen",J198,J205))) -> 0
A190: =B189+1 -> 22001 | B190: 30000 | C190: 0.2 | D190: =B189 -> 22000 | E190: =(B190-B189)*C190 -> 1600 | F190: 0 | G190: 0 | H190: TAX CALCULALTION | I190: SURCHARGE | J190: E. CESS | K190: TOTAL TAX DUE | N190: TOTAL TAX DUE | P190: =IF($E$3="Male",K184,IF($E$3="Female",K191,IF($E$3="Senior Citizen",K198,K205))) -> 280112
A191: =B190+1 -> 30001 | B191: 50000 | C191: 0.3 | D191: =B190 -> 30000 | E191: =E190+(B191-B190)*C191 -> 7600 | F191: 0 | G191: 0 | H191: =IF(I189=C193,E192+ROUND((H189-J189),0)*I189,IF(I189=C192,E191+ROUND((H189-J189)*I189,0),IF(I189=C191,E190+ROUND((H189-J189)*I189,0),IF(I189=C190,E189+ROUND((H189-J189)*I189,0),E188+ROUND((H189-J189)*I189,0))))) -> 250100 | I191: =MIN(K193:L193) -> 30012 | J191: =ROUND(SUM(H191+I191)*M189,0) -> 0 | K191: =SUM(H191:J191) -> 280112 | N191: Age Defined | P191: =IF($E$3="Male",A181,IF($E$3="Female",A188,IF($E$3="Senior Citizen",A195,A202))) -> Not defined
A192: =B191+1 -> 50001 | B192: 100000 | C192: 0.4 | D192: =B191 -> 50000 | E192: =E191+(B192-B191)*C192 -> 27600 | F192: 0.12 | G192: 0 | H192: Surcharge limit | I192: Add.Tax Income | J192: Add. Tax | K192: Diff | L192: Sur. Amt | M192: M.R. | N192: Marginal Releif | P192: =IF($E$3="Male",M186,IF($E$3="Female",M193,IF($E$3="Senior Citizen",M200,M207))) -> 0
A193: =B192+1 -> 100001 | C193: 0.5 | D193: 100000 | E193: =IF(J190=0,0,E192) -> 27600 | F193: 0.12 | G193: 0 | H193: =H186 -> 100000 | I193: =IF(H189>H193,H189-H193,0) -> 445000 | J193: =IF(I193>0,ROUND(I193*I189,0),0) -> 222500 | K193: =I193-J193 -> 222500 | L193: =IF(H191>0,ROUND(H191*L189,0),0) -> 30012 | M193: =IF(K193>L193,0,L193-K193) -> 0 | N193: Tax Due | P193: =IF($E$3="Male",K184,IF($E$3="Female",K191,IF($E$3="Senior Citizen",K198,K205))) -> 280112
A194: Senior Citizen | D194: TAX MARGIN | E194: TAX AT MARGIN | F194: SUR RATE | G194: E.Cess | H194: TAXABLE INCOME | I194: TAX RATE APPLY | J194: TAX MARGIN SLAB | K194: TAX SLAB | L194: Surch.Rate | M194: E.Cess
A195: Not defined
A196: 0 | B196: 22000 | C196: 0 | D196: 0 | E196: 0 | F196: 0 | G196: 0 | H196: =H182 -> 545000 | I196: =VLOOKUP(H196,A196:C200,3) -> 0.5 | J196: =INDEX(D196:D200,MATCH(I196,C196:C200,0)) -> 100000 | K196: =INDEX(E196:E200,MATCH(I196,C196:C200,0)) -> 27600 | L196: =IF(H196>H200,VLOOKUP(H196,A196:F200,6),0) -> 0.12 | M196: =VLOOKUP(H196,A196:G200,7) -> 0
A197: =B196+1 -> 22001 | B197: 30000 | C197: 0.2 | D197: =B196 -> 22000 | E197: =(B197-B196)*C197 -> 1600 | F197: 0 | G197: 0 | H197: TAX CALCULALTION | I197: SURCHARGE | J197: E. CESS | K197: TOTAL TAX DUE
A198: =B197+1 -> 30001 | B198: 50000 | C198: 0.3 | D198: =B197 -> 30000 | E198: =E197+(B198-B197)*C198 -> 7600 | F198: 0 | G198: 0 | H198: =IF(I196=C200,E199+ROUND((H196-J196),0)*I196,IF(I196=C199,E198+ROUND((H196-J196)*I196,0),IF(I196=C198,E197+ROUND((H196-J196)*I196,0),IF(I196=C197,E196+ROUND((H196-J196)*I196,0),E195+ROUND((H196-J196)*I196,0))))) -> 250100 | I198: =MIN(K200:L200) -> 30012 | J198: =ROUND(SUM(H198+I198)*M196,0) -> 0 | K198: =SUM(H198:J198) -> 280112
A199: =B198+1 -> 50001 | B199: 100000 | C199: 0.4 | D199: =B198 -> 50000 | E199: =E198+(B199-B198)*C199 -> 27600 | F199: 0.12 | G199: 0 | H199: Surcharge limit | I199: Add.Tax Income | J199: Add. Tax | K199: Diff | L199: Sur. Amt | M199: M.R.
A200: =B199+1 -> 100001 | C200: 0.5 | D200: 100000 | E200: =IF(J197=0,0,E199) -> 27600 | F200: 0.12 | G200: 0 | H200: =H193 -> 100000 | I200: =IF(H196>H200,H196-H200,0) -> 445000 | J200: =IF(I200>0,ROUND(I200*I196,0),0) -> 222500 | K200: =I200-J200 -> 222500 | L200: =IF(H198>0,ROUND(H198*L196,0),0) -> 30012 | M200: =IF(K200>L200,0,L200-K200) -> 0
... 1251 more rows

Sheet Table for Statement (hidden)
A1: Tax computation for Tax Calculator
A2: =Statement!$G$4 -> New option u/s 115BAC | B2: Financial Year | E2: ='Employee Data'!$G$5 -> 2024-25 | I2: (Above 60 year but less than 80) | K2: =E4+250000 -> 2070000
B3: Tax Category | E3: =Statement!$C$5 -> SENIOR CITIZEN
B4: Taxable Income | E4: =Statement!$H$70 -> 1820000 | S4: =pravesh(S1002) -> 
A5: Fin. Year | C5: 1985 | D5: =C5+1 -> 1986 | F5: 1985-86 | H5: Computation Table | N5: Fin. Year | P5: 1985 | Q5: =P5+1 -> 1986
A6: Male | D6: TAX MARGIN | E6: TAX AT MARGIN | F6: SUR RATE | G6: E.Cess | H6: TAXABLE INCOME | I6: TAX RATE APPLY | J6: TAX MARGIN SLAB | K6: TAX SLAB | L6: Surch.Rate | M6: E.Cess | N6: Tax Range
A7: Not defined | N7: F.Year | O7: =C5 -> 1985 | P7: =D5 -> 1986
A8: 0 | B8: 18000 | C8: 0 | D8: 0 | E8: 0 | F8: 0 | G8: 0 | H8: =$E$4 -> 1820000 | I8: =VLOOKUP(H8,A8:C12,3) -> 0.5 | J8: =INDEX(D8:D12,MATCH(I8,C8:C12,0)) -> 100000 | K8: =INDEX(E8:E12,MATCH(I8,C8:C12,0)) -> 29250 | L8: =IF(H8>H12,VLOOKUP(H8,A8:F12,6),0) -> 0.05 | M8: =VLOOKUP(H8,A8:G12,7) -> 0 | N8: 0 | O8: =IF($E$3="Male",B8,IF($E$3="Female",B15,IF($E$3="Senior Citizen",B22,B29))) -> 18000 | P8: 0
A9: =B8+1 -> 18001 | B9: 25000 | C9: 0.25 | D9: =B8 -> 18000 | E9: =(B9-B8)*C9 -> 1750 | F9: 0 | G9: 0 | H9: TAX CALCULALTION | I9: SURCHARGE | J9: E. CESS | K9: TOTAL TAX DUE | N9: =O8+1 -> 18001 | O9: 25000 | P9: 0.25
A10: =B9+1 -> 25001 | B10: 50000 | C10: 0.3 | D10: =B9 -> 25000 | E10: =E9+(B10-B9)*C10 -> 9250 | F10: 0 | G10: 0 | H10: =IF(I8=C12,E11+ROUND((H8-J8),0)*I8,IF(I8=C11,E10+ROUND((H8-J8)*I8,0),IF(I8=C10,E9+ROUND((H8-J8)*I8,0),IF(I8=C9,E8+ROUND((H8-J8)*I8,0),E7+ROUND((H8-J8)*I8,0))))) -> 889250 | I10: =MIN(K12:L12) -> 44463 | J10: =ROUND(SUM(H10+I10)*M8,0) -> 0 | K10: =SUM(H10:J10) -> 933713 | N10: =O9+1 -> 25001 | O10: 50000 | P10: 0.3
A11: =B10+1 -> 50001 | B11: 100000 | C11: 0.4 | D11: =B10 -> 50000 | E11: =E10+(B11-B10)*C11 -> 29250 | F11: 0.05 | G11: 0 | H11: Surcharge limit | I11: Add.Tax Income | J11: Add. Tax | K11: Diff | L11: Sur. Amt | M11: M.R. | N11: =O10+1 -> 50001 | O11: 100000 | P11: 0.4
A12: =B11+1 -> 100001 | C12: 0.5 | D12: 100000 | E12: =IF(J9=0,0,E11) -> 29250 | F12: 0.05 | G12: 0 | H12: 50000 | I12: =IF(H8>H12,H8-H12,0) -> 1770000 | J12: =IF(I12>0,ROUND(I12*I8,0),0) -> 885000 | K12: =I12-J12 -> 885000 | L12: =IF(H10>0,ROUND(H10*L8,0),0) -> 44463 | M12: =IF(K12>L12,0,L12-K12) -> 0 | N12: =O11+1 -> 100001 | O12: 0 | P12: 0.5
A13: Female | D13: TAX MARGIN | E13: TAX AT MARGIN | F13: SUR RATE | G13: E.Cess | H13: TAXABLE INCOME | I13: TAX RATE APPLY | J13: TAX MARGIN SLAB | K13: TAX SLAB | L13: Surch.Rate | M13: E.Cess | N13: TAX CALCULALTION | P13: =IF($E$3="Male",H10,IF($E$3="Female",H17,IF($E$3="Senior Citizen",H24,H31))) -> 889250
A14: Not defined | N14: SURCHARGE | P14: =IF($E$3="Male",I10,IF($E$3="Female",I17,IF($E$3="Senior Citizen",I24,I31))) -> 44463
A15: 0 | B15: 18000 | C15: 0 | D15: 0 | E15: 0 | F15: 0 | G15: 0 | H15: =H8 -> 1820000 | I15: =VLOOKUP(H15,A15:C19,3) -> 0.5 | J15: =INDEX(D15:D19,MATCH(I15,C15:C19,0)) -> 100000 | K15: =INDEX(E15:E19,MATCH(I15,C15:C19,0)) -> 29250 | L15: =IF(H15>H19,VLOOKUP(H15,A15:F19,6),0) -> 0.05 | M15: =VLOOKUP(H15,A15:G19,7) -> 0 | N15: E. CESS | P15: =IF($E$3="Male",J10,IF($E$3="Female",J17,IF($E$3="Senior Citizen",J24,J31))) -> 0
A16: =B15+1 -> 18001 | B16: 25000 | C16: 0.25 | D16: =B15 -> 18000 | E16: =(B16-B15)*C16 -> 1750 | F16: 0 | G16: 0 | H16: TAX CALCULALTION | I16: SURCHARGE | J16: E. CESS | K16: TOTAL TAX DUE | N16: TOTAL TAX DUE | P16: =IF($E$3="Male",K10,IF($E$3="Female",K17,IF($E$3="Senior Citizen",K24,K31))) -> 933713
A17: =B16+1 -> 25001 | B17: 50000 | C17: 0.3 | D17: =B16 -> 25000 | E17: =E16+(B17-B16)*C17 -> 9250 | F17: 0 | G17: 0 | H17: =IF(I15=C19,E18+ROUND((H15-J15),0)*I15,IF(I15=C18,E17+ROUND((H15-J15)*I15,0),IF(I15=C17,E16+ROUND((H15-J15)*I15,0),IF(I15=C16,E15+ROUND((H15-J15)*I15,0),E14+ROUND((H15-J15)*I15,0))))) -> 889250 | I17: =MIN(K19:L19) -> 44463 | J17: =ROUND(SUM(H17+I17)*M15,0) -> 0 | K17: =SUM(H17:J17) -> 933713 | N17: Age Defined | P17: =IF($E$3="Male",A7,IF($E$3="Female",A14,IF($E$3="Senior Citizen",A21,A28))) -> Not defined
A18: =B17+1 -> 50001 | B18: 100000 | C18: 0.4 | D18: =B17 -> 50000 | E18: =E17+(B18-B17)*C18 -> 29250 | F18: 0.05 | G18: 0 | H18: Surcharge limit | I18: Add.Tax Income | J18: Add. Tax | K18: Diff | L18: Sur. Amt | M18: M.R. | N18: Marginal Releif | P18: =IF($E$3="Male",M12,IF($E$3="Female",M19,IF($E$3="Senior Citizen",M26,M33))) -> 0
A19: =B18+1 -> 100001 | C19: 0.5 | D19: 100000 | E19: =IF(J16=0,0,E18) -> 29250 | F19: 0.05 | G19: 0 | H19: =H12 -> 50000 | I19: =IF(H15>H19,H15-H19,0) -> 1770000 | J19: =IF(I19>0,ROUND(I19*I15,0),0) -> 885000 | K19: =I19-J19 -> 885000 | L19: =IF(H17>0,ROUND(H17*L15,0),0) -> 44463 | M19: =IF(K19>L19,0,L19-K19) -> 0 | N19: Tax Due | P19: =IF($E$3="Male",K10,IF($E$3="Female",K17,IF($E$3="Senior Citizen",K24,K31))) -> 933713
A20: Senior Citizen | D20: TAX MARGIN | E20: TAX AT MARGIN | F20: SUR RATE | G20: E.Cess | H20: TAXABLE INCOME | I20: TAX RATE APPLY | J20: TAX MARGIN SLAB | K20: TAX SLAB | L20: Surch.Rate | M20: E.Cess
A21: Not defined
A22: 0 | B22: 18000 | C22: 0 | D22: 0 | E22: 0 | F22: 0 | G22: 0 | H22: =H8 -> 1820000 | I22: =VLOOKUP(H22,A22:C26,3) -> 0.5 | J22: =INDEX(D22:D26,MATCH(I22,C22:C26,0)) -> 100000 | K22: =INDEX(E22:E26,MATCH(I22,C22:C26,0)) -> 29250 | L22: =IF(H22>H26,VLOOKUP(H22,A22:F26,6),0) -> 0.05 | M22: =VLOOKUP(H22,A22:G26,7) -> 0
A23: =B22+1 -> 18001 | B23: 25000 | C23: 0.25 | D23: =B22 -> 18000 | E23: =(B23-B22)*C23 -> 1750 | F23: 0 | G23: 0 | H23: TAX CALCULALTION | I23: SURCHARGE | J23: E. CESS | K23: TOTAL TAX DUE
A24: =B23+1 -> 25001 | B24: 50000 | C24: 0.3 | D24: =B23 -> 25000 | E24: =E23+(B24-B23)*C24 -> 9250 | F24: 0 | G24: 0 | H24: =IF(I22=C26,E25+ROUND((H22-J22),0)*I22,IF(I22=C25,E24+ROUND((H22-J22)*I22,0),IF(I22=C24,E23+ROUND((H22-J22)*I22,0),IF(I22=C23,E22+ROUND((H22-J22)*I22,0),E21+ROUND((H22-J22)*I22,0))))) -> 889250 | I24: =MIN(K26:L26) -> 44463 | J24: =ROUND(SUM(H24+I24)*M22,0) -> 0 | K24: =SUM(H24:J24) -> 933713
A25: =B24+1 -> 50001 | B25: 100000 | C25: 0.4 | D25: =B24 -> 50000 | E25: =E24+(B25-B24)*C25 -> 29250 | F25: 0.05 | G25: 0 | H25: Surcharge limit | I25: Add.Tax Income | J25: Add. Tax | K25: Diff | L25: Sur. Amt | M25: M.R.
A26: =B25+1 -> 100001 | C26: 0.5 | D26: 100000 | E26: =IF(J23=0,0,E25) -> 29250 | F26: 0.05 | G26: 0 | H26: =H19 -> 50000 | I26: =IF(H22>H26,H22-H26,0) -> 1770000 | J26: =IF(I26>0,ROUND(I26*I22,0),0) -> 885000 | K26: =I26-J26 -> 885000 | L26: =IF(H24>0,ROUND(H24*L22,0),0) -> 44463 | M26: =IF(K26>L26,0,L26-K26) -> 0
A27: Very Senior Citizen | D27: TAX MARGIN | E27: TAX AT MARGIN | F27: SUR RATE | G27: E.Cess | H27: TAXABLE INCOME | I27: TAX RATE APPLY | J27: TAX MARGIN SLAB | K27: TAX SLAB | L27: Surch.Rate | M27: E.Cess
A28: Not defined
A29: 0 | B29: 18000 | C29: 0 | D29: 0 | E29: 0 | F29: 0 | G29: 0 | H29: =H8 -> 1820000 | I29: =VLOOKUP(H29,A29:C33,3) -> 0.5 | J29: =INDEX(D29:D33,MATCH(I29,C29:C33,0)) -> 100000 | K29: =INDEX(E29:E33,MATCH(I29,C29:C33,0)) -> 29250 | L29: =IF(H29>H33,VLOOKUP(H29,A29:F33,6),0) -> 0.05 | M29: =VLOOKUP(H29,A29:G33,7) -> 0
A30: =B29+1 -> 18001 | B30: 25000 | C30: 0.25 | D30: =B29 -> 18000 | E30: =(B30-B29)*C30 -> 1750 | F30: 0 | G30: 0 | H30: TAX CALCULALTION | I30: SURCHARGE | J30: E. CESS | K30: TOTAL TAX DUE
A31: =B30+1 -> 25001 | B31: 50000 | C31: 0.3 | D31: =B30 -> 25000 | E31: =E30+(B31-B30)*C31 -> 9250 | F31: 0 | G31: 0 | H31: =IF(I29=C33,E32+ROUND((H29-J29),0)*I29,IF(I29=C32,E31+ROUND((H29-J29)*I29,0),IF(I29=C31,E30+ROUND((H29-J29)*I29,0),IF(I29=C30,E29+ROUND((H29-J29)*I29,0),E28+ROUND((H29-J29)*I29,0))))) -> 889250 | I31: =MIN(K33:L33) -> 44463 | J31: =ROUND(SUM(H31+I31)*M29,0) -> 0 | K31: =SUM(H31:J31) -> 933713
A32: =B31+1 -> 50001 | B32: 100000 | C32: 0.4 | D32: =B31 -> 50000 | E32: =E31+(B32-B31)*C32 -> 29250 | F32: 0.05 | G32: 0 | H32: Surcharge limit | I32: Add.Tax Income | J32: Add. Tax | K32: Diff | L32: Sur. Amt | M32: M.R.
A33: =B32+1 -> 100001 | C33: 0.5 | D33: 100000 | E33: =IF(J30=0,0,E32) -> 29250 | F33: 0.05 | G33: 0 | H33: =H26 -> 50000 | I33: =IF(H29>H33,H29-H33,0) -> 1770000 | J33: =IF(I33>0,ROUND(I33*I29,0),0) -> 885000 | K33: =I33-J33 -> 885000 | L33: =IF(H31>0,ROUND(H31*L29,0),0) -> 44463 | M33: =IF(K33>L33,0,L33-K33) -> 0
C34: =D5 -> 1986 | D34: =C34+1 -> 1987 | F34: 1986-87
A35: Male | D35: TAX MARGIN | E35: TAX AT MARGIN | F35: SUR RATE | G35: E.Cess | H35: TAXABLE INCOME | I35: TAX RATE APPLY | J35: TAX MARGIN SLAB | K35: TAX SLAB | L35: Surch.Rate | M35: E.Cess | N35: Tax Range
A36: Not defined | N36: F.Year | O36: =C34 -> 1986 | P36: =D34 -> 1987
A37: 0 | B37: 18000 | C37: 0 | D37: 0 | E37: 0 | F37: 0 | G37: 0 | H37: =$E$4 -> 1820000 | I37: =VLOOKUP(H37,A37:C41,3) -> 0.5 | J37: =INDEX(D37:D41,MATCH(I37,C37:C41,0)) -> 100000 | K37: =INDEX(E37:E41,MATCH(I37,C37:C41,0)) -> 29250 | L37: =IF(H37>H41,VLOOKUP(H37,A37:F41,6),0) -> 0.05 | M37: =VLOOKUP(H37,A37:G41,7) -> 0 | N37: 0 | O37: =IF($E$3="Male",B37,IF($E$3="Female",B44,IF($E$3="Senior Citizen",B51,B58))) -> 18000 | P37: 0
A38: =B37+1 -> 18001 | B38: 25000 | C38: 0.25 | D38: =B37 -> 18000 | E38: =(B38-B37)*C38 -> 1750 | F38: 0 | G38: 0 | H38: TAX CALCULALTION | I38: SURCHARGE | J38: E. CESS | K38: TOTAL TAX DUE | N38: =O37+1 -> 18001 | O38: 25000 | P38: 0.25
A39: =B38+1 -> 25001 | B39: 50000 | C39: 0.3 | D39: =B38 -> 25000 | E39: =E38+(B39-B38)*C39 -> 9250 | F39: 0 | G39: 0 | H39: =IF(I37=C41,E40+ROUND((H37-J37),0)*I37,IF(I37=C40,E39+ROUND((H37-J37)*I37,0),IF(I37=C39,E38+ROUND((H37-J37)*I37,0),IF(I37=C38,E37+ROUND((H37-J37)*I37,0),E36+ROUND((H37-J37)*I37,0))))) -> 889250 | I39: =MIN(K41:L41) -> 44463 | J39: =ROUND(SUM(H39+I39)*M37,0) -> 0 | K39: =SUM(H39:J39) -> 933713 | N39: =O38+1 -> 25001 | O39: 50000 | P39: 0.3
A40: =B39+1 -> 50001 | B40: 100000 | C40: 0.4 | D40: =B39 -> 50000 | E40: =E39+(B40-B39)*C40 -> 29250 | F40: 0.05 | G40: 0 | H40: Surcharge limit | I40: Add.Tax Income | J40: Add. Tax | K40: Diff | L40: Sur. Amt | M40: M.R. | N40: =O39+1 -> 50001 | O40: 100000 | P40: 0.4
A41: =B40+1 -> 100001 | C41: 0.5 | D41: 100000 | E41: =IF(J38=0,0,E40) -> 29250 | F41: 0.05 | G41: 0 | H41: 50000 | I41: =IF(H37>H41,H37-H41,0) -> 1770000 | J41: =IF(I41>0,ROUND(I41*I37,0),0) -> 885000 | K41: =I41-J41 -> 885000 | L41: =IF(H39>0,ROUND(H39*L37,0),0) -> 44463 | M41: =IF(K41>L41,0,L41-K41) -> 0 | N41: =O40+1 -> 100001 | O41: 0 | P41: 0.5
A42: Female | D42: TAX MARGIN | E42: TAX AT MARGIN | F42: SUR RATE | G42: E.Cess | H42: TAXABLE INCOME | I42: TAX RATE APPLY | J42: TAX MARGIN SLAB | K42: TAX SLAB | L42: Surch.Rate | M42: E.Cess | N42: TAX CALCULALTION | P42: =IF($E$3="Male",H39,IF($E$3="Female",H46,IF($E$3="Senior Citizen",H53,H60))) -> 889250
A43: Not defined | N43: SURCHARGE | P43: =IF($E$3="Male",I39,IF($E$3="Female",I46,IF($E$3="Senior Citizen",I53,I60))) -> 44463
A44: 0 | B44: 18000 | C44: 0 | D44: 0 | E44: 0 | F44: 0 | G44: 0 | H44: =H37 -> 1820000 | I44: =VLOOKUP(H44,A44:C48,3) -> 0.5 | J44: =INDEX(D44:D48,MATCH(I44,C44:C48,0)) -> 100000 | K44: =INDEX(E44:E48,MATCH(I44,C44:C48,0)) -> 29250 | L44: =IF(H44>H48,VLOOKUP(H44,A44:F48,6),0) -> 0.05 | M44: =VLOOKUP(H44,A44:G48,7) -> 0 | N44: E. CESS | P44: =IF($E$3="Male",J39,IF($E$3="Female",J46,IF($E$3="Senior Citizen",J53,J60))) -> 0
A45: =B44+1 -> 18001 | B45: 25000 | C45: 0.25 | D45: =B44 -> 18000 | E45: =(B45-B44)*C45 -> 1750 | F45: 0 | G45: 0 | H45: TAX CALCULALTION | I45: SURCHARGE | J45: E. CESS | K45: TOTAL TAX DUE | N45: TOTAL TAX DUE | P45: =IF($E$3="Male",K39,IF($E$3="Female",K46,IF($E$3="Senior Citizen",K53,K60))) -> 933713
A46: =B45+1 -> 25001 | B46: 50000 | C46: 0.3 | D46: =B45 -> 25000 | E46: =E45+(B46-B45)*C46 -> 9250 | F46: 0 | G46: 0 | H46: =IF(I44=C48,E47+ROUND((H44-J44),0)*I44,IF(I44=C47,E46+ROUND((H44-J44)*I44,0),IF(I44=C46,E45+ROUND((H44-J44)*I44,0),IF(I44=C45,E44+ROUND((H44-J44)*I44,0),E43+ROUND((H44-J44)*I44,0))))) -> 889250 | I46: =MIN(K48:L48) -> 44463 | J46: =ROUND(SUM(H46+I46)*M44,0) -> 0 | K46: =SUM(H46:J46) -> 933713 | N46: Age Defined | P46: =IF($E$3="Male",A36,IF($E$3="Female",A43,IF($E$3="Senior Citizen",A50,A57))) -> Not defined
A47: =B46+1 -> 50001 | B47: 100000 | C47: 0.4 | D47: =B46 -> 50000 | E47: =E46+(B47-B46)*C47 -> 29250 | F47: 0.05 | G47: 0 | H47: Surcharge limit | I47: Add.Tax Income | J47: Add. Tax | K47: Diff | L47: Sur. Amt | M47: M.R. | N47: Marginal Releif | P47: =IF($E$3="Male",M41,IF($E$3="Female",M48,IF($E$3="Senior Citizen",M55,M62))) -> 0
A48: =B47+1 -> 100001 | C48: 0.5 | D48: 100000 | E48: =IF(J45=0,0,E47) -> 29250 | F48: 0.05 | G48: 0 | H48: =H41 -> 50000 | I48: =IF(H44>H48,H44-H48,0) -> 1770000 | J48: =IF(I48>0,ROUND(I48*I44,0),0) -> 885000 | K48: =I48-J48 -> 885000 | L48: =IF(H46>0,ROUND(H46*L44,0),0) -> 44463 | M48: =IF(K48>L48,0,L48-K48) -> 0 | N48: Tax Due | P48: =IF($E$3="Male",K39,IF($E$3="Female",K46,IF($E$3="Senior Citizen",K53,K60))) -> 933713
A49: Senior Citizen | D49: TAX MARGIN | E49: TAX AT MARGIN | F49: SUR RATE | G49: E.Cess | H49: TAXABLE INCOME | I49: TAX RATE APPLY | J49: TAX MARGIN SLAB | K49: TAX SLAB | L49: Surch.Rate | M49: E.Cess
A50: Not defined
A51: 0 | B51: 18000 | C51: 0 | D51: 0 | E51: 0 | F51: 0 | G51: 0 | H51: =H37 -> 1820000 | I51: =VLOOKUP(H51,A51:C55,3) -> 0.5 | J51: =INDEX(D51:D55,MATCH(I51,C51:C55,0)) -> 100000 | K51: =INDEX(E51:E55,MATCH(I51,C51:C55,0)) -> 29250 | L51: =IF(H51>H55,VLOOKUP(H51,A51:F55,6),0) -> 0.05 | M51: =VLOOKUP(H51,A51:G55,7) -> 0
A52: =B51+1 -> 18001 | B52: 25000 | C52: 0.25 | D52: =B51 -> 18000 | E52: =(B52-B51)*C52 -> 1750 | F52: 0 | G52: 0 | H52: TAX CALCULALTION | I52: SURCHARGE | J52: E. CESS | K52: TOTAL TAX DUE
A53: =B52+1 -> 25001 | B53: 50000 | C53: 0.3 | D53: =B52 -> 25000 | E53: =E52+(B53-B52)*C53 -> 9250 | F53: 0 | G53: 0 | H53: =IF(I51=C55,E54+ROUND((H51-J51),0)*I51,IF(I51=C54,E53+ROUND((H51-J51)*I51,0),IF(I51=C53,E52+ROUND((H51-J51)*I51,0),IF(I51=C52,E51+ROUND((H51-J51)*I51,0),E50+ROUND((H51-J51)*I51,0))))) -> 889250 | I53: =MIN(K55:L55) -> 44463 | J53: =ROUND(SUM(H53+I53)*M51,0) -> 0 | K53: =SUM(H53:J53) -> 933713
A54: =B53+1 -> 50001 | B54: 100000 | C54: 0.4 | D54: =B53 -> 50000 | E54: =E53+(B54-B53)*C54 -> 29250 | F54: 0.05 | G54: 0 | H54: Surcharge limit | I54: Add.Tax Income | J54: Add. Tax | K54: Diff | L54: Sur. Amt | M54: M.R.
A55: =B54+1 -> 100001 | C55: 0.5 | D55: 100000 | E55: =IF(J52=0,0,E54) -> 29250 | F55: 0.05 | G55: 0 | H55: =H48 -> 50000 | I55: =IF(H51>H55,H51-H55,0) -> 1770000 | J55: =IF(I55>0,ROUND(I55*I51,0),0) -> 885000 | K55: =I55-J55 -> 885000 | L55: =IF(H53>0,ROUND(H53*L51,0),0) -> 44463 | M55: =IF(K55>L55,0,L55-K55) -> 0
A56: Very Senior Citizen | D56: TAX MARGIN | E56: TAX AT MARGIN | F56: SUR RATE | G56: E.Cess | H56: TAXABLE INCOME | I56: TAX RATE APPLY | J56: TAX MARGIN SLAB | K56: TAX SLAB | L56: Surch.Rate | M56: E.Cess
A57: Not defined
A58: 0 | B58: 18000 | C58: 0 | D58: 0 | E58: 0 | F58: 0 | G58: 0 | H58: =H37 -> 1820000 | I58: =VLOOKUP(H58,A58:C62,3) -> 0.5 | J58: =INDEX(D58:D62,MATCH(I58,C58:C62,0)) -> 100000 | K58: =INDEX(E58:E62,MATCH(I58,C58:C62,0)) -> 29250 | L58: =IF(H58>H62,VLOOKUP(H58,A58:F62,6),0) -> 0.05 | M58: =VLOOKUP(H58,A58:G62,7) -> 0
A59: =B58+1 -> 18001 | B59: 25000 | C59: 0.25 | D59: =B58 -> 18000 | E59: =(B59-B58)*C59 -> 1750 | F59: 0 | G59: 0 | H59: TAX CALCULALTION | I59: SURCHARGE | J59: E. CESS | K59: TOTAL TAX DUE
A60: =B59+1 -> 25001 | B60: 50000 | C60: 0.3 | D60: =B59 -> 25000 | E60: =E59+(B60-B59)*C60 -> 9250 | F60: 0 | G60: 0 | H60: =IF(I58=C62,E61+ROUND((H58-J58),0)*I58,IF(I58=C61,E60+ROUND((H58-J58)*I58,0),IF(I58=C60,E59+ROUND((H58-J58)*I58,0),IF(I58=C59,E58+ROUND((H58-J58)*I58,0),E57+ROUND((H58-J58)*I58,0))))) -> 889250 | I60: =MIN(K62:L62) -> 44463 | J60: =ROUND(SUM(H60+I60)*M58,0) -> 0 | K60: =SUM(H60:J60) -> 933713
A61: =B60+1 -> 50001 | B61: 100000 | C61: 0.4 | D61: =B60 -> 50000 | E61: =E60+(B61-B60)*C61 -> 29250 | F61: 0.05 | G61: 0 | H61: Surcharge limit | I61: Add.Tax Income | J61: Add. Tax | K61: Diff | L61: Sur. Amt | M61: M.R.
A62: =B61+1 -> 100001 | C62: 0.5 | D62: 100000 | E62: =IF(J59=0,0,E61) -> 29250 | F62: 0.05 | G62: 0 | H62: =H55 -> 50000 | I62: =IF(H58>H62,H58-H62,0) -> 1770000 | J62: =IF(I62>0,ROUND(I62*I58,0),0) -> 885000 | K62: =I62-J62 -> 885000 | L62: =IF(H60>0,ROUND(H60*L58,0),0) -> 44463 | M62: =IF(K62>L62,0,L62-K62) -> 0
C63: 1987 | D63: =C63+1 -> 1988 | F63: 1987-88
A64: Male | D64: TAX MARGIN | E64: TAX AT MARGIN | F64: SUR RATE | G64: E.Cess | H64: TAXABLE INCOME | I64: TAX RATE APPLY | J64: TAX MARGIN SLAB | K64: TAX SLAB | L64: Surch.Rate | M64: E.Cess | N64: Tax Range
A65: Not defined | N65: F.Year | O65: =C63 -> 1987 | P65: =D63 -> 1988
A66: 0 | B66: 18000 | C66: 0 | D66: 0 | E66: 0 | F66: 0 | G66: 0 | H66: =$E$4 -> 1820000 | I66: =VLOOKUP(H66,A66:C70,3) -> 0.5 | J66: =INDEX(D66:D70,MATCH(I66,C66:C70,0)) -> 100000 | K66: =INDEX(E66:E70,MATCH(I66,C66:C70,0)) -> 29250 | L66: =IF(H66>H70,VLOOKUP(H66,A66:F70,6),0) -> 0.05 | M66: =VLOOKUP(H66,A66:G70,7) -> 0 | N66: 0 | O66: =IF($E$3="Male",B66,IF($E$3="Female",B73,IF($E$3="Senior Citizen",B80,B87))) -> 18000 | P66: 0
A67: =B66+1 -> 18001 | B67: 25000 | C67: 0.25 | D67: =B66 -> 18000 | E67: =(B67-B66)*C67 -> 1750 | F67: 0 | G67: 0 | H67: TAX CALCULALTION | I67: SURCHARGE | J67: E. CESS | K67: TOTAL TAX DUE | N67: =O66+1 -> 18001 | O67: 25000 | P67: 0.25
A68: =B67+1 -> 25001 | B68: 50000 | C68: 0.3 | D68: =B67 -> 25000 | E68: =E67+(B68-B67)*C68 -> 9250 | F68: 0 | G68: 0 | H68: =IF(I66=C70,E69+ROUND((H66-J66),0)*I66,IF(I66=C69,E68+ROUND((H66-J66)*I66,0),IF(I66=C68,E67+ROUND((H66-J66)*I66,0),IF(I66=C67,E66+ROUND((H66-J66)*I66,0),E65+ROUND((H66-J66)*I66,0))))) -> 889250 | I68: =MIN(K70:L70) -> 44463 | J68: =ROUND(SUM(H68+I68)*M66,0) -> 0 | K68: =SUM(H68:J68) -> 933713 | N68: =O67+1 -> 25001 | O68: 50000 | P68: 0.3
A69: =B68+1 -> 50001 | B69: 100000 | C69: 0.4 | D69: =B68 -> 50000 | E69: =E68+(B69-B68)*C69 -> 29250 | F69: 0.05 | G69: 0 | H69: Surcharge limit | I69: Add.Tax Income | J69: Add. Tax | K69: Diff | L69: Sur. Amt | M69: M.R. | N69: =O68+1 -> 50001 | O69: 100000 | P69: 0.4
A70: =B69+1 -> 100001 | C70: 0.5 | D70: 100000 | E70: =IF(J67=0,0,E69) -> 29250 | F70: 0.05 | G70: 0 | H70: 50000 | I70: =IF(H66>H70,H66-H70,0) -> 1770000 | J70: =IF(I70>0,ROUND(I70*I66,0),0) -> 885000 | K70: =I70-J70 -> 885000 | L70: =IF(H68>0,ROUND(H68*L66,0),0) -> 44463 | M70: =IF(K70>L70,0,L70-K70) -> 0 | N70: =O69+1 -> 100001 | O70: 0 | P70: 0.5
A71: Female | D71: TAX MARGIN | E71: TAX AT MARGIN | F71: SUR RATE | G71: E.Cess | H71: TAXABLE INCOME | I71: TAX RATE APPLY | J71: TAX MARGIN SLAB | K71: TAX SLAB | L71: Surch.Rate | M71: E.Cess | N71: TAX CALCULALTION | P71: =IF($E$3="Male",H68,IF($E$3="Female",H75,IF($E$3="Senior Citizen",H82,H89))) -> 889250
A72: Not defined | N72: SURCHARGE | P72: =IF($E$3="Male",I68,IF($E$3="Female",I75,IF($E$3="Senior Citizen",I82,I89))) -> 44463
A73: 0 | B73: 18000 | C73: 0 | D73: 0 | E73: 0 | F73: 0 | G73: 0 | H73: =H66 -> 1820000 | I73: =VLOOKUP(H73,A73:C77,3) -> 0.5 | J73: =INDEX(D73:D77,MATCH(I73,C73:C77,0)) -> 100000 | K73: =INDEX(E73:E77,MATCH(I73,C73:C77,0)) -> 29250 | L73: =IF(H73>H77,VLOOKUP(H73,A73:F77,6),0) -> 0.05 | M73: =VLOOKUP(H73,A73:G77,7) -> 0 | N73: E. CESS | P73: =IF($E$3="Male",J68,IF($E$3="Female",J75,IF($E$3="Senior Citizen",J82,J89))) -> 0
A74: =B73+1 -> 18001 | B74: 25000 | C74: 0.25 | D74: =B73 -> 18000 | E74: =(B74-B73)*C74 -> 1750 | F74: 0 | G74: 0 | H74: TAX CALCULALTION | I74: SURCHARGE | J74: E. CESS | K74: TOTAL TAX DUE | N74: TOTAL TAX DUE | P74: =IF($E$3="Male",K68,IF($E$3="Female",K75,IF($E$3="Senior Citizen",K82,K89))) -> 933713
A75: =B74+1 -> 25001 | B75: 50000 | C75: 0.3 | D75: =B74 -> 25000 | E75: =E74+(B75-B74)*C75 -> 9250 | F75: 0 | G75: 0 | H75: =IF(I73=C77,E76+ROUND((H73-J73),0)*I73,IF(I73=C76,E75+ROUND((H73-J73)*I73,0),IF(I73=C75,E74+ROUND((H73-J73)*I73,0),IF(I73=C74,E73+ROUND((H73-J73)*I73,0),E72+ROUND((H73-J73)*I73,0))))) -> 889250 | I75: =MIN(K77:L77) -> 44463 | J75: =ROUND(SUM(H75+I75)*M73,0) -> 0 | K75: =SUM(H75:J75) -> 933713 | N75: Age Defined | P75: =IF($E$3="Male",A65,IF($E$3="Female",A72,IF($E$3="Senior Citizen",A79,A86))) -> Not defined
A76: =B75+1 -> 50001 | B76: 100000 | C76: 0.4 | D76: =B75 -> 50000 | E76: =E75+(B76-B75)*C76 -> 29250 | F76: 0.05 | G76: 0 | H76: Surcharge limit | I76: Add.Tax Income | J76: Add. Tax | K76: Diff | L76: Sur. Amt | M76: M.R. | N76: Marginal Releif | P76: =IF($E$3="Male",M70,IF($E$3="Female",M77,IF($E$3="Senior Citizen",M84,M91))) -> 0
A77: =B76+1 -> 100001 | C77: 0.5 | D77: 100000 | E77: =IF(J74=0,0,E76) -> 29250 | F77: 0.05 | G77: 0 | H77: =H70 -> 50000 | I77: =IF(H73>H77,H73-H77,0) -> 1770000 | J77: =IF(I77>0,ROUND(I77*I73,0),0) -> 885000 | K77: =I77-J77 -> 885000 | L77: =IF(H75>0,ROUND(H75*L73,0),0) -> 44463 | M77: =IF(K77>L77,0,L77-K77) -> 0 | N77: Tax Due | P77: =IF($E$3="Male",K68,IF($E$3="Female",K75,IF($E$3="Senior Citizen",K82,K89))) -> 933713
A78: Senior Citizen | D78: TAX MARGIN | E78: TAX AT MARGIN | F78: SUR RATE | G78: E.Cess | H78: TAXABLE INCOME | I78: TAX RATE APPLY | J78: TAX MARGIN SLAB | K78: TAX SLAB | L78: Surch.Rate | M78: E.Cess
A79: Not defined
A80: 0 | B80: 18000 | C80: 0 | D80: 0 | E80: 0 | F80: 0 | G80: 0 | H80: =H66 -> 1820000 | I80: =VLOOKUP(H80,A80:C84,3) -> 0.5 | J80: =INDEX(D80:D84,MATCH(I80,C80:C84,0)) -> 100000 | K80: =INDEX(E80:E84,MATCH(I80,C80:C84,0)) -> 29250 | L80: =IF(H80>H84,VLOOKUP(H80,A80:F84,6),0) -> 0.05 | M80: =VLOOKUP(H80,A80:G84,7) -> 0
A81: =B80+1 -> 18001 | B81: 25000 | C81: 0.25 | D81: =B80 -> 18000 | E81: =(B81-B80)*C81 -> 1750 | F81: 0 | G81: 0 | H81: TAX CALCULALTION | I81: SURCHARGE | J81: E. CESS | K81: TOTAL TAX DUE
A82: =B81+1 -> 25001 | B82: 50000 | C82: 0.3 | D82: =B81 -> 25000 | E82: =E81+(B82-B81)*C82 -> 9250 | F82: 0 | G82: 0 | H82: =IF(I80=C84,E83+ROUND((H80-J80),0)*I80,IF(I80=C83,E82+ROUND((H80-J80)*I80,0),IF(I80=C82,E81+ROUND((H80-J80)*I80,0),IF(I80=C81,E80+ROUND((H80-J80)*I80,0),E79+ROUND((H80-J80)*I80,0))))) -> 889250 | I82: =MIN(K84:L84) -> 44463 | J82: =ROUND(SUM(H82+I82)*M80,0) -> 0 | K82: =SUM(H82:J82) -> 933713
A83: =B82+1 -> 50001 | B83: 100000 | C83: 0.4 | D83: =B82 -> 50000 | E83: =E82+(B83-B82)*C83 -> 29250 | F83: 0.05 | G83: 0 | H83: Surcharge limit | I83: Add.Tax Income | J83: Add. Tax | K83: Diff | L83: Sur. Amt | M83: M.R.
A84: =B83+1 -> 100001 | C84: 0.5 | D84: 100000 | E84: =IF(J81=0,0,E83) -> 29250 | F84: 0.05 | G84: 0 | H84: =H77 -> 50000 | I84: =IF(H80>H84,H80-H84,0) -> 1770000 | J84: =IF(I84>0,ROUND(I84*I80,0),0) -> 885000 | K84: =I84-J84 -> 885000 | L84: =IF(H82>0,ROUND(H82*L80,0),0) -> 44463 | M84: =IF(K84>L84,0,L84-K84) -> 0
A85: Very Senior Citizen | D85: TAX MARGIN | E85: TAX AT MARGIN | F85: SUR RATE | G85: E.Cess | H85: TAXABLE INCOME | I85: TAX RATE APPLY | J85: TAX MARGIN SLAB | K85: TAX SLAB | L85: Surch.Rate | M85: E.Cess
A86: Not defined
A87: 0 | B87: 18000 | C87: 0 | D87: 0 | E87: 0 | F87: 0 | G87: 0 | H87: =H66 -> 1820000 | I87: =VLOOKUP(H87,A87:C91,3) -> 0.5 | J87: =INDEX(D87:D91,MATCH(I87,C87:C91,0)) -> 100000 | K87: =INDEX(E87:E91,MATCH(I87,C87:C91,0)) -> 29250 | L87: =IF(H87>H91,VLOOKUP(H87,A87:F91,6),0) -> 0.05 | M87: =VLOOKUP(H87,A87:G91,7) -> 0
A88: =B87+1 -> 18001 | B88: 25000 | C88: 0.25 | D88: =B87 -> 18000 | E88: =(B88-B87)*C88 -> 1750 | F88: 0 | G88: 0 | H88: TAX CALCULALTION | I88: SURCHARGE | J88: E. CESS | K88: TOTAL TAX DUE
A89: =B88+1 -> 25001 | B89: 50000 | C89: 0.3 | D89: =B88 -> 25000 | E89: =E88+(B89-B88)*C89 -> 9250 | F89: 0 | G89: 0 | H89: =IF(I87=C91,E90+ROUND((H87-J87),0)*I87,IF(I87=C90,E89+ROUND((H87-J87)*I87,0),IF(I87=C89,E88+ROUND((H87-J87)*I87,0),IF(I87=C88,E87+ROUND((H87-J87)*I87,0),E86+ROUND((H87-J87)*I87,0))))) -> 889250 | I89: =MIN(K91:L91) -> 44463 | J89: =ROUND(SUM(H89+I89)*M87,0) -> 0 | K89: =SUM(H89:J89) -> 933713
A90: =B89+1 -> 50001 | B90: 100000 | C90: 0.4 | D90: =B89 -> 50000 | E90: =E89+(B90-B89)*C90 -> 29250 | F90: 0.05 | G90: 0 | H90: Surcharge limit | I90: Add.Tax Income | J90: Add. Tax | K90: Diff | L90: Sur. Amt | M90: M.R.
A91: =B90+1 -> 100001 | C91: 0.5 | D91: 100000 | E91: =IF(J88=0,0,E90) -> 29250 | F91: 0.05 | G91: 0 | H91: =H84 -> 50000 | I91: =IF(H87>H91,H87-H91,0) -> 1770000 | J91: =IF(I91>0,ROUND(I91*I87,0),0) -> 885000 | K91: =I91-J91 -> 885000 | L91: =IF(H89>0,ROUND(H89*L87,0),0) -> 44463 | M91: =IF(K91>L91,0,L91-K91) -> 0
C92: 1988 | D92: =C92+1 -> 1989 | F92: 1988-89
A93: Male | D93: TAX MARGIN | E93: TAX AT MARGIN | F93: SUR RATE | G93: E.Cess | H93: TAXABLE INCOME | I93: TAX RATE APPLY | J93: TAX MARGIN SLAB | K93: TAX SLAB | L93: Surch.Rate | M93: E.Cess | N93: Tax Range
A94: Not defined | N94: F.Year | O94: =C92 -> 1988 | P94: =D92 -> 1989
A95: 0 | B95: 18000 | C95: 0 | D95: 0 | E95: 0 | F95: 0 | G95: 0 | H95: =$E$4 -> 1820000 | I95: =VLOOKUP(H95,A95:C99,3) -> 0.5 | J95: =INDEX(D95:D99,MATCH(I95,C95:C99,0)) -> 100000 | K95: =INDEX(E95:E99,MATCH(I95,C95:C99,0)) -> 29250 | L95: =IF(H95>H99,VLOOKUP(H95,A95:F99,6),0) -> 0.05 | M95: =VLOOKUP(H95,A95:G99,7) -> 0 | N95: 0 | O95: =IF($E$3="Male",B95,IF($E$3="Female",B102,IF($E$3="Senior Citizen",B109,B116))) -> 18000 | P95: 0
A96: =B95+1 -> 18001 | B96: 25000 | C96: 0.25 | D96: =B95 -> 18000 | E96: =(B96-B95)*C96 -> 1750 | F96: 0 | G96: 0 | H96: TAX CALCULALTION | I96: SURCHARGE | J96: E. CESS | K96: TOTAL TAX DUE | N96: =O95+1 -> 18001 | O96: 25000 | P96: 0.25
A97: =B96+1 -> 25001 | B97: 50000 | C97: 0.3 | D97: =B96 -> 25000 | E97: =E96+(B97-B96)*C97 -> 9250 | F97: 0 | G97: 0 | H97: =IF(I95=C99,E98+ROUND((H95-J95),0)*I95,IF(I95=C98,E97+ROUND((H95-J95)*I95,0),IF(I95=C97,E96+ROUND((H95-J95)*I95,0),IF(I95=C96,E95+ROUND((H95-J95)*I95,0),E94+ROUND((H95-J95)*I95,0))))) -> 889250 | I97: =MIN(K99:L99) -> 44463 | J97: =ROUND(SUM(H97+I97)*M95,0) -> 0 | K97: =SUM(H97:J97) -> 933713 | N97: =O96+1 -> 25001 | O97: 50000 | P97: 0.3
A98: =B97+1 -> 50001 | B98: 100000 | C98: 0.4 | D98: =B97 -> 50000 | E98: =E97+(B98-B97)*C98 -> 29250 | F98: 0.05 | G98: 0 | H98: Surcharge limit | I98: Add.Tax Income | J98: Add. Tax | K98: Diff | L98: Sur. Amt | M98: M.R. | N98: =O97+1 -> 50001 | O98: 100000 | P98: 0.4
A99: =B98+1 -> 100001 | C99: 0.5 | D99: 100000 | E99: =IF(J96=0,0,E98) -> 29250 | F99: 0.05 | G99: 0 | H99: 50000 | I99: =IF(H95>H99,H95-H99,0) -> 1770000 | J99: =IF(I99>0,ROUND(I99*I95,0),0) -> 885000 | K99: =I99-J99 -> 885000 | L99: =IF(H97>0,ROUND(H97*L95,0),0) -> 44463 | M99: =IF(K99>L99,0,L99-K99) -> 0 | N99: =O98+1 -> 100001 | O99: 0 | P99: 0.5
A100: Female | D100: TAX MARGIN | E100: TAX AT MARGIN | F100: SUR RATE | G100: E.Cess | H100: TAXABLE INCOME | I100: TAX RATE APPLY | J100: TAX MARGIN SLAB | K100: TAX SLAB | L100: Surch.Rate | M100: E.Cess | N100: TAX CALCULALTION | P100: =IF($E$3="Male",H97,IF($E$3="Female",H104,IF($E$3="Senior Citizen",H111,H118))) -> 889250
A101: Not defined | N101: SURCHARGE | P101: =IF($E$3="Male",I97,IF($E$3="Female",I104,IF($E$3="Senior Citizen",I111,I118))) -> 44463
A102: 0 | B102: 18000 | C102: 0 | D102: 0 | E102: 0 | F102: 0 | G102: 0 | H102: =H95 -> 1820000 | I102: =VLOOKUP(H102,A102:C106,3) -> 0.5 | J102: =INDEX(D102:D106,MATCH(I102,C102:C106,0)) -> 100000 | K102: =INDEX(E102:E106,MATCH(I102,C102:C106,0)) -> 29250 | L102: =IF(H102>H106,VLOOKUP(H102,A102:F106,6),0) -> 0.05 | M102: =VLOOKUP(H102,A102:G106,7) -> 0 | N102: E. CESS | P102: =IF($E$3="Male",J97,IF($E$3="Female",J104,IF($E$3="Senior Citizen",J111,J118))) -> 0
A103: =B102+1 -> 18001 | B103: 25000 | C103: 0.25 | D103: =B102 -> 18000 | E103: =(B103-B102)*C103 -> 1750 | F103: 0 | G103: 0 | H103: TAX CALCULALTION | I103: SURCHARGE | J103: E. CESS | K103: TOTAL TAX DUE | N103: TOTAL TAX DUE | P103: =IF($E$3="Male",K97,IF($E$3="Female",K104,IF($E$3="Senior Citizen",K111,K118))) -> 933713
A104: =B103+1 -> 25001 | B104: 50000 | C104: 0.3 | D104: =B103 -> 25000 | E104: =E103+(B104-B103)*C104 -> 9250 | F104: 0 | G104: 0 | H104: =IF(I102=C106,E105+ROUND((H102-J102),0)*I102,IF(I102=C105,E104+ROUND((H102-J102)*I102,0),IF(I102=C104,E103+ROUND((H102-J102)*I102,0),IF(I102=C103,E102+ROUND((H102-J102)*I102,0),E101+ROUND((H102-J102)*I102,0))))) -> 889250 | I104: =MIN(K106:L106) -> 44463 | J104: =ROUND(SUM(H104+I104)*M102,0) -> 0 | K104: =SUM(H104:J104) -> 933713 | N104: Age Defined | P104: =IF($E$3="Male",A94,IF($E$3="Female",A101,IF($E$3="Senior Citizen",A108,A115))) -> Not defined
A105: =B104+1 -> 50001 | B105: 100000 | C105: 0.4 | D105: =B104 -> 50000 | E105: =E104+(B105-B104)*C105 -> 29250 | F105: 0.05 | G105: 0 | H105: Surcharge limit | I105: Add.Tax Income | J105: Add. Tax | K105: Diff | L105: Sur. Amt | M105: M.R. | N105: Marginal Releif | P105: =IF($E$3="Male",M99,IF($E$3="Female",M106,IF($E$3="Senior Citizen",M113,M120))) -> 0
A106: =B105+1 -> 100001 | C106: 0.5 | D106: 100000 | E106: =IF(J103=0,0,E105) -> 29250 | F106: 0.05 | G106: 0 | H106: =H99 -> 50000 | I106: =IF(H102>H106,H102-H106,0) -> 1770000 | J106: =IF(I106>0,ROUND(I106*I102,0),0) -> 885000 | K106: =I106-J106 -> 885000 | L106: =IF(H104>0,ROUND(H104*L102,0),0) -> 44463 | M106: =IF(K106>L106,0,L106-K106) -> 0 | N106: Tax Due | P106: =IF($E$3="Male",K97,IF($E$3="Female",K104,IF($E$3="Senior Citizen",K111,K118))) -> 933713
A107: Senior Citizen | D107: TAX MARGIN | E107: TAX AT MARGIN | F107: SUR RATE | G107: E.Cess | H107: TAXABLE INCOME | I107: TAX RATE APPLY | J107: TAX MARGIN SLAB | K107: TAX SLAB | L107: Surch.Rate | M107: E.Cess
A108: Not defined
A109: 0 | B109: 18000 | C109: 0 | D109: 0 | E109: 0 | F109: 0 | G109: 0 | H109: =H95 -> 1820000 | I109: =VLOOKUP(H109,A109:C113,3) -> 0.5 | J109: =INDEX(D109:D113,MATCH(I109,C109:C113,0)) -> 100000 | K109: =INDEX(E109:E113,MATCH(I109,C109:C113,0)) -> 29250 | L109: =IF(H109>H113,VLOOKUP(H109,A109:F113,6),0) -> 0.05 | M109: =VLOOKUP(H109,A109:G113,7) -> 0
A110: =B109+1 -> 18001 | B110: 25000 | C110: 0.25 | D110: =B109 -> 18000 | E110: =(B110-B109)*C110 -> 1750 | F110: 0 | G110: 0 | H110: TAX CALCULALTION | I110: SURCHARGE | J110: E. CESS | K110: TOTAL TAX DUE
A111: =B110+1 -> 25001 | B111: 50000 | C111: 0.3 | D111: =B110 -> 25000 | E111: =E110+(B111-B110)*C111 -> 9250 | F111: 0 | G111: 0 | H111: =IF(I109=C113,E112+ROUND((H109-J109),0)*I109,IF(I109=C112,E111+ROUND((H109-J109)*I109,0),IF(I109=C111,E110+ROUND((H109-J109)*I109,0),IF(I109=C110,E109+ROUND((H109-J109)*I109,0),E108+ROUND((H109-J109)*I109,0))))) -> 889250 | I111: =MIN(K113:L113) -> 44463 | J111: =ROUND(SUM(H111+I111)*M109,0) -> 0 | K111: =SUM(H111:J111) -> 933713
A112: =B111+1 -> 50001 | B112: 100000 | C112: 0.4 | D112: =B111 -> 50000 | E112: =E111+(B112-B111)*C112 -> 29250 | F112: 0.05 | G112: 0 | H112: Surcharge limit | I112: Add.Tax Income | J112: Add. Tax | K112: Diff | L112: Sur. Amt | M112: M.R.
A113: =B112+1 -> 100001 | C113: 0.5 | D113: 100000 | E113: =IF(J110=0,0,E112) -> 29250 | F113: 0.05 | G113: 0 | H113: =H106 -> 50000 | I113: =IF(H109>H113,H109-H113,0) -> 1770000 | J113: =IF(I113>0,ROUND(I113*I109,0),0) -> 885000 | K113: =I113-J113 -> 885000 | L113: =IF(H111>0,ROUND(H111*L109,0),0) -> 44463 | M113: =IF(K113>L113,0,L113-K113) -> 0
A114: Very Senior Citizen | D114: TAX MARGIN | E114: TAX AT MARGIN | F114: SUR RATE | G114: E.Cess | H114: TAXABLE INCOME | I114: TAX RATE APPLY | J114: TAX MARGIN SLAB | K114: TAX SLAB | L114: Surch.Rate | M114: E.Cess
A115: Not defined
A116: 0 | B116: 18000 | C116: 0 | D116: 0 | E116: 0 | F116: 0 | G116: 0 | H116: =H95 -> 1820000 | I116: =VLOOKUP(H116,A116:C120,3) -> 0.5 | J116: =INDEX(D116:D120,MATCH(I116,C116:C120,0)) -> 100000 | K116: =INDEX(E116:E120,MATCH(I116,C116:C120,0)) -> 29250 | L116: =IF(H116>H120,VLOOKUP(H116,A116:F120,6),0) -> 0.05 | M116: =VLOOKUP(H116,A116:G120,7) -> 0
A117: =B116+1 -> 18001 | B117: 25000 | C117: 0.25 | D117: =B116 -> 18000 | E117: =(B117-B116)*C117 -> 1750 | F117: 0 | G117: 0 | H117: TAX CALCULALTION | I117: SURCHARGE | J117: E. CESS | K117: TOTAL TAX DUE
A118: =B117+1 -> 25001 | B118: 50000 | C118: 0.3 | D118: =B117 -> 25000 | E118: =E117+(B118-B117)*C118 -> 9250 | F118: 0 | G118: 0 | H118: =IF(I116=C120,E119+ROUND((H116-J116),0)*I116,IF(I116=C119,E118+ROUND((H116-J116)*I116,0),IF(I116=C118,E117+ROUND((H116-J116)*I116,0),IF(I116=C117,E116+ROUND((H116-J116)*I116,0),E115+ROUND((H116-J116)*I116,0))))) -> 889250 | I118: =MIN(K120:L120) -> 44463 | J118: =ROUND(SUM(H118+I118)*M116,0) -> 0 | K118: =SUM(H118:J118) -> 933713
A119: =B118+1 -> 50001 | B119: 100000 | C119: 0.4 | D119: =B118 -> 50000 | E119: =E118+(B119-B118)*C119 -> 29250 | F119: 0.05 | G119: 0 | H119: Surcharge limit | I119: Add.Tax Income | J119: Add. Tax | K119: Diff | L119: Sur. Amt | M119: M.R.
A120: =B119+1 -> 100001 | C120: 0.5 | D120: 100000 | E120: =IF(J117=0,0,E119) -> 29250 | F120: 0.05 | G120: 0 | H120: =H113 -> 50000 | I120: =IF(H116>H120,H116-H120,0) -> 1770000 | J120: =IF(I120>0,ROUND(I120*I116,0),0) -> 885000 | K120: =I120-J120 -> 885000 | L120: =IF(H118>0,ROUND(H118*L116,0),0) -> 44463 | M120: =IF(K120>L120,0,L120-K120) -> 0
C121: 1989 | D121: =C121+1 -> 1990 | F121: 1989-90
A122: Male | D122: TAX MARGIN | E122: TAX AT MARGIN | F122: SUR RATE | G122: E.Cess | H122: TAXABLE INCOME | I122: TAX RATE APPLY | J122: TAX MARGIN SLAB | K122: TAX SLAB | L122: Surch.Rate | M122: E.Cess | N122: Tax Range
A123: Not defined | N123: F.Year | O123: =C121 -> 1989 | P123: =D121 -> 1990
A124: 0 | B124: 18000 | C124: 0 | D124: 0 | E124: 0 | F124: 0 | G124: 0 | H124: =$E$4 -> 1820000 | I124: =VLOOKUP(H124,A124:C128,3) -> 0.5 | J124: =INDEX(D124:D128,MATCH(I124,C124:C128,0)) -> 100000 | K124: =INDEX(E124:E128,MATCH(I124,C124:C128,0)) -> 28900 | L124: =IF(H124>H128,VLOOKUP(H124,A124:F128,6),0) -> 0.08 | M124: =VLOOKUP(H124,A124:G128,7) -> 0 | N124: 0 | O124: =IF($E$3="Male",B124,IF($E$3="Female",B131,IF($E$3="Senior Citizen",B138,B145))) -> 18000 | P124: 0
A125: =B124+1 -> 18001 | B125: 25000 | C125: 0.2 | D125: =B124 -> 18000 | E125: =(B125-B124)*C125 -> 1400 | F125: 0 | G125: 0 | H125: TAX CALCULALTION | I125: SURCHARGE | J125: E. CESS | K125: TOTAL TAX DUE | N125: =O124+1 -> 18001 | O125: 25000 | P125: 0.2
A126: =B125+1 -> 25001 | B126: 50000 | C126: 0.3 | D126: =B125 -> 25000 | E126: =E125+(B126-B125)*C126 -> 8900 | F126: 0 | G126: 0 | H126: =IF(I124=C128,E127+ROUND((H124-J124),0)*I124,IF(I124=C127,E126+ROUND((H124-J124)*I124,0),IF(I124=C126,E125+ROUND((H124-J124)*I124,0),IF(I124=C125,E124+ROUND((H124-J124)*I124,0),E123+ROUND((H124-J124)*I124,0))))) -> 888900 | I126: =MIN(K128:L128) -> 71112 | J126: =ROUND(SUM(H126+I126)*M124,0) -> 0 | K126: =SUM(H126:J126) -> 960012 | N126: =O125+1 -> 25001 | O126: 50000 | P126: 0.3
A127: =B126+1 -> 50001 | B127: 100000 | C127: 0.4 | D127: =B126 -> 50000 | E127: =E126+(B127-B126)*C127 -> 28900 | F127: 0.08 | G127: 0 | H127: Surcharge limit | I127: Add.Tax Income | J127: Add. Tax | K127: Diff | L127: Sur. Amt | M127: M.R. | N127: =O126+1 -> 50001 | O127: 100000 | P127: 0.4
A128: =B127+1 -> 100001 | C128: 0.5 | D128: 100000 | E128: =IF(J125=0,0,E127) -> 28900 | F128: 0.08 | G128: 0 | H128: 50000 | I128: =IF(H124>H128,H124-H128,0) -> 1770000 | J128: =IF(I128>0,ROUND(I128*I124,0),0) -> 885000 | K128: =I128-J128 -> 885000 | L128: =IF(H126>0,ROUND(H126*L124,0),0) -> 71112 | M128: =IF(K128>L128,0,L128-K128) -> 0 | N128: =O127+1 -> 100001 | O128: 0 | P128: 0.5
A129: Female | D129: TAX MARGIN | E129: TAX AT MARGIN | F129: SUR RATE | G129: E.Cess | H129: TAXABLE INCOME | I129: TAX RATE APPLY | J129: TAX MARGIN SLAB | K129: TAX SLAB | L129: Surch.Rate | M129: E.Cess | N129: TAX CALCULALTION | P129: =IF($E$3="Male",H126,IF($E$3="Female",H133,IF($E$3="Senior Citizen",H140,H147))) -> 888900
A130: Not defined | N130: SURCHARGE | P130: =IF($E$3="Male",I126,IF($E$3="Female",I133,IF($E$3="Senior Citizen",I140,I147))) -> 71112
A131: 0 | B131: 18000 | C131: 0 | D131: 0 | E131: 0 | F131: 0 | G131: 0 | H131: =H124 -> 1820000 | I131: =VLOOKUP(H131,A131:C135,3) -> 0.5 | J131: =INDEX(D131:D135,MATCH(I131,C131:C135,0)) -> 100000 | K131: =INDEX(E131:E135,MATCH(I131,C131:C135,0)) -> 28900 | L131: =IF(H131>H135,VLOOKUP(H131,A131:F135,6),0) -> 0.08 | M131: =VLOOKUP(H131,A131:G135,7) -> 0 | N131: E. CESS | P131: =IF($E$3="Male",J126,IF($E$3="Female",J133,IF($E$3="Senior Citizen",J140,J147))) -> 0
A132: =B131+1 -> 18001 | B132: 25000 | C132: 0.2 | D132: =B131 -> 18000 | E132: =(B132-B131)*C132 -> 1400 | F132: 0 | G132: 0 | H132: TAX CALCULALTION | I132: SURCHARGE | J132: E. CESS | K132: TOTAL TAX DUE | N132: TOTAL TAX DUE | P132: =IF($E$3="Male",K126,IF($E$3="Female",K133,IF($E$3="Senior Citizen",K140,K147))) -> 960012
A133: =B132+1 -> 25001 | B133: 50000 | C133: 0.3 | D133: =B132 -> 25000 | E133: =E132+(B133-B132)*C133 -> 8900 | F133: 0 | G133: 0 | H133: =IF(I131=C135,E134+ROUND((H131-J131),0)*I131,IF(I131=C134,E133+ROUND((H131-J131)*I131,0),IF(I131=C133,E132+ROUND((H131-J131)*I131,0),IF(I131=C132,E131+ROUND((H131-J131)*I131,0),E130+ROUND((H131-J131)*I131,0))))) -> 888900 | I133: =MIN(K135:L135) -> 71112 | J133: =ROUND(SUM(H133+I133)*M131,0) -> 0 | K133: =SUM(H133:J133) -> 960012 | N133: Age Defined | P133: =IF($E$3="Male",A123,IF($E$3="Female",A130,IF($E$3="Senior Citizen",A137,A144))) -> Not defined
A134: =B133+1 -> 50001 | B134: 100000 | C134: 0.4 | D134: =B133 -> 50000 | E134: =E133+(B134-B133)*C134 -> 28900 | F134: 0.08 | G134: 0 | H134: Surcharge limit | I134: Add.Tax Income | J134: Add. Tax | K134: Diff | L134: Sur. Amt | M134: M.R. | N134: Marginal Releif | P134: =IF($E$3="Male",M128,IF($E$3="Female",M135,IF($E$3="Senior Citizen",M142,M149))) -> 0
A135: =B134+1 -> 100001 | C135: 0.5 | D135: 100000 | E135: =IF(J132=0,0,E134) -> 28900 | F135: 0.08 | G135: 0 | H135: =H128 -> 50000 | I135: =IF(H131>H135,H131-H135,0) -> 1770000 | J135: =IF(I135>0,ROUND(I135*I131,0),0) -> 885000 | K135: =I135-J135 -> 885000 | L135: =IF(H133>0,ROUND(H133*L131,0),0) -> 71112 | M135: =IF(K135>L135,0,L135-K135) -> 0 | N135: Tax Due | P135: =IF($E$3="Male",K126,IF($E$3="Female",K133,IF($E$3="Senior Citizen",K140,K147))) -> 960012
A136: Senior Citizen | D136: TAX MARGIN | E136: TAX AT MARGIN | F136: SUR RATE | G136: E.Cess | H136: TAXABLE INCOME | I136: TAX RATE APPLY | J136: TAX MARGIN SLAB | K136: TAX SLAB | L136: Surch.Rate | M136: E.Cess
A137: Not defined
A138: 0 | B138: 18000 | C138: 0 | D138: 0 | E138: 0 | F138: 0 | G138: 0 | H138: =H124 -> 1820000 | I138: =VLOOKUP(H138,A138:C142,3) -> 0.5 | J138: =INDEX(D138:D142,MATCH(I138,C138:C142,0)) -> 100000 | K138: =INDEX(E138:E142,MATCH(I138,C138:C142,0)) -> 28900 | L138: =IF(H138>H142,VLOOKUP(H138,A138:F142,6),0) -> 0.08 | M138: =VLOOKUP(H138,A138:G142,7) -> 0
A139: =B138+1 -> 18001 | B139: 25000 | C139: 0.2 | D139: =B138 -> 18000 | E139: =(B139-B138)*C139 -> 1400 | F139: 0 | G139: 0 | H139: TAX CALCULALTION | I139: SURCHARGE | J139: E. CESS | K139: TOTAL TAX DUE
A140: =B139+1 -> 25001 | B140: 50000 | C140: 0.3 | D140: =B139 -> 25000 | E140: =E139+(B140-B139)*C140 -> 8900 | F140: 0 | G140: 0 | H140: =IF(I138=C142,E141+ROUND((H138-J138),0)*I138,IF(I138=C141,E140+ROUND((H138-J138)*I138,0),IF(I138=C140,E139+ROUND((H138-J138)*I138,0),IF(I138=C139,E138+ROUND((H138-J138)*I138,0),E137+ROUND((H138-J138)*I138,0))))) -> 888900 | I140: =MIN(K142:L142) -> 71112 | J140: =ROUND(SUM(H140+I140)*M138,0) -> 0 | K140: =SUM(H140:J140) -> 960012
A141: =B140+1 -> 50001 | B141: 100000 | C141: 0.4 | D141: =B140 -> 50000 | E141: =E140+(B141-B140)*C141 -> 28900 | F141: 0.08 | G141: 0 | H141: Surcharge limit | I141: Add.Tax Income | J141: Add. Tax | K141: Diff | L141: Sur. Amt | M141: M.R.
A142: =B141+1 -> 100001 | C142: 0.5 | D142: 100000 | E142: =IF(J139=0,0,E141) -> 28900 | F142: 0.08 | G142: 0 | H142: =H135 -> 50000 | I142: =IF(H138>H142,H138-H142,0) -> 1770000 | J142: =IF(I142>0,ROUND(I142*I138,0),0) -> 885000 | K142: =I142-J142 -> 885000 | L142: =IF(H140>0,ROUND(H140*L138,0),0) -> 71112 | M142: =IF(K142>L142,0,L142-K142) -> 0
A143: Very Senior Citizen | D143: TAX MARGIN | E143: TAX AT MARGIN | F143: SUR RATE | G143: E.Cess | H143: TAXABLE INCOME | I143: TAX RATE APPLY | J143: TAX MARGIN SLAB | K143: TAX SLAB | L143: Surch.Rate | M143: E.Cess
A144: Not defined
A145: 0 | B145: 18000 | C145: 0 | D145: 0 | E145: 0 | F145: 0 | G145: 0 | H145: =H124 -> 1820000 | I145: =VLOOKUP(H145,A145:C149,3) -> 0.5 | J145: =INDEX(D145:D149,MATCH(I145,C145:C149,0)) -> 100000 | K145: =INDEX(E145:E149,MATCH(I145,C145:C149,0)) -> 28900 | L145: =IF(H145>H149,VLOOKUP(H145,A145:F149,6),0) -> 0.08 | M145: =VLOOKUP(H145,A145:G149,7) -> 0
A146: =B145+1 -> 18001 | B146: 25000 | C146: 0.2 | D146: =B145 -> 18000 | E146: =(B146-B145)*C146 -> 1400 | F146: 0 | G146: 0 | H146: TAX CALCULALTION | I146: SURCHARGE | J146: E. CESS | K146: TOTAL TAX DUE
A147: =B146+1 -> 25001 | B147: 50000 | C147: 0.3 | D147: =B146 -> 25000 | E147: =E146+(B147-B146)*C147 -> 8900 | F147: 0 | G147: 0 | H147: =IF(I145=C149,E148+ROUND((H145-J145),0)*I145,IF(I145=C148,E147+ROUND((H145-J145)*I145,0),IF(I145=C147,E146+ROUND((H145-J145)*I145,0),IF(I145=C146,E145+ROUND((H145-J145)*I145,0),E144+ROUND((H145-J145)*I145,0))))) -> 888900 | I147: =MIN(K149:L149) -> 71112 | J147: =ROUND(SUM(H147+I147)*M145,0) -> 0 | K147: =SUM(H147:J147) -> 960012
A148: =B147+1 -> 50001 | B148: 100000 | C148: 0.4 | D148: =B147 -> 50000 | E148: =E147+(B148-B147)*C148 -> 28900 | F148: 0.08 | G148: 0 | H148: Surcharge limit | I148: Add.Tax Income | J148: Add. Tax | K148: Diff | L148: Sur. Amt | M148: M.R.
A149: =B148+1 -> 100001 | C149: 0.5 | D149: 100000 | E149: =IF(J146=0,0,E148) -> 28900 | F149: 0.08 | G149: 0 | H149: =H142 -> 50000 | I149: =IF(H145>H149,H145-H149,0) -> 1770000 | J149: =IF(I149>0,ROUND(I149*I145,0),0) -> 885000 | K149: =I149-J149 -> 885000 | L149: =IF(H147>0,ROUND(H147*L145,0),0) -> 71112 | M149: =IF(K149>L149,0,L149-K149) -> 0
C150: 1990 | D150: =C150+1 -> 1991 | F150: 1990-91
A151: Male | D151: TAX MARGIN | E151: TAX AT MARGIN | F151: SUR RATE | G151: E.Cess | H151: TAXABLE INCOME | I151: TAX RATE APPLY | J151: TAX MARGIN SLAB | K151: TAX SLAB | L151: Surch.Rate | M151: E.Cess | N151: Tax Range
A152: Not defined | N152: F.Year | O152: =C150 -> 1990 | P152: =D150 -> 1991
A153: 0 | B153: 22000 | C153: 0 | D153: 0 | E153: 0 | F153: 0 | G153: 0 | H153: =$E$4 -> 1820000 | I153: =VLOOKUP(H153,A153:C157,3) -> 0.5 | J153: =INDEX(D153:D157,MATCH(I153,C153:C157,0)) -> 100000 | K153: =INDEX(E153:E157,MATCH(I153,C153:C157,0)) -> 27600 | L153: =IF(H153>H157,VLOOKUP(H153,A153:F157,6),0) -> 0.12 | M153: =VLOOKUP(H153,A153:G157,7) -> 0 | N153: 0 | O153: =IF($E$3="Male",B153,IF($E$3="Female",B160,IF($E$3="Senior Citizen",B167,B174))) -> 22000 | P153: 0
A154: =B153+1 -> 22001 | B154: 30000 | C154: 0.2 | D154: =B153 -> 22000 | E154: =(B154-B153)*C154 -> 1600 | F154: 0 | G154: 0 | H154: TAX CALCULALTION | I154: SURCHARGE | J154: E. CESS | K154: TOTAL TAX DUE | N154: =O153+1 -> 22001 | O154: 30000 | P154: 0.2
A155: =B154+1 -> 30001 | B155: 50000 | C155: 0.3 | D155: =B154 -> 30000 | E155: =E154+(B155-B154)*C155 -> 7600 | F155: 0 | G155: 0 | H155: =IF(I153=C157,E156+ROUND((H153-J153),0)*I153,IF(I153=C156,E155+ROUND((H153-J153)*I153,0),IF(I153=C155,E154+ROUND((H153-J153)*I153,0),IF(I153=C154,E153+ROUND((H153-J153)*I153,0),E152+ROUND((H153-J153)*I153,0))))) -> 887600 | I155: =MIN(K157:L157) -> 106512 | J155: =ROUND(SUM(H155+I155)*M153,0) -> 0 | K155: =SUM(H155:J155) -> 994112 | N155: =O154+1 -> 30001 | O155: 50000 | P155: 0.3
A156: =B155+1 -> 50001 | B156: 100000 | C156: 0.4 | D156: =B155 -> 50000 | E156: =E155+(B156-B155)*C156 -> 27600 | F156: 0.12 | G156: 0 | H156: Surcharge limit | I156: Add.Tax Income | J156: Add. Tax | K156: Diff | L156: Sur. Amt | M156: M.R. | N156: =O155+1 -> 50001 | O156: 100000 | P156: 0.4
A157: =B156+1 -> 100001 | C157: 0.5 | D157: 100000 | E157: =IF(J154=0,0,E156) -> 27600 | F157: 0.12 | G157: 0 | H157: 75000 | I157: =IF(H153>H157,H153-H157,0) -> 1745000 | J157: =IF(I157>0,ROUND(I157*I153,0),0) -> 872500 | K157: =I157-J157 -> 872500 | L157: =IF(H155>0,ROUND(H155*L153,0),0) -> 106512 | M157: =IF(K157>L157,0,L157-K157) -> 0 | N157: =O156+1 -> 100001 | O157: 0 | P157: 0.5
A158: Female | D158: TAX MARGIN | E158: TAX AT MARGIN | F158: SUR RATE | G158: E.Cess | H158: TAXABLE INCOME | I158: TAX RATE APPLY | J158: TAX MARGIN SLAB | K158: TAX SLAB | L158: Surch.Rate | M158: E.Cess | N158: TAX CALCULALTION | P158: =IF($E$3="Male",H155,IF($E$3="Female",H162,IF($E$3="Senior Citizen",H169,H176))) -> 887600
A159: Not defined | N159: SURCHARGE | P159: =IF($E$3="Male",I155,IF($E$3="Female",I162,IF($E$3="Senior Citizen",I169,I176))) -> 106512
A160: 0 | B160: 22000 | C160: 0 | D160: 0 | E160: 0 | F160: 0 | G160: 0 | H160: =H153 -> 1820000 | I160: =VLOOKUP(H160,A160:C164,3) -> 0.5 | J160: =INDEX(D160:D164,MATCH(I160,C160:C164,0)) -> 100000 | K160: =INDEX(E160:E164,MATCH(I160,C160:C164,0)) -> 27600 | L160: =IF(H160>H164,VLOOKUP(H160,A160:F164,6),0) -> 0.12 | M160: =VLOOKUP(H160,A160:G164,7) -> 0 | N160: E. CESS | P160: =IF($E$3="Male",J155,IF($E$3="Female",J162,IF($E$3="Senior Citizen",J169,J176))) -> 0
A161: =B160+1 -> 22001 | B161: 30000 | C161: 0.2 | D161: =B160 -> 22000 | E161: =(B161-B160)*C161 -> 1600 | F161: 0 | G161: 0 | H161: TAX CALCULALTION | I161: SURCHARGE | J161: E. CESS | K161: TOTAL TAX DUE | N161: TOTAL TAX DUE | P161: =IF($E$3="Male",K155,IF($E$3="Female",K162,IF($E$3="Senior Citizen",K169,K176))) -> 994112
A162: =B161+1 -> 30001 | B162: 50000 | C162: 0.3 | D162: =B161 -> 30000 | E162: =E161+(B162-B161)*C162 -> 7600 | F162: 0 | G162: 0 | H162: =IF(I160=C164,E163+ROUND((H160-J160),0)*I160,IF(I160=C163,E162+ROUND((H160-J160)*I160,0),IF(I160=C162,E161+ROUND((H160-J160)*I160,0),IF(I160=C161,E160+ROUND((H160-J160)*I160,0),E159+ROUND((H160-J160)*I160,0))))) -> 887600 | I162: =MIN(K164:L164) -> 106512 | J162: =ROUND(SUM(H162+I162)*M160,0) -> 0 | K162: =SUM(H162:J162) -> 994112 | N162: Age Defined | P162: =IF($E$3="Male",A152,IF($E$3="Female",A159,IF($E$3="Senior Citizen",A166,A173))) -> Not defined
A163: =B162+1 -> 50001 | B163: 100000 | C163: 0.4 | D163: =B162 -> 50000 | E163: =E162+(B163-B162)*C163 -> 27600 | F163: 0.12 | G163: 0 | H163: Surcharge limit | I163: Add.Tax Income | J163: Add. Tax | K163: Diff | L163: Sur. Amt | M163: M.R. | N163: Marginal Releif | P163: =IF($E$3="Male",M157,IF($E$3="Female",M164,IF($E$3="Senior Citizen",M171,M178))) -> 0
A164: =B163+1 -> 100001 | C164: 0.5 | D164: 100000 | E164: =IF(J161=0,0,E163) -> 27600 | F164: 0.12 | G164: 0 | H164: =H157 -> 75000 | I164: =IF(H160>H164,H160-H164,0) -> 1745000 | J164: =IF(I164>0,ROUND(I164*I160,0),0) -> 872500 | K164: =I164-J164 -> 872500 | L164: =IF(H162>0,ROUND(H162*L160,0),0) -> 106512 | M164: =IF(K164>L164,0,L164-K164) -> 0 | N164: Tax Due | P164: =IF($E$3="Male",K155,IF($E$3="Female",K162,IF($E$3="Senior Citizen",K169,K176))) -> 994112
A165: Senior Citizen | D165: TAX MARGIN | E165: TAX AT MARGIN | F165: SUR RATE | G165: E.Cess | H165: TAXABLE INCOME | I165: TAX RATE APPLY | J165: TAX MARGIN SLAB | K165: TAX SLAB | L165: Surch.Rate | M165: E.Cess
A166: Not defined
A167: 0 | B167: 22000 | C167: 0 | D167: 0 | E167: 0 | F167: 0 | G167: 0 | H167: =H153 -> 1820000 | I167: =VLOOKUP(H167,A167:C171,3) -> 0.5 | J167: =INDEX(D167:D171,MATCH(I167,C167:C171,0)) -> 100000 | K167: =INDEX(E167:E171,MATCH(I167,C167:C171,0)) -> 27600 | L167: =IF(H167>H171,VLOOKUP(H167,A167:F171,6),0) -> 0.12 | M167: =VLOOKUP(H167,A167:G171,7) -> 0
A168: =B167+1 -> 22001 | B168: 30000 | C168: 0.2 | D168: =B167 -> 22000 | E168: =(B168-B167)*C168 -> 1600 | F168: 0 | G168: 0 | H168: TAX CALCULALTION | I168: SURCHARGE | J168: E. CESS | K168: TOTAL TAX DUE
A169: =B168+1 -> 30001 | B169: 50000 | C169: 0.3 | D169: =B168 -> 30000 | E169: =E168+(B169-B168)*C169 -> 7600 | F169: 0 | G169: 0 | H169: =IF(I167=C171,E170+ROUND((H167-J167),0)*I167,IF(I167=C170,E169+ROUND((H167-J167)*I167,0),IF(I167=C169,E168+ROUND((H167-J167)*I167,0),IF(I167=C168,E167+ROUND((H167-J167)*I167,0),E166+ROUND((H167-J167)*I167,0))))) -> 887600 | I169: =MIN(K171:L171) -> 106512 | J169: =ROUND(SUM(H169+I169)*M167,0) -> 0 | K169: =SUM(H169:J169) -> 994112
A170: =B169+1 -> 50001 | B170: 100000 | C170: 0.4 | D170: =B169 -> 50000 | E170: =E169+(B170-B169)*C170 -> 27600 | F170: 0.12 | G170: 0 | H170: Surcharge limit | I170: Add.Tax Income | J170: Add. Tax | K170: Diff | L170: Sur. Amt | M170: M.R.
A171: =B170+1 -> 100001 | C171: 0.5 | D171: 100000 | E171: =IF(J168=0,0,E170) -> 27600 | F171: 0.12 | G171: 0 | H171: =H164 -> 75000 | I171: =IF(H167>H171,H167-H171,0) -> 1745000 | J171: =IF(I171>0,ROUND(I171*I167,0),0) -> 872500 | K171: =I171-J171 -> 872500 | L171: =IF(H169>0,ROUND(H169*L167,0),0) -> 106512 | M171: =IF(K171>L171,0,L171-K171) -> 0
A172: Very Senior Citizen | D172: TAX MARGIN | E172: TAX AT MARGIN | F172: SUR RATE | G172: E.Cess | H172: TAXABLE INCOME | I172: TAX RATE APPLY | J172: TAX MARGIN SLAB | K172: TAX SLAB | L172: Surch.Rate | M172: E.Cess
A173: Not defined
A174: 0 | B174: 22000 | C174: 0 | D174: 0 | E174: 0 | F174: 0 | G174: 0 | H174: =H153 -> 1820000 | I174: =VLOOKUP(H174,A174:C178,3) -> 0.5 | J174: =INDEX(D174:D178,MATCH(I174,C174:C178,0)) -> 100000 | K174: =INDEX(E174:E178,MATCH(I174,C174:C178,0)) -> 27600 | L174: =IF(H174>H178,VLOOKUP(H174,A174:F178,6),0) -> 0.12 | M174: =VLOOKUP(H174,A174:G178,7) -> 0
A175: =B174+1 -> 22001 | B175: 30000 | C175: 0.2 | D175: =B174 -> 22000 | E175: =(B175-B174)*C175 -> 1600 | F175: 0 | G175: 0 | H175: TAX CALCULALTION | I175: SURCHARGE | J175: E. CESS | K175: TOTAL TAX DUE
A176: =B175+1 -> 30001 | B176: 50000 | C176: 0.3 | D176: =B175 -> 30000 | E176: =E175+(B176-B175)*C176 -> 7600 | F176: 0 | G176: 0 | H176: =IF(I174=C178,E177+ROUND((H174-J174),0)*I174,IF(I174=C177,E176+ROUND((H174-J174)*I174,0),IF(I174=C176,E175+ROUND((H174-J174)*I174,0),IF(I174=C175,E174+ROUND((H174-J174)*I174,0),E173+ROUND((H174-J174)*I174,0))))) -> 887600 | I176: =MIN(K178:L178) -> 106512 | J176: =ROUND(SUM(H176+I176)*M174,0) -> 0 | K176: =SUM(H176:J176) -> 994112
A177: =B176+1 -> 50001 | B177: 100000 | C177: 0.4 | D177: =B176 -> 50000 | E177: =E176+(B177-B176)*C177 -> 27600 | F177: 0.12 | G177: 0 | H177: Surcharge limit | I177: Add.Tax Income | J177: Add. Tax | K177: Diff | L177: Sur. Amt | M177: M.R.
A178: =B177+1 -> 100001 | C178: 0.5 | D178: 100000 | E178: =IF(J175=0,0,E177) -> 27600 | F178: 0.12 | G178: 0 | H178: =H171 -> 75000 | I178: =IF(H174>H178,H174-H178,0) -> 1745000 | J178: =IF(I178>0,ROUND(I178*I174,0),0) -> 872500 | K178: =I178-J178 -> 872500 | L178: =IF(H176>0,ROUND(H176*L174,0),0) -> 106512 | M178: =IF(K178>L178,0,L178-K178) -> 0
C179: 1991 | D179: =C179+1 -> 1992 | F179: 1991-92
A180: Male | D180: TAX MARGIN | E180: TAX AT MARGIN | F180: SUR RATE | G180: E.Cess | H180: TAXABLE INCOME | I180: TAX RATE APPLY | J180: TAX MARGIN SLAB | K180: TAX SLAB | L180: Surch.Rate | M180: E.Cess | N180: Tax Range
A181: Not defined | N181: F.Year | O181: =C179 -> 1991 | P181: =D179 -> 1992
A182: 0 | B182: 22000 | C182: 0 | D182: 0 | E182: 0 | F182: 0 | G182: 0 | H182: =$E$4 -> 1820000 | I182: =VLOOKUP(H182,A182:C186,3) -> 0.5 | J182: =INDEX(D182:D186,MATCH(I182,C182:C186,0)) -> 100000 | K182: =INDEX(E182:E186,MATCH(I182,C182:C186,0)) -> 27600 | L182: =IF(H182>H186,VLOOKUP(H182,A182:F186,6),0) -> 0.12 | M182: =VLOOKUP(H182,A182:G186,7) -> 0 | N182: 0 | O182: =IF($E$3="Male",B182,IF($E$3="Female",B189,IF($E$3="Senior Citizen",B196,B203))) -> 22000 | P182: 0
A183: =B182+1 -> 22001 | B183: 30000 | C183: 0.2 | D183: =B182 -> 22000 | E183: =(B183-B182)*C183 -> 1600 | F183: 0 | G183: 0 | H183: TAX CALCULALTION | I183: SURCHARGE | J183: E. CESS | K183: TOTAL TAX DUE | N183: =O182+1 -> 22001 | O183: 30000 | P183: 0.2
A184: =B183+1 -> 30001 | B184: 50000 | C184: 0.3 | D184: =B183 -> 30000 | E184: =E183+(B184-B183)*C184 -> 7600 | F184: 0 | G184: 0 | H184: =IF(I182=C186,E185+ROUND((H182-J182),0)*I182,IF(I182=C185,E184+ROUND((H182-J182)*I182,0),IF(I182=C184,E183+ROUND((H182-J182)*I182,0),IF(I182=C183,E182+ROUND((H182-J182)*I182,0),E181+ROUND((H182-J182)*I182,0))))) -> 887600 | I184: =MIN(K186:L186) -> 106512 | J184: =ROUND(SUM(H184+I184)*M182,0) -> 0 | K184: =SUM(H184:J184) -> 994112 | N184: =O183+1 -> 30001 | O184: 50000 | P184: 0.3
A185: =B184+1 -> 50001 | B185: 100000 | C185: 0.4 | D185: =B184 -> 50000 | E185: =E184+(B185-B184)*C185 -> 27600 | F185: 0.12 | G185: 0 | H185: Surcharge limit | I185: Add.Tax Income | J185: Add. Tax | K185: Diff | L185: Sur. Amt | M185: M.R. | N185: =O184+1 -> 50001 | O185: 100000 | P185: 0.4
A186: =B185+1 -> 100001 | C186: 0.5 | D186: 100000 | E186: =IF(J183=0,0,E185) -> 27600 | F186: 0.12 | G186: 0 | H186: 100000 | I186: =IF(H182>H186,H182-H186,0) -> 1720000 | J186: =IF(I186>0,ROUND(I186*I182,0),0) -> 860000 | K186: =I186-J186 -> 860000 | L186: =IF(H184>0,ROUND(H184*L182,0),0) -> 106512 | M186: =IF(K186>L186,0,L186-K186) -> 0 | N186: =O185+1 -> 100001 | O186: 0 | P186: 0.5
A187: Female | D187: TAX MARGIN | E187: TAX AT MARGIN | F187: SUR RATE | G187: E.Cess | H187: TAXABLE INCOME | I187: TAX RATE APPLY | J187: TAX MARGIN SLAB | K187: TAX SLAB | L187: Surch.Rate | M187: E.Cess | N187: TAX CALCULALTION | P187: =IF($E$3="Male",H184,IF($E$3="Female",H191,IF($E$3="Senior Citizen",H198,H205))) -> 887600
A188: Not defined | N188: SURCHARGE | P188: =IF($E$3="Male",I184,IF($E$3="Female",I191,IF($E$3="Senior Citizen",I198,I205))) -> 106512
A189: 0 | B189: 22000 | C189: 0 | D189: 0 | E189: 0 | F189: 0 | G189: 0 | H189: =H182 -> 1820000 | I189: =VLOOKUP(H189,A189:C193,3) -> 0.5 | J189: =INDEX(D189:D193,MATCH(I189,C189:C193,0)) -> 100000 | K189: =INDEX(E189:E193,MATCH(I189,C189:C193,0)) -> 27600 | L189: =IF(H189>H193,VLOOKUP(H189,A189:F193,6),0) -> 0.12 | M189: =VLOOKUP(H189,A189:G193,7) -> 0 | N189: E. CESS | P189: =IF($E$3="Male",J184,IF($E$3="Female",J191,IF($E$3="Senior Citizen",J198,J205))) -> 0
A190: =B189+1 -> 22001 | B190: 30000 | C190: 0.2 | D190: =B189 -> 22000 | E190: =(B190-B189)*C190 -> 1600 | F190: 0 | G190: 0 | H190: TAX CALCULALTION | I190: SURCHARGE | J190: E. CESS | K190: TOTAL TAX DUE | N190: TOTAL TAX DUE | P190: =IF($E$3="Male",K184,IF($E$3="Female",K191,IF($E$3="Senior Citizen",K198,K205))) -> 994112
A191: =B190+1 -> 30001 | B191: 50000 | C191: 0.3 | D191: =B190 -> 30000 | E191: =E190+(B191-B190)*C191 -> 7600 | F191: 0 | G191: 0 | H191: =IF(I189=C193,E192+ROUND((H189-J189),0)*I189,IF(I189=C192,E191+ROUND((H189-J189)*I189,0),IF(I189=C191,E190+ROUND((H189-J189)*I189,0),IF(I189=C190,E189+ROUND((H189-J189)*I189,0),E188+ROUND((H189-J189)*I189,0))))) -> 887600 | I191: =MIN(K193:L193) -> 106512 | J191: =ROUND(SUM(H191+I191)*M189,0) -> 0 | K191: =SUM(H191:J191) -> 994112 | N191: Age Defined | P191: =IF($E$3="Male",A181,IF($E$3="Female",A188,IF($E$3="Senior Citizen",A195,A202))) -> Not defined
A192: =B191+1 -> 50001 | B192: 100000 | C192: 0.4 | D192: =B191 -> 50000 | E192: =E191+(B192-B191)*C192 -> 27600 | F192: 0.12 | G192: 0 | H192: Surcharge limit | I192: Add.Tax Income | J192: Add. Tax | K192: Diff | L192: Sur. Amt | M192: M.R. | N192: Marginal Releif | P192: =IF($E$3="Male",M186,IF($E$3="Female",M193,IF($E$3="Senior Citizen",M200,M207))) -> 0
A193: =B192+1 -> 100001 | C193: 0.5 | D193: 100000 | E193: =IF(J190=0,0,E192) -> 27600 | F193: 0.12 | G193: 0 | H193: =H186 -> 100000 | I193: =IF(H189>H193,H189-H193,0) -> 1720000 | J193: =IF(I193>0,ROUND(I193*I189,0),0) -> 860000 | K193: =I193-J193 -> 860000 | L193: =IF(H191>0,ROUND(H191*L189,0),0) -> 106512 | M193: =IF(K193>L193,0,L193-K193) -> 0 | N193: Tax Due | P193: =IF($E$3="Male",K184,IF($E$3="Female",K191,IF($E$3="Senior Citizen",K198,K205))) -> 994112
A194: Senior Citizen | D194: TAX MARGIN | E194: TAX AT MARGIN | F194: SUR RATE | G194: E.Cess | H194: TAXABLE INCOME | I194: TAX RATE APPLY | J194: TAX MARGIN SLAB | K194: TAX SLAB | L194: Surch.Rate | M194: E.Cess
A195: Not defined
A196: 0 | B196: 22000 | C196: 0 | D196: 0 | E196: 0 | F196: 0 | G196: 0 | H196: =H182 -> 1820000 | I196: =VLOOKUP(H196,A196:C200,3) -> 0.5 | J196: =INDEX(D196:D200,MATCH(I196,C196:C200,0)) -> 100000 | K196: =INDEX(E196:E200,MATCH(I196,C196:C200,0)) -> 27600 | L196: =IF(H196>H200,VLOOKUP(H196,A196:F200,6),0) -> 0.12 | M196: =VLOOKUP(H196,A196:G200,7) -> 0
A197: =B196+1 -> 22001 | B197: 30000 | C197: 0.2 | D197: =B196 -> 22000 | E197: =(B197-B196)*C197 -> 1600 | F197: 0 | G197: 0 | H197: TAX CALCULALTION | I197: SURCHARGE | J197: E. CESS | K197: TOTAL TAX DUE
A198: =B197+1 -> 30001 | B198: 50000 | C198: 0.3 | D198: =B197 -> 30000 | E198: =E197+(B198-B197)*C198 -> 7600 | F198: 0 | G198: 0 | H198: =IF(I196=C200,E199+ROUND((H196-J196),0)*I196,IF(I196=C199,E198+ROUND((H196-J196)*I196,0),IF(I196=C198,E197+ROUND((H196-J196)*I196,0),IF(I196=C197,E196+ROUND((H196-J196)*I196,0),E195+ROUND((H196-J196)*I196,0))))) -> 887600 | I198: =MIN(K200:L200) -> 106512 | J198: =ROUND(SUM(H198+I198)*M196,0) -> 0 | K198: =SUM(H198:J198) -> 994112
A199: =B198+1 -> 50001 | B199: 100000 | C199: 0.4 | D199: =B198 -> 50000 | E199: =E198+(B199-B198)*C199 -> 27600 | F199: 0.12 | G199: 0 | H199: Surcharge limit | I199: Add.Tax Income | J199: Add. Tax | K199: Diff | L199: Sur. Amt | M199: M.R.
A200: =B199+1 -> 100001 | C200: 0.5 | D200: 100000 | E200: =IF(J197=0,0,E199) -> 27600 | F200: 0.12 | G200: 0 | H200: =H193 -> 100000 | I200: =IF(H196>H200,H196-H200,0) -> 1720000 | J200: =IF(I200>0,ROUND(I200*I196,0),0) -> 860000 | K200: =I200-J200 -> 860000 | L200: =IF(H198>0,ROUND(H198*L196,0),0) -> 106512 | M200: =IF(K200>L200,0,L200-K200) -> 0
... 1221 more rows

Sheet Statement
E1: 902927 SHEETAL OJHA
A2: INCOME TAX CALCULATION FOR THE | E2: Fin. Year | F2: ='Employee Data'!$G$5 -> 2024-25 | G2: Employee Code/S.N. | H2: 1 | I2: =IF(F2="2024-25","New option u/s 115BAC is applicable for F.Y. 2024-25",IF(F2="2023-24","New option u/s 115BAC is applicable for F.Y. 2023-24",IF(F2="2022-23","New option u/s 115BAC is applicable for F.Y. 2022-23",IF(F2="2021-22","New option u/s 115BAC is applicable for F.Y. 2020-21",IF(F2="2020-21","New option u/s 115BAC is applicable for F.Y. 2020-21",CONCATENATE("New option u/s 115BAC is not applicable for F.Y.",F2)))))) -> New option u/s 115BAC is applicable for F.Y. 2024-25 | J2: Home
G3: New option u/s 115BAC
C4: 2020-21 | E4: =IF($E$6="2021-22",E3,IF($E$6="2020-21",E3,"Existing Option")) -> Existing Option | G4: =IF($F$2>=$C$4,G3,"Existing Option") -> New option u/s 115BAC
A5: TAX CATEGORY | C5: =INDEX('Employee Data'!$I$6:$I$556,MATCH($H$2,'Employee Data'!$D$6:$D$556,0)) -> SENIOR CITIZEN | E5: NAME OF EMPLOYEE | G5: =INDEX('Employee Data'!$E$6:$E$556,MATCH($H$2,'Employee Data'!$D$6:$D$556,0)) -> Dr. ABC
A6: PAN NO | C6: =UPPER(INDEX('Employee Data'!$G$6:$G$556,MATCH($H$2,'Employee Data'!$D$6:$D$556,0))) -> BEPPS1234Q | E6: DESIGNATION | G6: =INDEX('Employee Data'!$F$6:$F$556,MATCH($H$2,'Employee Data'!$D$6:$D$556,0)) -> ASSISTANT PROFESSOR | M6: =LEN(C6) -> 10
A7: 1 | B7: INCOME FROM SALARY (including all allowance u/s 17.. i.e. NPS emloyer contribution) | J7: DDO Data
B8: (a) | C8: ='Form no 16'!B88 -> Salary as per provisons contained in sec 17(1) | G8: =INDEX('Employee Data'!$M$6:$M$556,MATCH($H$2,'Employee Data'!$D$6:$D$556,0)) -> 1850000 | H8: =INDEX('Employee Data'!$P$6:$P$556,MATCH($H$2,'Employee Data'!$D$6:$D$556,0)) -> 1850000
B9: (b) | C9: ='Form no 16'!B89 -> Value of perquisites u/s 17(2) | G9: =INDEX('Employee Data'!$N$6:$N$556,MATCH($H$2,'Employee Data'!$D$6:$D$556,0)) -> 0
B10: (c ) | C10: ='Form no 16'!B91 -> Profits in lieu of salary under section 17(3) | G10: =INDEX('Employee Data'!$O$6:$O$556,MATCH($H$2,'Employee Data'!$D$6:$D$556,0)) -> 0
B11: (d) | C11: ='Form no 16'!B93 -> Total | M11: =H8*0.1 -> 185000
B12: (e) | C12: ='Form no 16'!B94 -> Reported total amount of salary received from other employer(s) | G12: =INDEX('Employee Data'!$Q$6:$Q$556,MATCH($H$2,'Employee Data'!$D$6:$D$556,0)) -> 0
A13: 2 | B13: Less : Allowance to the extent exempt under section 10
B14: (a) | C14: Travel concession or assistance u/s 10(5) | G14: =IF($G$4="New option u/s 115BAC",0,INDEX('Employee Data'!$R$6:$R$556,MATCH($H$2,'Employee Data'!$D$6:$D$556,0))) -> 0
B15: (b) | C15: Death-cum-retirement gratuity u/s 10(10) | G15: =IF($G$4="New option u/s 115BAC",0,INDEX('Employee Data'!$S$6:$S$556,MATCH($H$2,'Employee Data'!$D$6:$D$556,0))) -> 0 | J15: Employee Data
B16: (c ) | C16: Commuted value of pension u/s 10(10A) | G16: =IF($G$4="New option u/s 115BAC",0,INDEX('Employee Data'!$T$6:$T$556,MATCH($H$2,'Employee Data'!$D$6:$D$556,0))) -> 0
B17: (d) | C17: Cash equivlent of leave salary encashment u/s 10(10AA) | G17: =IF($G$4="New option u/s 115BAC",0,INDEX('Employee Data'!$U$6:$U$556,MATCH($H$2,'Employee Data'!$D$6:$D$556,0))) -> 0
B18: (e) | C18: House rent allowance u/s 10(13 A) | G18: =IF($G$4="New option u/s 115BAC",0,INDEX('Employee Data'!$V$6:$V$556,MATCH($H$2,'Employee Data'!$D$6:$D$556,0))) -> 0 | J18: Compare
B19: (f) | C19: Conv Allow under Section 10(14) | G19: =IF($G$4="New option u/s 115BAC",0,INDEX('Employee Data'!$W$6:$W$556,MATCH($H$2,'Employee Data'!$D$6:$D$556,0))) -> 0 | H19: =SUM(G14:G20) -> 0
B20: (g) | C20: Other Allowances exempt u/s 10 | G20: =IF($G$4="New option u/s 115BAC",0,INDEX('Employee Data'!$X$6:$X$556,MATCH($H$2,'Employee Data'!$D$6:$D$556,0))) -> 0
B21: (h) | C21: Total amount of exemption claimd u/s 10
A22: 3 | B22: Total amount of salary received from current employer [1(d)-2(h)] | H22: =IF($G$4="New option u/s 115BAC",H8,INDEX('Employee Data'!$Z$6:$Z$556,MATCH($H$2,'Employee Data'!$D$6:$D$556,0))) -> 1850000
A23: 4 | B23: Deduction u/s 16 & 17
B24: (a) | C24: Standard Deduction -u/s 16(ia) | G24: =pks!U369 -> 75000 | H24: =SUM(G24:G26) -> 75000 | I24: ,H22+G12-H24 | J24: Gross Salary'
B25: (b) | C25: Entertainment Allowance u/s 16(ii) | G25: =IF($G$4="New option u/s 115BAC",0,INDEX('Employee Data'!$AB$6:$AB$556,MATCH($H$2,'Employee Data'!$D$6:$D$556,0))) -> 0 | M25: There is no data linking of this sheet…
B26: (c ) | C26: Tax on Employment | G26: =IF($G$4="New option u/s 115BAC",0,INDEX('Employee Data'!$AC$6:$AC$556,MATCH($H$2,'Employee Data'!$D$6:$D$556,0))) -> 0
A27: 5 | B27: Total of 4 (a)+ 4(b)
A28: 6 | B28: Income chargable under the head Salaries [3+1(e)-5] | H28: =IF($G$4="New option u/s 115BAC",H22+G12-H24,H22+G12-H24) -> 1775000 | J28: Form no 16
A29: 7 | B29: Add : Any other income reported by the employee
B30: (a) | C30: NSC INTREST | G30: =INDEX('Employee Data'!$AF$6:$AF$556,MATCH($H$2,'Employee Data'!$D$6:$D$556,0)) -> 0 | H30: =IF($G$4="New option u/s 115BAC",SUM(G30:G34),INDEX('Employee Data'!$AM$6:$AM$556,MATCH($H$2,'Employee Data'!$D$6:$D$556,0))) -> 45000 | Q30: Statement
B31: (b) | C31: Bank Intrest on Saving | G31: =INDEX('Employee Data'!$AG$6:$AG$556,MATCH($H$2,'Employee Data'!$D$6:$D$556,0)) -> 0
B32: (c ) | C32: (Loss) Intrest on House Loan Intrest | G32: =IF($G$4="New option u/s 115BAC",0,-INDEX('Employee Data'!$AH$6:$AH$556,MATCH($H$2,'Employee Data'!$D$6:$D$556,0))) -> 0 | J32: Tax Calculator
B33: (d) | C33: Income from pension | G33: =INDEX('Employee Data'!$AI$6:$AI$556,MATCH($H$2,'Employee Data'!$D$6:$D$556,0)) -> 45000
B34: (e) | C34: Any other income | G34: =INDEX('Employee Data'!$AJ$6:$AJ$556,MATCH($H$2,'Employee Data'!$D$6:$D$556,0)) -> 0
A35: 8 | B35: Total amount of other income reported by the employee
A36: 9 | B36: GROSS TOTAL INCOME ( 6 + 8 ) | H36: =IF($G$4="New option u/s 115BAC",H28+H30,INDEX('Employee Data'!$AN$6:$AN$556,MATCH($H$2,'Employee Data'!$D$6:$D$556,0))) -> 1820000
A37: 10 | B37: Deductions under chapter VI A
A38: (a) | B38: U/S 80 CCE -: Invesment in specified investment plans
A39: (i) | B39: ='Employee Data'!AO4 -> Genral Provided Fund(GPF) | D39: =IF($G$4="New option u/s 115BAC",0,INDEX('Employee Data'!$AO$6:$AO$556,MATCH($H$2,'Employee Data'!$D$6:$D$556,0))) -> 0 | E39: (ix) | F39: Purchases of NSC | G39: =IF($G$4="New option u/s 115BAC",0,INDEX('Employee Data'!$AW$6:$AW$556,MATCH($H$2,'Employee Data'!$D$6:$D$556,0))) -> 0
A40: (ii) | B40: State Insurance | D40: =IF($G$4="New option u/s 115BAC",0,INDEX('Employee Data'!$AP$6:$AP$556,MATCH($H$2,'Employee Data'!$D$6:$D$556,0))) -> 0 | E40: (x) | F40: PPF | G40: =IF($G$4="New option u/s 115BAC",0,INDEX('Employee Data'!$AX$6:$AX$556,MATCH($H$2,'Employee Data'!$D$6:$D$556,0))) -> 0
A41: (iii) | B41: Group Insurance | D41: =IF($G$4="New option u/s 115BAC",0,INDEX('Employee Data'!$AQ$6:$AQ$556,MATCH($H$2,'Employee Data'!$D$6:$D$556,0))) -> 0 | E41: (xi) | F41: PLI / ULIP | G41: =IF($G$4="New option u/s 115BAC",0,INDEX('Employee Data'!$AY$6:$AY$556,MATCH($H$2,'Employee Data'!$D$6:$D$556,0))) -> 0 | J41: Useful for salaried person for compute Gross Salary.. In this sheet all the cells are unprocted for required modification as per user data
A42: (iv) | B42: Life Insurance Premium | D42: =IF($G$4="New option u/s 115BAC",0,INDEX('Employee Data'!$AR$6:$AR$556,MATCH($H$2,'Employee Data'!$D$6:$D$556,0))) -> 0 | E42: (xii) | F42: IDBI/ICCI | G42: =IF($G$4="New option u/s 115BAC",0,INDEX('Employee Data'!$AZ$6:$AZ$556,MATCH($H$2,'Employee Data'!$D$6:$D$556,0))) -> 0
A43: (v) | B43: Accured Intrest on NSC | D43: =IF($G$4="New option u/s 115BAC",0,INDEX('Employee Data'!$AS$6:$AS$556,MATCH($H$2,'Employee Data'!$D$6:$D$556,0))) -> 0 | E43: (xiii) | F43: BANK /POST OFFICE FD | G43: =IF($G$4="New option u/s 115BAC",0,INDEX('Employee Data'!$BA$6:$BA$556,MATCH($H$2,'Employee Data'!$D$6:$D$556,0))) -> 0
A44: (vi) | B44: Tution Fee | D44: =IF($G$4="New option u/s 115BAC",0,INDEX('Employee Data'!$AT$6:$AT$556,MATCH($H$2,'Employee Data'!$D$6:$D$556,0))) -> 0 | E44: (xiv) | F44: Equity link saving bond | G44: =IF($G$4="New option u/s 115BAC",0,INDEX('Employee Data'!$BB$6:$BB$556,MATCH($H$2,'Employee Data'!$D$6:$D$556,0))) -> 0
A45: (vii) | B45: Repayment of HBA | D45: =IF($G$4="New option u/s 115BAC",0,INDEX('Employee Data'!$AU$6:$AU$556,MATCH($H$2,'Employee Data'!$D$6:$D$556,0))) -> 0 | E45: (xv) | F45: Sukanya Samriddhi Account Deposit Scheme | G45: =IF($G$4="New option u/s 115BAC",0,INDEX('Employee Data'!$BC$6:$BC$556,MATCH($H$2,'Employee Data'!$D$6:$D$556,0))) -> 0
A46: (viii) | B46: Hazard Fund | D46: =IF($G$4="New option u/s 115BAC",0,INDEX('Employee Data'!$AV$6:$AV$556,MATCH($H$2,'Employee Data'!$D$6:$D$556,0))) -> 0 | E46: (xvi) | F46: Any other ded. u/s 80C | G46: =IF($G$4="New option u/s 115BAC",0,INDEX('Employee Data'!$BD$6:$BD$556,MATCH($H$2,'Employee Data'!$D$6:$D$556,0))) -> 0
A47: (b) | B47: Cont. in pension fund (Section 80 CCC) | G47: =IF($G$4="New option u/s 115BAC",0,INDEX('Employee Data'!$BE$6:$BE$556,MATCH($H$2,'Employee Data'!$D$6:$D$556,0))) -> 0
A48: (c ) | B48: Employee cont. towards new pension scheme U/S 80 CCD(1) | G48: =IF($G$4="New option u/s 115BAC",0,INDEX('Employee Data'!$BF$6:$BF$556,MATCH($H$2,'Employee Data'!$D$6:$D$556,0))) -> 0
A49: Aggregate total of section 80C,80CCC,80CCD (u/s 80 CCE) | H49: =IF($G$4="New option u/s 115BAC",0,INDEX('Employee Data'!$BG$6:$BG$556,MATCH($H$2,'Employee Data'!$D$6:$D$556,0))) -> 0
A50: Other sections ( for e.g., 80E, 80G etc. ) under chapter VIA | G50: Gross Amount | H50: Deductible Amount
A51: a. | B51: U/S 80 CCD(2) | C51: Employer cont. towards new pension scheme | G51: =INDEX('Employee Data'!$BH$6:$BH$556,MATCH($H$2,'Employee Data'!$D$6:$D$556,0)) -> 0 | H51: ='Table for Statement'!$C$1447 -> 0 | L51: 150000
B52: U/S 80 CCD(1B) | C52: Additional cont. towards NPS (Upto Rs. 50000 from F.Y. 2015-16) | G52: =IF($G$4="New option u/s 115BAC",0,INDEX('Employee Data'!$BI$6:$BI$556,MATCH($H$2,'Employee Data'!$D$6:$D$556,0))) -> 0 | H52: =IF(G52>50000,50000,G52) -> 0 | L52: 50000
A53: b. | B53: U/S 80CCF | C53: Investment in long term infrasturture bonds | G53: =IF($G$4="New option u/s 115BAC",0,INDEX('Employee Data'!$BJ$6:$BJ$556,MATCH($H$2,'Employee Data'!$D$6:$D$556,0))) -> 0 | H53: =G53 -> 0 | L53: 250000
A54: c. | B54: U/S 80D- | C54: Medical ins. premium for himself, spous and childrens & Parents | G54: =IF($G$4="New option u/s 115BAC",0,INDEX('Employee Data'!$BK$6:$BK$556,MATCH($H$2,'Employee Data'!$D$6:$D$556,0))) -> 0 | H54: =IF(G54>100000,100000,G54) -> 0 | L54: 100000
A55: d. | B55: U/S 80DD- | C55: Medical treat. of dependent handicapped person | G55: =IF($G$4="New option u/s 115BAC",0,INDEX('Employee Data'!$BM$6:$BM$556,MATCH($H$2,'Employee Data'!$D$6:$D$556,0))) -> 0 | H55: =IF(G55>'Table for Statement'!F1388,'Table for Statement'!F1388,Statement!G55) -> 0 | I55: =IF(G55>0,INDEX('Employee Data'!$BL$6:$BL$556,MATCH($H$2,'Employee Data'!$D$6:$D$556,0)),"") ->  | L55: 75000
A56: e. | B56: U/S 80DDB- | C56: Spl ded.to the guardion of a patient suff.from Cancer/Aids | G56: =IF($G$4="New option u/s 115BAC",0,INDEX('Employee Data'!$BN$6:$BN$556,MATCH($H$2,'Employee Data'!$D$6:$D$556,0))) -> 0 | H56: =IF(G56>'Table for Statement'!N1353,'Table for Statement'!N1353,Statement!G56) -> 0 | L56: 100000
A57: f. | B57: U/S 80E- | C57: Repayment of loan for higher education | G57: =IF($G$4="New option u/s 115BAC",0,INDEX('Employee Data'!$BO$6:$BO$556,MATCH($H$2,'Employee Data'!$D$6:$D$556,0))) -> 0 | H57: =G57 -> 0 | L57: 250000
A58: g. | B58: U/S 80EE | C58: Intrest paid on HBA(Loan taking after01-04-13 excluding u/s 24B) | G58: =IF($G$4="New option u/s 115BAC",0,INDEX('Employee Data'!$BP$6:$BP$556,MATCH($H$2,'Employee Data'!$D$6:$D$556,0))) -> 0 | H58: =IF(G58>'Table for Statement'!N1355,'Table for Statement'!N1355,Statement!G58) -> 0 | L58: 50000
A59: h. | B59: U/S 80EEA- | C59: Deduction in respect of interest on loan taken for certain house property | G59: =IF($G$4="New option u/s 115BAC",0,INDEX('Employee Data'!$BQ$6:$BQ$556,MATCH($H$2,'Employee Data'!$D$6:$D$556,0))) -> 0 | H59: =IF(G59>'Table for Statement'!N1362,'Table for Statement'!N1362,Statement!G59) -> 0 | L59: 150000
A60: i. | B60: U/S 80EEB- | C60: Deduction in respect of purchase of electric vehicle | G60: =IF($G$4="New option u/s 115BAC",0,INDEX('Employee Data'!$BR$6:$BR$556,MATCH($H$2,'Employee Data'!$D$6:$D$556,0))) -> 0 | H60: =IF(G60>'Table for Statement'!N1363,'Table for Statement'!N1363,Statement!G60) -> 0 | L60: 150000
A61: j. | B61: U/S 80G- | C61: Donation . 50% and 100% | G61: =IF($G$4="New option u/s 115BAC",0,INDEX('Employee Data'!$BS$6:$BS$556,MATCH($H$2,'Employee Data'!$D$6:$D$556,0))) -> 0 | H61: =G61 -> 0 | L61: 250000
A62: k. | B62: U/S 80CCG | C62: New Rajiv Gandhi Saving Scheme | G62: =IF($G$4="New option u/s 115BAC",0,INDEX('Employee Data'!$BT$6:$BT$556,MATCH($H$2,'Employee Data'!$D$6:$D$556,0))) -> 0 | H62: ='Table for Statement'!G1391 -> 0 | L62: 0
A63: l. | B63: U/S 80TTA | C63: Interest on deposits in savings account | G63: =IF($G$4="New option u/s 115BAC",0,INDEX('Employee Data'!$BU$6:$BU$556,MATCH($H$2,'Employee Data'!$D$6:$D$556,0))) -> 0 | H63: ='Table for Statement'!F1439 -> 0 | L63: 0
A64: m. | B64: U/S 80TTB | C64: Interest income earned on Fixed Deposits & Recurring Deposits | G64: =IF($G$4="New option u/s 115BAC",0,INDEX('Employee Data'!$BV$6:$BV$556,MATCH($H$2,'Employee Data'!$D$6:$D$556,0))) -> 0 | H64: ='Table for Statement'!G1439 -> 0 | L64: 50000
A65: n. | B65: U/S 80U- | C65: Phy. hand. person or blind person | G65: =IF($G$4="New option u/s 115BAC",0,INDEX('Employee Data'!$BX$6:$BX$556,MATCH($H$2,'Employee Data'!$D$6:$D$556,0))) -> 0 | H65: =IF(G65>'Table for Statement'!F1389,'Table for Statement'!F1389,Statement!G65) -> 0 | I65: =IF(G65>0,INDEX('Employee Data'!$BW$6:$BW$556,MATCH($H$2,'Employee Data'!$D$6:$D$556,0)),"") ->  | L65: 75000
A66: o. | B66: U/S 80CCH | C66: All contributions to Agniveer Corpus Fund | F66: (From F.Y. 23-24) | G66: =IF(F2="2023-24",INDEX('Employee Data'!$BY$6:$BY$556,MATCH($H$2,'Employee Data'!$D$6:$D$556,0)),0) -> 0 | H66: =G66 -> 0
A67: p. | B67: =IF('Employee Data'!BZ5="","",'Employee Data'!BZ5) ->  | C67: ='Employee Data'!BZ4 -> (Any other deduction..Give name) | G67: =IF($G$4="New option u/s 115BAC",0,INDEX('Employee Data'!$BZ$6:$BZ$556,MATCH($H$2,'Employee Data'!$D$6:$D$556,0))) -> 0 | H67: =G67 -> 0 | L67: 250000
A68: 11 | B68: Total deduction under chapter VIA | G68: =SUM(G51:G67)+H49 -> 0 | H68: =SUM(H49,H51:H67) -> 0 | L68: 1850171
G69: =IF(H36-H68>0,ROUNDUP(H36-H68,-1),0) -> 1820000 | H69: =IF(H36-H68>0,H36-H68,0) -> 1820000
A70: 12 | B70: Total Income ( 9-11 ) (Rounded off u/s 288A) | H70: =IF(G69-H69<=5,ROUNDUP(G69,-1),ROUNDUP(G69,-1)-10) -> 1820000
A71: 13 | B71: Tax Calculation (With adjusting rebate of agriculture income,if any) | H71: ='Table for Statement'!C1220 -> 236000 | J71: =IF(D75="","",'Table for Statement'!L1222) -> 
A72: 14 | B72: Less-Relief U/S 87A (From F.Y. 2013-14) | H72: ='Table for Statement'!D1220 -> 0
A73: 15 | B73: Surcharge (if any) | D73: ='Table for Statement'!B1224 -> ( After allowed Marginal relief Rs. 0 ) | H73: ='Table for Statement'!D1208 -> 0
A74: 16 | B74: =IF(F2="2023-24","Add -Health and Education Cess & 4% ",IF(F2="2022-23","Add -Health and Education Cess & 4% ",IF(F2="2020-21","Add -Health and Education Cess & 4% ",IF(F2="2019-20","Add -Health and Education Cess & 4% ",IF(F2="2018-19","Add -Health and Education Cess & 4% ","Add -Education Cess @2% on Tax+H.Education Cess @1% "))))) -> Add -Education Cess @2% on Tax+H.Education Cess @1% | H74: ='Table for Statement'!E1220 -> 9440
A75: 17 | B75: Total Tax (13+14+15+16) | D75: ='Table for Statement'!L1227 ->  | H75: ='Table for Statement'!F1220 -> 245440
A76: 18 | B76: Releif U/S 89 (1) | H76: =INDEX('Employee Data'!$CB$6:$CB$556,MATCH($H$2,'Employee Data'!$D$6:$D$556,0)) -> 0
A77: 19 | B77: Net Tax Payable (17-18) | H77: =H75-H76 -> 245440
A78: 20 | B78: Income Tax Deducted | H78: =SUM($C$80:$C$83)+SUM($E$80:$E$83)+SUM($G$80:$G$83) -> 0
B79: MONTH | C79: AMT | D79: MONTH | E79: AMT | F79: MONTH | G79: AMT
B80: =pks!H64 -> 2024-04-01 | C80: =INDEX('Employee Data'!$CC$6:$CC$556,MATCH($H$2,'Employee Data'!$D$6:$D$556,0)) -> 0 | D80: =B83+31 -> 2024-08-03 | E80: =INDEX('Employee Data'!$CG$6:$CG$556,MATCH($H$2,'Employee Data'!$D$6:$D$556,0)) -> 0 | F80: =D83+31 -> 2024-12-05 | G80: =INDEX('Employee Data'!$CK$6:$CK$556,MATCH($H$2,'Employee Data'!$D$6:$D$556,0)) -> 0
B81: =B80+31 -> 2024-05-02 | C81: =INDEX('Employee Data'!$CD$6:$CD$556,MATCH($H$2,'Employee Data'!$D$6:$D$556,0)) -> 0 | D81: =D80+31 -> 2024-09-03 | E81: =INDEX('Employee Data'!$CH$6:$CH$556,MATCH($H$2,'Employee Data'!$D$6:$D$556,0)) -> 0 | F81: =F80+31 -> 2025-01-05 | G81: =INDEX('Employee Data'!$CL$6:$CL$556,MATCH($H$2,'Employee Data'!$D$6:$D$556,0)) -> 0
B82: =B81+31 -> 2024-06-02 | C82: =INDEX('Employee Data'!$CE$6:$CE$556,MATCH($H$2,'Employee Data'!$D$6:$D$556,0)) -> 0 | D82: =D81+31 -> 2024-10-04 | E82: =INDEX('Employee Data'!$CI$6:$CI$556,MATCH($H$2,'Employee Data'!$D$6:$D$556,0)) -> 0 | F82: =F81+31 -> 2025-02-05 | G82: =INDEX('Employee Data'!$CM$6:$CM$556,MATCH($H$2,'Employee Data'!$D$6:$D$556,0)) -> 0
B83: =B82+31 -> 2024-07-03 | C83: =INDEX('Employee Data'!$CF$6:$CF$556,MATCH($H$2,'Employee Data'!$D$6:$D$556,0)) -> 0 | D83: =D82+31 -> 2024-11-04 | E83: =INDEX('Employee Data'!$CJ$6:$CJ$556,MATCH($H$2,'Employee Data'!$D$6:$D$556,0)) -> 0 | F83: =F82+31 -> 2025-03-08 | G83: =INDEX('Employee Data'!$CN$6:$CN$556,MATCH($H$2,'Employee Data'!$D$6:$D$556,0)) -> 0
A84: 21 | B84: ='Table for Statement'!H1223 -> Income Tax PAYABLE {Balance [19- 20 ]} (Rounded off) | H84: ='Table for Statement'!J1220 -> 245440
A86: Place | J86: EXIT
A87: Date: | C87: =TODAY() -> 2024-10-14 | G87: SIGNATURE OF EMPLOYEE
A90: Calculaton of Advance tax and Int. u/s 234C | H90: =$H$77 -> 245440
A91: Date upto | C91: Adv tax due | E91: Act. Tax paid | G91: Shortage tax | H91: Int u/s 234C
A92: =pks!L66 -> 15-Jun-2024 | C92: =ROUND($H$77*'Table for Statement'!J1282,0) -> 0 | E92: =SUM($C$80:$C$82) -> 0 | G92: =C92-E92 -> 0 | H92: ='Table for Statement'!F1281 -> 0
A93: =pks!L67 -> 15-Sep-2024 | C93: =ROUND($H$77*'Table for Statement'!J1283,0) -> 73632 | E93: =SUM(C83,E80,E81)+E92 -> 0 | G93: =C93-E93 -> 73632 | H93: ='Table for Statement'!F1282 -> 2208
A94: =pks!L68 -> 15-Dec-2024 | C94: =ROUND($H$77*'Table for Statement'!J1284,0) -> 147264 | E94: =SUM(E82:E83,G80)+E93 -> 0 | G94: =C94-E94 -> 147264 | H94: ='Table for Statement'!F1283 -> 4416
A95: =pks!L69 -> 15-Mar-2025 | C95: =ROUND($H$77*'Table for Statement'!J1285,0) -> 245440 | E95: =SUM(G81:G83)+E94 -> 0 | G95: =C95-E95 -> 245440 | H95: ='Table for Statement'!F1284 -> 2454
A96: =pks!L70 -> 31-Mar-2025 | C96: =ROUND($H$77*'Table for Statement'!J1286,0) -> 245440 | E96: 0 | G96: 0 | H96: ='Table for Statement'!F1285 -> 0
A97: Total | C97: =H90 -> 245440 | E97: =H78 -> 0 | G97: =IF(C97>E97,ROUNDDOWN(C97-E97,-2),0) -> 245400 | H97: =IF(G97>0,SUM(H92:H95),0) -> 9078
A98: Acutal Amount of Intrest u/s 234C | E98: =pravesh(H97) -> 
A99: =IF(H90>10000," Advance Tax Liability raised due to total tax payable is greater than Rs. 10,000 in a year","No Advance Tax Liability raised due to total tax payable is less than Rs. 10,000 in a year") -> Advance Tax Liability raised due to total tax payable is greater than Rs. 10,000 in a year
J114: 16.18.1.22.5.19.8√97263.0458756048

Sheet Form no 16
B1: DDO Data | E1: Employee Data | S1: 1 Dr. ABC
A3: =IF($F$4>=$B$4,"New option u/s 115BAC is applicable for F.Y. 2020-21",CONCATENATE("New option u/s 115BAC is not applicable for F.Y.",'Table for form 16'!F2)) -> New option u/s 115BAC is applicable for F.Y. 2020-21 | K3: New option u/s 115BAC | T3: 1
B4: 2020-21 | D4: F.Y. | F4: =INDEX('Table for form 16'!$A$1168:$A$1207,MATCH('Form no 16'!$L$20,'Table for form 16'!$B$1168:$B$1207,0)) -> 2024-25 | K4: =IF($F$4>=B4,K3,"Existing Option") -> New option u/s 115BAC
A5: CATEGORY | E5: =INDEX('Employee Data'!$I$6:$I$556,MATCH('Form no 16'!$T$3,'Employee Data'!$D$6:$D$556,0)) -> SENIOR CITIZEN | P5: Employee code/ID | V5: =T3 -> 1
A7: FORM 16 | AC7: Home
A8: [See rule 31(1)(a)]
A9: PART A
A10: Certificate under section 203 of the Income-tax Act,1961 for tax deducted at source Salary
A11: Certificate No. | D11: =IF(INDEX('Employee Data'!$CS$6:$CS$556,MATCH('Form no 16'!$T$3,'Employee Data'!$D$6:$D$556,0))="","",INDEX('Employee Data'!$CS$6:$CS$556,MATCH('Form no 16'!$T$3,'Employee Data'!$D$6:$D$556,0))) ->  | L11: Last updated on | S11: =IF(INDEX('Employee Data'!$CT$6:$CT$556,MATCH('Form no 16'!$T$3,'Employee Data'!$D$6:$D$556,0))="","",INDEX('Employee Data'!$CT$6:$CT$556,MATCH('Form no 16'!$T$3,'Employee Data'!$D$6:$D$556,0))) ->  | AC11: DDO Data
A12: Name and Address of Employer | L12: Name and Designation of Employee
A13: ='DDO Data'!$D$3 -> SAMPLE OFFICE | L13: =INDEX('Employee Data'!$E$6:$E$556,MATCH('Form no 16'!$T$3,'Employee Data'!$D$6:$D$556,0)) -> Dr. ABC
L14: =INDEX('Employee Data'!$F$6:$F$556,MATCH('Form no 16'!$T$3,'Employee Data'!$D$6:$D$556,0)) -> ASSISTANT PROFESSOR | AC14: Employee Data
A15: PAN of Deductor | D15: TAN of the Deductor | L15: PAN of the Employee | Q15: Employee Reference No. provided by the Employer (If avaiable)
A17: ='DDO Data'!H5 -> PANNOTREQD | D17: ='DDO Data'!$E$5 -> JDHO12345E | L17: =UPPER(INDEX('Employee Data'!$G$6:$G$556,MATCH('Form no 16'!$T$3,'Employee Data'!$D$6:$D$556,0))) -> BEPPS1234Q | Q17: =IF(INDEX('Employee Data'!$H$6:$H$556,MATCH('Form no 16'!$T$3,'Employee Data'!$D$6:$D$556,0))="","",INDEX('Employee Data'!$H$6:$H$556,MATCH('Form no 16'!$T$3,'Employee Data'!$D$6:$D$556,0))) -> 1234
A18: CIT (TDS) | L18: Assessment Year | Q18: Period with the Employer | AC18: PART_B__Annexure
A19: Address: | C19: =IF('DDO Data'!$D$14="","",'DDO Data'!$D$14) -> The Commissioner of Income Tax (TDS) New Central Revenue Building, Statue Circle, Janpath, Jaipur - 302005
L20: ='Employee Data'!K5 -> 2025-26 | Q20: From | U20: To
Q21: =IF(INDEX('Employee Data'!$J$6:$J$556,MATCH('Form no 16'!$T$3,'Employee Data'!$D$6:$D$556,0))="","",(INDEX('Employee Data'!$J$6:$J$556,MATCH('Form no 16'!$T$3,'Employee Data'!$D$6:$D$556,0)))) -> 2024-04-01 | U21: =IF(INDEX('Employee Data'!$K$6:$K$556,MATCH('Form no 16'!$T$3,'Employee Data'!$D$6:$D$556,0))="","",(INDEX('Employee Data'!$K$6:$K$556,MATCH('Form no 16'!$T$3,'Employee Data'!$D$6:$D$556,0)))) -> 2025-03-31
A22: City: Pincode: | B22: =IF('DDO Data'!$D$15="","",'DDO Data'!$D$15) -> Jaipur | E22: Pin Code | H22: =IF('DDO Data'!$D$16="","",'DDO Data'!$D$16) -> 302005 | AC22: Statement
A23: Summary of amount paid/credited and tax deducted at sourcethereon in respect of employee
A24: Quarter | C24: Receipt Numbers of original quarterly statements of TDS under sub-section (3) of section 200 | L24: Amount of paid/credited | Q24: Amount of tax deducted (Rs.) | V24: Amount of tax deposited/remitted (Rs.)
AC25: Tax Calculator
A27: Quarter 1 | C27: =IF('DDO Data'!F8="","",'DDO Data'!F8) ->  | L27: 0 | Q27: =INDEX('Employee Data'!$CO$6:$CO$556,MATCH('Form no 16'!$T$3,'Employee Data'!$D$6:$D$556,0)) -> 0 | V27: =Q27 -> 0
A28: Quarter 2 | C28: =IF('DDO Data'!F9="","",'DDO Data'!F9) ->  | L28: 0 | Q28: =INDEX('Employee Data'!$CP$6:$CP$556,MATCH('Form no 16'!$T$3,'Employee Data'!$D$6:$D$556,0)) -> 0 | V28: =Q28 -> 0
A29: Quarter 3 | C29: =IF('DDO Data'!F10="","",'DDO Data'!F10) ->  | L29: 0 | Q29: =INDEX('Employee Data'!$CQ$6:$CQ$556,MATCH('Form no 16'!$T$3,'Employee Data'!$D$6:$D$556,0)) -> 0 | V29: =Q29 -> 0
A30: Quarter 4 | C30: =IF('DDO Data'!F11="","",'DDO Data'!F11) ->  | L30: 0 | Q30: =INDEX('Employee Data'!$CR$6:$CR$556,MATCH('Form no 16'!$T$3,'Employee Data'!$D$6:$D$556,0)) -> 0 | V30: =Q30 -> 0
A31: Total (Rs.) | L31: =SUM(L27:O30) -> 0 | Q31: =SUM(Q27:T30) -> 0 | V31: =Q31 -> 0
A32: I. DETAILS OF TAX DEDUCTED AND DEPOSITED IN THE CENTRAL GOVERNMENT ACCOUNT THROUGH ADJUSTMENT
A34: (The deductor to provide payment wise details of tax deducted and deposited with respect to the deductee)
A35: S. No. | B35: Tax Deposited in respect of the deductee(Rs.) | C35: Book identification number (BIN)
C36: Receipt numbers of Form No.24 G | J36: DDO serial number in Form No 24G | O36: Date of transfer voucher (dd/mm/yyyy) | W36: Status of matching with Form No. 24G
A39: 1 | B39: =INDEX('Employee Data'!$CC$6:$CC$556,MATCH('Form no 16'!$T$3,'Employee Data'!$D$6:$D$556,0)) -> 0 | C39: ='DDO Data'!L20 ->  | D39: ='DDO Data'!M20 ->  | E39: ='DDO Data'!N20 ->  | F39: ='DDO Data'!O20 ->  | G39: ='DDO Data'!P20 ->  | H39: ='DDO Data'!Q20 ->  | I39: ='DDO Data'!R20 -> 0 | J39: ='DDO Data'!S20 ->  | K39: ='DDO Data'!T20 ->  | L39: ='DDO Data'!U20 ->  | M39: ='DDO Data'!V20 ->  | N39: ='DDO Data'!W20 -> 0 | O39: ='DDO Data'!X20 ->  | P39: ='DDO Data'!Y20 ->  | Q39: ='DDO Data'!Z20 ->  | R39: ='DDO Data'!AA20 ->  | S39: ='DDO Data'!AB20 ->  | T39: ='DDO Data'!AC20 ->  | U39: ='DDO Data'!AD20 ->  | V39: ='DDO Data'!AE20 ->  | W39: ='DDO Data'!H20 -> Matched
A40: 2 | B40: =INDEX('Employee Data'!$CD$6:$CD$556,MATCH('Form no 16'!$T$3,'Employee Data'!$D$6:$D$556,0)) -> 0 | C40: ='DDO Data'!L21 ->  | D40: ='DDO Data'!M21 ->  | E40: ='DDO Data'!N21 ->  | F40: ='DDO Data'!O21 ->  | G40: ='DDO Data'!P21 ->  | H40: ='DDO Data'!Q21 ->  | I40: ='DDO Data'!R21 -> 0 | J40: ='DDO Data'!S21 ->  | K40: ='DDO Data'!T21 ->  | L40: ='DDO Data'!U21 ->  | M40: ='DDO Data'!V21 ->  | N40: ='DDO Data'!W21 -> 0 | O40: ='DDO Data'!X21 ->  | P40: ='DDO Data'!Y21 ->  | Q40: ='DDO Data'!Z21 ->  | R40: ='DDO Data'!AA21 ->  | S40: ='DDO Data'!AB21 ->  | T40: ='DDO Data'!AC21 ->  | U40: ='DDO Data'!AD21 ->  | V40: ='DDO Data'!AE21 ->  | W40: Matched
A41: 3 | B41: =INDEX('Employee Data'!$CE$6:$CE$556,MATCH('Form no 16'!$T$3,'Employee Data'!$D$6:$D$556,0)) -> 0 | C41: ='DDO Data'!L22 ->  | D41: ='DDO Data'!M22 ->  | E41: ='DDO Data'!N22 ->  | F41: ='DDO Data'!O22 ->  | G41: ='DDO Data'!P22 ->  | H41: ='DDO Data'!Q22 ->  | I41: ='DDO Data'!R22 -> 0 | J41: ='DDO Data'!S22 ->  | K41: ='DDO Data'!T22 ->  | L41: ='DDO Data'!U22 ->  | M41: ='DDO Data'!V22 ->  | N41: ='DDO Data'!W22 -> 0 | O41: ='DDO Data'!X22 ->  | P41: ='DDO Data'!Y22 ->  | Q41: ='DDO Data'!Z22 ->  | R41: ='DDO Data'!AA22 ->  | S41: ='DDO Data'!AB22 ->  | T41: ='DDO Data'!AC22 ->  | U41: ='DDO Data'!AD22 ->  | V41: ='DDO Data'!AE22 ->  | W41: Matched
A42: 4 | B42: =INDEX('Employee Data'!$CF$6:$CF$556,MATCH('Form no 16'!$T$3,'Employee Data'!$D$6:$D$556,0)) -> 0 | C42: ='DDO Data'!L23 ->  | D42: ='DDO Data'!M23 ->  | E42: ='DDO Data'!N23 ->  | F42: ='DDO Data'!O23 ->  | G42: ='DDO Data'!P23 ->  | H42: ='DDO Data'!Q23 ->  | I42: ='DDO Data'!R23 -> 0 | J42: ='DDO Data'!S23 ->  | K42: ='DDO Data'!T23 ->  | L42: ='DDO Data'!U23 ->  | M42: ='DDO Data'!V23 ->  | N42: ='DDO Data'!W23 -> 0 | O42: ='DDO Data'!X23 ->  | P42: ='DDO Data'!Y23 ->  | Q42: ='DDO Data'!Z23 ->  | R42: ='DDO Data'!AA23 ->  | S42: ='DDO Data'!AB23 ->  | T42: ='DDO Data'!AC23 ->  | U42: ='DDO Data'!AD23 ->  | V42: ='DDO Data'!AE23 ->  | W42: Matched
A43: 5 | B43: =INDEX('Employee Data'!$CG$6:$CG$556,MATCH('Form no 16'!$T$3,'Employee Data'!$D$6:$D$556,0)) -> 0 | C43: ='DDO Data'!L24 ->  | D43: ='DDO Data'!M24 ->  | E43: ='DDO Data'!N24 ->  | F43: ='DDO Data'!O24 ->  | G43: ='DDO Data'!P24 ->  | H43: ='DDO Data'!Q24 ->  | I43: ='DDO Data'!R24 -> 0 | J43: ='DDO Data'!S24 ->  | K43: ='DDO Data'!T24 ->  | L43: ='DDO Data'!U24 ->  | M43: ='DDO Data'!V24 ->  | N43: ='DDO Data'!W24 -> 0 | O43: ='DDO Data'!X24 ->  | P43: ='DDO Data'!Y24 ->  | Q43: ='DDO Data'!Z24 ->  | R43: ='DDO Data'!AA24 ->  | S43: ='DDO Data'!AB24 ->  | T43: ='DDO Data'!AC24 ->  | U43: ='DDO Data'!AD24 ->  | V43: ='DDO Data'!AE24 ->  | W43: Matched
A44: 6 | B44: =INDEX('Employee Data'!$CH$6:$CH$556,MATCH('Form no 16'!$T$3,'Employee Data'!$D$6:$D$556,0)) -> 0 | C44: ='DDO Data'!L25 ->  | D44: ='DDO Data'!M25 ->  | E44: ='DDO Data'!N25 ->  | F44: ='DDO Data'!O25 ->  | G44: ='DDO Data'!P25 ->  | H44: ='DDO Data'!Q25 ->  | I44: ='DDO Data'!R25 -> 0 | J44: ='DDO Data'!S25 ->  | K44: ='DDO Data'!T25 ->  | L44: ='DDO Data'!U25 ->  | M44: ='DDO Data'!V25 ->  | N44: ='DDO Data'!W25 -> 0 | O44: ='DDO Data'!X25 ->  | P44: ='DDO Data'!Y25 ->  | Q44: ='DDO Data'!Z25 ->  | R44: ='DDO Data'!AA25 ->  | S44: ='DDO Data'!AB25 ->  | T44: ='DDO Data'!AC25 ->  | U44: ='DDO Data'!AD25 ->  | V44: ='DDO Data'!AE25 ->  | W44: Matched
A45: 7 | B45: =INDEX('Employee Data'!$CI$6:$CI$556,MATCH('Form no 16'!$T$3,'Employee Data'!$D$6:$D$556,0)) -> 0 | C45: ='DDO Data'!L26 ->  | D45: ='DDO Data'!M26 ->  | E45: ='DDO Data'!N26 ->  | F45: ='DDO Data'!O26 ->  | G45: ='DDO Data'!P26 ->  | H45: ='DDO Data'!Q26 ->  | I45: ='DDO Data'!R26 -> 0 | J45: ='DDO Data'!S26 ->  | K45: ='DDO Data'!T26 ->  | L45: ='DDO Data'!U26 ->  | M45: ='DDO Data'!V26 ->  | N45: ='DDO Data'!W26 -> 0 | O45: ='DDO Data'!X26 ->  | P45: ='DDO Data'!Y26 ->  | Q45: ='DDO Data'!Z26 ->  | R45: ='DDO Data'!AA26 ->  | S45: ='DDO Data'!AB26 ->  | T45: ='DDO Data'!AC26 ->  | U45: ='DDO Data'!AD26 ->  | V45: ='DDO Data'!AE26 ->  | W45: Matched
A46: 8 | B46: =INDEX('Employee Data'!$CJ$6:$CJ$556,MATCH('Form no 16'!$T$3,'Employee Data'!$D$6:$D$556,0)) -> 0 | C46: ='DDO Data'!L27 ->  | D46: ='DDO Data'!M27 ->  | E46: ='DDO Data'!N27 ->  | F46: ='DDO Data'!O27 ->  | G46: ='DDO Data'!P27 ->  | H46: ='DDO Data'!Q27 ->  | I46: ='DDO Data'!R27 -> 0 | J46: ='DDO Data'!S27 ->  | K46: ='DDO Data'!T27 ->  | L46: ='DDO Data'!U27 ->  | M46: ='DDO Data'!V27 ->  | N46: ='DDO Data'!W27 -> 0 | O46: ='DDO Data'!X27 ->  | P46: ='DDO Data'!Y27 ->  | Q46: ='DDO Data'!Z27 ->  | R46: ='DDO Data'!AA27 ->  | S46: ='DDO Data'!AB27 ->  | T46: ='DDO Data'!AC27 ->  | U46: ='DDO Data'!AD27 ->  | V46: ='DDO Data'!AE27 ->  | W46: Matched
A47: 9 | B47: =INDEX('Employee Data'!$CK$6:$CK$556,MATCH('Form no 16'!$T$3,'Employee Data'!$D$6:$D$556,0)) -> 0 | C47: ='DDO Data'!L28 ->  | D47: ='DDO Data'!M28 ->  | E47: ='DDO Data'!N28 ->  | F47: ='DDO Data'!O28 ->  | G47: ='DDO Data'!P28 ->  | H47: ='DDO Data'!Q28 ->  | I47: ='DDO Data'!R28 -> 0 | J47: ='DDO Data'!S28 ->  | K47: ='DDO Data'!T28 ->  | L47: ='DDO Data'!U28 ->  | M47: ='DDO Data'!V28 ->  | N47: ='DDO Data'!W28 -> 0 | O47: ='DDO Data'!X28 ->  | P47: ='DDO Data'!Y28 ->  | Q47: ='DDO Data'!Z28 ->  | R47: ='DDO Data'!AA28 ->  | S47: ='DDO Data'!AB28 ->  | T47: ='DDO Data'!AC28 ->  | U47: ='DDO Data'!AD28 ->  | V47: ='DDO Data'!AE28 ->  | W47: Matched
A48: 10 | B48: =INDEX('Employee Data'!$CL$6:$CL$556,MATCH('Form no 16'!$T$3,'Employee Data'!$D$6:$D$556,0)) -> 0 | C48: ='DDO Data'!L29 ->  | D48: ='DDO Data'!M29 ->  | E48: ='DDO Data'!N29 ->  | F48: ='DDO Data'!O29 ->  | G48: ='DDO Data'!P29 ->  | H48: ='DDO Data'!Q29 ->  | I48: ='DDO Data'!R29 -> 0 | J48: ='DDO Data'!S29 ->  | K48: ='DDO Data'!T29 ->  | L48: ='DDO Data'!U29 ->  | M48: ='DDO Data'!V29 ->  | N48: ='DDO Data'!W29 -> 0 | O48: ='DDO Data'!X29 ->  | P48: ='DDO Data'!Y29 ->  | Q48: ='DDO Data'!Z29 ->  | R48: ='DDO Data'!AA29 ->  | S48: ='DDO Data'!AB29 ->  | T48: ='DDO Data'!AC29 ->  | U48: ='DDO Data'!AD29 ->  | V48: ='DDO Data'!AE29 ->  | W48: Matched
A49: 11 | B49: =INDEX('Employee Data'!$CM$6:$CM$556,MATCH('Form no 16'!$T$3,'Employee Data'!$D$6:$D$556,0)) -> 0 | C49: ='DDO Data'!L30 ->  | D49: ='DDO Data'!M30 ->  | E49: ='DDO Data'!N30 ->  | F49: ='DDO Data'!O30 ->  | G49: ='DDO Data'!P30 ->  | H49: ='DDO Data'!Q30 ->  | I49: ='DDO Data'!R30 -> 0 | J49: ='DDO Data'!S30 ->  | K49: ='DDO Data'!T30 ->  | L49: ='DDO Data'!U30 ->  | M49: ='DDO Data'!V30 ->  | N49: ='DDO Data'!W30 -> 0 | O49: ='DDO Data'!X30 ->  | P49: ='DDO Data'!Y30 ->  | Q49: ='DDO Data'!Z30 ->  | R49: ='DDO Data'!AA30 ->  | S49: ='DDO Data'!AB30 ->  | T49: ='DDO Data'!AC30 ->  | U49: ='DDO Data'!AD30 ->  | V49: ='DDO Data'!AE30 ->  | W49: Matched
A50: 12 | B50: =INDEX('Employee Data'!$CN$6:$CN$556,MATCH('Form no 16'!$T$3,'Employee Data'!$D$6:$D$556,0)) -> 0 | C50: ='DDO Data'!L31 ->  | D50: ='DDO Data'!M31 ->  | E50: ='DDO Data'!N31 ->  | F50: ='DDO Data'!O31 ->  | G50: ='DDO Data'!P31 ->  | H50: ='DDO Data'!Q31 ->  | I50: ='DDO Data'!R31 -> 0 | J50: ='DDO Data'!S31 ->  | K50: ='DDO Data'!T31 ->  | L50: ='DDO Data'!U31 ->  | M50: ='DDO Data'!V31 ->  | N50: ='DDO Data'!W31 -> 0 | O50: ='DDO Data'!X31 ->  | P50: ='DDO Data'!Y31 ->  | Q50: ='DDO Data'!Z31 ->  | R50: ='DDO Data'!AA31 ->  | S50: ='DDO Data'!AB31 ->  | T50: ='DDO Data'!AC31 ->  | U50: ='DDO Data'!AD31 ->  | V50: ='DDO Data'!AE31 ->  | W50: Matched
A51: TOTAL | B51: =SUM(B39:B50) -> 0
A53: Certificate No. | C53: =IF($D$11="","",$D$11) ->  | G53: TAN of employer | K53: =$D$17 -> JDHO12345E | O53: PAN of employee | S53: =$L$17 -> BEPPS1234Q | V53: A.YEAR | X53: =$L$20 -> 2025-26
A54: II. DETAILS OF TAX DEDUCTED AND DEPOSITED IN THE CENTRAL GOVERNMENT ACCOUNT THROUGH CHALLAN (The deductor to provide payment wise details of tax deducted and deposited with respect to the deductee)
A56: S.No. | B56: Tax Deposited in respect of the deductee (Rs.) | C56: Challan identification number (CIN)
C57: BSR Code of tbe Bank Branch | J57: Date on which tax deposited (dd/mm/yyyy) | R57: Challan Serial Number | W57: Status of matching with OLTAS
A58: 1 | B58: =INDEX('Employee Data'!$CW$6:$CW$556,MATCH('Form no 16'!$T$3,'Employee Data'!$D$6:$D$556,0)) -> 0 | C58: ='DDO Data'!L37 ->  | D58: ='DDO Data'!M37 ->  | E58: ='DDO Data'!N37 ->  | F58: ='DDO Data'!O37 ->  | G58: ='DDO Data'!P37 ->  | H58: ='DDO Data'!Q37 ->  | I58: ='DDO Data'!R37 -> 0 | J58: ='DDO Data'!X37 ->  | K58: ='DDO Data'!Y37 ->  | L58: ='DDO Data'!Z37 ->  | M58: ='DDO Data'!AA37 ->  | N58: ='DDO Data'!AB37 ->  | O58: ='DDO Data'!AC37 ->  | P58: ='DDO Data'!AD37 ->  | Q58: ='DDO Data'!AE37 ->  | R58: ='DDO Data'!S37 ->  | S58: ='DDO Data'!T37 ->  | T58: ='DDO Data'!U37 ->  | U58: ='DDO Data'!V37 ->  | V58: ='DDO Data'!W37 -> 0 | W58: =IF('DDO Data'!G37="","","Matched") -> 
A59: 2 | B59: =INDEX('Employee Data'!$CX$6:$CX$556,MATCH('Form no 16'!$T$3,'Employee Data'!$D$6:$D$556,0)) -> 0 | C59: ='DDO Data'!L38 ->  | D59: ='DDO Data'!M38 ->  | E59: ='DDO Data'!N38 ->  | F59: ='DDO Data'!O38 ->  | G59: ='DDO Data'!P38 ->  | H59: ='DDO Data'!Q38 ->  | I59: ='DDO Data'!R38 -> 0 | J59: ='DDO Data'!X38 ->  | K59: ='DDO Data'!Y38 ->  | L59: ='DDO Data'!Z38 ->  | M59: ='DDO Data'!AA38 ->  | N59: ='DDO Data'!AB38 ->  | O59: ='DDO Data'!AC38 ->  | P59: ='DDO Data'!AD38 ->  | Q59: ='DDO Data'!AE38 ->  | R59: ='DDO Data'!S38 ->  | S59: ='DDO Data'!T38 ->  | T59: ='DDO Data'!U38 ->  | U59: ='DDO Data'!V38 ->  | V59: ='DDO Data'!W38 -> 0 | W59: =IF('DDO Data'!G38="","","Matched") -> 
A60: 3 | B60: =INDEX('Employee Data'!$CY$6:$CY$556,MATCH('Form no 16'!$T$3,'Employee Data'!$D$6:$D$556,0)) -> 0 | C60: ='DDO Data'!L39 ->  | D60: ='DDO Data'!M39 ->  | E60: ='DDO Data'!N39 ->  | F60: ='DDO Data'!O39 ->  | G60: ='DDO Data'!P39 ->  | H60: ='DDO Data'!Q39 ->  | I60: ='DDO Data'!R39 -> 0 | J60: ='DDO Data'!X39 ->  | K60: ='DDO Data'!Y39 ->  | L60: ='DDO Data'!Z39 ->  | M60: ='DDO Data'!AA39 ->  | N60: ='DDO Data'!AB39 ->  | O60: ='DDO Data'!AC39 ->  | P60: ='DDO Data'!AD39 ->  | Q60: ='DDO Data'!AE39 ->  | R60: ='DDO Data'!S39 ->  | S60: ='DDO Data'!T39 ->  | T60: ='DDO Data'!U39 ->  | U60: ='DDO Data'!V39 ->  | V60: ='DDO Data'!W39 -> 0 | W60: =IF('DDO Data'!G39="","","Matched") -> 
A61: 4 | B61: =INDEX('Employee Data'!$CZ$6:$CZ$556,MATCH('Form no 16'!$T$3,'Employee Data'!$D$6:$D$556,0)) -> 0 | C61: ='DDO Data'!L40 ->  | D61: ='DDO Data'!M40 ->  | E61: ='DDO Data'!N40 ->  | F61: ='DDO Data'!O40 ->  | G61: ='DDO Data'!P40 ->  | H61: ='DDO Data'!Q40 ->  | I61: ='DDO Data'!R40 -> 0 | J61: ='DDO Data'!X40 ->  | K61: ='DDO Data'!Y40 ->  | L61: ='DDO Data'!Z40 ->  | M61: ='DDO Data'!AA40 ->  | N61: ='DDO Data'!AB40 ->  | O61: ='DDO Data'!AC40 ->  | P61: ='DDO Data'!AD40 ->  | Q61: ='DDO Data'!AE40 ->  | R61: ='DDO Data'!S40 ->  | S61: ='DDO Data'!T40 ->  | T61: ='DDO Data'!U40 ->  | U61: ='DDO Data'!V40 ->  | V61: ='DDO Data'!W40 -> 0 | W61: =IF('DDO Data'!G40="","","Matched") -> 
A62: 5 | B62: =INDEX('Employee Data'!$DA$6:$DA$556,MATCH('Form no 16'!$T$3,'Employee Data'!$D$6:$D$556,0)) -> 0 | C62: ='DDO Data'!L41 ->  | D62: ='DDO Data'!M41 ->  | E62: ='DDO Data'!N41 ->  | F62: ='DDO Data'!O41 ->  | G62: ='DDO Data'!P41 ->  | H62: ='DDO Data'!Q41 ->  | I62: ='DDO Data'!R41 -> 0 | J62: ='DDO Data'!X41 ->  | K62: ='DDO Data'!Y41 ->  | L62: ='DDO Data'!Z41 ->  | M62: ='DDO Data'!AA41 ->  | N62: ='DDO Data'!AB41 ->  | O62: ='DDO Data'!AC41 ->  | P62: ='DDO Data'!AD41 ->  | Q62: ='DDO Data'!AE41 ->  | R62: ='DDO Data'!S41 ->  | S62: ='DDO Data'!T41 ->  | T62: ='DDO Data'!U41 ->  | U62: ='DDO Data'!V41 ->  | V62: ='DDO Data'!W41 -> 0 | W62: =IF('DDO Data'!G41="","","Matched") -> 
A63: 6 | B63: =INDEX('Employee Data'!$DB$6:$DB$556,MATCH('Form no 16'!$T$3,'Employee Data'!$D$6:$D$556,0)) -> 0 | C63: ='DDO Data'!L42 ->  | D63: ='DDO Data'!M42 ->  | E63: ='DDO Data'!N42 ->  | F63: ='DDO Data'!O42 ->  | G63: ='DDO Data'!P42 ->  | H63: ='DDO Data'!Q42 ->  | I63: ='DDO Data'!R42 -> 0 | J63: ='DDO Data'!X42 ->  | K63: ='DDO Data'!Y42 ->  | L63: ='DDO Data'!Z42 ->  | M63: ='DDO Data'!AA42 ->  | N63: ='DDO Data'!AB42 ->  | O63: ='DDO Data'!AC42 ->  | P63: ='DDO Data'!AD42 ->  | Q63: ='DDO Data'!AE42 ->  | R63: ='DDO Data'!S42 ->  | S63: ='DDO Data'!T42 ->  | T63: ='DDO Data'!U42 ->  | U63: ='DDO Data'!V42 ->  | V63: ='DDO Data'!W42 -> 0 | W63: =IF('DDO Data'!G42="","","Matched") -> 
A64: 7 | B64: =INDEX('Employee Data'!$DC$6:$DC$556,MATCH('Form no 16'!$T$3,'Employee Data'!$D$6:$D$556,0)) -> 0 | C64: ='DDO Data'!L43 ->  | D64: ='DDO Data'!M43 ->  | E64: ='DDO Data'!N43 ->  | F64: ='DDO Data'!O43 ->  | G64: ='DDO Data'!P43 ->  | H64: ='DDO Data'!Q43 ->  | I64: ='DDO Data'!R43 -> 0 | J64: ='DDO Data'!X43 ->  | K64: ='DDO Data'!Y43 ->  | L64: ='DDO Data'!Z43 ->  | M64: ='DDO Data'!AA43 ->  | N64: ='DDO Data'!AB43 ->  | O64: ='DDO Data'!AC43 ->  | P64: ='DDO Data'!AD43 ->  | Q64: ='DDO Data'!AE43 ->  | R64: ='DDO Data'!S43 ->  | S64: ='DDO Data'!T43 ->  | T64: ='DDO Data'!U43 ->  | U64: ='DDO Data'!V43 ->  | V64: ='DDO Data'!W43 -> 0 | W64: =IF('DDO Data'!G43="","","Matched") -> 
A65: 8 | B65: =INDEX('Employee Data'!$DD$6:$DD$556,MATCH('Form no 16'!$T$3,'Employee Data'!$D$6:$D$556,0)) -> 0 | C65: ='DDO Data'!L44 ->  | D65: ='DDO Data'!M44 ->  | E65: ='DDO Data'!N44 ->  | F65: ='DDO Data'!O44 ->  | G65: ='DDO Data'!P44 ->  | H65: ='DDO Data'!Q44 ->  | I65: ='DDO Data'!R44 -> 0 | J65: ='DDO Data'!X44 ->  | K65: ='DDO Data'!Y44 ->  | L65: ='DDO Data'!Z44 ->  | M65: ='DDO Data'!AA44 ->  | N65: ='DDO Data'!AB44 ->  | O65: ='DDO Data'!AC44 ->  | P65: ='DDO Data'!AD44 ->  | Q65: ='DDO Data'!AE44 ->  | R65: ='DDO Data'!S44 ->  | S65: ='DDO Data'!T44 ->  | T65: ='DDO Data'!U44 ->  | U65: ='DDO Data'!V44 ->  | V65: ='DDO Data'!W44 -> 0 | W65: =IF('DDO Data'!G44="","","Matched") -> 
A66: 9 | B66: =INDEX('Employee Data'!$DE$6:$DE$556,MATCH('Form no 16'!$T$3,'Employee Data'!$D$6:$D$556,0)) -> 0 | C66: ='DDO Data'!L45 ->  | D66: ='DDO Data'!M45 ->  | E66: ='DDO Data'!N45 ->  | F66: ='DDO Data'!O45 ->  | G66: ='DDO Data'!P45 ->  | H66: ='DDO Data'!Q45 ->  | I66: ='DDO Data'!R45 -> 0 | J66: ='DDO Data'!X45 ->  | K66: ='DDO Data'!Y45 ->  | L66: ='DDO Data'!Z45 ->  | M66: ='DDO Data'!AA45 ->  | N66: ='DDO Data'!AB45 ->  | O66: ='DDO Data'!AC45 ->  | P66: ='DDO Data'!AD45 ->  | Q66: ='DDO Data'!AE45 ->  | R66: ='DDO Data'!S45 ->  | S66: ='DDO Data'!T45 ->  | T66: ='DDO Data'!U45 ->  | U66: ='DDO Data'!V45 ->  | V66: ='DDO Data'!W45 -> 0 | W66: =IF('DDO Data'!G45="","","Matched") -> 
A67: 10 | B67: =INDEX('Employee Data'!$DF$6:$DF$556,MATCH('Form no 16'!$T$3,'Employee Data'!$D$6:$D$556,0)) -> 0 | C67: ='DDO Data'!L46 ->  | D67: ='DDO Data'!M46 ->  | E67: ='DDO Data'!N46 ->  | F67: ='DDO Data'!O46 ->  | G67: ='DDO Data'!P46 ->  | H67: ='DDO Data'!Q46 ->  | I67: ='DDO Data'!R46 -> 0 | J67: ='DDO Data'!X46 ->  | K67: ='DDO Data'!Y46 ->  | L67: ='DDO Data'!Z46 ->  | M67: ='DDO Data'!AA46 ->  | N67: ='DDO Data'!AB46 ->  | O67: ='DDO Data'!AC46 ->  | P67: ='DDO Data'!AD46 ->  | Q67: ='DDO Data'!AE46 ->  | R67: ='DDO Data'!S46 ->  | S67: ='DDO Data'!T46 ->  | T67: ='DDO Data'!U46 ->  | U67: ='DDO Data'!V46 ->  | V67: ='DDO Data'!W46 -> 0 | W67: =IF('DDO Data'!G46="","","Matched") -> 
A68: 11 | B68: =INDEX('Employee Data'!$DG$6:$DG$556,MATCH('Form no 16'!$T$3,'Employee Data'!$D$6:$D$556,0)) -> 0 | C68: ='DDO Data'!L47 ->  | D68: ='DDO Data'!M47 ->  | E68: ='DDO Data'!N47 ->  | F68: ='DDO Data'!O47 ->  | G68: ='DDO Data'!P47 ->  | H68: ='DDO Data'!Q47 ->  | I68: ='DDO Data'!R47 -> 0 | J68: ='DDO Data'!X47 ->  | K68: ='DDO Data'!Y47 ->  | L68: ='DDO Data'!Z47 ->  | M68: ='DDO Data'!AA47 ->  | N68: ='DDO Data'!AB47 ->  | O68: ='DDO Data'!AC47 ->  | P68: ='DDO Data'!AD47 ->  | Q68: ='DDO Data'!AE47 ->  | R68: ='DDO Data'!S47 ->  | S68: ='DDO Data'!T47 ->  | T68: ='DDO Data'!U47 ->  | U68: ='DDO Data'!V47 ->  | V68: ='DDO Data'!W47 -> 0 | W68: =IF('DDO Data'!G47="","","Matched") -> 
A69: 12 | B69: =INDEX('Employee Data'!$DH$6:$DH$556,MATCH('Form no 16'!$T$3,'Employee Data'!$D$6:$D$556,0)) -> 0 | C69: ='DDO Data'!L48 ->  | D69: ='DDO Data'!M48 ->  | E69: ='DDO Data'!N48 ->  | F69: ='DDO Data'!O48 ->  | G69: ='DDO Data'!P48 ->  | H69: ='DDO Data'!Q48 ->  | I69: ='DDO Data'!R48 -> 0 | J69: ='DDO Data'!X48 ->  | K69: ='DDO Data'!Y48 ->  | L69: ='DDO Data'!Z48 ->  | M69: ='DDO Data'!AA48 ->  | N69: ='DDO Data'!AB48 ->  | O69: ='DDO Data'!AC48 ->  | P69: ='DDO Data'!AD48 ->  | Q69: ='DDO Data'!AE48 ->  | R69: ='DDO Data'!S48 ->  | S69: ='DDO Data'!T48 ->  | T69: ='DDO Data'!U48 ->  | U69: ='DDO Data'!V48 ->  | V69: ='DDO Data'!W48 -> 0 | W69: =IF('DDO Data'!G48="","","Matched") -> 
A70: Total | B70: =SUM(B58:B69) -> 0
A71: Verification
A72: I | B72: ='DDO Data'!$D$12 -> PQR | I72: =IF('DDO Data'!$H$12="Male","son of","daughter of") -> son of | L72: ='DDO Data'!$D$13 -> STUV | T72: working in the capacity of
A73: =C80 -> ABCD | S73: do hearby certify that a sum of
A74: =IF('Form no 16'!B51>0,'Form no 16'!B51+B70,"NIL") -> NIL | B74: =IF('Form no 16'!#REF!>0,'Form no 16'!#REF!,"NIL") ->  | E74: =pravesh(A74) ->  | S74: has been deducted at source
A75: and paid to the credit of the Central Government. I further certify that the information given above is true and correct based on the books of account, documents and available records
A78: Place : | C78: =IF(INDEX('Employee Data'!$CU$6:$CU$556,MATCH('Form no 16'!$T$3,'Employee Data'!$D$6:$D$556,0))="","",INDEX('Employee Data'!$CU$6:$CU$556,MATCH('Form no 16'!$T$3,'Employee Data'!$D$6:$D$556,0))) ->  | M78: (Signature of the person responsible for deduction of tax)
A79: Date : | C79: =IF(INDEX('Employee Data'!$CV$6:$CV$556,MATCH('Form no 16'!$T$3,'Employee Data'!$D$6:$D$556,0))="","",INDEX('Employee Data'!$CV$6:$CV$556,MATCH('Form no 16'!$T$3,'Employee Data'!$D$6:$D$556,0))) -> 
A80: Designation | C80: =C196 -> ABCD | M80: Full Name | P80: =B72 -> PQR
A83: Certificate No. | C83: =IF($D$11="","",$D$11) ->  | G83: TAN of employer | K83: =$D$17 -> JDHO12345E | O83: PAN of employee | S83: =$L$17 -> BEPPS1234Q | V83: A.YEAR | X83: =$L$20 -> 2025-26
A84: PART B (Annexure)
A85: Details of Salary Paid and any other income and tax deducted
A86: (A) | B86: Whether opting for taxation u/s 115BAC? | S86: =IF($K$4="Existing Option","NO","YES") -> YES
A87: 1 | B87: Gross Salary
A88: (a) | B88: Salary as per provisons contained in sec 17(1) | O88: =INDEX('Employee Data'!$M$6:$M$556,MATCH('Form no 16'!$T$3,'Employee Data'!$D$6:$D$556,0)) -> 1850000
A89: (b) | B89: Value of perquisites u/s 17(2) | O89: =INDEX('Employee Data'!$N$6:$N$556,MATCH('Form no 16'!$T$3,'Employee Data'!$D$6:$D$556,0)) -> 0
B90: (as per Form No. 12BA, wherever applicable)
A91: (c ) | B91: Profits in lieu of salary under section 17(3) | O91: =INDEX('Employee Data'!$O$6:$O$556,MATCH('Form no 16'!$T$3,'Employee Data'!$D$6:$D$556,0)) -> 0
B92: (as per Form No.12BA, wherever applicable)
A93: (d) | B93: Total | S93: =O88+O89+O91 -> 1850000
A94: (e) | B94: Reported total amount of salary received from other employer(s) | S94: =INDEX('Employee Data'!$Q$6:$Q$556,MATCH('Form no 16'!$T$3,'Employee Data'!$D$6:$D$556,0)) -> 0
A95: 2 | B95: Less : Allowance to the extent exempt under section 10
A96: Details | K96: Rs.
A97: (a) | B97: Travel concession or assistance u/s 10(5) | O97: =IF($K$4="New option u/s 115BAC",0,INDEX('Employee Data'!$R$6:$R$556,MATCH('Form no 16'!$T$3,'Employee Data'!$D$6:$D$556,0))) -> 0
A98: (b) | B98: Death-cum-retirement gratuity u/s 10(10) | O98: =IF($K$4="New option u/s 115BAC",0,INDEX('Employee Data'!$S$6:$S$556,MATCH('Form no 16'!$T$3,'Employee Data'!$D$6:$D$556,0))) -> 0
A99: (c ) | B99: Commuted value of pension u/s 10(10A) | O99: =IF($K$4="New option u/s 115BAC",0,INDEX('Employee Data'!$T$6:$T$556,MATCH('Form no 16'!$T$3,'Employee Data'!$D$6:$D$556,0))) -> 0
A100: (d) | B100: Cash equivlent of leave salary encashment u/s 10(10AA) | O100: =IF($K$4="New option u/s 115BAC",0,INDEX('Employee Data'!$U$6:$U$556,MATCH('Form no 16'!$T$3,'Employee Data'!$D$6:$D$556,0))) -> 0
A101: (e) | B101: House rent allowance u/s 10(13 A) | O101: =IF($K$4="New option u/s 115BAC",0,INDEX('Employee Data'!$V$6:$V$556,MATCH('Form no 16'!$T$3,'Employee Data'!$D$6:$D$556,0))) -> 0
A102: (f) | B102: Conv Allow under Section 10(14) | O102: =IF($K$4="New option u/s 115BAC",0,INDEX('Employee Data'!$W$6:$W$556,MATCH('Form no 16'!$T$3,'Employee Data'!$D$6:$D$556,0))) -> 0
A103: (g) | B103: Other Allowances exempt u/s 10 | O103: =IF($K$4="New option u/s 115BAC",0,INDEX('Employee Data'!$X$6:$X$556,MATCH($T$3,'Employee Data'!$D$6:$D$556,0))) -> 0
A104: (h) | B104: Total amount of exemption claimd u/s 10 [ 2(a)+2(b)+2( c)+2(d)+2(e)+2(f)+2(g)] | W104: =SUM(O97:R103) -> 0
A106: 3 | B106: Total amount of salary received from current employer [1(d)-2(h)] | W106: ='Form no 16'!S93-W104 -> 1850000
A107: 4 | B107: Less :Deductions under section 16
A108: (a) | B108: Standard Deducation (u/s 16ia) | S108: ='Table for form 16'!E1375 -> 75000
A109: (b) | B109: Entertainment Allowance u/s 16(ii) | S109: =IF('Table for form 16'!F1327>0,'Table for form 16'!F1327,IF($K$4="New option u/s 115BAC",0,INDEX('Employee Data'!$AB$6:$AB$556,MATCH('Form no 16'!$T$3,'Employee Data'!$D$6:$D$556,0)))) -> 0
A110: (c.) | B110: Tax on Employment u/s 16(iii) | S110: =IF('Table for form 16'!F1328>0,'Table for form 16'!F1328,IF($K$4="New option u/s 115BAC",0,INDEX('Employee Data'!$AC$6:$AC$556,MATCH('Form no 16'!$T$3,'Employee Data'!$D$6:$D$556,0)))) -> 0
A111: 5 | B111: Total amount of deductions u/s 16 [ 4(a)+ (b) + (c )] | W111: =S110+S109+S108 -> 75000
A112: 6 | B112: Income chargable under the head Salaries [3+1(e)-5] | W112: =W106+S94-W111 -> 1775000
A113: 7 | B113: Add : Any other income reported by the employee under as per section 192 (2B)
A114: Details | K114: Rs.
A115: (a) | B115: Income (or admissible loss) from house property reported by employee offered for TDS | S115: =IF($K$4="New option u/s 115BAC",0,-INDEX('Employee Data'!$AK$6:$AK$556,MATCH('Form no 16'!$T$3,'Employee Data'!$D$6:$D$556,0))) -> 0
A117: (b) | B117: Income under the head Other Sources offered for TDS | S117: =IF($K$4="New option u/s 115BAC",0,INDEX('Employee Data'!$AL$6:$AL$556,MATCH('Form no 16'!$T$3,'Employee Data'!$D$6:$D$556,0))) -> 0
A118: 8 | B118: Total amount of other income reported by the employee [(7(a) + 7(b)] | W118: =S115+S117 -> 0
A119: 9 | B119: GROSS TOTAL INCOME ( 6 + 8 ) | W119: =W112+W118 -> 1775000
A120: 10 | B120: Deductions under chapter VI A
S121: Gross Amount | W121: Deductible Amount
A122: (a) | B122: Deduction in respect of life insurance premia, contributions to provident fund etc. under section 80C | S122: =SUM(S124:V139) -> 0 | W122: =IF((S122)>150000,150000,S122) -> 0
A124: i. | B124: Genral Provided Fund | S124: =IF($K$4="New option u/s 115BAC",0,INDEX('Employee Data'!$AO$6:$AO$556,MATCH('Form no 16'!$T$3,'Employee Data'!$D$6:$D$556,0))) -> 0 | W124: =S124 -> 0
A125: ii. | B125: State Insurance & Service Tax | S125: =IF($K$4="New option u/s 115BAC",0,INDEX('Employee Data'!$AP$6:$AP$556,MATCH('Form no 16'!$T$3,'Employee Data'!$D$6:$D$556,0))) -> 0 | W125: 0 | AC125: (d) Rs. ... Rs. ...
A126: iii | B126: Group Insurance | S126: =IF($K$4="New option u/s 115BAC",0,INDEX('Employee Data'!$AQ$6:$AQ$556,MATCH('Form no 16'!$T$3,'Employee Data'!$D$6:$D$556,0))) -> 0 | W126: 0 | AC126: (e) Deductions in respect of amount paid/deposited to notified
A127: iv. | B127: Life Insurance Premium | S127: =IF($K$4="New option u/s 115BAC",0,INDEX('Employee Data'!$AR$6:$AR$556,MATCH('Form no 16'!$T$3,'Employee Data'!$D$6:$D$556,0))) -> 0 | W127: 0 | AC127: pension scheme under section 80CCD (1B)
A128: v. | B128: Accured Intrest on NSC | S128: =IF($K$4="New option u/s 115BAC",0,INDEX('Employee Data'!$AS$6:$AS$556,MATCH('Form no 16'!$T$3,'Employee Data'!$D$6:$D$556,0))) -> 0 | W128: 0 | AC128: Rs. ... Rs. ...
A129: vi. | B129: Tution Fee | S129: =IF($K$4="New option u/s 115BAC",0,INDEX('Employee Data'!$AT$6:$AT$556,MATCH('Form no 16'!$T$3,'Employee Data'!$D$6:$D$556,0))) -> 0 | W129: 0 | AC129: (f) Deduction in respect of contribution by Employer to
A130: vii | B130: Repayment of HBA | S130: =IF($K$4="New option u/s 115BAC",0,INDEX('Employee Data'!$AU$6:$AU$556,MATCH('Form no 16'!$T$3,'Employee Data'!$D$6:$D$556,0))) -> 0 | W130: 0 | AC130: pension scheme under section 80CCCD (2)
A131: viii | B131: Hazard Fund | S131: =IF($K$4="New option u/s 115BAC",0,INDEX('Employee Data'!$AV$6:$AV$556,MATCH('Form no 16'!$T$3,'Employee Data'!$D$6:$D$556,0))) -> 0 | W131: 0 | AC131: Rs. ... Rs. ...
A132: ix | B132: Purchases of NSC | S132: =IF($K$4="New option u/s 115BAC",0,INDEX('Employee Data'!$AW$6:$AW$556,MATCH('Form no 16'!$T$3,'Employee Data'!$D$6:$D$556,0))) -> 0 | W132: 0 | AC132: (g) Deduction in respect of health insurance premia under
A133: x | B133: PPF | S133: =IF($K$4="New option u/s 115BAC",0,INDEX('Employee Data'!$AX$6:$AX$556,MATCH('Form no 16'!$T$3,'Employee Data'!$D$6:$D$556,0))) -> 0 | W133: 0 | AC133: section 80D
A134: xi | B134: PLI / ULIP | S134: =IF($K$4="New option u/s 115BAC",0,INDEX('Employee Data'!$AY$6:$AY$556,MATCH('Form no 16'!$T$3,'Employee Data'!$D$6:$D$556,0))) -> 0 | W134: 0 | AC134: Rs. ... Rs. ...
A135: xii | B135: IDBI/ICCI | S135: =IF($K$4="New option u/s 115BAC",0,INDEX('Employee Data'!$AZ$6:$AZ$556,MATCH('Form no 16'!$T$3,'Employee Data'!$D$6:$D$556,0))) -> 0 | W135: 0 | AC135: (h) Deduction in respect of interest on loan taken for higher
A136: xiii | B136: BANK FD/POST OFFICE FD | S136: =IF($K$4="New option u/s 115BAC",0,INDEX('Employee Data'!$BA$6:$BA$556,MATCH('Form no 16'!$T$3,'Employee Data'!$D$6:$D$556,0))) -> 0 | W136: 0 | AC136: education under section 80E
A137: xiv | B137: Equity link saving bond | S137: =IF($K$4="New option u/s 115BAC",0,INDEX('Employee Data'!$BB$6:$BB$556,MATCH('Form no 16'!$T$3,'Employee Data'!$D$6:$D$556,0))) -> 0 | W137: 0 | AC137: Rs. ... Rs. ...
A138: xv | B138: Sukanya Samriddhi Account Deposit Scheme | S138: =IF($K$4="New option u/s 115BAC",0,INDEX('Employee Data'!$BC$6:$BC$556,MATCH('Form no 16'!$T$3,'Employee Data'!$D$6:$D$556,0))) -> 0 | W138: 0
A139: xvi | B139: Any other ded. u/s 80C | S139: =IF($K$4="New option u/s 115BAC",0,INDEX('Employee Data'!$BD$6:$BD$556,MATCH('Form no 16'!$T$3,'Employee Data'!$D$6:$D$556,0))) -> 0 | W139: 0
A140: (b) | B140: Deduction in respect of contribution to certain pension funds under section 80CCC | S140: =IF($K$4="New option u/s 115BAC",0,INDEX('Employee Data'!$BE$6:$BE$556,MATCH('Form no 16'!$T$3,'Employee Data'!$D$6:$D$556,0))) -> 0 | W140: =IF((S140)>150000,150000,S140) -> 0
A142: ( c) | B142: Deduction in respect of contribution by taxpayer to pension scheme under section 80CCD (1) | S142: =IF($K$4="New option u/s 115BAC",0,INDEX('Employee Data'!$BF$6:$BF$556,MATCH('Form no 16'!$T$3,'Employee Data'!$D$6:$D$556,0))) -> 0 | W142: =IF((S142)>150000,150000,S142) -> 0
A144: (d) | B144: Total deduction under section 80C, 80CCC and 80CCD(1) | S144: =S122+S140+S142 -> 0 | W144: =IF((S144)>150000,150000,S144) -> 0
A145: Certificate No. | C145: =IF($D$11="","",$D$11) ->  | G145: TAN of employer | K145: =$D$17 -> JDHO12345E | O145: PAN of employee | S145: =$L$17 -> BEPPS1234Q | V145: A.YEAR | X145: =$L$20 -> 2025-26
A147: (e) | B147: Deductions in respect of amount paid/deposited to notified pension scheme under section 80CCD (1B) | S147: =IF($K$4="New option u/s 115BAC",0,INDEX('Employee Data'!$BI$6:$BI$556,MATCH('Form no 16'!$T$3,'Employee Data'!$D$6:$D$556,0))) -> 0 | W147: =IF(S147>50000,50000,S147) -> 0
A149: (f) | B149: Deduction in respect of contribution by Employer to pension scheme under section 80CCCD (2) | S149: =INDEX('Employee Data'!$BH$6:$BH$556,MATCH('Form no 16'!$T$3,'Employee Data'!$D$6:$D$556,0)) -> 0 | W149: =MIN(ROUND(O88*10%,0),S149) -> 0
A151: (g) | B151: Deduction in respect of health insurance premia under section 80D | S151: =IF($K$4="New option u/s 115BAC",0,INDEX('Employee Data'!$BK$6:$BK$556,MATCH('Form no 16'!$T$3,'Employee Data'!$D$6:$D$556,0))) -> 0 | W151: =IF(S151>100000,100000,S151) -> 0
A153: (h) | B153: Deduction in respect of interest on loan taken for higher education under section 80E | S153: =IF($K$4="New option u/s 115BAC",0,INDEX('Employee Data'!$BO$6:$BO$556,MATCH('Form no 16'!$T$3,'Employee Data'!$D$6:$D$556,0))) -> 0 | W153: =S153 -> 0
O155: Gross Amount | S155: Qualifying Amount | W155: Deductible Amount
A156: (i) | B156: Total Deduction in respect of donations to certain funds charitable institutions, etc. under section 80G | O156: =S156 -> 0 | S156: =IF($K$4="New option u/s 115BAC",0,INDEX('Employee Data'!$BS$6:$BS$556,MATCH('Form no 16'!$T$3,'Employee Data'!$D$6:$D$556,0))) -> 0 | W156: =S156 -> 0
A158: (j) | B158: Deduction in respect of Interest on deposits in savings account under section 80TTA | O158: =S158 -> 0 | S158: =IF($K$4="New option u/s 115BAC",0,INDEX('Employee Data'!$BU$6:$BU$556,MATCH('Form no 16'!$T$3,'Employee Data'!$D$6:$D$556,0))) -> 0 | W158: ='Table for form 16'!F1437 -> 0
A160: (k) | B160: Amount deductible under any other provision(s) of Chapter VI‐A
B161: U/S 80CCF | C161: Investment in long term infrasturture bonds | O161: =S161 -> 0 | S161: =IF($K$4="New option u/s 115BAC",0,INDEX('Employee Data'!$BJ$6:$BJ$556,MATCH('Form no 16'!$T$3,'Employee Data'!$D$6:$D$556,0))) -> 0 | W161: =S161 -> 0
B162: U/S 80DD- | C162: Medical treat. of dependent handicapped person | O162: =S162 -> 0 | S162: =IF($K$4="New option u/s 115BAC",0,INDEX('Employee Data'!$BM$6:$BM$556,MATCH('Form no 16'!$T$3,'Employee Data'!$D$6:$D$556,0))) -> 0 | W162: =IF(S162>'Table for form 16'!F1319,'Table for form 16'!F1319,S162) -> 0 | Y162: =IF(S162>0,INDEX('Employee Data'!$BL$6:$BL$556,MATCH('Form no 16'!$T$3,'Employee Data'!$D$6:$D$556,0)),"") -> 
B163: U/S 80DDB- | C163: Spl ded.to the guardion of a patient suff.from Cancer/Aids | O163: =S163 -> 0 | S163: =IF($K$4="New option u/s 115BAC",0,INDEX('Employee Data'!$BN$6:$BN$556,MATCH('Form no 16'!$T$3,'Employee Data'!$D$6:$D$556,0))) -> 0 | W163: =IF(S163>'Table for form 16'!N1284,'Table for form 16'!N1284,S163) -> 0
B165: U/S 80EE- | C165: Intrest paid on HBA(Loan taking after 01-04-13 excluding u/s 24B) | O165: =S165 -> 0 | S165: =IF($K$4="New option u/s 115BAC",0,INDEX('Employee Data'!$BP$6:$BP$556,MATCH('Form no 16'!$T$3,'Employee Data'!$D$6:$D$556,0))) -> 0 | W165: =IF(S165>'Table for form 16'!N1286,'Table for form 16'!N1286,S165) -> 0
B167: U/S 80EEA- | C167: Interest on loan taken for certain house property | O167: =S167 -> 0 | S167: =IF($K$4="New option u/s 115BAC",0,INDEX('Employee Data'!$BQ$6:$BQ$556,MATCH('Form no 16'!$T$3,'Employee Data'!$D$6:$D$556,0))) -> 0 | W167: =IF(S167>'Table for form 16'!O1293,'Table for form 16'!O1293,S167) -> 0
B168: U/S 80EEB- | C168: Purchase of electric vehicle | O168: 0 | S168: =IF($K$4="New option u/s 115BAC",0,INDEX('Employee Data'!$BR$6:$BR$556,MATCH('Form no 16'!$T$3,'Employee Data'!$D$6:$D$556,0))) -> 0 | W168: =IF(S168>'Table for form 16'!O1294,'Table for form 16'!O1294,S168) -> 0
B169: U/S 80CCG- | C169: New Rajiv Gandhi Saving Scheme | O169: 0 | S169: =IF($K$4="New option u/s 115BAC",0,INDEX('Employee Data'!$BT$6:$BT$556,MATCH('Form no 16'!$T$3,'Employee Data'!$D$6:$D$556,0))) -> 0 | W169: ='Table for form 16'!G1322 -> 0
B170: U/S 80TTB- | C170: Interest income earned on Saving/ Fixed Deposits & Recurring Deposits | O170: 0 | S170: =IF($K$4="New option u/s 115BAC",0,INDEX('Employee Data'!$BV$6:$BV$556,MATCH('Form no 16'!$T$3,'Employee Data'!$D$6:$D$556,0))) -> 0 | W170: ='Table for form 16'!G1437 -> 0
B171: U/S 80U- | C171: Phy. hand. person or blind person under section 80U | O171: 0 | S171: =IF($K$4="New option u/s 115BAC",0,INDEX('Employee Data'!$BX$6:$BX$556,MATCH('Form no 16'!$T$3,'Employee Data'!$D$6:$D$556,0))) -> 0 | W171: ='Table for form 16'!F1320 -> 0 | Y171: =IF(S171>0,INDEX('Employee Data'!$BW$6:$BW$556,MATCH('Form no 16'!$T$3,'Employee Data'!$D$6:$D$556,0)),"") -> 
B172: 80 CCH | C172: All contributions to Agniveer Corpus Fund | O172: 0 | S172: =IF($F$4="2024-25",INDEX('Employee Data'!$BY$6:$BY$556,MATCH('Form no 16'!$T$3,'Employee Data'!$D$6:$D$556,0),IF($F$4="2023-24",INDEX('Employee Data'!$BY$6:$BY$556,MATCH('Form no 16'!$T$3,'Employee Data'!$D$6:$D$556,0))))) -> 0 | W172: =S172 -> 0
B173: =Statement!B67 ->  | C173: (Any other deduction..Give name) | O173: 0 | S173: =IF($K$4="New option u/s 115BAC",0,INDEX('Employee Data'!$BZ$6:$BZ$556,MATCH('Form no 16'!$T$3,'Employee Data'!$D$6:$D$556,0))) -> 0 | W173: =S173 -> 0
A174: (I ) | B174: Total of amount deductible under any other provision(s) of Chapter VI‐A | O174: =SUM(O161:R173)+SUM(O147:R159) -> 0 | S174: =SUM(S161:V173)+SUM(S147:V159) -> 0 | W174: =SUM(W161:Z173)+SUM(W147:X159) -> 0
A176: 11 | B176: Aggregate of deductible amounts under Chapter VI-A | W176: =SUM(W144+W174) -> 0
S177: =ROUNDUP(W177,-1) -> 1775000 | W177: ='Form no 16'!W119-W176 -> 1775000
A178: 12 | B178: Total Income ( 9 - 11 ) (Rounded off u/s 288A) | W178: =IF(W119<=W176,0,IF(S177-W177<=5,ROUNDUP(S177,-1),ROUNDUP(S177,-1)-10)) -> 1775000
A179: 13 | B179: Tax on total income | W179: ='Table for form 16'!F1241 -> 222500 | AC179: ='Table for form 16'!C1219 -> 
A180: 14 | B180: Rebate under section 87A, if applicable | W180: =IF(W179>'Table for form 16'!E1240,'Table for form 16'!E1240,W179) -> 0
A181: 15 | B181: Surcharge,whenever applicable (on tax computed at S.No. 13) | H181: =IF('Table for form 16'!E1221>0,'Table for form 16'!B1222,"") ->  | W181: ='Table for form 16'!D1208 -> 0
A183: 16 | B183: =IF('Table for form 16'!$F$2="2020-21","Health and Education Cess & 4% ",IF('Table for form 16'!$F$2="2019-20","Health and Education Cess & 4% ",IF('Table for form 16'!$F$2="2018-19","Health and Education Cess & 4% ","Education Cess @2% on Tax+H.Education Cess @1% "))) -> Education Cess @2% on Tax+H.Education Cess @1% | W183: ='Table for form 16'!E1218 -> 8900 | AC183: =IF(AC179="","",'Table for form 16'!L1220) -> 
B184: (on tax computed at S.No.13 + surcharge at S.No. 15)
A185: 17 | B185: Tax payable ( 13+15+16-14 ) | W185: ='Table for form 16'!F1218 -> 231400
A186: 18 | B186: Less: Releif under section 89 (attach details) | W186: =INDEX('Employee Data'!$CB$6:$CB$556,MATCH('Form no 16'!$T$3,'Employee Data'!$D$6:$D$556,0)) -> 0
A187: 19 | B187: Tax Payable ( 17-18 ) | W187: =W185-W186 -> 231400
A188: Verification
A190: I | B190: ='DDO Data'!$D$12 -> PQR | I190: =IF('DDO Data'!$H$12="Male","son of","daughter of") -> son of | L190: ='DDO Data'!$D$13 -> STUV | T190: working in the capacity of
A191: =A73 -> ABCD | S191: do hearby certify that the
A192: information given above is true and correct and is based on the books of account, documents ,TDS statements, and available records
A194: Place : | C194: =IF(INDEX('Employee Data'!$CU$6:$CU$556,MATCH('Form no 16'!$T$3,'Employee Data'!$D$6:$D$556,0))="","",INDEX('Employee Data'!$CU$6:$CU$556,MATCH('Form no 16'!$T$3,'Employee Data'!$D$6:$D$556,0))) ->  | M194: (Signature of the person responsible for deduction of tax)
A195: Date : | C195: =IF(INDEX('Employee Data'!$CV$6:$CV$556,MATCH('Form no 16'!$T$3,'Employee Data'!$D$6:$D$556,0))="","",INDEX('Employee Data'!$CV$6:$CV$556,MATCH('Form no 16'!$T$3,'Employee Data'!$D$6:$D$556,0))) -> 
A196: Designation | C196: =IF('DDO Data'!$D$6="","",'DDO Data'!D6) -> ABCD | M196: Full Name | P196: =B190 -> PQR
A202: Note : | B202: 1. aggregate amount deductible under section 80C shall not exceed one lakh rupees
B203: 2. aggregate amount deductible under the three sections,i.e., 80C, 80CCC & 80CCD (1), shall not exceed one lakh fifty thousand rupees
A205: B. Other sections ( for e.g., 80E, 80G etc. ) under chapter VIA | O205: Gross Amount | S205: Qualifying Amount | W205: Deductible Amount
A208: Notes:
A209: 1 | B209: Government deductors to fill information in item I of Part A if tax is paid without production of an income-tax challan and in item II of Part A if tax is paid accompanied by an income-tax challan.
A211: 2 | B211: Non-Government deductors to fill information in item II of Part A.
A212: 3 | B212: The deductor shall furnish the address of the Commissioner of Income-tax (TDS) having jurisdiction as regards TDS statements of the assessee.
A214: 4 | B214: If an assessee is employed under one employer only during the year, certificate in Form No. 16 issued for the quarter ending on 31st March 2021 of the financial year shall contain the details of tax deducted and deposited for all the quarters of the financial year.
A217: 5 | B217: (i) If an assessee is employed under more than one employer during the year, each of the employers shall issue Part A of the certificate in Form No. 16 pertaining to the period for which such assessee was employed with each of the employers.
B220: (ii) Part B (Annexure) of the certificate in Form No.16 may be issued by each of the employers or the last employer at the option of the assessee.
A222: 6 | B222: In Part A, in items I and II, in the column for tax deposited in respect of deductee, furnish total amount of tax, surcharge and health and education cess.
A224: 7 | B224: Deductor shall duly fill details, where available, in item numbers 2(f) and 10(k) before furnishing of Part B (Annexure) to the employee.”;

Sheet 115BAC (hidden)
A1: Tax computation for Tax Calculator-STATEMENT
A2: =Statement!G4 -> New option u/s 115BAC | B2: Financial Year | E2: ='Employee Data'!$G$5 -> 2024-25
A3: 2021-21 | B3: Tax Category | E3: =Statement!$C$5 -> SENIOR CITIZEN
A4: =IF(E2>=A3,A2,"Existing Option") -> New option u/s 115BAC | B4: Taxable Income | E4: =Statement!$H$70 -> 1820000
C5: 2020 | D5: =C5+1 -> 2021 | F5: 2020-21
A6: Male | D6: TAX MARGIN | E6: TAX AT MARGIN | F6: SUR RATE | G6: E.Cess | H6: TAXABLE INCOME | I6: TAX RATE APPLY | J6: TAX MARGIN SLAB | K6: TAX SLAB | L6: Surch.Rate | M6: E.Cess | N6: Tax Range | Q6: Basic Exemtion limit | R6: Tax Category | T6: Tax (inluding addition income) | U6: Tax (excluding addition income) | V6: Surchange on whole amt | W6: Relief (if amt > one crore | AC6: Surcharge Table (2019-20)
A7: (below 60 years) | N7: F.Year | O7: =C5 -> 2020 | P7: =D5 -> 2021 | AC7: 0 | AD7: 5000000 | AE7: 0
A8: 0 | B8: 250000 | C8: 0 | D8: 0 | E8: 0 | F8: 0 | G8: 0 | H8: =$E$4 -> 1820000 | I8: =VLOOKUP(H8,A8:C14,3) -> 0.3 | J8: =INDEX(D8:D14,MATCH(I8,C8:C14,0)) -> 1500000 | K8: =INDEX(E8:E14,MATCH(I8,C8:C14,0)) -> 187500 | L8: =VLOOKUP(H8,'115BAC'!$AC$7:$AE$11,3) -> 0 | M8: 0.04 | N8: 0 | O8: =IF($E$3="Male",B8,B8) -> 250000 | P8: 0 | Q8: =O8 -> 250000 | X8: Tax Income | Y8: =L8 -> 0 | Z8: =E4 -> 1820000 | AA8: =IF(Z8=Z13,Y12,IF(Y8=Z12,Y11,IF(Y8=Z11,Y10,Y9))) -> 5000000 | AC8: =AD7+1 -> 5000001 | AD8: 10000000 | AE8: 0.1
A9: =B8+1 -> 250001 | B9: 500000 | C9: 0.05 | D9: =B8 -> 250000 | E9: =(B9-B8)*C9 -> 12500 | F9: 0 | G9: 0.04 | H9: TAX CALCULALTION | I9: SURCHARGE | J9: E. CESS | K9: TOTAL TAX DUE | N9: =O8+1 -> 250001 | O9: 500000 | P9: 0.05 | R9: =E3 -> SENIOR CITIZEN | T9: =INDEX(T10:T13,MATCH(R9,R10:R13,0)) -> 283500 | W9: =IF(Y8=37%,25%,IF(Y8=25%,15%,IF(Y8=15%,10%,0))) -> 0 | X9: 0 | Y9: 5000000 | Z9: 0 | AA9: =Y11 -> 20000000 | AC9: =AD8+1 -> 10000001 | AD9: 20000000 | AE9: 0.15
A10: 500001 | B10: 750000 | C10: 0.1 | D10: 500000 | E10: =E9+(B10-B9)*C10 -> 37500 | F10: 0 | G10: 0.04 | H10: =IF(I8=C14,E13+ROUND((H8-J8),0)*I8,IF(I8=C13,E12+ROUND((H8-J8),0)*I8,IF(I8=C12,E11+ROUND((H8-J8),0)*I8,IF(I8=C11,E10+ROUND((H8-J8)*I8,0),IF(I8=C10,E9+ROUND((H8-J8)*I8,0),IF(I8=C9,E8+ROUND((H8-J8)*I8,0),E7+ROUND((H8-J8)*I8,0))))))) -> 283500 | I10: =MIN(K12:L12) -> 0 | J10: =ROUND(SUM(H10+I10)*M8,0) -> 11340 | K10: =SUM(H10:J10) -> 294840 | N10: 500001 | O10: 750000 | P10: 0.1 | R10: Male | T10: =H10 -> 283500 | U10: =IF(AA8>1500000,187500+((AA8-1500000)*0.3),IF(AA8>1250000,125000+((AA8-1250000)*0.25),IF(AA8>1000000,75000+((AA8-1000000)*0.2),IF(AA8>750000,37500+((AA8-750000)*0.15),IF(AA8>500000,12500+((AA8-500000)*0.1),IF(AA8>250000,(AA8-250000)*0.05,0)))))) -> 1237500 | V10: =ROUND(T10*$Y$8,0) -> 0 | W10: =ROUND(U10*$W$9,0) -> 0 | X10: =Y9+1 -> 5000001 | Y10: 10000000 | Z10: 0.1 | AA10: =Z8-X10+1 -> -3180000 | AB10: =T10+V10-U10-W10 -> -954000 | AC10: =AD9+1 -> 20000001 | AD10: 50000000 | AE10: 0.25
A11: 750001 | B11: 1000000 | C11: 0.15 | D11: 750000 | E11: =E10+(B11-B10)*C11 -> 75000 | F11: 0.1 | G11: 0.04 | H11: Surcharge limit | I11: Add.Tax Income | J11: Add. Tax | K11: Diff | L11: Sur. Amt | M11: M.R. | N11: 750001 | O11: 1000000 | P11: 0.15 | R11: Female | T11: =T10 -> 283500 | U11: =IF(AA8>1500000,187500+((AA8-1500000)*0.3),IF(AA8>1250000,125000+((AA8-1250000)*0.25),IF(AA8>1000000,75000+((AA8-1000000)*0.2),IF(AA8>750000,37500+((AA8-750000)*0.15),IF(AA8>500000,12500+((AA8-500000)*0.1),IF(AA8>250000,(AA8-250000)*0.05,0)))))) -> 1237500 | V11: =ROUND(T11*$Y$8,0) -> 0 | W11: =ROUND(U11*$W$9,0) -> 0 | X11: =Y10+1 -> 10000001 | Y11: 20000000 | Z11: 0.15 | AB11: =T11+V11-U11-W11 -> -954000 | AC11: =AD10+1 -> 50000001 | AE11: 0.37
A12: 1000001 | B12: 1250000 | C12: 0.2 | D12: 1000000 | E12: =E11+(B12-B11)*C12 -> 125000 | F12: 0.15 | G12: 0.04 | H12: =D15 -> 50000000 | I12: =IF(H8>H12,H8-H12,0) -> 0 | J12: =IF(I12>0,ROUND(I12*I8,0),0) -> 0 | K12: =IF(H12>=D12,Q12+(I12-J12),(I12-J12)) -> 0 | L12: =IF(H10>0,ROUND(H10*L8,0),0) -> 0 | M12: =IF(K12>L12,0,L12-K12) -> 0 | N12: 1000001 | O12: 1250000 | P12: 0.2 | Q12: =W10 -> 0 | R12: Senior Citizen | T12: =T11 -> 283500 | U12: =IF(AA8>1500000,187500+((AA8-1500000)*0.3),IF(AA8>1250000,125000+((AA8-1250000)*0.25),IF(AA8>1000000,75000+((AA8-1000000)*0.2),IF(AA8>750000,37500+((AA8-750000)*0.15),IF(AA8>500000,12500+((AA8-500000)*0.1),IF(AA8>250000,(AA8-250000)*0.05,0)))))) -> 1237500 | V12: =ROUND(T12*$Y$8,0) -> 0 | W12: =ROUND(U12*$W$9,0) -> 0 | X12: =Y11+1 -> 20000001 | Y12: 50000000 | Z12: 0.25
A13: 1250001 | B13: 1500000 | C13: 0.25 | D13: 1250000 | E13: =E12+(B13-B12)*C13 -> 187500 | F13: 0.25 | G13: 0.04 | N13: 1250001 | O13: 1500000 | P13: 0.25 | R13: Very Senior Citizen | T13: =T12 -> 283500 | U13: =IF(AA8>1500000,187500+((AA8-1500000)*0.3),IF(AA8>1250000,125000+((AA8-1250000)*0.25),IF(AA8>1000000,75000+((AA8-1000000)*0.2),IF(AA8>750000,37500+((AA8-750000)*0.15),IF(AA8>500000,12500+((AA8-500000)*0.1),IF(AA8>250000,(AA8-250000)*0.05,0)))))) -> 1237500 | V13: =ROUND(T13*$Y$8,0) -> 0 | W13: =ROUND(U13*$W$9,0) -> 0 | X13: =Y12+1 -> 50000001 | Z13: 0.37
A14: 1500001 | C14: 0.3 | D14: 1500000 | E14: =IF(J8=0,0,E13) -> 187500 | F14: 0.37 | G14: 0.04 | N14: 1500001 | O14: 0 | P14: 0.3
A15: Surcharge Limit | D15: =IF(L8=10%,5000000,IF(L8=15%,10000000,IF(L8=25%,20000000,50000000))) -> 50000000
C16: 2023 | D16: =C16+1 -> 2024 | F16: 2023-24
A17: Male | D17: TAX MARGIN | E17: TAX AT MARGIN | F17: SUR RATE | G17: E.Cess | H17: TAXABLE INCOME | I17: TAX RATE APPLY | J17: TAX MARGIN SLAB | K17: TAX SLAB | L17: Surch.Rate | M17: E.Cess | N17: Tax Range | Q17: Basic Exemtion limit | R17: Tax Category | T17: Tax (inluding addition income) | U17: Tax (excluding addition income) | V17: Surchange on whole amt | W17: Relief (if amt > one crore | AC17: Surcharge Table (2023-24)
A18: (below 60 years) | N18: F.Year | O18: =C16 -> 2023 | P18: =D16 -> 2024 | AC18: 0 | AD18: 5000000 | AE18: 0
A19: 0 | B19: 300000 | C19: 0 | D19: =IF($E$4<=B19,B19-0,B19) -> 300000 | E19: =D19*C19 -> 0 | F19: 0 | G19: 0 | H19: =$E$4 -> 1820000 | I19: =VLOOKUP(H19,A19:C25,3) -> 0.3 | J19: =INDEX(D19:D25,MATCH(I19,C19:C25,0)) -> 320000 | K19: =INDEX(E19:E25,MATCH(I19,C19:C25,0)) -> 96000 | L19: =VLOOKUP(H19,AC18:AE21,3) -> 0 | M19: 0.04 | N19: 0 | O19: =IF($E$3="Male",B19,B19) -> 300000 | P19: =IF($E$3="Male",C19,C19) -> 0 | Q19: =O19 -> 300000 | X19: Tax Income | Y19: =L19 -> 0 | Z19: =E15 -> 0 | AA19: =IF(Z19=Z24,Y23,IF(Y19=Z23,Y22,IF(Y19=Z22,Y21,Y20))) -> 0 | AC19: =AD18+1 -> 5000001 | AD19: 10000000 | AE19: 0.1
A20: =B19 -> 300000 | B20: 600000 | C20: 0.05 | D20: =MAX(IF($E$4<=B20,$E$4-A20,B20-A20),IF($E$4>B19,,0)) -> 300000 | E20: 15000 | F20: 0 | G20: 0.04 | H20: TAX CALCULALTION | I20: SURCHARGE | J20: E. CESS | K20: TOTAL TAX DUE | N20: =O19+1 -> 300001 | O20: 600000 | P20: 0.05 | R20: =E3 -> SENIOR CITIZEN | T20: =INDEX(T21:T24,MATCH(R20,R21:R24,0)) -> 246000 | W20: =IF(Y19=37%,25%,IF(Y19=25%,15%,IF(Y19=15%,10%,0))) -> 0 | X20: 0 | Y20: 5000000 | Z20: 0 | AA20: =Y22 -> 20000000 | AC20: =AD19+1 -> 10000001 | AD20: 20000000 | AE20: 0.15
